Workbook

Sheet OPĆI DIO
B1: RKP-NAZIV PRORAČUNSKOG KORISNIKA | C1: 38454 SVEUČILIŠTE U RIJECI - AKADEMIJA PRIMJENJENIH UMJETNOSTI
B2: MJESTO I DATUM | C2: Rijeka, 09. prosinca 2025. godine
B3: OSOBA ZA KONTAKTIRANJE | C3: Mirela Čirjak | K3: R. BR. | L3: RKPNaziv | M3: RKP | N3: NAZIV PRORAČUNSKOGA KORISNIKA | O3: DODIJELI PRIPADNOST PREMA RKP-U: GLAVA I SVEUČILIŠTE/MZO | P3: ADRESA PRORAČUNSKOGA KORISNIKA | Q3: POŠTANSKI BROJ I NAZIV GRADA/OPĆINE | R3: MATIČNI BROJ | S3: OIB | T3: Tip | U3: Glava
B4: TELEFON ZA KONTAKT | C4: 051/228-883 | K4: 0 | L4: odaberite - | T4: - | U4: -
B5: E-MAIL ZA KONTAKT | C5: mirela.cirjak@apuri.uniri.hr | K5: =+K4+1 -> 1. | L5: =M5&" "&N5 -> 1222 MINISTARSTVO ZNANOSTI, OBRAZOVANJA I MLADIH | M5: 1222 | N5: MINISTARSTVO ZNANOSTI, OBRAZOVANJA I MLADIH | P5: DONJE SVETICE 38 | Q5: 10000 ZAGREB | R5: 03271030 | S5: 49508397045 | T5: MZO | U5: 08005
K6: 2. | L6: 1757 SVEUČILIŠTE U ZAGREBU - FAKULTET ELEKTROTEHNIKE I RAČUNARSTVA | M6: 1757 | N6: SVEUČILIŠTE U ZAGREBU - FAKULTET ELEKTROTEHNIKE I RAČUNARSTVA | O6: SVEUČILIŠTE U ZAGREBU | P6: UNSKA 3 | Q6: 10000 ZAGREB | R6: 03276643 | S6: 57029260362 | T6: Sveučilišta i veleučilišta u Republici Hrvatskoj | U6: 08006
B7: IZMJENE I DOPUNE FINANCIJSKOG PLANA ZA 2025. | K7: 3. | L7: 1781 SVEUČILIŠTE U ZAGREBU - PRIRODOSLOVNO-MATEMATIČKI FAKULTET | M7: 1781 | N7: SVEUČILIŠTE U ZAGREBU - PRIRODOSLOVNO-MATEMATIČKI FAKULTET | O7: SVEUČILIŠTE U ZAGREBU | P7: HORVATOVAC 102A | Q7: 10000 ZAGREB | R7: 03270149 | S7: 28163265527 | T7: Sveučilišta i veleučilišta u Republici Hrvatskoj | U7: 08006
K8: 4. | L8: 1790 SVEUČILIŠTE U ZAGREBU - FAKULTET KEMIJSKOG INŽENJERSTVA I TEHNOLOGIJE | M8: 1790 | N8: SVEUČILIŠTE U ZAGREBU - FAKULTET KEMIJSKOG INŽENJERSTVA I TEHNOLOGIJE | O8: SVEUČILIŠTE U ZAGREBU | P8: MARULIĆEV TRG 19 | Q8: 10000 ZAGREB | R8: 03250270 | S8: 71259740533 | T8: Sveučilišta i veleučilišta u Republici Hrvatskoj | U8: 08006
B9: I. OPĆI DIO | K9: 5. | L9: 1804 SVEUČILIŠTE U ZAGREBU - TEKSTILNO TEHNOLOŠKI FAKULTET | M9: 1804 | N9: SVEUČILIŠTE U ZAGREBU - TEKSTILNO TEHNOLOŠKI FAKULTET | O9: SVEUČILIŠTE U ZAGREBU | P9: PRILAZ BARUNA FILIPOVIĆA 28A | Q9: 10000 ZAGREB | R9: 03207064 | S9: 43097527965 | T9: Sveučilišta i veleučilišta u Republici Hrvatskoj | U9: 08006
K10: 6. | L10: 1812 SVEUČILIŠTE U ZAGREBU - FAKULTET PROMETNIH ZNANOSTI | M10: 1812 | N10: SVEUČILIŠTE U ZAGREBU - FAKULTET PROMETNIH ZNANOSTI | O10: SVEUČILIŠTE U ZAGREBU | P10: VUKELIĆEVA 4 | Q10: 10000 ZAGREB | R10: 03260771 | S10: 25410051374 | T10: Sveučilišta i veleučilišta u Republici Hrvatskoj | U10: 08006
B11: A. SAŽETAK RAČUNA PRIHODA I RASHODA | K11: 7. | L11: 1829 SVEUČILIŠTE U ZAGREBU - FAKULTET STROJARSTVA I BRODOGRADNJE | M11: 1829 | N11: SVEUČILIŠTE U ZAGREBU - FAKULTET STROJARSTVA I BRODOGRADNJE | O11: SVEUČILIŠTE U ZAGREBU | P11: IVANA LUČIĆA 5 | Q11: 10000 ZAGREB | R11: 03276546 | S11: 22910368449 | T11: Sveučilišta i veleučilišta u Republici Hrvatskoj | U11: 08006
E12: u EUR | K12: 8. | L12: 1837 SVEUČILIŠTE U ZAGREBU - GRAĐEVINSKI FAKULTET | M12: 1837 | N12: SVEUČILIŠTE U ZAGREBU - GRAĐEVINSKI FAKULTET | O12: SVEUČILIŠTE U ZAGREBU | P12: FRA ANDRIJE KAČIĆA MIOŠIĆA 26 | Q12: 10000 ZAGREB | R12: 03227120 | S12: 62924153420 | T12: Sveučilišta i veleučilišta u Republici Hrvatskoj | U12: 08006
C13: PLAN 2025. | D13: Povećanje/ smanjenje | E13: NOVI PLAN 2025. | K13: 9. | L13: 1845 SVEUČILIŠTE U ZAGREBU - PREHRAMBENO BIOTEHNOLOŠKI FAKULTET | M13: 1845 | N13: SVEUČILIŠTE U ZAGREBU - PREHRAMBENO BIOTEHNOLOŠKI FAKULTET | O13: SVEUČILIŠTE U ZAGREBU | P13: PIEROTTIJEVA 6 | Q13: 10000 ZAGREB | R13: 03207102 | S13: 47824453867 | T13: Sveučilišta i veleučilišta u Republici Hrvatskoj | U13: 08006
A14: 6 | B14: PRIHODI POSLOVANJA | C14: ='A.1 PRIHODI I RASHODI EK'!D11 -> 3,376,426 | D14: ='A.1 PRIHODI I RASHODI EK'!E11 -> 573,955 | E14: ='A.1 PRIHODI I RASHODI EK'!F11 -> 3,950,381 | K14: 10. | L14: 1853 SVEUČILIŠTE U ZAGREBU - GEODETSKI FAKULTET | M14: 1853 | N14: SVEUČILIŠTE U ZAGREBU - GEODETSKI FAKULTET | O14: SVEUČILIŠTE U ZAGREBU | P14: A. KAČIĆA MIOŠIĆA 26 | Q14: 10000 ZAGREB | R14: 03204987 | S14: 43594593297 | T14: Sveučilišta i veleučilišta u Republici Hrvatskoj | U14: 08006
A15: 7 | B15: PRIHODI OD NEFINANCIJSKE IMOVINE | C15: ='A.1 PRIHODI I RASHODI EK'!D19 -> 0 | D15: ='A.1 PRIHODI I RASHODI EK'!E19 -> 0 | E15: ='A.1 PRIHODI I RASHODI EK'!F19 -> 0 | K15: 11. | L15: 1861 SVEUČILIŠTE U ZAGREBU - ARHITEKTONSKI FAKULTET | M15: 1861 | N15: SVEUČILIŠTE U ZAGREBU - ARHITEKTONSKI FAKULTET | O15: SVEUČILIŠTE U ZAGREBU | P15: KAČIĆEVA 26 | Q15: 10000 ZAGREB | R15: 03204952 | S15: 42061107444 | T15: Sveučilišta i veleučilišta u Republici Hrvatskoj | U15: 08006
B16: PRIHODI UKUPNO | C16: =SUM(C14:C15) -> 3,376,426 | D16: =+D14+D15 -> 573,955 | E16: =+E14+E15 -> 3,950,381 | K16: 12. | L16: 1870 SVEUČILIŠTE U ZAGREBU - STOMATOLOŠKI FAKULTET | M16: 1870 | N16: SVEUČILIŠTE U ZAGREBU - STOMATOLOŠKI FAKULTET | O16: SVEUČILIŠTE U ZAGREBU | P16: GUNDULIĆEVA 5 | Q16: 10000 ZAGREB | R16: 03204995 | S16: 70221464726 | T16: Sveučilišta i veleučilišta u Republici Hrvatskoj | U16: 08006
A17: 3 | B17: RASHODI POSLOVANJA | C17: ='A.1 PRIHODI I RASHODI EK'!D27 -> 3,357,710 | D17: ='A.1 PRIHODI I RASHODI EK'!E27 -> 469,030 | E17: ='A.1 PRIHODI I RASHODI EK'!F27 -> 3,826,740 | K17: 13. | L17: 1888 SVEUČILIŠTE U ZAGREBU - MEDICINSKI FAKULTET | M17: 1888 | N17: SVEUČILIŠTE U ZAGREBU - MEDICINSKI FAKULTET | O17: SVEUČILIŠTE U ZAGREBU | P17: ŠALATA 3 | Q17: 10000 ZAGREB | R17: 03270211 | S17: 45001686598 | T17: Sveučilišta i veleučilišta u Republici Hrvatskoj | U17: 08006
A18: 4 | B18: RASHODI ZA NEFINANCIJSKU IMOVINU | C18: ='A.1 PRIHODI I RASHODI EK'!D35 -> 33,299 | D18: ='A.1 PRIHODI I RASHODI EK'!E35 -> 78,633 | E18: ='A.1 PRIHODI I RASHODI EK'!F35 -> 111,932 | K18: 14. | L18: 1896 SVEUČILIŠTE U ZAGREBU - FAKULTET ŠUMARSTVA I DRVNE TEHNOLOGIJE | M18: 1896 | N18: SVEUČILIŠTE U ZAGREBU - FAKULTET ŠUMARSTVA I DRVNE TEHNOLOGIJE | O18: SVEUČILIŠTE U ZAGREBU | P18: SVETOŠIMUNSKA CESTA 25 | Q18: 10000 ZAGREB | R18: 03281485 | S18: 07699719217 | T18: Sveučilišta i veleučilišta u Republici Hrvatskoj | U18: 08006
B19: RASHODI UKUPNO | C19: =SUM(C17:C18) -> 3,391,009 | D19: =+D17+D18 -> 547,663 | E19: =+E17+E18 -> 3,938,672 | K19: 15. | L19: 1907 SVEUČILIŠTE U ZAGREBU - FAKULTET POLITIČKIH ZNANOSTI | M19: 1907 | N19: SVEUČILIŠTE U ZAGREBU - FAKULTET POLITIČKIH ZNANOSTI | O19: SVEUČILIŠTE U ZAGREBU | P19: LEPUŠIĆEVA 6 | Q19: 10000 ZAGREB | R19: 03270262 | S19: 28011548575 | T19: Sveučilišta i veleučilišta u Republici Hrvatskoj | U19: 08006
B20: RAZLIKA - VIŠAK / MANJAK | C20: =+C16-C19 -> -14,583 | D20: =+D16-D19 -> 26,292 | E20: =+E16-E19 -> 11,709 | K20: 16. | L20: 1915 SVEUČILIŠTE U ZAGREBU - PRAVNI FAKULTET | M20: 1915 | N20: SVEUČILIŠTE U ZAGREBU - PRAVNI FAKULTET | O20: SVEUČILIŠTE U ZAGREBU | P20: TRG REPUBLIKE HRVATSKE 14 | Q20: 10000 ZAGREB | R20: 03225909 | S20: 38583303160 | T20: Sveučilišta i veleučilišta u Republici Hrvatskoj | U20: 08006
K21: 17. | L21: 1923 SVEUČILIŠTE U ZAGREBU - AGRONOMSKI FAKULTET | M21: 1923 | N21: SVEUČILIŠTE U ZAGREBU - AGRONOMSKI FAKULTET | O21: SVEUČILIŠTE U ZAGREBU | P21: SVETOŠIMUNSKA CESTA 25 | Q21: 10000 ZAGREB | R21: 03283097 | S21: 76023745044 | T21: Sveučilišta i veleučilišta u Republici Hrvatskoj | U21: 08006
B22: B. SAŽETAK RAČUNA FINANCIRANJA | K22: 18. | L22: 1931 SVEUČILIŠTE U ZAGREBU - EKONOMSKI FAKULTET | M22: 1931 | N22: SVEUČILIŠTE U ZAGREBU - EKONOMSKI FAKULTET | O22: SVEUČILIŠTE U ZAGREBU | P22: TRG J. F. KENNEDEYA 6 | Q22: 10000 ZAGREB | R22: 03272079 | S22: 27208467122 | T22: Sveučilišta i veleučilišta u Republici Hrvatskoj | U22: 08006
E23: u EUR | K23: 19. | L23: 1940 SVEUČILIŠTE U ZAGREBU - UČITELJSKI FAKULTET | M23: 1940 | N23: SVEUČILIŠTE U ZAGREBU - UČITELJSKI FAKULTET | O23: SVEUČILIŠTE U ZAGREBU | P23: SAVSKA CESTA 77 | Q23: 10000 ZAGREB | R23: 01422545 | S23: 72226488129 | T23: Sveučilišta i veleučilišta u Republici Hrvatskoj | U23: 08006
C24: PLAN 2025. | D24: Povećanje/ smanjenje | E24: NOVI PLAN 2025. | K24: 20. | L24: 1958 SVEUČILIŠTE U ZAGREBU - FILOZOFSKI FAKULTET | M24: 1958 | N24: SVEUČILIŠTE U ZAGREBU - FILOZOFSKI FAKULTET | O24: SVEUČILIŠTE U ZAGREBU | P24: IVANA LUČIĆA 3 | Q24: 10000 ZAGREB | R24: 03254852 | S24: 90633715804 | T24: Sveučilišta i veleučilišta u Republici Hrvatskoj | U24: 08006
A25: 8 | B25: PRIMICI OD FINANCIJSKE IMOVINE I ZADUŽIVANJA | C25: ='B.1 RAČUN FINANC EK'!D10 -> 0 | D25: ='B.1 RAČUN FINANC EK'!E10 -> 0 | E25: ='B.1 RAČUN FINANC EK'!F10 -> 0 | K25: 21. | L25: 1966 SVEUČILIŠTE U ZAGREBU - EDUKACIJSKO-REHABILITACIJSKI FAKULTET | M25: 1966 | N25: SVEUČILIŠTE U ZAGREBU - EDUKACIJSKO-REHABILITACIJSKI FAKULTET | O25: SVEUČILIŠTE U ZAGREBU | P25: BORONGAJSKA CESTA 83F | Q25: 10000 ZAGREB | R25: 03219780 | S25: 34967762426 | T25: Sveučilišta i veleučilišta u Republici Hrvatskoj | U25: 08006
A26: 5 | B26: IZDACI ZA FINANCIJSKU IMOVINU I OTPLATE ZAJMOVA | C26: ='B.1 RAČUN FINANC EK'!D15 -> 0 | D26: ='B.1 RAČUN FINANC EK'!E15 -> 0 | E26: ='B.1 RAČUN FINANC EK'!F15 -> 0 | K26: 22. | L26: 1974 SVEUČILIŠTE U ZAGREBU - AKADEMIJA DRAMSKE UMJETNOSTI | M26: 1974 | N26: SVEUČILIŠTE U ZAGREBU - AKADEMIJA DRAMSKE UMJETNOSTI | O26: SVEUČILIŠTE U ZAGREBU | P26: TRG REPUBLIKE HRVATSKE 5 | Q26: 10000 ZAGREB | R26: 03205029 | S26: 52097842295 | T26: Sveučilišta i veleučilišta u Republici Hrvatskoj | U26: 08006
B27: RAZLIKA PRIMITAKA I IZDATAKA | C27: =+C25-C26 -> 0 | D27: =+D25-D26 -> 0 | E27: =+E25-E26 -> 0 | K27: 23. | L27: 1982 SVEUČILIŠTE U ZAGREBU - AKADEMIJA LIKOVNIH UMJETNOSTI | M27: 1982 | N27: SVEUČILIŠTE U ZAGREBU - AKADEMIJA LIKOVNIH UMJETNOSTI | O27: SVEUČILIŠTE U ZAGREBU | P27: ILICA 85 | Q27: 10000 ZAGREB | R27: 03207919 | S27: 95847257607 | T27: Sveučilišta i veleučilišta u Republici Hrvatskoj | U27: 08006
A28: DONOS | B28: PRIJENOS SREDSTAVA IZ PRETHODNE GODINE | C28: =+'Unos prijenosa'!D5 -> 22,078 | D28: =+E28-C28 -> -4,101 | E28: =+'Unos prijenosa'!D13 -> 17,977 | K28: 24. | L28: 1999 SVEUČILIŠTE U ZAGREBU - MUZIČKA AKADEMIJA | M28: 1999 | N28: SVEUČILIŠTE U ZAGREBU - MUZIČKA AKADEMIJA | O28: SVEUČILIŠTE U ZAGREBU | P28: TRG REPUBLIKE HRVATSKE 12 | Q28: 10000 ZAGREB | R28: 03205002 | S28: 18422925218 | T28: Sveučilišta i veleučilišta u Republici Hrvatskoj | U28: 08006
A29: ODNOS | B29: PRIJENOS SREDSTAVA U SLJEDEĆE RAZDOBLJE | C29: =+'Unos prijenosa'!D7 -> -7,495 | D29: =+E29-C29 -> -22,191 | E29: =+'Unos prijenosa'!D15 -> -29,686 | K29: 25. | L29: 2006 SVEUČILIŠTE U ZAGREBU - KINEZIOLOŠKI FAKULTET | M29: 2006 | N29: SVEUČILIŠTE U ZAGREBU - KINEZIOLOŠKI FAKULTET | O29: SVEUČILIŠTE U ZAGREBU | P29: HORVAĆANSKI ZAVOJ 15 | Q29: 10000 ZAGREB | R29: 03274080 | S29: 25329931628 | T29: Sveučilišta i veleučilišta u Republici Hrvatskoj | U29: 08006
B30: NETO FINANCIRANJE | C30: =+C27+C28+C29 -> 14,583 | D30: =+D27+D28+D29 -> -26,292 | E30: =+E27+E28+E29 -> -11,709 | K30: 26. | L30: 2014 SVEUČILIŠTE U ZAGREBU - FARMACEUTSKO-BIOKEMIJSKI FAKULTET | M30: 2014 | N30: SVEUČILIŠTE U ZAGREBU - FARMACEUTSKO-BIOKEMIJSKI FAKULTET | O30: SVEUČILIŠTE U ZAGREBU | P30: ANTE KOVAČIĆA 1 | Q30: 10000 ZAGREB | R30: 03205037 | S30: 14509285435 | T30: Sveučilišta i veleučilišta u Republici Hrvatskoj | U30: 08006
K31: 27. | L31: 2022 SVEUČILIŠTE U ZAGREBU - VETERINARSKI FAKULTET | M31: 2022 | N31: SVEUČILIŠTE U ZAGREBU - VETERINARSKI FAKULTET | O31: SVEUČILIŠTE U ZAGREBU | P31: HEINZELOVA 55 | Q31: 10000 ZAGREB | R31: 03225755 | S31: 36389528408 | T31: Sveučilišta i veleučilišta u Republici Hrvatskoj | U31: 08006
B32: VIŠAK / MANJAK + NETO FINANCIRANJE | C32: =+C20+C30 -> 0 | D32: =+D20+D30 -> 0 | E32: =+E20+E30 -> 0 | K32: 28. | L32: 2047 SVEUČILIŠTE U ZAGREBU - RUDARSKO-GEOLOŠKO-NAFTNI FAKULTET | M32: 2047 | N32: SVEUČILIŠTE U ZAGREBU - RUDARSKO-GEOLOŠKO-NAFTNI FAKULTET | O32: SVEUČILIŠTE U ZAGREBU | P32: PIEROTTIJEVA 6 | Q32: 10000 ZAGREB | R32: 03207005 | S32: 99534693762 | T32: Sveučilišta i veleučilišta u Republici Hrvatskoj | U32: 08006
K33: 29. | L33: 2063 FAKULTET ORGANIZACIJE I INFORMATIKE U VARAŽDINU | M33: 2063 | N33: FAKULTET ORGANIZACIJE I INFORMATIKE U VARAŽDINU | O33: SVEUČILIŠTE U ZAGREBU | P33: PAVLINSKA 2 | Q33: 42000 VARAŽDIN | R33: 03006107 | S33: 02024882310 | T33: Sveučilišta i veleučilišta u Republici Hrvatskoj | U33: 08006
K34: 30. | L34: 2071 SVEUČILIŠTE U ZAGREBU - METALURŠKI FAKULTET SISAK | M34: 2071 | N34: SVEUČILIŠTE U ZAGREBU - METALURŠKI FAKULTET SISAK | O34: SVEUČILIŠTE U ZAGREBU | P34: ALEJA NARODNIH HEROJA 3 | Q34: 44000 SISAK | R34: 03313786 | S34: 48006703414 | T34: Sveučilišta i veleučilišta u Republici Hrvatskoj | U34: 08006
K35: 31. | L35: 2080 SVEUČILIŠTE U ZAGREBU - GRAFIČKI FAKULTET | M35: 2080 | N35: SVEUČILIŠTE U ZAGREBU - GRAFIČKI FAKULTET | O35: SVEUČILIŠTE U ZAGREBU | P35: GETALDIĆEVA 2 | Q35: 10000 ZAGREB | R35: 03219763 | S35: 25564990903 | T35: Sveučilišta i veleučilišta u Republici Hrvatskoj | U35: 08006
K36: 32. | L36: 2102 SVEUČILIŠTE U ZAGREBU - GEOTEHNIČKI FAKULTET | M36: 2102 | N36: SVEUČILIŠTE U ZAGREBU - GEOTEHNIČKI FAKULTET | O36: SVEUČILIŠTE U ZAGREBU | P36: HALLEROVA ALEJA 7 | Q36: 42000 VARAŽDIN | R36: 03042316 | S36: 16146181375 | T36: Sveučilišta i veleučilišta u Republici Hrvatskoj | U36: 08006
K37: 33. | L37: =M37&" "&N37 -> 2135 SVEUČILIŠTE U ZAGREBU - KATOLIČKI BOGOSLOVNI FAKULTET | M37: 2135 | N37: SVEUČILIŠTE U ZAGREBU - KATOLIČKI BOGOSLOVNI FAKULTET | O37: SVEUČILIŠTE U ZAGREBU | P37: VLAŠKA 38 | Q37: 10000 ZAGREB | R37: 03703088 | S37: 48987767944 | T37: Sveučilišta i veleučilišta u Republici Hrvatskoj | U37: 08006
K38: 34. | L38: 2151 SVEUČILIŠTE U RIJECI - TEHNIČKI FAKULTET | M38: 2151 | N38: SVEUČILIŠTE U RIJECI - TEHNIČKI FAKULTET | O38: SVEUČILIŠTE U RIJECI | P38: VUKOVARSKA 58 | Q38: 51000 RIJEKA | R38: 03334317 | S38: 46319717480 | T38: Sveučilišta i veleučilišta u Republici Hrvatskoj | U38: 08006
K39: 35. | L39: 2160 SVEUČILIŠTE U RIJECI - GRAĐEVINSKI FAKULTET | M39: 2160 | N39: SVEUČILIŠTE U RIJECI - GRAĐEVINSKI FAKULTET | O39: SVEUČILIŠTE U RIJECI | P39: RADMILE MATEJČIĆ 3 | Q39: 51000 RIJEKA | R39: 03395855 | S39: 92037849504 | T39: Sveučilišta i veleučilišta u Republici Hrvatskoj | U39: 08006
K40: 36. | L40: 2186 SVEUČILIŠTE U RIJECI - EKONOMSKI FAKULTET | M40: 2186 | N40: SVEUČILIŠTE U RIJECI - EKONOMSKI FAKULTET | O40: SVEUČILIŠTE U RIJECI | P40: IVANA FILIPOVIĆA 4 | Q40: 51000 RIJEKA | R40: 03328627 | S40: 26093119930 | T40: Sveučilišta i veleučilišta u Republici Hrvatskoj | U40: 08006
K41: 37. | L41: 2194 SVEUČILIŠTE U RIJECI - FAKULTET ZA MENADŽMENT U TURIZMU I UGOSTITELJSTVU | M41: 2194 | N41: SVEUČILIŠTE U RIJECI - FAKULTET ZA MENADŽMENT U TURIZMU I UGOSTITELJSTVU | O41: SVEUČILIŠTE U RIJECI | P41: IKA PRIMORSKA 42 | Q41: 51410 OPATIJA | R41: 03091732 | S41: 85799845149 | T41: Sveučilišta i veleučilišta u Republici Hrvatskoj | U41: 08006
K42: 38. | L42: 2217 SVEUČILIŠTE U RIJECI - PRAVNI FAKULTET | M42: 2217 | N42: SVEUČILIŠTE U RIJECI - PRAVNI FAKULTET | O42: SVEUČILIŠTE U RIJECI | P42: HAHLIĆ 6 | Q42: 51000 RIJEKA | R42: 03328562 | S42: 43767699965 | T42: Sveučilišta i veleučilišta u Republici Hrvatskoj | U42: 08006
K43: 39. | L43: 2225 SVEUČILIŠTE U RIJECI - MEDICINSKI FAKULTET | M43: 2225 | N43: SVEUČILIŠTE U RIJECI - MEDICINSKI FAKULTET | O43: SVEUČILIŠTE U RIJECI | P43: BRAĆE BRANCHETTA 20 | Q43: 51000 RIJEKA | R43: 03328554 | S43: 98164324541 | T43: Sveučilišta i veleučilišta u Republici Hrvatskoj | U43: 08006
K44: 40. | L44: 2250 SVEUČILIŠTE J. J. STROSSMAYERA U OSIJEKU - GRAĐEVINSKI I ARHITEKTONSKI FAKULTET OSIJEK | M44: 2250 | N44: SVEUČILIŠTE J. J. STROSSMAYERA U OSIJEKU - GRAĐEVINSKI I ARHITEKTONSKI FAKULTET OSIJEK | O44: SVEUČILIŠTE J.J STROSSMAYERA U OSIJEKU | P44: ULICA VLADIMIRA PRELOGA 3 | Q44: 31000 OSIJEK | R44: 03397335 | S44: 04150850819 | T44: Sveučilišta i veleučilišta u Republici Hrvatskoj | U44: 08006
K45: 41. | L45: 2268 SVEUČILIŠTE J. J. STROSSMAYERA U OSIJEKU - FAKULTET AGROBIOTEHNIČKIH ZNANOSTI OSIJEK | M45: 2268 | N45: SVEUČILIŠTE J. J. STROSSMAYERA U OSIJEKU - FAKULTET AGROBIOTEHNIČKIH ZNANOSTI OSIJEK | O45: SVEUČILIŠTE J.J STROSSMAYERA U OSIJEKU | P45: VLADIMIRA PRELOGA 1 | Q45: 31000 OSIJEK | R45: 03058212 | S45: 98816779821 | T45: Sveučilišta i veleučilišta u Republici Hrvatskoj | U45: 08006
K46: 42. | L46: 2276 SVEUČILIŠTE J. J. STROSSMAYERA U OSIJEKU - PREHRAMBENO TEHNOLOŠKI FAKULTET | M46: 2276 | N46: SVEUČILIŠTE J. J. STROSSMAYERA U OSIJEKU - PREHRAMBENO TEHNOLOŠKI FAKULTET | O46: SVEUČILIŠTE J.J STROSSMAYERA U OSIJEKU | P46: FRANJE KUHAČA 18 | Q46: 31000 OSIJEK | R46: 03058204 | S46: 96371000697 | T46: Sveučilišta i veleučilišta u Republici Hrvatskoj | U46: 08006
K47: 43. | L47: 2284 SVEUČILIŠTE J. J. STROSSMAYERA U OSIJEKU - EKONOMSKI FAKULTET | M47: 2284 | N47: SVEUČILIŠTE J. J. STROSSMAYERA U OSIJEKU - EKONOMSKI FAKULTET | O47: SVEUČILIŠTE J.J STROSSMAYERA U OSIJEKU | P47: TRG LJUDEVITA GAJA 7 | Q47: 31000 OSIJEK | R47: 03021645 | S47: 52778515544 | T47: Sveučilišta i veleučilišta u Republici Hrvatskoj | U47: 08006
K48: 44. | L48: 2292 SVEUČILIŠTE J. J. STROSSMAYERA U OSIJEKU - PRAVNI FAKULTET | M48: 2292 | N48: SVEUČILIŠTE J. J. STROSSMAYERA U OSIJEKU - PRAVNI FAKULTET | O48: SVEUČILIŠTE J.J STROSSMAYERA U OSIJEKU | P48: STJEPANA RADIĆA 13 | Q48: 31000 OSIJEK | R48: 03014193 | S48: 26416570803 | T48: Sveučilišta i veleučilišta u Republici Hrvatskoj | U48: 08006
K49: 45. | L49: 2313 SVEUČILIŠTE J. J. STROSSMAYERA U OSIJEKU - FAKULTET ELEKTROTEHNIKE, RAČUNARSTVA I INFORMACIJSKIH TEHNOLOGIJA OSIJEK | M49: 2313 | N49: SVEUČILIŠTE J. J. STROSSMAYERA U OSIJEKU - FAKULTET ELEKTROTEHNIKE, RAČUNARSTVA I INFORMACIJSKIH TEHNOLOGIJA OSIJEK | O49: SVEUČILIŠTE J.J STROSSMAYERA U OSIJEKU | P49: KNEZA TRPIMIRA 2 B | Q49: 31000 OSIJEK | R49: 03392589 | S49: 95494259952 | T49: Sveučilišta i veleučilišta u Republici Hrvatskoj | U49: 08006
K50: 46. | L50: 2321 SVEUČILIŠTE J. J. STROSSMAYERA U OSIJEKU - FILOZOFSKI FAKULTET | M50: 2321 | N50: SVEUČILIŠTE J. J. STROSSMAYERA U OSIJEKU - FILOZOFSKI FAKULTET | O50: SVEUČILIŠTE J.J STROSSMAYERA U OSIJEKU | P50: LORENZA JAGERA 9 | Q50: 31000 OSIJEK | R50: 03014185 | S50: 58868871646 | T50: Sveučilišta i veleučilišta u Republici Hrvatskoj | U50: 08006
K51: 47. | L51: 2330 SVEUČILIŠTE U SPLITU - FAKULTET ELEKTROTEHNIKE, STROJARSTVA I BRODOGRADNJE | M51: 2330 | N51: SVEUČILIŠTE U SPLITU - FAKULTET ELEKTROTEHNIKE, STROJARSTVA I BRODOGRADNJE | O51: SVEUČILIŠTE U SPLITU | P51: RUĐERA BOŠKOVIĆA 32 | Q51: 21000 SPLIT | R51: 03118339 | S51: 00857144221 | T51: Sveučilišta i veleučilišta u Republici Hrvatskoj | U51: 08006
K52: 48. | L52: 2348 SVEUČILIŠTE U SPLITU - FAKULTET GRAĐEVINARSTVA, ARHITEKTURE I GEODEZIJE | M52: 2348 | N52: SVEUČILIŠTE U SPLITU - FAKULTET GRAĐEVINARSTVA, ARHITEKTURE I GEODEZIJE | O52: SVEUČILIŠTE U SPLITU | P52: MATICE HRVATSKE 15 | Q52: 21000 SPLIT | R52: 03149463 | S52: 83615500218 | T52: Sveučilišta i veleučilišta u Republici Hrvatskoj | U52: 08006
K53: 49. | L53: 2356 SVEUČILIŠTE U SPLITU - KEMIJSKO-TEHNOLOŠKI FAKULTET | M53: 2356 | N53: SVEUČILIŠTE U SPLITU - KEMIJSKO-TEHNOLOŠKI FAKULTET | O53: SVEUČILIŠTE U SPLITU | P53: RUĐERA BOŠKOVIĆA 35 | Q53: 21000 SPLIT | R53: 03119068 | S53: 99401575594 | T53: Sveučilišta i veleučilišta u Republici Hrvatskoj | U53: 08006
K54: 50. | L54: 2372 SVEUČILIŠTE U SPLITU - EKONOMSKI FAKULTET | M54: 2372 | N54: SVEUČILIŠTE U SPLITU - EKONOMSKI FAKULTET | O54: SVEUČILIŠTE U SPLITU | P54: CVITE FISKOVIĆA 5 | Q54: 21000 SPLIT | R54: 03119076 | S54: 84477684422 | T54: Sveučilišta i veleučilišta u Republici Hrvatskoj | U54: 08006
K55: 51. | L55: 2397 SVEUČILIŠTE U SPLITU - PRAVNI FAKULTET | M55: 2397 | N55: SVEUČILIŠTE U SPLITU - PRAVNI FAKULTET | O55: SVEUČILIŠTE U SPLITU | P55: DOMOVINSKOG RATA 8 | Q55: 21000 SPLIT | R55: 03118347 | S55: 03541568700 | T55: Sveučilišta i veleučilišta u Republici Hrvatskoj | U55: 08006
K56: 52. | L56: 2410 SVEUČILIŠTE U SPLITU - PRIRODOSLOVNO - MATEMATIČKI FAKULTET | M56: 2410 | N56: SVEUČILIŠTE U SPLITU - PRIRODOSLOVNO - MATEMATIČKI FAKULTET | O56: SVEUČILIŠTE U SPLITU | P56: RUĐERA BOŠKOVIĆA 33 | Q56: 21000 SPLIT | R56: 03199622 | S56: 20858497843 | T56: Sveučilišta i veleučilišta u Republici Hrvatskoj | U56: 08006
K57: 53. | L57: 2436 SVEUČILIŠTE U ZAGREBU | M57: 2436 | N57: SVEUČILIŠTE U ZAGREBU | O57: SVEUČILIŠTE U ZAGREBU | P57: TRG REPUBLIKE HRVATSKE 14 | Q57: 10000 ZAGREB | R57: 03211592 | S57: 36612267447 | T57: Sveučilišta i veleučilišta u Republici Hrvatskoj | U57: 08006
K58: 54. | L58: 2444 SVEUČILIŠTE U RIJECI | M58: 2444 | N58: SVEUČILIŠTE U RIJECI | O58: SVEUČILIŠTE U RIJECI | P58: TRG BRAĆE MAŽURANIĆA 10 | Q58: 51000 RIJEKA | R58: 03337413 | S58: 64218323816 | T58: Sveučilišta i veleučilišta u Republici Hrvatskoj | U58: 08006
K59: 55. | L59: 2452 SVEUČILIŠTE J. J. STROSSMAYERA U OSIJEKU | M59: 2452 | N59: SVEUČILIŠTE J. J. STROSSMAYERA U OSIJEKU | O59: SVEUČILIŠTE J.J STROSSMAYERA U OSIJEKU | P59: TRG SV. TROJSTVA 3 | Q59: 31000 OSIJEK | R59: 03049779 | S59: 78808975734 | T59: Sveučilišta i veleučilišta u Republici Hrvatskoj | U59: 08006
K60: 56. | L60: 2469 SVEUČILIŠTE U SPLITU | M60: 2469 | N60: SVEUČILIŠTE U SPLITU | O60: SVEUČILIŠTE U SPLITU | P60: POLJIČKA CESTA 35 | Q60: 21000 SPLIT | R60: 03129306 | S60: 29845096215 | T60: Sveučilišta i veleučilišta u Republici Hrvatskoj | U60: 08006
K61: 57. | L61: 2493 SVEUČILIŠTE U RIJECI - SVEUČILIŠNA KNJIŽNICA | M61: 2493 | N61: SVEUČILIŠTE U RIJECI - SVEUČILIŠNA KNJIŽNICA | O61: SVEUČILIŠTE U RIJECI | P61: DOLAC 1 | Q61: 51000 RIJEKA | R61: 03328686 | S61: 84122581314 | T61: Sveučilišta i veleučilišta u Republici Hrvatskoj | U61: 08006
K62: 58. | L62: 2508 SVEUČILIŠTE J. J. STROSSMAYERA U OSIJEKU - GRADSKA I SVEUČILIŠNA KNJIŽNICA | M62: 2508 | N62: SVEUČILIŠTE J. J. STROSSMAYERA U OSIJEKU - GRADSKA I SVEUČILIŠNA KNJIŽNICA | O62: SVEUČILIŠTE J.J STROSSMAYERA U OSIJEKU | P62: EUROPSKA AVENIJA 24 | Q62: 31000 OSIJEK | R62: 03014347 | S62: 46627536930 | T62: Sveučilišta i veleučilišta u Republici Hrvatskoj | U62: 08006
K63: 59. | L63: 2524 SVEUČILIŠTE U SPLITU - SVEUČILIŠNA KNJIŽNICA | M63: 2524 | N63: SVEUČILIŠTE U SPLITU - SVEUČILIŠNA KNJIŽNICA | O63: SVEUČILIŠTE U SPLITU | P63: RUĐERA BOŠKOVIĆA 31 | Q63: 21000 SPLIT | R63: 03118436 | S63: 40099344720 | T63: Sveučilišta i veleučilišta u Republici Hrvatskoj | U63: 08006
K64: 60. | M64: 2532 | N64: SVEUČILIŠTE U ZADRU, ZNANSTVENA KNJIŽNICA | O64: SVEUČILIŠTE U ZADRU | R64: 03141993 | S64: 94403503942 | T64: Sveučilišta i veleučilišta u Republici Hrvatskoj | U64: 08006
K65: 61. | L65: =M65&" "&N65 -> 2900 INSTITUT ZA OCEANOGRAFIJU I RIBARSTVO | M65: 2900 | N65: INSTITUT ZA OCEANOGRAFIJU I RIBARSTVO | O65: JAVNI INSTITUTI | P65: ŠETALIŠTE I. MEŠTROVIĆA 63 | Q65: 21000 SPLIT | R65: 03118355 | S65: 86235185568 | T65: Javni instituti | U65: 08008
K66: 62. | L66: 2918 EKONOMSKI INSTITUT ZAGREB | M66: 2918 | N66: EKONOMSKI INSTITUT ZAGREB | O66: JAVNI INSTITUTI | P66: TRG JOHNA KENNEDYA 7 | Q66: 10000 ZAGREB | R66: 03219925 | S66: 70925432731 | T66: Javni instituti | U66: 08008
K67: 63. | L67: 2934 HRVATSKI INSTITUT ZA POVIJEST | M67: 2934 | N67: HRVATSKI INSTITUT ZA POVIJEST | O67: JAVNI INSTITUTI | P67: OPATIČKA 10 | Q67: 10000 ZAGREB | R67: 03207153 | S67: 23296176633 | T67: Javni instituti | U67: 08008
K68: 64. | L68: 2942 INSTITUT ZA POVIJEST UMJETNOSTI | M68: 2942 | N68: INSTITUT ZA POVIJEST UMJETNOSTI | O68: JAVNI INSTITUTI | P68: ULICA GRADA VUKOVARA 68 | Q68: 10000 ZAGREB | R68: 01339958 | S68: 59451980348 | T68: Javni instituti | U68: 08008
K69: 65. | L69: 2959 INSTITUT ZA MEDICINSKA ISTRAŽIVANJA I MEDICINU RADA | M69: 2959 | N69: INSTITUT ZA MEDICINSKA ISTRAŽIVANJA I MEDICINU RADA | O69: JAVNI INSTITUTI | P69: KSAVERSKA CESTA 2 | Q69: 10000 ZAGREB | R69: 03270475 | S69: 30285469659 | T69: Javni instituti | U69: 08008
K70: 66. | L70: 2967 HRVATSKI ŠUMARSKI INSTITUT | M70: 2967 | N70: HRVATSKI ŠUMARSKI INSTITUT | O70: JAVNI INSTITUTI | P70: CVJETNO NASELJE 41 | Q70: 10450 JASTREBARSKO | R70: 03115879 | S70: 13579392023 | T70: Javni instituti | U70: 08008
K71: 67. | L71: 2975 INSTITUT ZA FIZIKU | M71: 2975 | N71: INSTITUT ZA FIZIKU | O71: JAVNI INSTITUTI | P71: BIJENIČKA CESTA 46 | Q71: 10000 ZAGREB | R71: 03270424 | S71: 77627408491 | T71: Javni instituti | U71: 08008
K72: =+K71+1 -> 68. | L72: 2991 POLJOPRIVREDNI INSTITUT OSIJEK | M72: 2991 | N72: POLJOPRIVREDNI INSTITUT OSIJEK | O72: JAVNI INSTITUTI | P72: JUŽNO PREDGRAĐE 17 | Q72: 31000 OSIJEK | R72: 03058239 | S72: 03665720049 | T72: Javni instituti | U72: 08008
K73: 69. | L73: 3009 INSTITUT ZA MIGRACIJE I NARODNOSTI | M73: 3009 | N73: INSTITUT ZA MIGRACIJE I NARODNOSTI | O73: JAVNI INSTITUTI | P73: TRG STJEPANA RADIĆA 3 | Q73: 10000 ZAGREB | R73: 03287572 | S73: 80265403319 | T73: Javni instituti | U73: 08008
K74: 70. | L74: 3025 INSTITUT ZA JADRANSKE KULTURE I MELIORACIJU KRŠA | M74: 3025 | N74: INSTITUT ZA JADRANSKE KULTURE I MELIORACIJU KRŠA | O74: JAVNI INSTITUTI | P74: PUT DUILOVA 11 | Q74: 21000 SPLIT | R74: 03140792 | S74: 90884993104 | T74: Javni instituti | U74: 08008
K75: 71. | L75: 3041 INSTITUT RUĐER BOŠKOVIĆ | M75: 3041 | N75: INSTITUT RUĐER BOŠKOVIĆ | O75: JAVNI INSTITUTI | P75: BIJENIČKA CESTA 46 | Q75: 10000 ZAGREB | R75: 03270289 | S75: 69715301002 | T75: Javni instituti | U75: 08008
K76: 72. | L76: 3050 INSTITUT ZA DRUŠTVENA ISTRAŽIVANJA | M76: 3050 | N76: INSTITUT ZA DRUŠTVENA ISTRAŽIVANJA | O76: JAVNI INSTITUTI | P76: AMRUŠEVA 11 | Q76: 10000 ZAGREB | R76: 03205118 | S76: 11986338639 | T76: Javni instituti | U76: 08008
K77: 73. | L77: 3068 INSTITUT ZA TURIZAM | M77: 3068 | N77: INSTITUT ZA TURIZAM | O77: JAVNI INSTITUTI | P77: VRHOVEC 5 | Q77: 10000 ZAGREB | R77: 03208001 | S77: 10264179101 | T77: Javni instituti | U77: 08008
K78: 74. | L78: 3076 INSTITUT ZA POLJOPRIVREDU I TURIZAM | M78: 3076 | N78: INSTITUT ZA POLJOPRIVREDU I TURIZAM | O78: JAVNI INSTITUTI | P78: CARLA HUGUESA 8 | Q78: 52440 POREČ | R78: 03421031 | S78: 03850982961 | T78: Javni instituti | U78: 08008
K79: 75. | L79: 3084 INSTITUT ZA ETNOLOGIJU I FOLKLORISTIKU | M79: 3084 | N79: INSTITUT ZA ETNOLOGIJU I FOLKLORISTIKU | O79: JAVNI INSTITUTI | P79: ŠUBIĆEVA 42 | Q79: 10000 ZAGREB | R79: 03724042 | S79: 37781872772 | T79: Javni instituti | U79: 08008
K80: 76. | L80: 3092 INSTITUT ZA FILOZOFIJU | M80: 3092 | N80: INSTITUT ZA FILOZOFIJU | O80: JAVNI INSTITUTI | P80: UL. GRADA VUKOVARA 54 | Q80: 10000 ZAGREB | R80: 03772047 | S80: 43667021597 | T80: Javni instituti | U80: 08008
K81: 77. | L81: 3105 INSTITUT DRUŠTVENIH ZNANOSTI IVO PILAR | M81: 3105 | N81: INSTITUT DRUŠTVENIH ZNANOSTI IVO PILAR | O81: JAVNI INSTITUTI | P81: MARULIĆEV TRG 19/I | Q81: 10000 ZAGREB | R81: 03793028 | S81: 32840574937 | T81: Javni instituti | U81: 08008
K82: 78. | L82: 3113 INSTITUT ZA ANTROPOLOGIJU | M82: 3113 | N82: INSTITUT ZA ANTROPOLOGIJU | O82: JAVNI INSTITUTI | P82: LJUDEVITA GAJA 32 | Q82: 10000 ZAGREB | R82: 03817121 | S82: 93710699926 | T82: Javni instituti | U82: 08008
K83: 79. | L83: 3121 INSTITUT ZA ARHEOLOGIJU | M83: 3121 | N83: INSTITUT ZA ARHEOLOGIJU | O83: JAVNI INSTITUTI | P83: LJUDEVITA GAJA 32 | Q83: 10000 ZAGREB | R83: 03937658 | S83: 59796264563 | T83: Javni instituti | U83: 08008
K84: 80. | L84: 6154 SVEUČILIŠTE U ZAGREBU - FAKULTET FILOZOFIJE I RELIGIJSKIH ZNANOSTI | M84: 6154 | N84: SVEUČILIŠTE U ZAGREBU - FAKULTET FILOZOFIJE I RELIGIJSKIH ZNANOSTI | O84: SVEUČILIŠTE U ZAGREBU | P84: JORDANOVAC 110 | Q84: 10000 ZAGREB | R84: 01235664 | S84: 26975482530 | T84: Sveučilišta i veleučilišta u Republici Hrvatskoj | U84: 08006
K85: 81. | L85: 6179 DRŽAVNI ZAVOD ZA INTELEKTUALNO VLASNIŠTVO | M85: 6179 | N85: DRŽAVNI ZAVOD ZA INTELEKTUALNO VLASNIŠTVO | O85: DZIV | P85: ULICA GRADA VUKOVARA 78 | Q85: 10000 ZAGREB | R85: 03899772 | S85: 89755384389 | T85: DZIV | U85: 08012
K86: 82. | L86: 21053 VELEUČILIŠTE U KARLOVCU | M86: 21053 | N86: VELEUČILIŠTE U KARLOVCU | O86: VELEUČILIŠTA | P86: TRG J. J. STROSSMAYERA 9 | Q86: 47000 KARLOVAC | R86: 01286030 | S86: 62820859976 | T86: Sveučilišta i veleučilišta u Republici Hrvatskoj | U86: 08006
K87: 83. | L87: 21061 INSTITUT ZA HRVATSKI JEZIK I JEZIKOSLOVLJE | M87: 21061 | N87: INSTITUT ZA HRVATSKI JEZIK I JEZIKOSLOVLJE | O87: JAVNI INSTITUTI | P87: REPUBLIKE AUSTRIJE 16 | Q87: 10000 ZAGREB | R87: 01259571 | S87: 12268324202 | T87: Javni instituti | U87: 08008
K88: 84. | L88: 21070 STAROSLAVENSKI INSTITUT | M88: 21070 | N88: STAROSLAVENSKI INSTITUT | O88: JAVNI INSTITUTI | P88: DEMETROVA 11 | Q88: 10000 ZAGREB | R88: 01259563 | S88: 15291942541 | T88: Javni instituti | U88: 08008
K89: 85. | L89: 21836 NACIONALNA I SVEUČILIŠNA KNJIŽNICA U ZAGREBU | M89: 21836 | N89: NACIONALNA I SVEUČILIŠNA KNJIŽNICA U ZAGREBU | O89: AGENCIJE | P89: HRVATSKE BRATSKE ZAJEDNICE 4 | Q89: 10000 ZAGREB | R89: 03205363 | S89: 84838770814 | T89: Agencije | U89: 08091
K90: 86. | L90: 21852 HRVATSKA AKADEMSKA I ISTRAŽIVAČKA MREŽA - CARNET | M90: 21852 | N90: HRVATSKA AKADEMSKA I ISTRAŽIVAČKA MREŽA - CARNET | O90: AGENCIJE | P90: JOSIPA MAROHNIĆA 5 | Q90: 10000 ZAGREB | R90: 01147820 | S90: 58101996540 | T90: Agencije | U90: 08091
K91: 87. | L91: 21869 LEKSIKOGRAFSKI ZAVOD MIROSLAV KRLEŽA | M91: 21869 | N91: LEKSIKOGRAFSKI ZAVOD MIROSLAV KRLEŽA | O91: AGENCIJE | P91: FRANKOPANSKA 26 | Q91: 10000 ZAGREB | R91: 03211622 | S91: 49894241709 | T91: Agencije | U91: 08091
K92: 88. | L92: 22371 VISOKO GOSPODARSKO UČILIŠTE U KRIŽEVCIMA | M92: 22371 | N92: VISOKO GOSPODARSKO UČILIŠTE U KRIŽEVCIMA | O92: VELEUČILIŠTA | P92: MILISLAVA DEMERCA 1 | Q92: 48260 KRIŽEVCI | R92: 01411942 | S92: 75480885018 | T92: Sveučilišta i veleučilišta u Republici Hrvatskoj | U92: 08006
K93: 89. | L93: 22427 TEHNIČKO VELEUČILIŠTE U ZAGREBU | M93: 22427 | N93: TEHNIČKO VELEUČILIŠTE U ZAGREBU | O93: VELEUČILIŠTA | P93: VRBIK 8 | Q93: 10000 ZAGREB | R93: 01398270 | S93: 08814003451 | T93: Sveučilišta i veleučilišta u Republici Hrvatskoj | U93: 08006
K94: 90. | L94: 22435 SVEUČILIŠTE U SPLITU - FILOZOFSKI FAKULTET | M94: 22435 | N94: SVEUČILIŠTE U SPLITU - FILOZOFSKI FAKULTET | O94: SVEUČILIŠTE U SPLITU | P94: POLJIČKA CESTA 35 | Q94: 21000 SPLIT | R94: 01413236 | S94: 98004523293 | T94: Sveučilišta i veleučilišta u Republici Hrvatskoj | U94: 08006
K95: 91. | L95: 22451 SVEUČILIŠTE U SPLITU - MEDICINSKI FAKULTET | M95: 22451 | N95: SVEUČILIŠTE U SPLITU - MEDICINSKI FAKULTET | O95: SVEUČILIŠTE U SPLITU | P95: ŠOLTANSKA 2 | Q95: 21000 SPLIT | R95: 01315366 | S95: 02879747067 | T95: Sveučilišta i veleučilišta u Republici Hrvatskoj | U95: 08006
K96: 92. | L96: 22460 SVEUČILIŠTE U SPLITU - POMORSKI FAKULTET | M96: 22460 | N96: SVEUČILIŠTE U SPLITU - POMORSKI FAKULTET | O96: SVEUČILIŠTE U SPLITU | P96: RUĐERA BOŠKOVIĆA 37 | Q96: 21000 SPLIT | R96: 01406043 | S96: 24624257529 | T96: Sveučilišta i veleučilišta u Republici Hrvatskoj | U96: 08006
K97: 93. | L97: =M97&" "&N97 -> 22478 SVEUČILIŠTE U SPLITU - UMJETNIČKA AKADEMIJA | M97: 22478 | N97: SVEUČILIŠTE U SPLITU - UMJETNIČKA AKADEMIJA | O97: SVEUČILIŠTE U SPLITU | P97: ZAGREBAČKA 3 | Q97: 21000 SPLIT | R97: 01321358 | S97: 38960125358 | T97: Sveučilišta i veleučilišta u Republici Hrvatskoj | U97: 08006
K98: 94. | L98: 22486 SVEUČILIŠTE J. J. STROSSMAYERA U OSIJEKU - FAKULTET ZA ODGOJNE I OBRAZOVNE ZNANOSTI | M98: 22486 | N98: SVEUČILIŠTE J. J. STROSSMAYERA U OSIJEKU - FAKULTET ZA ODGOJNE I OBRAZOVNE ZNANOSTI | O98: SVEUČILIŠTE J.J STROSSMAYERA U OSIJEKU | P98: CARA HADRIJANA 10 | Q98: 31000 OSIJEK | R98: 01404881 | S98: 28082679513 | T98: Sveučilišta i veleučilišta u Republici Hrvatskoj | U98: 08006
K99: 95. | L99: 22494 VELEUČILIŠTE U RIJECI | M99: 22494 | N99: VELEUČILIŠTE U RIJECI | O99: VELEUČILIŠTA | P99: TRPIMIROVA 2/V | Q99: 51000 RIJEKA | R99: 01387332 | S99: 29573709870 | T99: Sveučilišta i veleučilišta u Republici Hrvatskoj | U99: 08006
K100: 96. | L100: 22525 HRVATSKI GEOLOŠKI INSTITUT | M100: 22525 | N100: HRVATSKI GEOLOŠKI INSTITUT | O100: JAVNI INSTITUTI | P100: SACHSOVA 2 | Q100: 10000 ZAGREB | R100: 03219518 | S100: 43733878539 | T100: Javni instituti | U100: 08008
K101: 97. | L101: 22568 SVEUČILIŠTE U RIJECI - POMORSKI FAKULTET | M101: 22568 | N101: SVEUČILIŠTE U RIJECI - POMORSKI FAKULTET | O101: SVEUČILIŠTE U RIJECI | P101: STUDENTSKA 2 | Q101: 51000 RIJEKA | R101: 01580485 | S101: 76722145702 | T101: Sveučilišta i veleučilišta u Republici Hrvatskoj | U101: 08006
K102: 98. | L102: 22621 INSTITUT ZA RAZVOJ I MEĐUNARODNE ODNOSE | M102: 22621 | N102: INSTITUT ZA RAZVOJ I MEĐUNARODNE ODNOSE | O102: JAVNI INSTITUTI | P102: LJ. F. VUKOTINOVIĆA 2 | Q102: 10000 ZAGREB | R102: 03205177 | S102: 31120185175 | T102: Javni instituti | U102: 08008
K103: 99. | L103: 22824 VELEUČILIŠTE U ŠIBENIKU | M103: 22824 | N103: VELEUČILIŠTE U ŠIBENIKU | O103: VELEUČILIŠTA | P103: TRG A. HEBRANGA BR. 11 | Q103: 22000 ŠIBENIK | R103: 02100673 | S103: 61727512157 | T103: Sveučilišta i veleučilišta u Republici Hrvatskoj | U103: 08006
K104: 100. | L104: 22832 ZDRAVSTVENO VELEUČILIŠTE | M104: 22832 | N104: ZDRAVSTVENO VELEUČILIŠTE | O104: VELEUČILIŠTA | P104: MLINARSKA CESTA 38 | Q104: 10000 ZAGREB | R104: 01274597 | S104: 50952646228 | T104: Sveučilišta i veleučilišta u Republici Hrvatskoj | U104: 08006
K105: 101. | L105: 22849 SVEUČILIŠTE J. J. STROSSMAYERA U OSIJEKU - MEDICINSKI FAKULTET | M105: 22849 | N105: SVEUČILIŠTE J. J. STROSSMAYERA U OSIJEKU - MEDICINSKI FAKULTET | O105: SVEUČILIŠTE J.J STROSSMAYERA U OSIJEKU | P105: HUTTLEROVA 4 | Q105: 31000 OSIJEK | R105: 01388142 | S105: 16214165873 | T105: Sveučilišta i veleučilišta u Republici Hrvatskoj | U105: 08006
K106: 102. | L106: 22857 SVEUČILIŠTE U RIJECI - FILOZOFSKI FAKULTET | M106: 22857 | N106: SVEUČILIŠTE U RIJECI - FILOZOFSKI FAKULTET | O106: SVEUČILIŠTE U RIJECI | P106: SVEUČILIŠNA AVENIJA 4 | Q106: 51000 RIJEKA | R106: 03368491 | S106: 70505505759 | T106: Sveučilišta i veleučilišta u Republici Hrvatskoj | U106: 08006
K107: 103. | L107: 23286 INSTITUT ZA JAVNE FINANCIJE | M107: 23286 | N107: INSTITUT ZA JAVNE FINANCIJE | O107: JAVNI INSTITUTI | P107: SMIČIKLASOVA 21 | Q107: 10000 ZAGREB | R107: 03226344 | S107: 41683226810 | T107: Javni instituti | U107: 08008
K108: 104. | L108: 23368 SVEUČILIŠTE U SPLITU - KATOLIČKI BOGOSLOVNI FAKULTET | M108: 23368 | N108: SVEUČILIŠTE U SPLITU - KATOLIČKI BOGOSLOVNI FAKULTET | O108: SVEUČILIŠTE U SPLITU | P108: ZRINSKOG FRANKOPANA 19 | Q108: 21000 SPLIT | R108: 01465643 | S108: 36149548625 | T108: Sveučilišta i veleučilišta u Republici Hrvatskoj | U108: 08006
K109: 105. | L109: 23665 SVEUČILIŠTE U ZAGREBU - SVEUČILIŠNI RAČUNSKI CENTAR - SRCE | M109: 23665 | N109: SVEUČILIŠTE U ZAGREBU - SVEUČILIŠNI RAČUNSKI CENTAR - SRCE | O109: AGENCIJE | P109: JOSIPA MAROHNIĆA 5 | Q109: 10000 ZAGREB | R109: 03283020 | S109: 34016189309 | T109: Agencije | U109: 08091
K110: 106. | L110: 23815 SVEUČILIŠTE U ZADRU | M110: 23815 | N110: SVEUČILIŠTE U ZADRU | O110: SVEUČILIŠTE U ZADRU | P110: MIHOVILA PAVLINOVIĆA 1 | Q110: 23000 ZADAR | R110: 01695525 | S110: 10839679016 | T110: Sveučilišta i veleučilišta u Republici Hrvatskoj | U110: 08006
K111: 107. | L111: 23962 AGENCIJA ZA ODGOJ I OBRAZOVANJE | M111: 23962 | N111: AGENCIJA ZA ODGOJ I OBRAZOVANJE | O111: AGENCIJE | P111: DONJE SVETICE 38 | Q111: 10000 ZAGREB | R111: 01778129 | S111: 72193628411 | T111: Agencije | U111: 08091
K112: 108. | L112: 24141 SVEUČILIŠTE U DUBROVNIKU | M112: 24141 | N112: SVEUČILIŠTE U DUBROVNIKU | O112: SVEUČILIŠTE U DUBROVNIKU | P112: BRANITELJA DUBROVNIKA 29 | Q112: 20000 DUBROVNIK | R112: 01787578 | S112: 01338491514 | T112: Sveučilišta i veleučilišta u Republici Hrvatskoj | U112: 08006
K113: 109. | L113: 38438 VELEUČILIŠTE MARKO MARULIĆ U KNINU | M113: 38438 | N113: VELEUČILIŠTE MARKO MARULIĆ U KNINU | O113: VELEUČILIŠTA | P113: KRALJA PETRA KREŠIMIRA IV 30 | Q113: 22300 KNIN | R113: 01963813 | S113: 13664089430 | T113: Sveučilišta i veleučilišta u Republici Hrvatskoj | U113: 08006
K114: 110. | L114: 38446 VELEUČILIŠTE LAVOSLAV RUŽIČKA U VUKOVARU | M114: 38446 | N114: VELEUČILIŠTE LAVOSLAV RUŽIČKA U VUKOVARU | O114: VELEUČILIŠTA | P114: ŽUPANIJSKA 50 | Q114: 32000 VUKOVAR | R114: 01970828 | S114: 21720825730 | T114: Sveučilišta i veleučilišta u Republici Hrvatskoj | U114: 08006
K115: 111. | L115: 38454 SVEUČILIŠTE U RIJECI - AKADEMIJA PRIMJENJENIH UMJETNOSTI | M115: 38454 | N115: SVEUČILIŠTE U RIJECI - AKADEMIJA PRIMJENJENIH UMJETNOSTI | O115: SVEUČILIŠTE U RIJECI | P115: SLAVKA KRAUTZEKA 83 | Q115: 51000 RIJEKA | R115: 01954253 | S115: 55704161999 | T115: Sveučilišta i veleučilišta u Republici Hrvatskoj | U115: 08006
K116: 112. | L116: 38479 SVEUČILIŠTE J. J. STROSSMAYERA U OSIJEKU - KATOLIČKI BOGOSLOVNI FAKULTET U ĐAKOVU | M116: 38479 | N116: SVEUČILIŠTE J. J. STROSSMAYERA U OSIJEKU - KATOLIČKI BOGOSLOVNI FAKULTET U ĐAKOVU | O116: SVEUČILIŠTE J.J STROSSMAYERA U OSIJEKU | P116: PETRA PRERADOVIĆA 17 | Q116: 31400 ĐAKOVO | R116: 01986490 | S116: 05384220316 | T116: Sveučilišta i veleučilišta u Republici Hrvatskoj | U116: 08006
K117: 113. | L117: 38487 AGENCIJA ZA ZNANOST I VISOKO OBRAZOVANJE | M117: 38487 | N117: AGENCIJA ZA ZNANOST I VISOKO OBRAZOVANJE | O117: AGENCIJE | P117: DONJE SVETICE 38/5 | Q117: 10000 ZAGREB | R117: 01922548 | S117: 83358955356 | T117: Agencije | U117: 08091
K118: 114. | L118: 40883 NACIONALNI CENTAR ZA VANJSKO VREDNOVANJE OBRAZOVANJA | M118: 40883 | N118: NACIONALNI CENTAR ZA VANJSKO VREDNOVANJE OBRAZOVANJA | O118: AGENCIJE | P118: ULICA D. TOMLJANOVIĆA GAVRANA 11 | Q118: 10020 ZAGREB | R118: 01943430 | S118: 94833993984 | T118: Agencije | U118: 08091
K119: 115. | L119: 40947 SVEUČILIŠTE U RIJECI - UČITELJSKI FAKULTET | M119: 40947 | N119: SVEUČILIŠTE U RIJECI - UČITELJSKI FAKULTET | O119: SVEUČILIŠTE U RIJECI | P119: SVEUČILIŠNA AVENIJA 6 | Q119: 51000 RIJEKA | R119: 02116073 | S119: 96996385705 | T119: Sveučilišta i veleučilišta u Republici Hrvatskoj | U119: 08006
K120: 116. | L120: 41185 VELEUČILIŠTE NIKOLA TESLA U GOSPIĆU | M120: 41185 | N120: VELEUČILIŠTE NIKOLA TESLA U GOSPIĆU | O120: VELEUČILIŠTA | P120: ULICA BANA IVANA KARLOVIĆA 16 | Q120: 53000 GOSPIĆ | R120: 02103133 | S120: 42552392522 | T120: Sveučilišta i veleučilišta u Republici Hrvatskoj | U120: 08006
K121: 117. | L121: 42024 SVEUČILIŠTE JURJA DOBRILE U PULI | M121: 42024 | N121: SVEUČILIŠTE JURJA DOBRILE U PULI | O121: SVEUČILIŠTE U PULI | P121: ZAGREBAČKA 30 | Q121: 52100 PULA | R121: 02161753 | S121: 61738073226 | T121: Sveučilišta i veleučilišta u Republici Hrvatskoj | U121: 08006
K122: 118. | L122: 42993 VELEUČILIŠTE U VIROVITICI | M122: 42993 | N122: VELEUČILIŠTE U VIROVITICI | O122: VELEUČILIŠTA | P122: ULICA MATIJE GUPCA 78 | Q122: 33000 VIROVITICA | R122: 02282208 | S122: 46576407858 | T122: Sveučilišta i veleučilišta u Republici Hrvatskoj | U122: 08006
K123: 119. | L123: 43335 AGENCIJA ZA MOBILNOST I PROGRAME EUROPSKE UNIJE | M123: 43335 | N123: AGENCIJA ZA MOBILNOST I PROGRAME EUROPSKE UNIJE | O123: AGENCIJE | P123: FRANKOPANSKA 26 | Q123: 10000 ZAGREB | R123: 02298007 | S123: 25385906011 | T123: Agencije | U123: 08091
K124: 120. | L124: 43749 MEĐIMURSKO VELEUČILIŠTE U ČAKOVCU | M124: 43749 | N124: MEĐIMURSKO VELEUČILIŠTE U ČAKOVCU | O124: VELEUČILIŠTA | P124: BANA JOSIPA JELAČIĆA 22/A | Q124: 40000 ČAKOVEC | R124: 02382512 | S124: 31444990605 | T124: Sveučilišta i veleučilišta u Republici Hrvatskoj | U124: 08006
K125: 121. | L125: 43773 SVEUČILIŠTE U SPLITU - KINEZIOLOŠKI FAKULTET | M125: 43773 | N125: SVEUČILIŠTE U SPLITU - KINEZIOLOŠKI FAKULTET | O125: SVEUČILIŠTE U SPLITU | P125: NIKOLE TESLE 6 | Q125: 21000 SPLIT | R125: 02393255 | S125: 57848936921 | T125: Sveučilišta i veleučilišta u Republici Hrvatskoj | U125: 08006
K126: 122. | L126: 46173 AGENCIJA ZA STRUKOVNO OBRAZOVANJE I OBRAZOVANJE ODRASLIH | M126: 46173 | N126: AGENCIJA ZA STRUKOVNO OBRAZOVANJE I OBRAZOVANJE ODRASLIH | O126: AGENCIJE | P126: GARIĆGRADSKA ULICA 18 | Q126: 10000 ZAGREB | R126: 02650029 | S126: 40719411729 | T126: Agencije | U126: 08091
K127: 123. | L127: 48023 SVEUČILIŠTE U RIJECI - FAKULTET ZDRAVSTVENIH STUDIJA U RIJECI | M127: 48023 | N127: SVEUČILIŠTE U RIJECI - FAKULTET ZDRAVSTVENIH STUDIJA U RIJECI | O127: SVEUČILIŠTE U RIJECI | P127: VIKTORA CARA EMINA 5 | Q127: 51000 RIJEKA | R127: 04052510 | S127: 19213484918 | T127: Sveučilišta i veleučilišta u Republici Hrvatskoj | U127: 08006
K128: 124. | L128: 48267 SVEUČILIŠTE SJEVER | M128: 48267 | N128: SVEUČILIŠTE SJEVER | O128: SVEUČILIŠTE SJEVER | P128: TRG DR. ŽARKA DOLINARA 1 | Q128: 48000 KOPRIVNICA | R128: 02752298 | S128: 59624928052 | T128: Sveučilišta i veleučilišta u Republici Hrvatskoj | U128: 08006
K129: 125. | L129: =M129&" "&N129 -> 49796 SVEUČILIŠTE J. J. STROSSMAYERA U OSIJEKU - FAKULTET ZA DENTALNU MEDICINU I ZDRAVSTVO | M129: 49796 | N129: SVEUČILIŠTE J. J. STROSSMAYERA U OSIJEKU - FAKULTET ZA DENTALNU MEDICINU I ZDRAVSTVO | O129: SVEUČILIŠTE J.J STROSSMAYERA U OSIJEKU | P129: CRKVENA 21 | Q129: 31000 OSIJEK | R129: 04748875 | S129: 83830458507 | T129: Sveučilišta i veleučilišta u Republici Hrvatskoj | U129: 08006
K130: 126. | L130: 50215 SVEUČILIŠTE J. J. STROSSMAYERA U OSIJEKU - AKADEMIJA ZA UMJETNOST I KULTURU U OSIJEKU | M130: 50215 | N130: SVEUČILIŠTE J. J. STROSSMAYERA U OSIJEKU - AKADEMIJA ZA UMJETNOST I KULTURU U OSIJEKU | O130: SVEUČILIŠTE J.J STROSSMAYERA U OSIJEKU | P130: KRALJA PETRA SVAČIĆA 1/F | Q130: 31000 OSIJEK | R130: 04907361 | S130: 60277424315 | T130: Sveučilišta i veleučilišta u Republici Hrvatskoj | U130: 08006
K131: 127. | L131: 50848 VELEUČILIŠTE HRVATSKO ZAGORJE KRAPINA | M131: 50848 | N131: VELEUČILIŠTE HRVATSKO ZAGORJE KRAPINA | O131: VELEUČILIŠTA | P131: ŠETALIŠTE HRVATSKOG NARODNOG PREPORODA 6 | Q131: 49000 KRAPINA | R131: 02271354 | S131: 16465214888 | T131: Sveučilišta i veleučilišta u Republici Hrvatskoj | U131: 08006
K132: 128. | L132: 51191 SVEUČILIŠTE U ZAGREBU - FAKULTET HRVATSKIH STUDIJA | M132: 51191 | N132: SVEUČILIŠTE U ZAGREBU - FAKULTET HRVATSKIH STUDIJA | O132: SVEUČILIŠTE U ZAGREBU | P132: BORONGAJSKA CESTA 83D | Q132: 10000 ZAGREB | R132: 05214068 | S132: 99454315441 | T132: Sveučilišta i veleučilišta u Republici Hrvatskoj | U132: 08006
K133: 129. | L133: 51360 SVEUČILIŠTE U SLAVONSKOM BRODU | M133: 51360 | N133: SVEUČILIŠTE U SLAVONSKOM BRODU | O133: SVEUČILIŠTE U SLAVONSKOM BRODU | P133: TRG IVANE BRLIĆ MAŽURANIĆ 2 | Q133: 35000 SLAVONSKI BROD | R133: 05290538 | S133: 33027834374 | T133: Sveučilišta i veleučilišta u Republici Hrvatskoj | U133: 08006
K134: 130. | L134: 51450 SVEUČILIŠTE J. J. STROSSMAYERA U OSIJEKU - KINEZIOLOŠKI FAKULTET OSIJEK | M134: 51450 | N134: SVEUČILIŠTE J. J. STROSSMAYERA U OSIJEKU - KINEZIOLOŠKI FAKULTET OSIJEK | O134: SVEUČILIŠTE J.J STROSSMAYERA U OSIJEKU | P134: DRINSKA 16/A | Q134: 31000 OSIJEK | R134: 05302099 | S134: 70788591483 | T134: Sveučilišta i veleučilišta u Republici Hrvatskoj | U134: 08006
K135: 131. | L135: 52209 HRVATSKA ZAKLADA ZA ZNANOST | M135: 52209 | N135: HRVATSKA ZAKLADA ZA ZNANOST | O135: AGENCIJE | P135: ILICA 24 | Q135: 10000 ZAGREB | R135: 01626841 | S135: 88776522763 | T135: Agencije | U135: 08091
K136: =+K135+1 -> 132. | L136: 52565 SVEUČILIŠTE J. J. STROSSMAYERA U OSIJEKU - FAKULTET TURIZMA I RURALNOG RAZVOJA U POŽEGI | M136: 52565 | N136: SVEUČILIŠTE J. J. STROSSMAYERA U OSIJEKU - FAKULTET TURIZMA I RURALNOG RAZVOJA U POŽEGI | O136: SVEUČILIŠTE J.J STROSSMAYERA U OSIJEKU | P136: VUKOVARSKA 17 | Q136: 31000 OSIJEK | R136: 05619696 | S136: 11614501047 | T136: Sveučilišta i veleučilišta u Republici Hrvatskoj | U136: 08006
K137: =+K136+1 -> 133. | L137: 53919 SVEUČILIŠTE J. J. STROSSMAYERA U OSIJEKU - FAKULTET PRIMIJENJENE MATEMATIKE I INFORMATIKE | M137: 53919 | N137: SVEUČILIŠTE J. J. STROSSMAYERA U OSIJEKU - FAKULTET PRIMIJENJENE MATEMATIKE I INFORMATIKE | O137: SVEUČILIŠTE J.J STROSSMAYERA U OSIJEKU | T137: Sveučilišta i veleučilišta u Republici Hrvatskoj | U137: 08006
K138: 134. | L138: 2532 SVEUČILIŠTE U ZADRU, ZNANSTVENA KNJIŽNICA | M138: 2532 | N138: SVEUČILIŠTE U ZADRU, ZNANSTVENA KNJIŽNICA | O138: SVEUČILIŠTE U ZADRU | T138: Sveučilišta i veleučilišta u Republici Hrvatskoj | U138: 08006

Sheet Unos prihoda i primitaka
A1: Plan za unos u SAP - prihodi i primici | I1: u EUR
A2: GLAVA | B2: OPIS GLAVE | C2: IZVOR | D2: OPIS IZVORA | E2: Stavka (odaberite) | F2: OPIS STAVKE | G2: PLAN 2025. | H2: Povećanje iznos u plusu / smanjenje iznos u minusu | I2: NOVI PLAN 2025. | J2: Davatelj prijenosa | K2: Ustanova | L2: left3 | M2: left2 | R2: 671 - izvor 11
A3: =IF(E3="","",VLOOKUP('OPĆI DIO'!$C$1,'OPĆI DIO'!$L$4:$U$138,10,FALSE)) -> 08006 | B3: =IF(E3="","",VLOOKUP('OPĆI DIO'!$C$1,'OPĆI DIO'!$L$4:$U$138,9,FALSE)) -> Sveučilišta i veleučilišta u Republici Hrvatskoj | C3: =IFERROR(VLOOKUP(E3,$R$6:$U$113,3,FALSE),"") -> 11 | D3: =IFERROR(VLOOKUP(E3,$R$6:$U$113,4,FALSE),"") -> Opći prihodi i primici | E3: 671 - izvor 11 | F3: =IFERROR(VLOOKUP(E3,$R$6:$U$113,2,FALSE),"") -> Prihodi iz nadležnog proračuna za financiranje redovne djelatnosti proračunskih korisnika | G3: 2,863,314 | H3: 154,883 | I3: =+G3+H3 -> 3,018,197 | K3: =IF(C3="","",'OPĆI DIO'!$C$1) -> 38454 SVEUČILIŠTE U RIJECI - AKADEMIJA PRIMJENJENIH UMJETNOSTI | L3: =LEFT(E3,2) -> 67 | M3: =LEFT(E3,3) -> 671 | N3: glava za visoko 6 | R3: 671 - izvor 12
A4: =IF(E4="","",VLOOKUP('OPĆI DIO'!$C$1,'OPĆI DIO'!$L$4:$U$138,10,FALSE)) -> 08006 | B4: =IF(E4="","",VLOOKUP('OPĆI DIO'!$C$1,'OPĆI DIO'!$L$4:$U$138,9,FALSE)) -> Sveučilišta i veleučilišta u Republici Hrvatskoj | C4: 11 | D4: Opći prihodi i primici | E4: 671 - izvor 11 | F4: Prihodi iz nadležnog proračuna za financiranje redovne djelatnosti proračunskih korisnika | G4: 1,162 | H4: -153 | I4: 1,009 | K4: =IF(C4="","",'OPĆI DIO'!$C$1) -> 38454 SVEUČILIŠTE U RIJECI - AKADEMIJA PRIMJENJENIH UMJETNOSTI | L4: =LEFT(E4,2) -> 67 | M4: =LEFT(E4,3) -> 671
A5: =IF(E5="","",VLOOKUP('OPĆI DIO'!$C$1,'OPĆI DIO'!$L$4:$U$138,10,FALSE)) -> 08006 | B5: =IF(E5="","",VLOOKUP('OPĆI DIO'!$C$1,'OPĆI DIO'!$L$4:$U$138,9,FALSE)) -> Sveučilišta i veleučilišta u Republici Hrvatskoj | C5: 11 | D5: Opći prihodi i primici | E5: 671 - izvor 11 | F5: Prihodi iz nadležnog proračuna za financiranje redovne djelatnosti proračunskih korisnika | G5: 401,850 | H5: 124,752 | I5: 526,602 | K5: =IF(C5="","",'OPĆI DIO'!$C$1) -> 38454 SVEUČILIŠTE U RIJECI - AKADEMIJA PRIMJENJENIH UMJETNOSTI | L5: 67 | M5: 671 | N5: IZVOR | O5: OPIS IZVORA | R5: Konto | S5: opis konta | T5: izvor | U5: OPIS IZVORA | V5: 3 konto | W5: 2 konto
A6: =IF(E6="","",VLOOKUP('OPĆI DIO'!$C$1,'OPĆI DIO'!$L$4:$U$138,10,FALSE)) -> 08006 | B6: =IF(E6="","",VLOOKUP('OPĆI DIO'!$C$1,'OPĆI DIO'!$L$4:$U$138,9,FALSE)) -> Sveučilišta i veleučilišta u Republici Hrvatskoj | C6: 52 | D6: Ostale pomoći i darovnice | E6: 6391 | F6: Tekući prijenosi između proračunskih korisnika istog proračuna | G6: 380 | H6: 43,609 | I6: 43,989 | J6: 2444 SVEUČILIŠTE U RIJECI | K6: =IF(C6="","",'OPĆI DIO'!$C$1) -> 38454 SVEUČILIŠTE U RIJECI - AKADEMIJA PRIMJENJENIH UMJETNOSTI | L6: =LEFT(E6,2) -> 63 | M6: 639 | N6: 11 | O6: Opći prihodi i primici | R6: 671 - izvor 11 | S6: Prihodi iz nadležnog proračuna za financiranje redovne djelatnosti proračunskih korisnika | T6: 11 | U6: Opći prihodi i primici | V6: 671 | W6: 67
A7: =IF(E7="","",VLOOKUP('OPĆI DIO'!$C$1,'OPĆI DIO'!$L$4:$U$138,10,FALSE)) -> 08006 | B7: =IF(E7="","",VLOOKUP('OPĆI DIO'!$C$1,'OPĆI DIO'!$L$4:$U$138,9,FALSE)) -> Sveučilišta i veleučilišta u Republici Hrvatskoj | C7: 43 | D7: Ostali prihodi za posebne namjene | E7: 65264 | F7: Sufinanciranje cijene usluge, participacije i slično | G7: 80,000 | H7: 0 | I7: 80,000 | K7: =IF(C7="","",'OPĆI DIO'!$C$1) -> 38454 SVEUČILIŠTE U RIJECI - AKADEMIJA PRIMJENJENIH UMJETNOSTI | L7: 65 | M7: 652 | N7: 12 | O7: Sredstva učešća za pomoći | R7: 671 - izvor 12 | S7: Prihodi iz nadležnog proračuna za financiranje redovne djelatnosti proračunskih korisnika | T7: 12 | U7: Sredstva učešća za pomoći | V7: 671 | W7: 67
A8: =IF(E8="","",VLOOKUP('OPĆI DIO'!$C$1,'OPĆI DIO'!$L$4:$U$138,10,FALSE)) -> 08006 | B8: =IF(E8="","",VLOOKUP('OPĆI DIO'!$C$1,'OPĆI DIO'!$L$4:$U$138,9,FALSE)) -> Sveučilišta i veleučilišta u Republici Hrvatskoj | C8: 31 | D8: Vlastiti prihodi | E8: 6614 | F8: Prihodi od prodanih proizvoda i robe | G8: 15,000 | H8: -3,000 | I8: 12,000 | K8: =IF(C8="","",'OPĆI DIO'!$C$1) -> 38454 SVEUČILIŠTE U RIJECI - AKADEMIJA PRIMJENJENIH UMJETNOSTI | L8: 66 | M8: 661 | N8: 31 | O8: Vlastiti prihodi | R8: 671110815 | S8: Prihodi iz nadležnog proračuna za financiranje rashoda poslovanja - izvor 815 | T8: 815 | U8: Namjenski primitak - NPOO | V8: 671 | W8: 67
A9: =IF(E9="","",VLOOKUP('OPĆI DIO'!$C$1,'OPĆI DIO'!$L$4:$U$138,10,FALSE)) -> 08006 | B9: =IF(E9="","",VLOOKUP('OPĆI DIO'!$C$1,'OPĆI DIO'!$L$4:$U$138,9,FALSE)) -> Sveučilišta i veleučilišta u Republici Hrvatskoj | C9: 31 | D9: Vlastiti prihodi | E9: 6615 | F9: Prihodi od pruženih usluga | G9: 8,000 | H9: 16,891 | I9: 24,891 | K9: =IF(C9="","",'OPĆI DIO'!$C$1) -> 38454 SVEUČILIŠTE U RIJECI - AKADEMIJA PRIMJENJENIH UMJETNOSTI | L9: 66 | M9: 661 | N9: 41 | O9: Prihodi od igara na sreću | R9: 671210815 | S9: Prihodi iz nadležnog proračuna za financiranje rashoda za nabavu nefinancijske imovine - izvor 815 | T9: 815 | U9: Namjenski primitak - NPOO | V9: 671 | W9: 67
A10: =IF(E10="","",VLOOKUP('OPĆI DIO'!$C$1,'OPĆI DIO'!$L$4:$U$138,10,FALSE)) -> 08006 | B10: =IF(E10="","",VLOOKUP('OPĆI DIO'!$C$1,'OPĆI DIO'!$L$4:$U$138,9,FALSE)) -> Sveučilišta i veleučilišta u Republici Hrvatskoj | C10: 51 | D10: Pomoći EU | E10: 632411700 | F10: Kapitalne pomoći od institucija i tijela EU - ostalo | G10: 6,720 | H10: 0 | I10: 6,720 | K10: =IF(C10="","",'OPĆI DIO'!$C$1) -> 38454 SVEUČILIŠTE U RIJECI - AKADEMIJA PRIMJENJENIH UMJETNOSTI | L10: 63 | M10: 632 | N10: 43 | O10: Ostali prihodi za posebne namjene | R10: 641290031 | S10: Kamate za ostale vrijednosne papire izvor 31 | T10: 31 | U10: Vlastiti prihodi | V10: 641 | W10: 64
A11: =IF(E11="","",VLOOKUP('OPĆI DIO'!$C$1,'OPĆI DIO'!$L$4:$U$138,10,FALSE)) -> 08006 | B11: =IF(E11="","",VLOOKUP('OPĆI DIO'!$C$1,'OPĆI DIO'!$L$4:$U$138,9,FALSE)) -> Sveučilišta i veleučilišta u Republici Hrvatskoj | C11: 52 | D11: Ostale pomoći i darovnice | E11: 6361 | F11: Tekuće pomoći proračunskim korisnicima iz proračuna JLP(R)S koji im nije nadležan | G11: 0 | H11: 11,100 | I11: 11,100 | K11: =IF(C11="","",'OPĆI DIO'!$C$1) -> 38454 SVEUČILIŠTE U RIJECI - AKADEMIJA PRIMJENJENIH UMJETNOSTI | L11: 63 | M11: 636 | N11: 51 | O11: Pomoći EU | R11: 641310031 | S11: Kamate na oročena sredstva izvor 31 | T11: 31 | U11: Vlastiti prihodi | V11: 641 | W11: 64
A12: =IF(E12="","",VLOOKUP('OPĆI DIO'!$C$1,'OPĆI DIO'!$L$4:$U$138,10,FALSE)) -> 08006 | B12: =IF(E12="","",VLOOKUP('OPĆI DIO'!$C$1,'OPĆI DIO'!$L$4:$U$138,9,FALSE)) -> Sveučilišta i veleučilišta u Republici Hrvatskoj | C12: 52 | D12: Ostale pomoći i darovnice | E12: 6391 | F12: Tekući prijenosi između proračunskih korisnika istog proračuna | G12: 0 | H12: 8,000 | I12: 8,000 | J12: 756 MINISTARSTVO KULTURE I MEDIJA | K12: =IF(C12="","",'OPĆI DIO'!$C$1) -> 38454 SVEUČILIŠTE U RIJECI - AKADEMIJA PRIMJENJENIH UMJETNOSTI | L12: 63 | M12: 639 | N12: 52 | O12: Ostale pomoći | R12: 641320031 | S12: Kamate na depozite po viđenju izvor 31 | T12: 31 | U12: Vlastiti prihodi | V12: 641 | W12: 64
A13: =IF(E13="","",VLOOKUP('OPĆI DIO'!$C$1,'OPĆI DIO'!$L$4:$U$138,10,FALSE)) -> 08006 | B13: =IF(E13="","",VLOOKUP('OPĆI DIO'!$C$1,'OPĆI DIO'!$L$4:$U$138,9,FALSE)) -> Sveučilišta i veleučilišta u Republici Hrvatskoj | C13: 581 | D13: Mehanizam za oporavak i otpornost | E13: 671110581 | F13: Tek.pom.od instit. tijela EU - Mehanizam za oporavak i otpornost | G13: 0 | H13: 4,530 | I13: 4,530 | K13: =IF(C13="","",'OPĆI DIO'!$C$1) -> 38454 SVEUČILIŠTE U RIJECI - AKADEMIJA PRIMJENJENIH UMJETNOSTI | L13: 67 | M13: 671 | N13: 552 | O13: Švicarski instrument | R13: 641630031 | S13: Prihod od dividendi na dionice u kreditnim i ostalim financijskim institucijama izvan javnog sektora izvor 31 | T13: 31 | U13: Vlastiti prihodi | V13: 641 | W13: 64
A14: =IF(E14="","",VLOOKUP('OPĆI DIO'!$C$1,'OPĆI DIO'!$L$4:$U$138,10,FALSE)) -> 08006 | B14: =IF(E14="","",VLOOKUP('OPĆI DIO'!$C$1,'OPĆI DIO'!$L$4:$U$138,9,FALSE)) -> Sveučilišta i veleučilišta u Republici Hrvatskoj | C14: 11 | D14: Opći prihodi i primici | E14: 671 - izvor 11 | F14: Prihodi iz nadležnog proračuna za financiranje redovne djelatnosti proračunskih korisnika | H14: 213,343 | I14: 213,343 | K14: =IF(C14="","",'OPĆI DIO'!$C$1) -> 38454 SVEUČILIŠTE U RIJECI - AKADEMIJA PRIMJENJENIH UMJETNOSTI | L14: 67 | M14: 671 | N14: 559 | O14: Ostale refundacije iz pomoći EU | R14: 642510031 | S14: Prihodi od prodaje kratkotrajne nefinancijske imovine izvor 31 | T14: 31 | U14: Vlastiti prihodi | V14: 642 | W14: 64
A15: =IF(E15="","",VLOOKUP('OPĆI DIO'!$C$1,'OPĆI DIO'!$L$4:$U$138,10,FALSE)) ->  | B15: =IF(E15="","",VLOOKUP('OPĆI DIO'!$C$1,'OPĆI DIO'!$L$4:$U$138,9,FALSE)) ->  | H15: 0 | I15: 0 | K15: =IF(C15="","",'OPĆI DIO'!$C$1) ->  | N15: 561 | O15: Europski socijalni fond (ESF) | R15: 642990031 | S15: Ostali prihodi od nefinancijske imovine izvor 31 | T15: 31 | U15: Vlastiti prihodi | V15: 642 | W15: 64
A16: =IF(E16="","",VLOOKUP('OPĆI DIO'!$C$1,'OPĆI DIO'!$L$4:$U$138,10,FALSE)) ->  | B16: =IF(E16="","",VLOOKUP('OPĆI DIO'!$C$1,'OPĆI DIO'!$L$4:$U$138,9,FALSE)) ->  | H16: 0 | I16: 0 | K16: =IF(C16="","",'OPĆI DIO'!$C$1) ->  | N16: 563 | O16: Europski fond za regionalni razvoj (ERDF) | R16: 6614 | S16: Prihodi od prodanih proizvoda i robe | T16: 31 | U16: Vlastiti prihodi | V16: 661 | W16: 66
A17: =IF(E17="","",VLOOKUP('OPĆI DIO'!$C$1,'OPĆI DIO'!$L$4:$U$138,10,FALSE)) ->  | B17: =IF(E17="","",VLOOKUP('OPĆI DIO'!$C$1,'OPĆI DIO'!$L$4:$U$138,9,FALSE)) ->  | H17: 0 | I17: =+G17+H17 -> 0 | K17: =IF(C17="","",'OPĆI DIO'!$C$1) ->  | N17: 573 | O17: Instrumenti Europskog gospodarskog prostora i ostali instrumenti | R17: 6615 | S17: Prihodi od pruženih usluga | T17: 31 | U17: Vlastiti prihodi | V17: 661 | W17: 66
A18: =IF(E18="","",VLOOKUP('OPĆI DIO'!$C$1,'OPĆI DIO'!$L$4:$U$138,10,FALSE)) ->  | B18: =IF(E18="","",VLOOKUP('OPĆI DIO'!$C$1,'OPĆI DIO'!$L$4:$U$138,9,FALSE)) ->  | H18: 0 | I18: 0 | K18: =IF(C18="","",'OPĆI DIO'!$C$1) ->  | N18: 581 | O18: Mehanizam za oporavak i otpornost | R18: 683110031 | S18: Ostali prihodi izvor 31 | T18: 31 | U18: Vlastiti prihodi | V18: 683 | W18: 68
A19: =IF(E19="","",VLOOKUP('OPĆI DIO'!$C$1,'OPĆI DIO'!$L$4:$U$138,10,FALSE)) ->  | B19: =IF(E19="","",VLOOKUP('OPĆI DIO'!$C$1,'OPĆI DIO'!$L$4:$U$138,9,FALSE)) ->  | H19: 0 | I19: 0 | K19: =IF(C19="","",'OPĆI DIO'!$C$1) ->  | N19: 61 | O19: Donacije | R19: 6541 | S19: Naknade za priređivanje igara na sreću | T19: 41 | U19: Prihodi od igara na sreću | V19: 614 | W19: 61
A20: =IF(E20="","",VLOOKUP('OPĆI DIO'!$C$1,'OPĆI DIO'!$L$4:$U$138,10,FALSE)) ->  | B20: =IF(E20="","",VLOOKUP('OPĆI DIO'!$C$1,'OPĆI DIO'!$L$4:$U$138,9,FALSE)) ->  | H20: 0 | I20: 0 | K20: =IF(C20="","",'OPĆI DIO'!$C$1) ->  | N20: 63 | O20: Inozemne donacije | R20: 654110041 | S20: Naknada za priređivanje lutrijskih igara, izvor 41 | T20: 41 | U20: Prihodi od igara na sreću | V20: 614 | W20: 61
A21: =IF(E21="","",VLOOKUP('OPĆI DIO'!$C$1,'OPĆI DIO'!$L$4:$U$138,10,FALSE)) ->  | B21: =IF(E21="","",VLOOKUP('OPĆI DIO'!$C$1,'OPĆI DIO'!$L$4:$U$138,9,FALSE)) ->  | H21: 0 | I21: 0 | K21: =IF(C21="","",'OPĆI DIO'!$C$1) ->  | N21: 71 | O21: Prihodi od nefin. imovine i nadoknade štete s osnova osig. | R21: 654120041 | S21: Naknade za priređivanje igara na sreću u casinima, izvor 41 | T21: 41 | U21: Prihodi od igara na sreću | V21: 614 | W21: 61
A22: =IF(E22="","",VLOOKUP('OPĆI DIO'!$C$1,'OPĆI DIO'!$L$4:$U$138,10,FALSE)) ->  | B22: =IF(E22="","",VLOOKUP('OPĆI DIO'!$C$1,'OPĆI DIO'!$L$4:$U$138,9,FALSE)) ->  | H22: 0 | I22: 0 | K22: =IF(C22="","",'OPĆI DIO'!$C$1) ->  | N22: 810 | O22: Namjenski primici od zaduživanja | R22: 654130041 | S22: Naknade za priređivanje klađenja, izvor 41 | T22: 41 | U22: Prihodi od igara na sreću | V22: 614 | W22: 61
A23: =IF(E23="","",VLOOKUP('OPĆI DIO'!$C$1,'OPĆI DIO'!$L$4:$U$138,10,FALSE)) ->  | B23: =IF(E23="","",VLOOKUP('OPĆI DIO'!$C$1,'OPĆI DIO'!$L$4:$U$138,9,FALSE)) ->  | H23: 0 | I23: 0 | K23: =IF(C23="","",'OPĆI DIO'!$C$1) ->  | N23: 815 | O23: Namjenski primitak - NPOO | R23: 654140041 | S23: Naknade za priređivanje igara na sreću na automatima, izvor 41 | T23: 41 | U23: Prihodi od igara na sreću | V23: 614 | W23: 61
A24: =IF(E24="","",VLOOKUP('OPĆI DIO'!$C$1,'OPĆI DIO'!$L$4:$U$138,10,FALSE)) ->  | B24: =IF(E24="","",VLOOKUP('OPĆI DIO'!$C$1,'OPĆI DIO'!$L$4:$U$138,9,FALSE)) ->  | H24: 0 | I24: 0 | K24: =IF(C24="","",'OPĆI DIO'!$C$1) ->  | R24: 654150041 | S24: Naknada za prigodno jednokratno priređivanje igara na sreću | T24: 41 | U24: Prihodi od igara na sreću | V24: 614 | W24: 61
A25: =IF(E25="","",VLOOKUP('OPĆI DIO'!$C$1,'OPĆI DIO'!$L$4:$U$138,10,FALSE)) ->  | B25: =IF(E25="","",VLOOKUP('OPĆI DIO'!$C$1,'OPĆI DIO'!$L$4:$U$138,9,FALSE)) ->  | H25: 0 | I25: 0 | K25: =IF(C25="","",'OPĆI DIO'!$C$1) ->  | R25: 654160041 | S25: Ostale naknade od igara na sreću | T25: 41 | U25: Prihodi od igara na sreću | V25: 614 | W25: 61
A26: =IF(E26="","",VLOOKUP('OPĆI DIO'!$C$1,'OPĆI DIO'!$L$4:$U$138,10,FALSE)) ->  | B26: =IF(E26="","",VLOOKUP('OPĆI DIO'!$C$1,'OPĆI DIO'!$L$4:$U$138,9,FALSE)) ->  | H26: 0 | I26: 0 | K26: =IF(C26="","",'OPĆI DIO'!$C$1) ->  | R26: 641770041 | S26: Prihodi iz dobiti Hrvatske lutrije, izvor 41 | T26: 41 | U26: Prihodi od igara na sreću | V26: 614 | W26: 61
A27: =IF(E27="","",VLOOKUP('OPĆI DIO'!$C$1,'OPĆI DIO'!$L$4:$U$138,10,FALSE)) ->  | B27: =IF(E27="","",VLOOKUP('OPĆI DIO'!$C$1,'OPĆI DIO'!$L$4:$U$138,9,FALSE)) ->  | H27: 0 | I27: 0 | K27: =IF(C27="","",'OPĆI DIO'!$C$1) ->  | R27: 641320043 | S27: Kamate na depozite po viđenju izvor 43 | T27: 43 | U27: Ostali prihodi za posebne namjene | V27: 641 | W27: 64
A28: =IF(E28="","",VLOOKUP('OPĆI DIO'!$C$1,'OPĆI DIO'!$L$4:$U$138,10,FALSE)) ->  | B28: =IF(E28="","",VLOOKUP('OPĆI DIO'!$C$1,'OPĆI DIO'!$L$4:$U$138,9,FALSE)) ->  | H28: 0 | I28: 0 | K28: =IF(C28="","",'OPĆI DIO'!$C$1) ->  | R28: 641720043 | S28: Prihodi iz dobiti trgovačkih društava u javnom sektoru izvor 43 | T28: 43 | U28: Ostali prihodi za posebne namjene | V28: 641 | W28: 64
A29: =IF(E29="","",VLOOKUP('OPĆI DIO'!$C$1,'OPĆI DIO'!$L$4:$U$138,10,FALSE)) ->  | B29: =IF(E29="","",VLOOKUP('OPĆI DIO'!$C$1,'OPĆI DIO'!$L$4:$U$138,9,FALSE)) ->  | H29: 0 | I29: 0 | K29: =IF(C29="","",'OPĆI DIO'!$C$1) ->  | R29: 641990043 | S29: Ostali prihodi od financijske imovine izvor 43 | T29: 43 | U29: Ostali prihodi za posebne namjene | V29: 641 | W29: 64
A30: =IF(E30="","",VLOOKUP('OPĆI DIO'!$C$1,'OPĆI DIO'!$L$4:$U$138,10,FALSE)) ->  | B30: =IF(E30="","",VLOOKUP('OPĆI DIO'!$C$1,'OPĆI DIO'!$L$4:$U$138,9,FALSE)) ->  | H30: 0 | I30: 0 | K30: =IF(C30="","",'OPĆI DIO'!$C$1) ->  | R30: 65148 | S30: Ostale naknade i pristojbe za posebne namjene | T30: 43 | U30: Ostali prihodi za posebne namjene | V30: 651 | W30: 65
A31: =IF(E31="","",VLOOKUP('OPĆI DIO'!$C$1,'OPĆI DIO'!$L$4:$U$138,10,FALSE)) ->  | B31: =IF(E31="","",VLOOKUP('OPĆI DIO'!$C$1,'OPĆI DIO'!$L$4:$U$138,9,FALSE)) ->  | H31: 0 | I31: 0 | K31: =IF(C31="","",'OPĆI DIO'!$C$1) ->  | R31: 65218 | S31: Ostali prihodi državne uprave za posebne namjene | T31: 43 | U31: Ostali prihodi za posebne namjene | V31: 652 | W31: 65
A32: =IF(E32="","",VLOOKUP('OPĆI DIO'!$C$1,'OPĆI DIO'!$L$4:$U$138,10,FALSE)) ->  | B32: =IF(E32="","",VLOOKUP('OPĆI DIO'!$C$1,'OPĆI DIO'!$L$4:$U$138,9,FALSE)) ->  | H32: 0 | I32: 0 | K32: =IF(C32="","",'OPĆI DIO'!$C$1) ->  | R32: 65264 | S32: Sufinanciranje cijene usluge, participacije i slično | T32: 43 | U32: Ostali prihodi za posebne namjene | V32: 652 | W32: 65
A33: =IF(E33="","",VLOOKUP('OPĆI DIO'!$C$1,'OPĆI DIO'!$L$4:$U$138,10,FALSE)) ->  | B33: =IF(E33="","",VLOOKUP('OPĆI DIO'!$C$1,'OPĆI DIO'!$L$4:$U$138,9,FALSE)) ->  | H33: 0 | I33: 0 | K33: =IF(C33="","",'OPĆI DIO'!$C$1) ->  | R33: 652670043 | S33: Prihodi s naslova osiguranja, refundacije štete i totalne štete izvor 43 | T33: 43 | U33: Ostali prihodi za posebne namjene | V33: 652 | W33: 65
A34: =IF(E34="","",VLOOKUP('OPĆI DIO'!$C$1,'OPĆI DIO'!$L$4:$U$138,10,FALSE)) ->  | B34: =IF(E34="","",VLOOKUP('OPĆI DIO'!$C$1,'OPĆI DIO'!$L$4:$U$138,9,FALSE)) ->  | H34: 0 | I34: 0 | K34: =IF(C34="","",'OPĆI DIO'!$C$1) ->  | R34: 65268 | S34: Ostali prihodi za posebne namjene | T34: 43 | U34: Ostali prihodi za posebne namjene | V34: 652 | W34: 65
A35: =IF(E35="","",VLOOKUP('OPĆI DIO'!$C$1,'OPĆI DIO'!$L$4:$U$138,10,FALSE)) ->  | B35: =IF(E35="","",VLOOKUP('OPĆI DIO'!$C$1,'OPĆI DIO'!$L$4:$U$138,9,FALSE)) ->  | C35: =IFERROR(VLOOKUP(E35,$R$6:$U$113,3,FALSE),"") ->  | D35: =IFERROR(VLOOKUP(E35,$R$6:$U$113,4,FALSE),"") ->  | F35: =IFERROR(VLOOKUP(E35,$R$6:$U$113,2,FALSE),"") ->  | H35: 0 | I35: 0 | K35: =IF(C35="","",'OPĆI DIO'!$C$1) ->  | R35: 681910043 | S35: Ostale nespomenute kazne izvor 43 | T35: 43 | U35: Ostali prihodi za posebne namjene | V35: 681 | W35: 68
A36: =IF(E36="","",VLOOKUP('OPĆI DIO'!$C$1,'OPĆI DIO'!$L$4:$U$138,10,FALSE)) ->  | B36: =IF(E36="","",VLOOKUP('OPĆI DIO'!$C$1,'OPĆI DIO'!$L$4:$U$138,9,FALSE)) ->  | H36: 0 | I36: 0 | K36: =IF(C36="","",'OPĆI DIO'!$C$1) ->  | R36: 683110043 | S36: Ostali prihodi izvor 43 | T36: 43 | U36: Ostali prihodi za posebne namjene | V36: 683 | W36: 68
A37: =IF(E37="","",VLOOKUP('OPĆI DIO'!$C$1,'OPĆI DIO'!$L$4:$U$138,10,FALSE)) ->  | B37: =IF(E37="","",VLOOKUP('OPĆI DIO'!$C$1,'OPĆI DIO'!$L$4:$U$138,9,FALSE)) ->  | H37: 0 | I37: 0 | K37: =IF(C37="","",'OPĆI DIO'!$C$1) ->  | R37: 818110043 | S37: Primici od povr.depozita od tuz.kred.inst.-krat.43 | T37: 43 | U37: Ostali prihodi za posebne namjene | V37: 818 | W37: 81
A38: =IF(E38="","",VLOOKUP('OPĆI DIO'!$C$1,'OPĆI DIO'!$L$4:$U$138,10,FALSE)) ->  | B38: =IF(E38="","",VLOOKUP('OPĆI DIO'!$C$1,'OPĆI DIO'!$L$4:$U$138,9,FALSE)) ->  | H38: 0 | I38: 0 | K38: =IF(C38="","",'OPĆI DIO'!$C$1) ->  | R38: 818120043 | S38: Primici od povrata depozita od tuzemnih kreditnih i ostalih institucija - dugoročni - namjenski | T38: 43 | U38: Ostali prihodi za posebne namjene | V38: 818 | W38: 81
A39: =IF(E39="","",VLOOKUP('OPĆI DIO'!$C$1,'OPĆI DIO'!$L$4:$U$138,10,FALSE)) ->  | B39: =IF(E39="","",VLOOKUP('OPĆI DIO'!$C$1,'OPĆI DIO'!$L$4:$U$138,9,FALSE)) ->  | H39: 0 | I39: 0 | K39: =IF(C39="","",'OPĆI DIO'!$C$1) ->  | R39: 832120043 | S39: Dionice i udjeli u glavnici trgovačkih društava u javnom sektoru - izvor 43 | T39: 43 | U39: Ostali prihodi za posebne namjene | V39: 832 | W39: 83
A40: =IF(E40="","",VLOOKUP('OPĆI DIO'!$C$1,'OPĆI DIO'!$L$4:$U$138,10,FALSE)) ->  | B40: =IF(E40="","",VLOOKUP('OPĆI DIO'!$C$1,'OPĆI DIO'!$L$4:$U$138,9,FALSE)) ->  | H40: 0 | I40: 0 | K40: =IF(C40="","",'OPĆI DIO'!$C$1) ->  | R40: 833130043 | S40: Dionice i udjeli u glavnici tuzemnih kreditnih institucija izvan javnog sektora - izvor 43 | T40: 43 | U40: Ostali prihodi za posebne namjene | V40: 833 | W40: 83
A41: =IF(E41="","",VLOOKUP('OPĆI DIO'!$C$1,'OPĆI DIO'!$L$4:$U$138,10,FALSE)) ->  | B41: =IF(E41="","",VLOOKUP('OPĆI DIO'!$C$1,'OPĆI DIO'!$L$4:$U$138,9,FALSE)) ->  | H41: 0 | I41: 0 | K41: =IF(C41="","",'OPĆI DIO'!$C$1) ->  | R41: 632311700 | S41: Tekuće pomoći od institucija i tijela EU - ostalo | T41: 51 | U41: Pomoći EU | V41: 632 | W41: 63
A42: =IF(E42="","",VLOOKUP('OPĆI DIO'!$C$1,'OPĆI DIO'!$L$4:$U$138,10,FALSE)) ->  | B42: =IF(E42="","",VLOOKUP('OPĆI DIO'!$C$1,'OPĆI DIO'!$L$4:$U$138,9,FALSE)) ->  | H42: 0 | I42: 0 | K42: =IF(C42="","",'OPĆI DIO'!$C$1) ->  | R42: 632311800 | S42: Tekuće pomoći od institucija i tijela EU - refundacije putnih troškova | T42: 51 | U42: Pomoći EU | V42: 632 | W42: 63
A43: =IF(E43="","",VLOOKUP('OPĆI DIO'!$C$1,'OPĆI DIO'!$L$4:$U$138,10,FALSE)) ->  | B43: =IF(E43="","",VLOOKUP('OPĆI DIO'!$C$1,'OPĆI DIO'!$L$4:$U$138,9,FALSE)) ->  | H43: 0 | I43: 0 | K43: =IF(C43="","",'OPĆI DIO'!$C$1) ->  | R43: 632411700 | S43: Kapitalne pomoći od institucija i tijela EU - ostalo | T43: 51 | U43: Pomoći EU | V43: 632 | W43: 63
A44: =IF(E44="","",VLOOKUP('OPĆI DIO'!$C$1,'OPĆI DIO'!$L$4:$U$138,10,FALSE)) ->  | B44: =IF(E44="","",VLOOKUP('OPĆI DIO'!$C$1,'OPĆI DIO'!$L$4:$U$138,9,FALSE)) ->  | H44: 0 | I44: 0 | K44: =IF(C44="","",'OPĆI DIO'!$C$1) ->  | R44: 631110000 | S44: Tekuće pomoći od inozemnih vlada u EU | T44: 52 | U44: Ostale pomoći i darovnice | V44: 631 | W44: 63
A45: =IF(E45="","",VLOOKUP('OPĆI DIO'!$C$1,'OPĆI DIO'!$L$4:$U$138,10,FALSE)) ->  | B45: =IF(E45="","",VLOOKUP('OPĆI DIO'!$C$1,'OPĆI DIO'!$L$4:$U$138,9,FALSE)) ->  | H45: 0 | I45: 0 | K45: =IF(C45="","",'OPĆI DIO'!$C$1) ->  | R45: 631120000 | S45: Tekuće pomoći od inozemnih vlada izvan EU | T45: 52 | U45: Ostale pomoći i darovnice | V45: 631 | W45: 63
A46: =IF(E46="","",VLOOKUP('OPĆI DIO'!$C$1,'OPĆI DIO'!$L$4:$U$138,10,FALSE)) ->  | B46: =IF(E46="","",VLOOKUP('OPĆI DIO'!$C$1,'OPĆI DIO'!$L$4:$U$138,9,FALSE)) ->  | H46: 0 | I46: 0 | K46: =IF(C46="","",'OPĆI DIO'!$C$1) ->  | R46: 631210000 | S46: Kapitalne pomoći od inozemnih vlada u EU | T46: 52 | U46: Ostale pomoći i darovnice | V46: 631 | W46: 63
A47: =IF(E47="","",VLOOKUP('OPĆI DIO'!$C$1,'OPĆI DIO'!$L$4:$U$138,10,FALSE)) ->  | B47: =IF(E47="","",VLOOKUP('OPĆI DIO'!$C$1,'OPĆI DIO'!$L$4:$U$138,9,FALSE)) ->  | H47: 0 | I47: 0 | K47: =IF(C47="","",'OPĆI DIO'!$C$1) ->  | R47: 631220000 | S47: Kapitalne pomoći od inozemnih vlada izvan EU | T47: 52 | U47: Ostale pomoći i darovnice | V47: 631 | W47: 63
A48: =IF(E48="","",VLOOKUP('OPĆI DIO'!$C$1,'OPĆI DIO'!$L$4:$U$138,10,FALSE)) ->  | B48: =IF(E48="","",VLOOKUP('OPĆI DIO'!$C$1,'OPĆI DIO'!$L$4:$U$138,9,FALSE)) ->  | H48: 0 | I48: 0 | K48: =IF(C48="","",'OPĆI DIO'!$C$1) ->  | R48: 632112000 | S48: Tekuće pomoći od međunarodnih organizacija | T48: 52 | U48: Ostale pomoći i darovnice | V48: 632 | W48: 63
A49: =IF(E49="","",VLOOKUP('OPĆI DIO'!$C$1,'OPĆI DIO'!$L$4:$U$138,10,FALSE)) ->  | B49: =IF(E49="","",VLOOKUP('OPĆI DIO'!$C$1,'OPĆI DIO'!$L$4:$U$138,9,FALSE)) ->  | H49: 0 | I49: 0 | K49: =IF(C49="","",'OPĆI DIO'!$C$1) ->  | R49: 632212000 | S49: Kapitalne pomoći od međunarodnih organizacija | T49: 52 | U49: Ostale pomoći i darovnice | V49: 632 | W49: 63
A50: =IF(E50="","",VLOOKUP('OPĆI DIO'!$C$1,'OPĆI DIO'!$L$4:$U$138,10,FALSE)) ->  | B50: =IF(E50="","",VLOOKUP('OPĆI DIO'!$C$1,'OPĆI DIO'!$L$4:$U$138,9,FALSE)) ->  | H50: 0 | I50: 0 | K50: =IF(C50="","",'OPĆI DIO'!$C$1) ->  | R50: 6341 | S50: Tekuće pomoći od izvanproračunskih korisnika | T50: 52 | U50: Ostale pomoći i darovnice | V50: 634 | W50: 63
A51: =IF(E51="","",VLOOKUP('OPĆI DIO'!$C$1,'OPĆI DIO'!$L$4:$U$138,10,FALSE)) ->  | B51: =IF(E51="","",VLOOKUP('OPĆI DIO'!$C$1,'OPĆI DIO'!$L$4:$U$138,9,FALSE)) ->  | H51: 0 | I51: 0 | K51: =IF(C51="","",'OPĆI DIO'!$C$1) ->  | R51: 6342 | S51: Kapitalne pomoći od izvanproračunskih korisnika | T51: 52 | U51: Ostale pomoći i darovnice | V51: 634 | W51: 63
A52: =IF(E52="","",VLOOKUP('OPĆI DIO'!$C$1,'OPĆI DIO'!$L$4:$U$138,10,FALSE)) ->  | B52: =IF(E52="","",VLOOKUP('OPĆI DIO'!$C$1,'OPĆI DIO'!$L$4:$U$138,9,FALSE)) ->  | H52: 0 | I52: 0 | K52: =IF(C52="","",'OPĆI DIO'!$C$1) ->  | R52: 6361 | S52: Tekuće pomoći proračunskim korisnicima iz proračuna JLP(R)S koji im nije nadležan | T52: 52 | U52: Ostale pomoći i darovnice | V52: 636 | W52: 63
A53: =IF(E53="","",VLOOKUP('OPĆI DIO'!$C$1,'OPĆI DIO'!$L$4:$U$138,10,FALSE)) ->  | B53: =IF(E53="","",VLOOKUP('OPĆI DIO'!$C$1,'OPĆI DIO'!$L$4:$U$138,9,FALSE)) ->  | H53: 0 | I53: 0 | K53: =IF(C53="","",'OPĆI DIO'!$C$1) ->  | R53: 6362 | S53: Kapitalne pomoći proračunskim korisnicima iz proračuna JLP(R)S koji im nije nadležan | T53: 52 | U53: Ostale pomoći i darovnice | V53: 636 | W53: 63
A54: =IF(E54="","",VLOOKUP('OPĆI DIO'!$C$1,'OPĆI DIO'!$L$4:$U$138,10,FALSE)) ->  | B54: =IF(E54="","",VLOOKUP('OPĆI DIO'!$C$1,'OPĆI DIO'!$L$4:$U$138,9,FALSE)) ->  | H54: 0 | I54: 0 | K54: =IF(C54="","",'OPĆI DIO'!$C$1) ->  | R54: 6381 | S54: Tekuće pomoći temeljem prijenosa EU sredstava iz proračuna JLP(R)S, korisnika JLPRS ili izvanproračunskog korisnika | T54: 52 | U54: Ostale pomoći i darovnice | V54: 638 | W54: 63
A55: =IF(E55="","",VLOOKUP('OPĆI DIO'!$C$1,'OPĆI DIO'!$L$4:$U$138,10,FALSE)) ->  | B55: =IF(E55="","",VLOOKUP('OPĆI DIO'!$C$1,'OPĆI DIO'!$L$4:$U$138,9,FALSE)) ->  | H55: 0 | I55: 0 | K55: =IF(C55="","",'OPĆI DIO'!$C$1) ->  | R55: 6382 | S55: Kapitalne pomoći temeljem prijenosa EU sredstava iz proračuna JLP(R)S, korisnika JLPRS ili izvanproračunskog korisnika | T55: 52 | U55: Ostale pomoći i darovnice | V55: 638 | W55: 63
A56: =IF(E56="","",VLOOKUP('OPĆI DIO'!$C$1,'OPĆI DIO'!$L$4:$U$138,10,FALSE)) ->  | B56: =IF(E56="","",VLOOKUP('OPĆI DIO'!$C$1,'OPĆI DIO'!$L$4:$U$138,9,FALSE)) ->  | H56: 0 | I56: 0 | K56: =IF(C56="","",'OPĆI DIO'!$C$1) ->  | R56: 6391 | S56: Tekući prijenosi između proračunskih korisnika istog proračuna | T56: 52 | U56: Ostale pomoći i darovnice | V56: 639 | W56: 63
A57: =IF(E57="","",VLOOKUP('OPĆI DIO'!$C$1,'OPĆI DIO'!$L$4:$U$138,10,FALSE)) ->  | B57: =IF(E57="","",VLOOKUP('OPĆI DIO'!$C$1,'OPĆI DIO'!$L$4:$U$138,9,FALSE)) ->  | H57: 0 | I57: 0 | K57: =IF(C57="","",'OPĆI DIO'!$C$1) ->  | R57: 6392 | S57: Kapitalni prijenosi između proračunskih korisnika istog proračuna | T57: 52 | U57: Ostale pomoći i darovnice | V57: 639 | W57: 63
A58: =IF(E58="","",VLOOKUP('OPĆI DIO'!$C$1,'OPĆI DIO'!$L$4:$U$138,10,FALSE)) ->  | B58: =IF(E58="","",VLOOKUP('OPĆI DIO'!$C$1,'OPĆI DIO'!$L$4:$U$138,9,FALSE)) ->  | H58: 0 | I58: 0 | K58: =IF(C58="","",'OPĆI DIO'!$C$1) ->  | R58: 6393 | S58: Tekući prijenosi između proračunskih korisnika istog proračuna temeljem prijenosa EU sredstava | T58: 52 | U58: Ostale pomoći i darovnice | V58: 639 | W58: 63
A59: =IF(E59="","",VLOOKUP('OPĆI DIO'!$C$1,'OPĆI DIO'!$L$4:$U$138,10,FALSE)) ->  | B59: =IF(E59="","",VLOOKUP('OPĆI DIO'!$C$1,'OPĆI DIO'!$L$4:$U$138,9,FALSE)) ->  | H59: 0 | I59: 0 | K59: =IF(C59="","",'OPĆI DIO'!$C$1) ->  | R59: 6394 | S59: Kapitalni prijenosi između proračunskih korisnika istog proračuna temeljem prijenosa EU sredstava | T59: 52 | U59: Ostale pomoći i darovnice | V59: 639 | W59: 63
A60: =IF(E60="","",VLOOKUP('OPĆI DIO'!$C$1,'OPĆI DIO'!$L$4:$U$138,10,FALSE)) ->  | B60: =IF(E60="","",VLOOKUP('OPĆI DIO'!$C$1,'OPĆI DIO'!$L$4:$U$138,9,FALSE)) ->  | H60: 0 | I60: 0 | K60: =IF(C60="","",'OPĆI DIO'!$C$1) ->  | R60: 663110000 | S60: Tekuće donacije od fizičkih osoba | T60: 61 | U60: Donacije | V60: 663 | W60: 66
A61: =IF(E61="","",VLOOKUP('OPĆI DIO'!$C$1,'OPĆI DIO'!$L$4:$U$138,10,FALSE)) ->  | B61: =IF(E61="","",VLOOKUP('OPĆI DIO'!$C$1,'OPĆI DIO'!$L$4:$U$138,9,FALSE)) ->  | H61: 0 | I61: 0 | K61: =IF(C61="","",'OPĆI DIO'!$C$1) ->  | R61: 663120000 | S61: Tekuće donacije od neprofitnih organizacija | T61: 61 | U61: Donacije | V61: 663 | W61: 66
A62: =IF(E62="","",VLOOKUP('OPĆI DIO'!$C$1,'OPĆI DIO'!$L$4:$U$138,10,FALSE)) ->  | B62: =IF(E62="","",VLOOKUP('OPĆI DIO'!$C$1,'OPĆI DIO'!$L$4:$U$138,9,FALSE)) ->  | H62: 0 | I62: 0 | K62: =IF(C62="","",'OPĆI DIO'!$C$1) ->  | R62: 663130000 | S62: Tekuće donacije od trgovačkih društava | T62: 61 | U62: Donacije | V62: 663 | W62: 66
A63: =IF(E63="","",VLOOKUP('OPĆI DIO'!$C$1,'OPĆI DIO'!$L$4:$U$138,10,FALSE)) ->  | B63: =IF(E63="","",VLOOKUP('OPĆI DIO'!$C$1,'OPĆI DIO'!$L$4:$U$138,9,FALSE)) ->  | H63: 0 | I63: 0 | K63: =IF(C63="","",'OPĆI DIO'!$C$1) ->  | R63: 663140000 | S63: Tekuće donacije od ostalih subjekata izvan općeg proračuna | T63: 61 | U63: Donacije | V63: 663 | W63: 66
A64: =IF(E64="","",VLOOKUP('OPĆI DIO'!$C$1,'OPĆI DIO'!$L$4:$U$138,10,FALSE)) ->  | B64: =IF(E64="","",VLOOKUP('OPĆI DIO'!$C$1,'OPĆI DIO'!$L$4:$U$138,9,FALSE)) ->  | H64: 0 | I64: 0 | K64: =IF(C64="","",'OPĆI DIO'!$C$1) ->  | R64: 663210000 | S64: Kapitalne donacije od fizičkih osoba | T64: 61 | U64: Donacije | V64: 663 | W64: 66
A65: =IF(E65="","",VLOOKUP('OPĆI DIO'!$C$1,'OPĆI DIO'!$L$4:$U$138,10,FALSE)) ->  | B65: =IF(E65="","",VLOOKUP('OPĆI DIO'!$C$1,'OPĆI DIO'!$L$4:$U$138,9,FALSE)) ->  | H65: 0 | I65: 0 | K65: =IF(C65="","",'OPĆI DIO'!$C$1) ->  | R65: 663220000 | S65: Kapitalne donacije od neprofitnih organizacija | T65: 61 | U65: Donacije | V65: 663 | W65: 66
A66: =IF(E66="","",VLOOKUP('OPĆI DIO'!$C$1,'OPĆI DIO'!$L$4:$U$138,10,FALSE)) ->  | B66: =IF(E66="","",VLOOKUP('OPĆI DIO'!$C$1,'OPĆI DIO'!$L$4:$U$138,9,FALSE)) ->  | H66: 0 | I66: 0 | K66: =IF(C66="","",'OPĆI DIO'!$C$1) ->  | R66: 663230000 | S66: Kapitalne donacije od trgovačkih društava | T66: 61 | U66: Donacije | V66: 663 | W66: 66
A67: =IF(E67="","",VLOOKUP('OPĆI DIO'!$C$1,'OPĆI DIO'!$L$4:$U$138,10,FALSE)) ->  | B67: =IF(E67="","",VLOOKUP('OPĆI DIO'!$C$1,'OPĆI DIO'!$L$4:$U$138,9,FALSE)) ->  | D67: =IFERROR(VLOOKUP(E67,$R$6:$U$113,4,FALSE),"") ->  | F67: =IFERROR(VLOOKUP(E67,$R$6:$U$113,2,FALSE),"") ->  | H67: 0 | I67: 0 | K67: =IF(C67="","",'OPĆI DIO'!$C$1) ->  | R67: 663240000 | S67: Kapitalne donacije od ostalih subjekata izvan općeg proračuna | T67: 61 | U67: Donacije | V67: 663 | W67: 66
A68: =IF(E68="","",VLOOKUP('OPĆI DIO'!$C$1,'OPĆI DIO'!$L$4:$U$138,10,FALSE)) ->  | B68: =IF(E68="","",VLOOKUP('OPĆI DIO'!$C$1,'OPĆI DIO'!$L$4:$U$138,9,FALSE)) ->  | D68: =IFERROR(VLOOKUP(E68,$R$6:$U$113,4,FALSE),"") ->  | F68: =IFERROR(VLOOKUP(E68,$R$6:$U$113,2,FALSE),"") ->  | H68: 0 | I68: =+G68+H68 -> 0 | K68: =IF(C68="","",'OPĆI DIO'!$C$1) ->  | L68: =LEFT(E68,2) ->  | M68: =LEFT(E68,3) ->  | R68: 663121000 | S68: Tekuće donacije od neprofitnih organizacija - ostale | T68: 63 | U68: Inozemne donacija | V68: 663 | W68: 66
A69: =IF(E69="","",VLOOKUP('OPĆI DIO'!$C$1,'OPĆI DIO'!$L$4:$U$138,10,FALSE)) ->  | B69: =IF(E69="","",VLOOKUP('OPĆI DIO'!$C$1,'OPĆI DIO'!$L$4:$U$138,9,FALSE)) ->  | H69: 0 | I69: 0 | K69: =IF(C69="","",'OPĆI DIO'!$C$1) ->  | R69: 663131000 | S69: Tekuće donacije od trgovačkih društava - ostale | T69: 63 | U69: Inozemne donacija | V69: 663 | W69: 66
A70: =IF(E70="","",VLOOKUP('OPĆI DIO'!$C$1,'OPĆI DIO'!$L$4:$U$138,10,FALSE)) ->  | B70: =IF(E70="","",VLOOKUP('OPĆI DIO'!$C$1,'OPĆI DIO'!$L$4:$U$138,9,FALSE)) ->  | C70: =IFERROR(VLOOKUP(E70,$R$6:$U$113,3,FALSE),"") ->  | D70: =IFERROR(VLOOKUP(E70,$R$6:$U$113,4,FALSE),"") ->  | F70: =IFERROR(VLOOKUP(E70,$R$6:$U$113,2,FALSE),"") ->  | H70: 0 | I70: 0 | K70: =IF(C70="","",'OPĆI DIO'!$C$1) ->  | R70: 663221000 | S70: Kapitalne donacije od neprofitnih organizacija - ostale | T70: 63 | U70: Inozemne donacija | V70: 663 | W70: 66
A71: =IF(E71="","",VLOOKUP('OPĆI DIO'!$C$1,'OPĆI DIO'!$L$4:$U$138,10,FALSE)) ->  | B71: =IF(E71="","",VLOOKUP('OPĆI DIO'!$C$1,'OPĆI DIO'!$L$4:$U$138,9,FALSE)) ->  | H71: 0 | I71: 0 | K71: =IF(C71="","",'OPĆI DIO'!$C$1) ->  | R71: 663231000 | S71: Kapitalne donacije od trgovačkih društava - ostale | T71: 63 | U71: Inozemne donacija | V71: 663 | W71: 66
A72: =IF(E72="","",VLOOKUP('OPĆI DIO'!$C$1,'OPĆI DIO'!$L$4:$U$138,10,FALSE)) ->  | B72: =IF(E72="","",VLOOKUP('OPĆI DIO'!$C$1,'OPĆI DIO'!$L$4:$U$138,9,FALSE)) ->  | H72: 0 | I72: 0 | K72: =IF(C72="","",'OPĆI DIO'!$C$1) ->  | R72: 652670071 | S72: Prihodi s naslova osiguranja, refundacije štete i totalne štete izvor 71 | T72: 71 | U72: Prihodi od nefin. imovine i nadoknade štete s osnova osig. | V72: 652 | W72: 65
A73: =IF(E73="","",VLOOKUP('OPĆI DIO'!$C$1,'OPĆI DIO'!$L$4:$U$138,10,FALSE)) ->  | B73: =IF(E73="","",VLOOKUP('OPĆI DIO'!$C$1,'OPĆI DIO'!$L$4:$U$138,9,FALSE)) ->  | H73: 0 | I73: 0 | K73: =IF(C73="","",'OPĆI DIO'!$C$1) ->  | R73: 711110071 | S73: Poljoprivredno zemljište izvor 71 | T73: 71 | U73: Prihodi od prodaje ili zamjene nefinancijske imovine i naknade s naslova osiguranja | V73: 711 | W73: 71
A74: =IF(E74="","",VLOOKUP('OPĆI DIO'!$C$1,'OPĆI DIO'!$L$4:$U$138,10,FALSE)) ->  | B74: =IF(E74="","",VLOOKUP('OPĆI DIO'!$C$1,'OPĆI DIO'!$L$4:$U$138,9,FALSE)) ->  | H74: 0 | I74: 0 | K74: =IF(C74="","",'OPĆI DIO'!$C$1) ->  | R74: 711120071 | S74: Građevinsko zemljište izvor 71 | T74: 71 | U74: Prihodi od prodaje ili zamjene nefinancijske imovine i naknade s naslova osiguranja | V74: 711 | W74: 71
A75: =IF(E75="","",VLOOKUP('OPĆI DIO'!$C$1,'OPĆI DIO'!$L$4:$U$138,10,FALSE)) ->  | B75: =IF(E75="","",VLOOKUP('OPĆI DIO'!$C$1,'OPĆI DIO'!$L$4:$U$138,9,FALSE)) ->  | H75: 0 | I75: 0 | K75: =IF(C75="","",'OPĆI DIO'!$C$1) ->  | R75: 712410071 | S75: Ulaganja na tuđoj imovini radi prava korištenja izvor 71 | T75: 71 | U75: Prihodi od prodaje ili zamjene nefinancijske imovine i naknade s naslova osiguranja | V75: 712 | W75: 71
A76: =IF(E76="","",VLOOKUP('OPĆI DIO'!$C$1,'OPĆI DIO'!$L$4:$U$138,10,FALSE)) ->  | B76: =IF(E76="","",VLOOKUP('OPĆI DIO'!$C$1,'OPĆI DIO'!$L$4:$U$138,9,FALSE)) ->  | H76: 0 | I76: 0 | K76: =IF(C76="","",'OPĆI DIO'!$C$1) ->  | R76: 712490071 | S76: Ostala nespomenuta prava izvor 71 | T76: 71 | U76: Prihodi od prodaje ili zamjene nefinancijske imovine i naknade s naslova osiguranja | V76: 712 | W76: 71
A77: =IF(E77="","",VLOOKUP('OPĆI DIO'!$C$1,'OPĆI DIO'!$L$4:$U$138,10,FALSE)) ->  | B77: =IF(E77="","",VLOOKUP('OPĆI DIO'!$C$1,'OPĆI DIO'!$L$4:$U$138,9,FALSE)) ->  | H77: 0 | I77: 0 | K77: =IF(C77="","",'OPĆI DIO'!$C$1) ->  | R77: 721110071 | S77: Stambeni objekti za zaposlene izvor 71 | T77: 71 | U77: Prihodi od prodaje ili zamjene nefinancijske imovine i naknade s naslova osiguranja | V77: 721 | W77: 72
A78: =IF(E78="","",VLOOKUP('OPĆI DIO'!$C$1,'OPĆI DIO'!$L$4:$U$138,10,FALSE)) ->  | B78: =IF(E78="","",VLOOKUP('OPĆI DIO'!$C$1,'OPĆI DIO'!$L$4:$U$138,9,FALSE)) ->  | H78: 0 | I78: 0 | K78: =IF(C78="","",'OPĆI DIO'!$C$1) ->  | R78: 721190071 | S78: Ostali stambeni objekti izvor 71 | T78: 71 | U78: Prihodi od prodaje ili zamjene nefinancijske imovine i naknade s naslova osiguranja | V78: 721 | W78: 72
A79: =IF(E79="","",VLOOKUP('OPĆI DIO'!$C$1,'OPĆI DIO'!$L$4:$U$138,10,FALSE)) ->  | B79: =IF(E79="","",VLOOKUP('OPĆI DIO'!$C$1,'OPĆI DIO'!$L$4:$U$138,9,FALSE)) ->  | H79: 0 | I79: 0 | K79: =IF(C79="","",'OPĆI DIO'!$C$1) ->  | R79: 721230071 | S79: Zgrade znanstvenih i obrazovnih institucija (fakulteti, škole, vrtići i slično) izvor 71 | T79: 71 | U79: Prihodi od prodaje ili zamjene nefinancijske imovine i naknade s naslova osiguranja | V79: 721 | W79: 72
A80: =IF(E80="","",VLOOKUP('OPĆI DIO'!$C$1,'OPĆI DIO'!$L$4:$U$138,10,FALSE)) ->  | B80: =IF(E80="","",VLOOKUP('OPĆI DIO'!$C$1,'OPĆI DIO'!$L$4:$U$138,9,FALSE)) ->  | H80: 0 | I80: 0 | K80: =IF(C80="","",'OPĆI DIO'!$C$1) ->  | R80: 721290071 | S80: Ostali poslovni građevinski objekti izvor 71 | T80: 71 | U80: Prihodi od prodaje ili zamjene nefinancijske imovine i naknade s naslova osiguranja | V80: 721 | W80: 72
A81: =IF(E81="","",VLOOKUP('OPĆI DIO'!$C$1,'OPĆI DIO'!$L$4:$U$138,10,FALSE)) ->  | B81: =IF(E81="","",VLOOKUP('OPĆI DIO'!$C$1,'OPĆI DIO'!$L$4:$U$138,9,FALSE)) ->  | H81: 0 | I81: 0 | K81: =IF(C81="","",'OPĆI DIO'!$C$1) ->  | R81: 722110071 | S81: Računala i računalna oprema izvor 71 | T81: 71 | U81: Prihodi od prodaje ili zamjene nefinancijske imovine i naknade s naslova osiguranja | V81: 722 | W81: 72
A82: =IF(E82="","",VLOOKUP('OPĆI DIO'!$C$1,'OPĆI DIO'!$L$4:$U$138,10,FALSE)) ->  | B82: =IF(E82="","",VLOOKUP('OPĆI DIO'!$C$1,'OPĆI DIO'!$L$4:$U$138,9,FALSE)) ->  | H82: 0 | I82: 0 | K82: =IF(C82="","",'OPĆI DIO'!$C$1) ->  | R82: 722120071 | S82: Uredski namještaj izvor 71 | T82: 71 | U82: Prihodi od prodaje ili zamjene nefinancijske imovine i naknade s naslova osiguranja | V82: 722 | W82: 72
A83: =IF(E83="","",VLOOKUP('OPĆI DIO'!$C$1,'OPĆI DIO'!$L$4:$U$138,10,FALSE)) ->  | B83: =IF(E83="","",VLOOKUP('OPĆI DIO'!$C$1,'OPĆI DIO'!$L$4:$U$138,9,FALSE)) ->  | H83: 0 | I83: 0 | K83: =IF(C83="","",'OPĆI DIO'!$C$1) ->  | R83: 722190071 | S83: Ostala uredska oprema izvor 71 | T83: 71 | U83: Prihodi od prodaje ili zamjene nefinancijske imovine i naknade s naslova osiguranja | V83: 722 | W83: 72
A84: =IF(E84="","",VLOOKUP('OPĆI DIO'!$C$1,'OPĆI DIO'!$L$4:$U$138,10,FALSE)) ->  | B84: =IF(E84="","",VLOOKUP('OPĆI DIO'!$C$1,'OPĆI DIO'!$L$4:$U$138,9,FALSE)) ->  | H84: 0 | I84: 0 | K84: =IF(C84="","",'OPĆI DIO'!$C$1) ->  | R84: 722410071 | S84: Medicinska oprema - izvor 71 | T84: 71 | U84: Prihodi od prodaje ili zamjene nefinancijske imovine i naknade s naslova osiguranja | V84: 722 | W84: 72
A85: =IF(E85="","",VLOOKUP('OPĆI DIO'!$C$1,'OPĆI DIO'!$L$4:$U$138,10,FALSE)) ->  | B85: =IF(E85="","",VLOOKUP('OPĆI DIO'!$C$1,'OPĆI DIO'!$L$4:$U$138,9,FALSE)) ->  | H85: 0 | I85: 0 | K85: =IF(C85="","",'OPĆI DIO'!$C$1) ->  | R85: 722620071 | S85: Glazbeni instrumenti i oprema izvor 71 | T85: 71 | U85: Prihodi od prodaje ili zamjene nefinancijske imovine i naknade s naslova osiguranja | V85: 722 | W85: 72
A86: =IF(E86="","",VLOOKUP('OPĆI DIO'!$C$1,'OPĆI DIO'!$L$4:$U$138,10,FALSE)) ->  | B86: =IF(E86="","",VLOOKUP('OPĆI DIO'!$C$1,'OPĆI DIO'!$L$4:$U$138,9,FALSE)) ->  | H86: 0 | I86: 0 | K86: =IF(C86="","",'OPĆI DIO'!$C$1) ->  | R86: 722720071 | S86: Strojevi - izvor 71 | T86: 71 | U86: Prihodi od nefin. imovine i nadoknade štete s osnova osig. | V86: 722 | W86: 72
A87: =IF(E87="","",VLOOKUP('OPĆI DIO'!$C$1,'OPĆI DIO'!$L$4:$U$138,10,FALSE)) ->  | B87: =IF(E87="","",VLOOKUP('OPĆI DIO'!$C$1,'OPĆI DIO'!$L$4:$U$138,9,FALSE)) ->  | H87: 0 | I87: 0 | K87: =IF(C87="","",'OPĆI DIO'!$C$1) ->  | R87: 722730071 | S87: Oprema izvor 71 | T87: 71 | U87: Prihodi od prodaje ili zamjene nefinancijske imovine i naknade s naslova osiguranja | V87: 722 | W87: 72
A88: =IF(E88="","",VLOOKUP('OPĆI DIO'!$C$1,'OPĆI DIO'!$L$4:$U$138,10,FALSE)) ->  | B88: =IF(E88="","",VLOOKUP('OPĆI DIO'!$C$1,'OPĆI DIO'!$L$4:$U$138,9,FALSE)) ->  | H88: 0 | I88: 0 | K88: =IF(C88="","",'OPĆI DIO'!$C$1) ->  | R88: 723110071 | S88: Osobni automobili izvor 71 | T88: 71 | U88: Prihodi od prodaje ili zamjene nefinancijske imovine i naknade s naslova osiguranja | V88: 723 | W88: 72
A89: =IF(E89="","",VLOOKUP('OPĆI DIO'!$C$1,'OPĆI DIO'!$L$4:$U$138,10,FALSE)) ->  | B89: =IF(E89="","",VLOOKUP('OPĆI DIO'!$C$1,'OPĆI DIO'!$L$4:$U$138,9,FALSE)) ->  | H89: 0 | I89: 0 | K89: =IF(C89="","",'OPĆI DIO'!$C$1) ->  | R89: 723130071 | S89: Kombi vozila izvor 71 | T89: 71 | U89: Prihodi od prodaje ili zamjene nefinancijske imovine i naknade s naslova osiguranja | V89: 723 | W89: 72
A90: =IF(E90="","",VLOOKUP('OPĆI DIO'!$C$1,'OPĆI DIO'!$L$4:$U$138,10,FALSE)) ->  | B90: =IF(E90="","",VLOOKUP('OPĆI DIO'!$C$1,'OPĆI DIO'!$L$4:$U$138,9,FALSE)) ->  | H90: 0 | I90: 0 | K90: =IF(C90="","",'OPĆI DIO'!$C$1) ->  | R90: 723140071 | S90: Kamioni izvor 71 | T90: 71 | U90: Prihodi od prodaje ili zamjene nefinancijske imovine i naknade s naslova osiguranja | V90: 723 | W90: 72
A91: =IF(E91="","",VLOOKUP('OPĆI DIO'!$C$1,'OPĆI DIO'!$L$4:$U$138,10,FALSE)) ->  | B91: =IF(E91="","",VLOOKUP('OPĆI DIO'!$C$1,'OPĆI DIO'!$L$4:$U$138,9,FALSE)) ->  | H91: 0 | I91: 0 | K91: =IF(C91="","",'OPĆI DIO'!$C$1) ->  | R91: 723150071 | S91: Traktori izvor 71 | T91: 71 | U91: Prihodi od prodaje ili zamjene nefinancijske imovine i naknade s naslova osiguranja | V91: 723 | W91: 72
A92: =IF(E92="","",VLOOKUP('OPĆI DIO'!$C$1,'OPĆI DIO'!$L$4:$U$138,10,FALSE)) ->  | B92: =IF(E92="","",VLOOKUP('OPĆI DIO'!$C$1,'OPĆI DIO'!$L$4:$U$138,9,FALSE)) ->  | H92: 0 | I92: 0 | K92: =IF(C92="","",'OPĆI DIO'!$C$1) ->  | R92: 723160071 | S92: Terenska vozila (protupožarna, vojna i slično) izvor 71 | T92: 71 | U92: Prihodi od prodaje ili zamjene nefinancijske imovine i naknade s naslova osiguranja | V92: 723 | W92: 72
A93: =IF(E93="","",VLOOKUP('OPĆI DIO'!$C$1,'OPĆI DIO'!$L$4:$U$138,10,FALSE)) ->  | B93: =IF(E93="","",VLOOKUP('OPĆI DIO'!$C$1,'OPĆI DIO'!$L$4:$U$138,9,FALSE)) ->  | H93: 0 | I93: 0 | K93: =IF(C93="","",'OPĆI DIO'!$C$1) ->  | R93: 723190071 | S93: Ostala prijevozna sr. u cest.prometu - izvor 71 | T93: 71 | U93: Prihodi od nefin. imovine i nadoknade štete s osnova osig. | V93: 723 | W93: 72
A94: =IF(E94="","",VLOOKUP('OPĆI DIO'!$C$1,'OPĆI DIO'!$L$4:$U$138,10,FALSE)) ->  | B94: =IF(E94="","",VLOOKUP('OPĆI DIO'!$C$1,'OPĆI DIO'!$L$4:$U$138,9,FALSE)) ->  | H94: 0 | I94: 0 | K94: =IF(C94="","",'OPĆI DIO'!$C$1) ->  | R94: 723310071 | S94: Plovila izvor 71 | T94: 71 | U94: Prihodi od prodaje ili zamjene nefinancijske imovine i naknade s naslova osiguranja | V94: 723 | W94: 72
A95: =IF(E95="","",VLOOKUP('OPĆI DIO'!$C$1,'OPĆI DIO'!$L$4:$U$138,10,FALSE)) ->  | B95: =IF(E95="","",VLOOKUP('OPĆI DIO'!$C$1,'OPĆI DIO'!$L$4:$U$138,9,FALSE)) ->  | H95: 0 | I95: 0 | K95: =IF(C95="","",'OPĆI DIO'!$C$1) ->  | R95: 725210071 | S95: Osnovno stado izvor 71 | T95: 71 | U95: Prihodi od prodaje ili zamjene nefinancijske imovine i naknade s naslova osiguranja | V95: 725 | W95: 72
A96: =IF(E96="","",VLOOKUP('OPĆI DIO'!$C$1,'OPĆI DIO'!$L$4:$U$138,10,FALSE)) ->  | B96: =IF(E96="","",VLOOKUP('OPĆI DIO'!$C$1,'OPĆI DIO'!$L$4:$U$138,9,FALSE)) ->  | H96: 0 | I96: 0 | K96: =IF(C96="","",'OPĆI DIO'!$C$1) ->  | R96: 671110552 | S96: Tekuće pomoći od institucija i tijela EU Švicarski instrument | T96: 552 | U96: Švicarski instrument | V96: 632 | W96: 63
A97: =IF(E97="","",VLOOKUP('OPĆI DIO'!$C$1,'OPĆI DIO'!$L$4:$U$138,10,FALSE)) ->  | B97: =IF(E97="","",VLOOKUP('OPĆI DIO'!$C$1,'OPĆI DIO'!$L$4:$U$138,9,FALSE)) ->  | H97: 0 | I97: 0 | K97: =IF(C97="","",'OPĆI DIO'!$C$1) ->  | R97: 671210552 | S97: Kapitalne pomoći od institucija i tijela EU Švicarski instrument | T97: 552 | U97: Švicarski instrument | V97: 632 | W97: 63
A98: =IF(E98="","",VLOOKUP('OPĆI DIO'!$C$1,'OPĆI DIO'!$L$4:$U$138,10,FALSE)) ->  | B98: =IF(E98="","",VLOOKUP('OPĆI DIO'!$C$1,'OPĆI DIO'!$L$4:$U$138,9,FALSE)) ->  | H98: 0 | I98: 0 | K98: =IF(C98="","",'OPĆI DIO'!$C$1) ->  | R98: 671110559 | S98: Tekuće pomoći od institucija i tijela EU – ostale refundacije | T98: 559 | U98: Ostale refundacije iz pomoći EU | V98: 632 | W98: 63
A99: =IF(E99="","",VLOOKUP('OPĆI DIO'!$C$1,'OPĆI DIO'!$L$4:$U$138,10,FALSE)) ->  | B99: =IF(E99="","",VLOOKUP('OPĆI DIO'!$C$1,'OPĆI DIO'!$L$4:$U$138,9,FALSE)) ->  | H99: 0 | I99: 0 | K99: =IF(C99="","",'OPĆI DIO'!$C$1) ->  | R99: 671210559 | S99: Kapitalne pomoći od institucija i tijela EU - ostale refundacije | T99: 559 | U99: Ostale refundacije iz pomoći EU | V99: 632 | W99: 63
A100: =IF(E100="","",VLOOKUP('OPĆI DIO'!$C$1,'OPĆI DIO'!$L$4:$U$138,10,FALSE)) ->  | B100: =IF(E100="","",VLOOKUP('OPĆI DIO'!$C$1,'OPĆI DIO'!$L$4:$U$138,9,FALSE)) ->  | H100: 0 | I100: 0 | K100: =IF(C100="","",'OPĆI DIO'!$C$1) ->  | R100: 671110561 | S100: Europski socijalni fond (ESF) | T100: 561 | U100: Europski socijalni fond (ESF) | V100: 632 | W100: 63
A101: =IF(E101="","",VLOOKUP('OPĆI DIO'!$C$1,'OPĆI DIO'!$L$4:$U$138,10,FALSE)) ->  | B101: =IF(E101="","",VLOOKUP('OPĆI DIO'!$C$1,'OPĆI DIO'!$L$4:$U$138,9,FALSE)) ->  | H101: 0 | I101: 0 | K101: =IF(C101="","",'OPĆI DIO'!$C$1) ->  | R101: 671210561 | S101: Europski socijalni fond (ESF) | T101: 561 | U101: Europski socijalni fond (ESF) | V101: 632 | W101: 63
A102: =IF(E102="","",VLOOKUP('OPĆI DIO'!$C$1,'OPĆI DIO'!$L$4:$U$138,10,FALSE)) ->  | B102: =IF(E102="","",VLOOKUP('OPĆI DIO'!$C$1,'OPĆI DIO'!$L$4:$U$138,9,FALSE)) ->  | H102: 0 | I102: 0 | K102: =IF(C102="","",'OPĆI DIO'!$C$1) ->  | R102: 671110563 | S102: Europski fond za regionalni razvoj (EFRR) | T102: 563 | U102: Europski fond za regionalni razvoj (ERDF) | V102: 632 | W102: 63
A103: =IF(E103="","",VLOOKUP('OPĆI DIO'!$C$1,'OPĆI DIO'!$L$4:$U$138,10,FALSE)) ->  | B103: =IF(E103="","",VLOOKUP('OPĆI DIO'!$C$1,'OPĆI DIO'!$L$4:$U$138,9,FALSE)) ->  | H103: 0 | I103: 0 | K103: =IF(C103="","",'OPĆI DIO'!$C$1) ->  | R103: 671210563 | S103: Europski fond za regionalni razvoj (EFRR) | T103: 563 | U103: Europski fond za regionalni razvoj (ERDF) | V103: 632 | W103: 63
A104: =IF(E104="","",VLOOKUP('OPĆI DIO'!$C$1,'OPĆI DIO'!$L$4:$U$138,10,FALSE)) ->  | B104: =IF(E104="","",VLOOKUP('OPĆI DIO'!$C$1,'OPĆI DIO'!$L$4:$U$138,9,FALSE)) ->  | H104: 0 | I104: 0 | K104: =IF(C104="","",'OPĆI DIO'!$C$1) ->  | R104: 671110573 | S104: Tekuće pomoći od institucija i tijela EU – Instrumenti europskog gospodarskog prostora | T104: 573 | U104: Instrumenti Europskog gospodarskog prostora i ostali instrumenti | V104: 632 | W104: 63
A105: =IF(E105="","",VLOOKUP('OPĆI DIO'!$C$1,'OPĆI DIO'!$L$4:$U$138,10,FALSE)) ->  | B105: =IF(E105="","",VLOOKUP('OPĆI DIO'!$C$1,'OPĆI DIO'!$L$4:$U$138,9,FALSE)) ->  | H105: 0 | I105: 0 | K105: =IF(C105="","",'OPĆI DIO'!$C$1) ->  | R105: 671210573 | S105: Kapitalne pomoći od institucija i tijela EU - Instrumenti europskog gospodarskog prostora | T105: 573 | U105: Instrumenti Europskog gospodarskog prostora i ostali instrumenti | V105: 632 | W105: 63
A106: =IF(E106="","",VLOOKUP('OPĆI DIO'!$C$1,'OPĆI DIO'!$L$4:$U$138,10,FALSE)) ->  | B106: =IF(E106="","",VLOOKUP('OPĆI DIO'!$C$1,'OPĆI DIO'!$L$4:$U$138,9,FALSE)) ->  | H106: 0 | I106: 0 | K106: =IF(C106="","",'OPĆI DIO'!$C$1) ->  | R106: 671110581 | S106: Tek.pom.od instit. tijela EU - Mehanizam za oporavak i otpornost | T106: 581 | U106: Mehanizam za oporavak i otpornost | V106: 632 | W106: 63
A107: =IF(E107="","",VLOOKUP('OPĆI DIO'!$C$1,'OPĆI DIO'!$L$4:$U$138,10,FALSE)) ->  | B107: =IF(E107="","",VLOOKUP('OPĆI DIO'!$C$1,'OPĆI DIO'!$L$4:$U$138,9,FALSE)) ->  | H107: 0 | I107: 0 | K107: =IF(C107="","",'OPĆI DIO'!$C$1) ->  | R107: 671210581 | S107: Kapitalne pom.od instit. tijela EU - Mehanizam za oporavak i otpornost | T107: 581 | U107: Mehanizam za oporavak i otpornost | V107: 632 | W107: 63
A108: =IF(E108="","",VLOOKUP('OPĆI DIO'!$C$1,'OPĆI DIO'!$L$4:$U$138,10,FALSE)) ->  | B108: =IF(E108="","",VLOOKUP('OPĆI DIO'!$C$1,'OPĆI DIO'!$L$4:$U$138,9,FALSE)) ->  | H108: 0 | I108: 0 | K108: =IF(C108="","",'OPĆI DIO'!$C$1) ->  | R108: 841320000 | S108: Primljeni zajmovi od međunarodnih organizacija - dugoročni | T108: 810 | U108: Namjenski primici od zaduživanja | V108: 841 | W108: 84
A109: =IF(E109="","",VLOOKUP('OPĆI DIO'!$C$1,'OPĆI DIO'!$L$4:$U$138,10,FALSE)) ->  | B109: =IF(E109="","",VLOOKUP('OPĆI DIO'!$C$1,'OPĆI DIO'!$L$4:$U$138,9,FALSE)) ->  | H109: 0 | I109: 0 | K109: =IF(C109="","",'OPĆI DIO'!$C$1) ->  | R109: 84431 | S109: Primljeni krediti od tuzemnih kreditnih institucija izvan javnog sektora - kratkoročni | T109: 810 | U109: Namjenski primici od zaduživanja | V109: 844 | W109: 84
A110: =IF(E110="","",VLOOKUP('OPĆI DIO'!$C$1,'OPĆI DIO'!$L$4:$U$138,10,FALSE)) ->  | B110: =IF(E110="","",VLOOKUP('OPĆI DIO'!$C$1,'OPĆI DIO'!$L$4:$U$138,9,FALSE)) ->  | H110: 0 | I110: 0 | K110: =IF(C110="","",'OPĆI DIO'!$C$1) ->  | R110: 844320000 | S110: Primljeni krediti od tuzemnih kreditnih institucija izvan javnog sektora - dugoročni namjenski | T110: 810 | U110: Namjenski primici od zaduživanja | V110: 844 | W110: 84
A111: =IF(E111="","",VLOOKUP('OPĆI DIO'!$C$1,'OPĆI DIO'!$L$4:$U$138,10,FALSE)) ->  | B111: =IF(E111="","",VLOOKUP('OPĆI DIO'!$C$1,'OPĆI DIO'!$L$4:$U$138,9,FALSE)) ->  | H111: 0 | I111: 0 | K111: =IF(C111="","",'OPĆI DIO'!$C$1) ->  | R111: 842220081 | S111: Primljeni krediti od kreditnih institucija u javnom sektoru - dugoročni - namjenski | T111: 810 | U111: Namjenski primici od zaduživanja | V111: 842 | W111: 84
A112: =IF(E112="","",VLOOKUP('OPĆI DIO'!$C$1,'OPĆI DIO'!$L$4:$U$138,10,FALSE)) ->  | B112: =IF(E112="","",VLOOKUP('OPĆI DIO'!$C$1,'OPĆI DIO'!$L$4:$U$138,9,FALSE)) ->  | H112: 0 | I112: 0 | K112: =IF(C112="","",'OPĆI DIO'!$C$1) ->  | R112: 841320150 | S112: Proj.održivog, prav. i učink.obrazov. IBRD 93030 | T112: 810 | U112: Namjenski primici od zaduživanja | V112: 841 | W112: 84
A113: =IF(E113="","",VLOOKUP('OPĆI DIO'!$C$1,'OPĆI DIO'!$L$4:$U$138,10,FALSE)) ->  | B113: =IF(E113="","",VLOOKUP('OPĆI DIO'!$C$1,'OPĆI DIO'!$L$4:$U$138,9,FALSE)) ->  | H113: 0 | I113: 0 | K113: =IF(C113="","",'OPĆI DIO'!$C$1) ->  | R113: 841320151 | S113: Proj.digitalne inovat. i zelene tehnol. IBRD 95580 | T113: 810 | U113: Namjenski primici od zaduživanja | V113: 841 | W113: 84
A114: =IF(E114="","",VLOOKUP('OPĆI DIO'!$C$1,'OPĆI DIO'!$L$4:$U$138,10,FALSE)) ->  | B114: =IF(E114="","",VLOOKUP('OPĆI DIO'!$C$1,'OPĆI DIO'!$L$4:$U$138,9,FALSE)) ->  | H114: 0 | I114: 0 | K114: =IF(C114="","",'OPĆI DIO'!$C$1) -> 
A115: =IF(E115="","",VLOOKUP('OPĆI DIO'!$C$1,'OPĆI DIO'!$L$4:$U$138,10,FALSE)) ->  | B115: =IF(E115="","",VLOOKUP('OPĆI DIO'!$C$1,'OPĆI DIO'!$L$4:$U$138,9,FALSE)) ->  | H115: 0 | I115: 0 | K115: =IF(C115="","",'OPĆI DIO'!$C$1) -> 
A116: =IF(E116="","",VLOOKUP('OPĆI DIO'!$C$1,'OPĆI DIO'!$L$4:$U$138,10,FALSE)) ->  | B116: =IF(E116="","",VLOOKUP('OPĆI DIO'!$C$1,'OPĆI DIO'!$L$4:$U$138,9,FALSE)) ->  | H116: 0 | I116: 0 | K116: =IF(C116="","",'OPĆI DIO'!$C$1) -> 
A117: =IF(E117="","",VLOOKUP('OPĆI DIO'!$C$1,'OPĆI DIO'!$L$4:$U$138,10,FALSE)) ->  | B117: =IF(E117="","",VLOOKUP('OPĆI DIO'!$C$1,'OPĆI DIO'!$L$4:$U$138,9,FALSE)) ->  | H117: 0 | I117: 0 | K117: =IF(C117="","",'OPĆI DIO'!$C$1) -> 
A118: =IF(E118="","",VLOOKUP('OPĆI DIO'!$C$1,'OPĆI DIO'!$L$4:$U$138,10,FALSE)) ->  | B118: =IF(E118="","",VLOOKUP('OPĆI DIO'!$C$1,'OPĆI DIO'!$L$4:$U$138,9,FALSE)) ->  | H118: 0 | I118: 0 | K118: =IF(C118="","",'OPĆI DIO'!$C$1) -> 
A119: =IF(E119="","",VLOOKUP('OPĆI DIO'!$C$1,'OPĆI DIO'!$L$4:$U$138,10,FALSE)) ->  | B119: =IF(E119="","",VLOOKUP('OPĆI DIO'!$C$1,'OPĆI DIO'!$L$4:$U$138,9,FALSE)) ->  | H119: 0 | I119: 0 | K119: =IF(C119="","",'OPĆI DIO'!$C$1) -> 
A120: =IF(E120="","",VLOOKUP('OPĆI DIO'!$C$1,'OPĆI DIO'!$L$4:$U$138,10,FALSE)) ->  | B120: =IF(E120="","",VLOOKUP('OPĆI DIO'!$C$1,'OPĆI DIO'!$L$4:$U$138,9,FALSE)) ->  | H120: 0 | I120: 0 | K120: =IF(C120="","",'OPĆI DIO'!$C$1) -> 
A121: =IF(E121="","",VLOOKUP('OPĆI DIO'!$C$1,'OPĆI DIO'!$L$4:$U$138,10,FALSE)) ->  | B121: =IF(E121="","",VLOOKUP('OPĆI DIO'!$C$1,'OPĆI DIO'!$L$4:$U$138,9,FALSE)) ->  | H121: 0 | I121: 0 | K121: =IF(C121="","",'OPĆI DIO'!$C$1) -> 
A122: =IF(E122="","",VLOOKUP('OPĆI DIO'!$C$1,'OPĆI DIO'!$L$4:$U$138,10,FALSE)) ->  | B122: =IF(E122="","",VLOOKUP('OPĆI DIO'!$C$1,'OPĆI DIO'!$L$4:$U$138,9,FALSE)) ->  | H122: 0 | I122: 0 | K122: =IF(C122="","",'OPĆI DIO'!$C$1) -> 
A123: =IF(E123="","",VLOOKUP('OPĆI DIO'!$C$1,'OPĆI DIO'!$L$4:$U$138,10,FALSE)) ->  | B123: =IF(E123="","",VLOOKUP('OPĆI DIO'!$C$1,'OPĆI DIO'!$L$4:$U$138,9,FALSE)) ->  | H123: 0 | I123: 0 | K123: =IF(C123="","",'OPĆI DIO'!$C$1) -> 
A124: =IF(E124="","",VLOOKUP('OPĆI DIO'!$C$1,'OPĆI DIO'!$L$4:$U$138,10,FALSE)) ->  | B124: =IF(E124="","",VLOOKUP('OPĆI DIO'!$C$1,'OPĆI DIO'!$L$4:$U$138,9,FALSE)) ->  | H124: 0 | I124: 0 | K124: =IF(C124="","",'OPĆI DIO'!$C$1) -> 
A125: =IF(E125="","",VLOOKUP('OPĆI DIO'!$C$1,'OPĆI DIO'!$L$4:$U$138,10,FALSE)) ->  | B125: =IF(E125="","",VLOOKUP('OPĆI DIO'!$C$1,'OPĆI DIO'!$L$4:$U$138,9,FALSE)) ->  | H125: 0 | I125: 0 | K125: =IF(C125="","",'OPĆI DIO'!$C$1) -> 
A126: =IF(E126="","",VLOOKUP('OPĆI DIO'!$C$1,'OPĆI DIO'!$L$4:$U$138,10,FALSE)) ->  | B126: =IF(E126="","",VLOOKUP('OPĆI DIO'!$C$1,'OPĆI DIO'!$L$4:$U$138,9,FALSE)) ->  | H126: 0 | I126: 0 | K126: =IF(C126="","",'OPĆI DIO'!$C$1) -> 
A127: =IF(E127="","",VLOOKUP('OPĆI DIO'!$C$1,'OPĆI DIO'!$L$4:$U$138,10,FALSE)) ->  | B127: =IF(E127="","",VLOOKUP('OPĆI DIO'!$C$1,'OPĆI DIO'!$L$4:$U$138,9,FALSE)) ->  | H127: 0 | I127: 0 | K127: =IF(C127="","",'OPĆI DIO'!$C$1) -> 
A128: =IF(E128="","",VLOOKUP('OPĆI DIO'!$C$1,'OPĆI DIO'!$L$4:$U$138,10,FALSE)) ->  | B128: =IF(E128="","",VLOOKUP('OPĆI DIO'!$C$1,'OPĆI DIO'!$L$4:$U$138,9,FALSE)) ->  | H128: 0 | I128: 0 | K128: =IF(C128="","",'OPĆI DIO'!$C$1) -> 
A129: =IF(E129="","",VLOOKUP('OPĆI DIO'!$C$1,'OPĆI DIO'!$L$4:$U$138,10,FALSE)) ->  | B129: =IF(E129="","",VLOOKUP('OPĆI DIO'!$C$1,'OPĆI DIO'!$L$4:$U$138,9,FALSE)) ->  | H129: 0 | I129: 0 | K129: =IF(C129="","",'OPĆI DIO'!$C$1) -> 
A130: =IF(E130="","",VLOOKUP('OPĆI DIO'!$C$1,'OPĆI DIO'!$L$4:$U$138,10,FALSE)) ->  | B130: =IF(E130="","",VLOOKUP('OPĆI DIO'!$C$1,'OPĆI DIO'!$L$4:$U$138,9,FALSE)) ->  | H130: 0 | I130: 0 | K130: =IF(C130="","",'OPĆI DIO'!$C$1) -> 
A131: =IF(E131="","",VLOOKUP('OPĆI DIO'!$C$1,'OPĆI DIO'!$L$4:$U$138,10,FALSE)) ->  | B131: =IF(E131="","",VLOOKUP('OPĆI DIO'!$C$1,'OPĆI DIO'!$L$4:$U$138,9,FALSE)) ->  | H131: 0 | I131: 0 | K131: =IF(C131="","",'OPĆI DIO'!$C$1) -> 
A132: =IF(E132="","",VLOOKUP('OPĆI DIO'!$C$1,'OPĆI DIO'!$L$4:$U$138,10,FALSE)) ->  | B132: =IF(E132="","",VLOOKUP('OPĆI DIO'!$C$1,'OPĆI DIO'!$L$4:$U$138,9,FALSE)) ->  | H132: 0 | I132: =+G132+H132 -> 0 | K132: =IF(C132="","",'OPĆI DIO'!$C$1) ->  | L132: =LEFT(E132,2) ->  | M132: =LEFT(E132,3) -> 
A133: =IF(E133="","",VLOOKUP('OPĆI DIO'!$C$1,'OPĆI DIO'!$L$4:$U$138,10,FALSE)) ->  | B133: =IF(E133="","",VLOOKUP('OPĆI DIO'!$C$1,'OPĆI DIO'!$L$4:$U$138,9,FALSE)) ->  | H133: 0 | I133: 0 | K133: =IF(C133="","",'OPĆI DIO'!$C$1) -> 
A134: =IF(E134="","",VLOOKUP('OPĆI DIO'!$C$1,'OPĆI DIO'!$L$4:$U$138,10,FALSE)) ->  | B134: =IF(E134="","",VLOOKUP('OPĆI DIO'!$C$1,'OPĆI DIO'!$L$4:$U$138,9,FALSE)) ->  | C134: =IFERROR(VLOOKUP(E134,$R$6:$U$113,3,FALSE),"") ->  | D134: =IFERROR(VLOOKUP(E134,$R$6:$U$113,4,FALSE),"") ->  | F134: =IFERROR(VLOOKUP(E134,$R$6:$U$113,2,FALSE),"") ->  | H134: 0 | I134: 0 | K134: =IF(C134="","",'OPĆI DIO'!$C$1) -> 
A135: =IF(E135="","",VLOOKUP('OPĆI DIO'!$C$1,'OPĆI DIO'!$L$4:$U$138,10,FALSE)) ->  | B135: =IF(E135="","",VLOOKUP('OPĆI DIO'!$C$1,'OPĆI DIO'!$L$4:$U$138,9,FALSE)) ->  | H135: 0 | I135: 0 | K135: =IF(C135="","",'OPĆI DIO'!$C$1) -> 
A136: =IF(E136="","",VLOOKUP('OPĆI DIO'!$C$1,'OPĆI DIO'!$L$4:$U$138,10,FALSE)) ->  | B136: =IF(E136="","",VLOOKUP('OPĆI DIO'!$C$1,'OPĆI DIO'!$L$4:$U$138,9,FALSE)) ->  | H136: 0 | I136: 0 | K136: =IF(C136="","",'OPĆI DIO'!$C$1) -> 
A137: =IF(E137="","",VLOOKUP('OPĆI DIO'!$C$1,'OPĆI DIO'!$L$4:$U$138,10,FALSE)) ->  | B137: =IF(E137="","",VLOOKUP('OPĆI DIO'!$C$1,'OPĆI DIO'!$L$4:$U$138,9,FALSE)) ->  | H137: 0 | I137: 0 | K137: =IF(C137="","",'OPĆI DIO'!$C$1) -> 
A138: =IF(E138="","",VLOOKUP('OPĆI DIO'!$C$1,'OPĆI DIO'!$L$4:$U$138,10,FALSE)) ->  | B138: =IF(E138="","",VLOOKUP('OPĆI DIO'!$C$1,'OPĆI DIO'!$L$4:$U$138,9,FALSE)) ->  | H138: 0 | I138: 0 | K138: =IF(C138="","",'OPĆI DIO'!$C$1) -> 
A139: =IF(E139="","",VLOOKUP('OPĆI DIO'!$C$1,'OPĆI DIO'!$L$4:$U$138,10,FALSE)) ->  | B139: =IF(E139="","",VLOOKUP('OPĆI DIO'!$C$1,'OPĆI DIO'!$L$4:$U$138,9,FALSE)) ->  | H139: 0 | I139: 0 | K139: =IF(C139="","",'OPĆI DIO'!$C$1) -> 
A140: =IF(E140="","",VLOOKUP('OPĆI DIO'!$C$1,'OPĆI DIO'!$L$4:$U$138,10,FALSE)) ->  | B140: =IF(E140="","",VLOOKUP('OPĆI DIO'!$C$1,'OPĆI DIO'!$L$4:$U$138,9,FALSE)) ->  | H140: 0 | I140: 0 | K140: =IF(C140="","",'OPĆI DIO'!$C$1) -> 
A141: =IF(E141="","",VLOOKUP('OPĆI DIO'!$C$1,'OPĆI DIO'!$L$4:$U$138,10,FALSE)) ->  | B141: =IF(E141="","",VLOOKUP('OPĆI DIO'!$C$1,'OPĆI DIO'!$L$4:$U$138,9,FALSE)) ->  | H141: 0 | I141: 0 | K141: =IF(C141="","",'OPĆI DIO'!$C$1) -> 
A142: =IF(E142="","",VLOOKUP('OPĆI DIO'!$C$1,'OPĆI DIO'!$L$4:$U$138,10,FALSE)) ->  | B142: =IF(E142="","",VLOOKUP('OPĆI DIO'!$C$1,'OPĆI DIO'!$L$4:$U$138,9,FALSE)) ->  | H142: 0 | I142: 0 | K142: =IF(C142="","",'OPĆI DIO'!$C$1) -> 
A143: =IF(E143="","",VLOOKUP('OPĆI DIO'!$C$1,'OPĆI DIO'!$L$4:$U$138,10,FALSE)) ->  | B143: =IF(E143="","",VLOOKUP('OPĆI DIO'!$C$1,'OPĆI DIO'!$L$4:$U$138,9,FALSE)) ->  | H143: 0 | I143: 0 | K143: =IF(C143="","",'OPĆI DIO'!$C$1) -> 
A144: =IF(E144="","",VLOOKUP('OPĆI DIO'!$C$1,'OPĆI DIO'!$L$4:$U$138,10,FALSE)) ->  | B144: =IF(E144="","",VLOOKUP('OPĆI DIO'!$C$1,'OPĆI DIO'!$L$4:$U$138,9,FALSE)) ->  | H144: 0 | I144: 0 | K144: =IF(C144="","",'OPĆI DIO'!$C$1) -> 
A145: =IF(E145="","",VLOOKUP('OPĆI DIO'!$C$1,'OPĆI DIO'!$L$4:$U$138,10,FALSE)) ->  | B145: =IF(E145="","",VLOOKUP('OPĆI DIO'!$C$1,'OPĆI DIO'!$L$4:$U$138,9,FALSE)) ->  | H145: 0 | I145: 0 | K145: =IF(C145="","",'OPĆI DIO'!$C$1) -> 
A146: =IF(E146="","",VLOOKUP('OPĆI DIO'!$C$1,'OPĆI DIO'!$L$4:$U$138,10,FALSE)) ->  | B146: =IF(E146="","",VLOOKUP('OPĆI DIO'!$C$1,'OPĆI DIO'!$L$4:$U$138,9,FALSE)) ->  | H146: 0 | I146: 0 | K146: =IF(C146="","",'OPĆI DIO'!$C$1) -> 
A147: =IF(E147="","",VLOOKUP('OPĆI DIO'!$C$1,'OPĆI DIO'!$L$4:$U$138,10,FALSE)) ->  | B147: =IF(E147="","",VLOOKUP('OPĆI DIO'!$C$1,'OPĆI DIO'!$L$4:$U$138,9,FALSE)) ->  | H147: 0 | I147: 0 | K147: =IF(C147="","",'OPĆI DIO'!$C$1) -> 
A148: =IF(E148="","",VLOOKUP('OPĆI DIO'!$C$1,'OPĆI DIO'!$L$4:$U$138,10,FALSE)) ->  | B148: =IF(E148="","",VLOOKUP('OPĆI DIO'!$C$1,'OPĆI DIO'!$L$4:$U$138,9,FALSE)) ->  | H148: 0 | I148: 0 | K148: =IF(C148="","",'OPĆI DIO'!$C$1) -> 
A149: =IF(E149="","",VLOOKUP('OPĆI DIO'!$C$1,'OPĆI DIO'!$L$4:$U$138,10,FALSE)) ->  | B149: =IF(E149="","",VLOOKUP('OPĆI DIO'!$C$1,'OPĆI DIO'!$L$4:$U$138,9,FALSE)) ->  | H149: 0 | I149: 0 | K149: =IF(C149="","",'OPĆI DIO'!$C$1) -> 
A150: =IF(E150="","",VLOOKUP('OPĆI DIO'!$C$1,'OPĆI DIO'!$L$4:$U$138,10,FALSE)) ->  | B150: =IF(E150="","",VLOOKUP('OPĆI DIO'!$C$1,'OPĆI DIO'!$L$4:$U$138,9,FALSE)) ->  | H150: 0 | I150: 0 | K150: =IF(C150="","",'OPĆI DIO'!$C$1) -> 
A151: =IF(E151="","",VLOOKUP('OPĆI DIO'!$C$1,'OPĆI DIO'!$L$4:$U$138,10,FALSE)) ->  | B151: =IF(E151="","",VLOOKUP('OPĆI DIO'!$C$1,'OPĆI DIO'!$L$4:$U$138,9,FALSE)) ->  | H151: 0 | I151: 0 | K151: =IF(C151="","",'OPĆI DIO'!$C$1) -> 
A152: =IF(E152="","",VLOOKUP('OPĆI DIO'!$C$1,'OPĆI DIO'!$L$4:$U$138,10,FALSE)) ->  | B152: =IF(E152="","",VLOOKUP('OPĆI DIO'!$C$1,'OPĆI DIO'!$L$4:$U$138,9,FALSE)) ->  | H152: 0 | I152: 0 | K152: =IF(C152="","",'OPĆI DIO'!$C$1) -> 
A153: =IF(E153="","",VLOOKUP('OPĆI DIO'!$C$1,'OPĆI DIO'!$L$4:$U$138,10,FALSE)) ->  | B153: =IF(E153="","",VLOOKUP('OPĆI DIO'!$C$1,'OPĆI DIO'!$L$4:$U$138,9,FALSE)) ->  | H153: 0 | I153: 0 | K153: =IF(C153="","",'OPĆI DIO'!$C$1) -> 
A154: =IF(E154="","",VLOOKUP('OPĆI DIO'!$C$1,'OPĆI DIO'!$L$4:$U$138,10,FALSE)) ->  | B154: =IF(E154="","",VLOOKUP('OPĆI DIO'!$C$1,'OPĆI DIO'!$L$4:$U$138,9,FALSE)) ->  | H154: 0 | I154: 0 | K154: =IF(C154="","",'OPĆI DIO'!$C$1) -> 
A155: =IF(E155="","",VLOOKUP('OPĆI DIO'!$C$1,'OPĆI DIO'!$L$4:$U$138,10,FALSE)) ->  | B155: =IF(E155="","",VLOOKUP('OPĆI DIO'!$C$1,'OPĆI DIO'!$L$4:$U$138,9,FALSE)) ->  | H155: 0 | I155: 0 | K155: =IF(C155="","",'OPĆI DIO'!$C$1) -> 
A156: =IF(E156="","",VLOOKUP('OPĆI DIO'!$C$1,'OPĆI DIO'!$L$4:$U$138,10,FALSE)) ->  | B156: =IF(E156="","",VLOOKUP('OPĆI DIO'!$C$1,'OPĆI DIO'!$L$4:$U$138,9,FALSE)) ->  | H156: 0 | I156: 0 | K156: =IF(C156="","",'OPĆI DIO'!$C$1) -> 
A157: =IF(E157="","",VLOOKUP('OPĆI DIO'!$C$1,'OPĆI DIO'!$L$4:$U$138,10,FALSE)) ->  | B157: =IF(E157="","",VLOOKUP('OPĆI DIO'!$C$1,'OPĆI DIO'!$L$4:$U$138,9,FALSE)) ->  | H157: 0 | I157: 0 | K157: =IF(C157="","",'OPĆI DIO'!$C$1) -> 
A158: =IF(E158="","",VLOOKUP('OPĆI DIO'!$C$1,'OPĆI DIO'!$L$4:$U$138,10,FALSE)) ->  | B158: =IF(E158="","",VLOOKUP('OPĆI DIO'!$C$1,'OPĆI DIO'!$L$4:$U$138,9,FALSE)) ->  | H158: 0 | I158: 0 | K158: =IF(C158="","",'OPĆI DIO'!$C$1) -> 
A159: =IF(E159="","",VLOOKUP('OPĆI DIO'!$C$1,'OPĆI DIO'!$L$4:$U$138,10,FALSE)) ->  | B159: =IF(E159="","",VLOOKUP('OPĆI DIO'!$C$1,'OPĆI DIO'!$L$4:$U$138,9,FALSE)) ->  | H159: 0 | I159: 0 | K159: =IF(C159="","",'OPĆI DIO'!$C$1) -> 
A160: =IF(E160="","",VLOOKUP('OPĆI DIO'!$C$1,'OPĆI DIO'!$L$4:$U$138,10,FALSE)) ->  | B160: =IF(E160="","",VLOOKUP('OPĆI DIO'!$C$1,'OPĆI DIO'!$L$4:$U$138,9,FALSE)) ->  | H160: 0 | I160: 0 | K160: =IF(C160="","",'OPĆI DIO'!$C$1) -> 
A161: =IF(E161="","",VLOOKUP('OPĆI DIO'!$C$1,'OPĆI DIO'!$L$4:$U$138,10,FALSE)) ->  | B161: =IF(E161="","",VLOOKUP('OPĆI DIO'!$C$1,'OPĆI DIO'!$L$4:$U$138,9,FALSE)) ->  | H161: 0 | I161: 0 | K161: =IF(C161="","",'OPĆI DIO'!$C$1) -> 
A162: =IF(E162="","",VLOOKUP('OPĆI DIO'!$C$1,'OPĆI DIO'!$L$4:$U$138,10,FALSE)) ->  | B162: =IF(E162="","",VLOOKUP('OPĆI DIO'!$C$1,'OPĆI DIO'!$L$4:$U$138,9,FALSE)) ->  | H162: 0 | I162: 0 | K162: =IF(C162="","",'OPĆI DIO'!$C$1) -> 
A163: =IF(E163="","",VLOOKUP('OPĆI DIO'!$C$1,'OPĆI DIO'!$L$4:$U$138,10,FALSE)) ->  | B163: =IF(E163="","",VLOOKUP('OPĆI DIO'!$C$1,'OPĆI DIO'!$L$4:$U$138,9,FALSE)) ->  | H163: 0 | I163: 0 | K163: =IF(C163="","",'OPĆI DIO'!$C$1) -> 
A164: =IF(E164="","",VLOOKUP('OPĆI DIO'!$C$1,'OPĆI DIO'!$L$4:$U$138,10,FALSE)) ->  | B164: =IF(E164="","",VLOOKUP('OPĆI DIO'!$C$1,'OPĆI DIO'!$L$4:$U$138,9,FALSE)) ->  | H164: 0 | I164: 0 | K164: =IF(C164="","",'OPĆI DIO'!$C$1) -> 
A165: =IF(E165="","",VLOOKUP('OPĆI DIO'!$C$1,'OPĆI DIO'!$L$4:$U$138,10,FALSE)) ->  | B165: =IF(E165="","",VLOOKUP('OPĆI DIO'!$C$1,'OPĆI DIO'!$L$4:$U$138,9,FALSE)) ->  | H165: 0 | I165: 0 | K165: =IF(C165="","",'OPĆI DIO'!$C$1) -> 
A166: =IF(E166="","",VLOOKUP('OPĆI DIO'!$C$1,'OPĆI DIO'!$L$4:$U$138,10,FALSE)) ->  | B166: =IF(E166="","",VLOOKUP('OPĆI DIO'!$C$1,'OPĆI DIO'!$L$4:$U$138,9,FALSE)) ->  | H166: 0 | I166: 0 | K166: =IF(C166="","",'OPĆI DIO'!$C$1) -> 
A167: =IF(E167="","",VLOOKUP('OPĆI DIO'!$C$1,'OPĆI DIO'!$L$4:$U$138,10,FALSE)) ->  | B167: =IF(E167="","",VLOOKUP('OPĆI DIO'!$C$1,'OPĆI DIO'!$L$4:$U$138,9,FALSE)) ->  | H167: 0 | I167: 0 | K167: =IF(C167="","",'OPĆI DIO'!$C$1) -> 
A168: =IF(E168="","",VLOOKUP('OPĆI DIO'!$C$1,'OPĆI DIO'!$L$4:$U$138,10,FALSE)) ->  | B168: =IF(E168="","",VLOOKUP('OPĆI DIO'!$C$1,'OPĆI DIO'!$L$4:$U$138,9,FALSE)) ->  | H168: 0 | I168: 0 | K168: =IF(C168="","",'OPĆI DIO'!$C$1) -> 
A169: =IF(E169="","",VLOOKUP('OPĆI DIO'!$C$1,'OPĆI DIO'!$L$4:$U$138,10,FALSE)) ->  | B169: =IF(E169="","",VLOOKUP('OPĆI DIO'!$C$1,'OPĆI DIO'!$L$4:$U$138,9,FALSE)) ->  | H169: 0 | I169: 0 | K169: =IF(C169="","",'OPĆI DIO'!$C$1) -> 
A170: =IF(E170="","",VLOOKUP('OPĆI DIO'!$C$1,'OPĆI DIO'!$L$4:$U$138,10,FALSE)) ->  | B170: =IF(E170="","",VLOOKUP('OPĆI DIO'!$C$1,'OPĆI DIO'!$L$4:$U$138,9,FALSE)) ->  | H170: 0 | I170: 0 | K170: =IF(C170="","",'OPĆI DIO'!$C$1) -> 
A171: =IF(E171="","",VLOOKUP('OPĆI DIO'!$C$1,'OPĆI DIO'!$L$4:$U$138,10,FALSE)) ->  | B171: =IF(E171="","",VLOOKUP('OPĆI DIO'!$C$1,'OPĆI DIO'!$L$4:$U$138,9,FALSE)) ->  | H171: 0 | I171: 0 | K171: =IF(C171="","",'OPĆI DIO'!$C$1) -> 
A172: =IF(E172="","",VLOOKUP('OPĆI DIO'!$C$1,'OPĆI DIO'!$L$4:$U$138,10,FALSE)) ->  | B172: =IF(E172="","",VLOOKUP('OPĆI DIO'!$C$1,'OPĆI DIO'!$L$4:$U$138,9,FALSE)) ->  | H172: 0 | I172: 0 | K172: =IF(C172="","",'OPĆI DIO'!$C$1) -> 
A173: =IF(E173="","",VLOOKUP('OPĆI DIO'!$C$1,'OPĆI DIO'!$L$4:$U$138,10,FALSE)) ->  | B173: =IF(E173="","",VLOOKUP('OPĆI DIO'!$C$1,'OPĆI DIO'!$L$4:$U$138,9,FALSE)) ->  | H173: 0 | I173: 0 | K173: =IF(C173="","",'OPĆI DIO'!$C$1) -> 
A174: =IF(E174="","",VLOOKUP('OPĆI DIO'!$C$1,'OPĆI DIO'!$L$4:$U$138,10,FALSE)) ->  | B174: =IF(E174="","",VLOOKUP('OPĆI DIO'!$C$1,'OPĆI DIO'!$L$4:$U$138,9,FALSE)) ->  | H174: 0 | I174: 0 | K174: =IF(C174="","",'OPĆI DIO'!$C$1) -> 
A175: =IF(E175="","",VLOOKUP('OPĆI DIO'!$C$1,'OPĆI DIO'!$L$4:$U$138,10,FALSE)) ->  | B175: =IF(E175="","",VLOOKUP('OPĆI DIO'!$C$1,'OPĆI DIO'!$L$4:$U$138,9,FALSE)) ->  | H175: 0 | I175: 0 | K175: =IF(C175="","",'OPĆI DIO'!$C$1) -> 
A176: =IF(E176="","",VLOOKUP('OPĆI DIO'!$C$1,'OPĆI DIO'!$L$4:$U$138,10,FALSE)) ->  | B176: =IF(E176="","",VLOOKUP('OPĆI DIO'!$C$1,'OPĆI DIO'!$L$4:$U$138,9,FALSE)) ->  | H176: 0 | I176: 0 | K176: =IF(C176="","",'OPĆI DIO'!$C$1) -> 
A177: =IF(E177="","",VLOOKUP('OPĆI DIO'!$C$1,'OPĆI DIO'!$L$4:$U$138,10,FALSE)) ->  | B177: =IF(E177="","",VLOOKUP('OPĆI DIO'!$C$1,'OPĆI DIO'!$L$4:$U$138,9,FALSE)) ->  | H177: 0 | I177: 0 | K177: =IF(C177="","",'OPĆI DIO'!$C$1) -> 
A178: =IF(E178="","",VLOOKUP('OPĆI DIO'!$C$1,'OPĆI DIO'!$L$4:$U$138,10,FALSE)) ->  | B178: =IF(E178="","",VLOOKUP('OPĆI DIO'!$C$1,'OPĆI DIO'!$L$4:$U$138,9,FALSE)) ->  | H178: 0 | I178: 0 | K178: =IF(C178="","",'OPĆI DIO'!$C$1) -> 
A179: =IF(E179="","",VLOOKUP('OPĆI DIO'!$C$1,'OPĆI DIO'!$L$4:$U$138,10,FALSE)) ->  | B179: =IF(E179="","",VLOOKUP('OPĆI DIO'!$C$1,'OPĆI DIO'!$L$4:$U$138,9,FALSE)) ->  | H179: 0 | I179: 0 | K179: =IF(C179="","",'OPĆI DIO'!$C$1) -> 
A180: =IF(E180="","",VLOOKUP('OPĆI DIO'!$C$1,'OPĆI DIO'!$L$4:$U$138,10,FALSE)) ->  | B180: =IF(E180="","",VLOOKUP('OPĆI DIO'!$C$1,'OPĆI DIO'!$L$4:$U$138,9,FALSE)) ->  | H180: 0 | I180: 0 | K180: =IF(C180="","",'OPĆI DIO'!$C$1) -> 
A181: =IF(E181="","",VLOOKUP('OPĆI DIO'!$C$1,'OPĆI DIO'!$L$4:$U$138,10,FALSE)) ->  | B181: =IF(E181="","",VLOOKUP('OPĆI DIO'!$C$1,'OPĆI DIO'!$L$4:$U$138,9,FALSE)) ->  | H181: 0 | I181: 0 | K181: =IF(C181="","",'OPĆI DIO'!$C$1) -> 
A182: =IF(E182="","",VLOOKUP('OPĆI DIO'!$C$1,'OPĆI DIO'!$L$4:$U$138,10,FALSE)) ->  | B182: =IF(E182="","",VLOOKUP('OPĆI DIO'!$C$1,'OPĆI DIO'!$L$4:$U$138,9,FALSE)) ->  | H182: 0 | I182: 0 | K182: =IF(C182="","",'OPĆI DIO'!$C$1) -> 
A183: =IF(E183="","",VLOOKUP('OPĆI DIO'!$C$1,'OPĆI DIO'!$L$4:$U$138,10,FALSE)) ->  | B183: =IF(E183="","",VLOOKUP('OPĆI DIO'!$C$1,'OPĆI DIO'!$L$4:$U$138,9,FALSE)) ->  | H183: 0 | I183: 0 | K183: =IF(C183="","",'OPĆI DIO'!$C$1) -> 
A184: =IF(E184="","",VLOOKUP('OPĆI DIO'!$C$1,'OPĆI DIO'!$L$4:$U$138,10,FALSE)) ->  | B184: =IF(E184="","",VLOOKUP('OPĆI DIO'!$C$1,'OPĆI DIO'!$L$4:$U$138,9,FALSE)) ->  | H184: 0 | I184: 0 | K184: =IF(C184="","",'OPĆI DIO'!$C$1) -> 
A185: =IF(E185="","",VLOOKUP('OPĆI DIO'!$C$1,'OPĆI DIO'!$L$4:$U$138,10,FALSE)) ->  | B185: =IF(E185="","",VLOOKUP('OPĆI DIO'!$C$1,'OPĆI DIO'!$L$4:$U$138,9,FALSE)) ->  | H185: 0 | I185: 0 | K185: =IF(C185="","",'OPĆI DIO'!$C$1) -> 
A186: =IF(E186="","",VLOOKUP('OPĆI DIO'!$C$1,'OPĆI DIO'!$L$4:$U$138,10,FALSE)) ->  | B186: =IF(E186="","",VLOOKUP('OPĆI DIO'!$C$1,'OPĆI DIO'!$L$4:$U$138,9,FALSE)) ->  | H186: 0 | I186: 0 | K186: =IF(C186="","",'OPĆI DIO'!$C$1) -> 
A187: =IF(E187="","",VLOOKUP('OPĆI DIO'!$C$1,'OPĆI DIO'!$L$4:$U$138,10,FALSE)) ->  | B187: =IF(E187="","",VLOOKUP('OPĆI DIO'!$C$1,'OPĆI DIO'!$L$4:$U$138,9,FALSE)) ->  | H187: 0 | I187: 0 | K187: =IF(C187="","",'OPĆI DIO'!$C$1) -> 
A188: =IF(E188="","",VLOOKUP('OPĆI DIO'!$C$1,'OPĆI DIO'!$L$4:$U$138,10,FALSE)) ->  | B188: =IF(E188="","",VLOOKUP('OPĆI DIO'!$C$1,'OPĆI DIO'!$L$4:$U$138,9,FALSE)) ->  | H188: 0 | I188: 0 | K188: =IF(C188="","",'OPĆI DIO'!$C$1) -> 
A189: =IF(E189="","",VLOOKUP('OPĆI DIO'!$C$1,'OPĆI DIO'!$L$4:$U$138,10,FALSE)) ->  | B189: =IF(E189="","",VLOOKUP('OPĆI DIO'!$C$1,'OPĆI DIO'!$L$4:$U$138,9,FALSE)) ->  | H189: 0 | I189: 0 | K189: =IF(C189="","",'OPĆI DIO'!$C$1) -> 
A190: =IF(E190="","",VLOOKUP('OPĆI DIO'!$C$1,'OPĆI DIO'!$L$4:$U$138,10,FALSE)) ->  | B190: =IF(E190="","",VLOOKUP('OPĆI DIO'!$C$1,'OPĆI DIO'!$L$4:$U$138,9,FALSE)) ->  | H190: 0 | I190: 0 | K190: =IF(C190="","",'OPĆI DIO'!$C$1) -> 
A191: =IF(E191="","",VLOOKUP('OPĆI DIO'!$C$1,'OPĆI DIO'!$L$4:$U$138,10,FALSE)) ->  | B191: =IF(E191="","",VLOOKUP('OPĆI DIO'!$C$1,'OPĆI DIO'!$L$4:$U$138,9,FALSE)) ->  | H191: 0 | I191: 0 | K191: =IF(C191="","",'OPĆI DIO'!$C$1) -> 
A192: =IF(E192="","",VLOOKUP('OPĆI DIO'!$C$1,'OPĆI DIO'!$L$4:$U$138,10,FALSE)) ->  | B192: =IF(E192="","",VLOOKUP('OPĆI DIO'!$C$1,'OPĆI DIO'!$L$4:$U$138,9,FALSE)) ->  | H192: 0 | I192: 0 | K192: =IF(C192="","",'OPĆI DIO'!$C$1) -> 
A193: =IF(E193="","",VLOOKUP('OPĆI DIO'!$C$1,'OPĆI DIO'!$L$4:$U$138,10,FALSE)) ->  | B193: =IF(E193="","",VLOOKUP('OPĆI DIO'!$C$1,'OPĆI DIO'!$L$4:$U$138,9,FALSE)) ->  | H193: 0 | I193: 0 | K193: =IF(C193="","",'OPĆI DIO'!$C$1) -> 
A194: =IF(E194="","",VLOOKUP('OPĆI DIO'!$C$1,'OPĆI DIO'!$L$4:$U$138,10,FALSE)) ->  | B194: =IF(E194="","",VLOOKUP('OPĆI DIO'!$C$1,'OPĆI DIO'!$L$4:$U$138,9,FALSE)) ->  | H194: 0 | I194: 0 | K194: =IF(C194="","",'OPĆI DIO'!$C$1) -> 
A195: =IF(E195="","",VLOOKUP('OPĆI DIO'!$C$1,'OPĆI DIO'!$L$4:$U$138,10,FALSE)) ->  | B195: =IF(E195="","",VLOOKUP('OPĆI DIO'!$C$1,'OPĆI DIO'!$L$4:$U$138,9,FALSE)) ->  | H195: 0 | I195: 0 | K195: =IF(C195="","",'OPĆI DIO'!$C$1) -> 
A196: =IF(E196="","",VLOOKUP('OPĆI DIO'!$C$1,'OPĆI DIO'!$L$4:$U$138,10,FALSE)) ->  | B196: =IF(E196="","",VLOOKUP('OPĆI DIO'!$C$1,'OPĆI DIO'!$L$4:$U$138,9,FALSE)) ->  | H196: 0 | I196: =+G196+H196 -> 0 | K196: =IF(C196="","",'OPĆI DIO'!$C$1) ->  | L196: =LEFT(E196,2) ->  | M196: =LEFT(E196,3) -> 
A197: =IF(E197="","",VLOOKUP('OPĆI DIO'!$C$1,'OPĆI DIO'!$L$4:$U$138,10,FALSE)) ->  | B197: =IF(E197="","",VLOOKUP('OPĆI DIO'!$C$1,'OPĆI DIO'!$L$4:$U$138,9,FALSE)) ->  | H197: 0 | I197: 0 | K197: =IF(C197="","",'OPĆI DIO'!$C$1) -> 
A198: =IF(E198="","",VLOOKUP('OPĆI DIO'!$C$1,'OPĆI DIO'!$L$4:$U$138,10,FALSE)) ->  | B198: =IF(E198="","",VLOOKUP('OPĆI DIO'!$C$1,'OPĆI DIO'!$L$4:$U$138,9,FALSE)) ->  | C198: =IFERROR(VLOOKUP(E198,$R$6:$U$113,3,FALSE),"") ->  | D198: =IFERROR(VLOOKUP(E198,$R$6:$U$113,4,FALSE),"") ->  | F198: =IFERROR(VLOOKUP(E198,$R$6:$U$113,2,FALSE),"") ->  | H198: 0 | I198: 0 | K198: =IF(C198="","",'OPĆI DIO'!$C$1) -> 
A199: =IF(E199="","",VLOOKUP('OPĆI DIO'!$C$1,'OPĆI DIO'!$L$4:$U$138,10,FALSE)) ->  | B199: =IF(E199="","",VLOOKUP('OPĆI DIO'!$C$1,'OPĆI DIO'!$L$4:$U$138,9,FALSE)) ->  | H199: 0 | I199: 0 | K199: =IF(C199="","",'OPĆI DIO'!$C$1) -> 
A200: =IF(E200="","",VLOOKUP('OPĆI DIO'!$C$1,'OPĆI DIO'!$L$4:$U$138,10,FALSE)) ->  | B200: =IF(E200="","",VLOOKUP('OPĆI DIO'!$C$1,'OPĆI DIO'!$L$4:$U$138,9,FALSE)) ->  | H200: 0 | I200: 0 | K200: =IF(C200="","",'OPĆI DIO'!$C$1) -> 
... 4299 more rows

Sheet Unos rashoda i izdataka
A1: Plan za unos u SAP - rashodi i izdaci | L1: u EUR
A2: GLAVA | B2: OPIS GLAVE | C2: IZVOR (odaberite) | D2: OPIS IZVORA | E2: Stavka (odaberite) | F2: OPIS STAVKE | G2: AKTIVNOST (odaberite) | H2: OPIS AKTIVNOSTI | I2: FP | J2: PLAN 2025. | K2: Povećanje iznos u plusu / smanjenje iznos u minusu | L2: NOVI PLAN 2025. | M2: Primatelj prijenosa | N2: Ustanova | O2: left3 | P2: left2 | Q2: leftIzvor | R2: mid | S2: left1
A3: =IF(E3="","",VLOOKUP('OPĆI DIO'!$C$1,'OPĆI DIO'!$L$4:$U$138,10,FALSE)) -> 08006 | B3: =IF(E3="","",VLOOKUP('OPĆI DIO'!$C$1,'OPĆI DIO'!$L$4:$U$138,9,FALSE)) -> Sveučilišta i veleučilišta u Republici Hrvatskoj | C3: 11 | D3: =IFERROR(VLOOKUP(C3,$T$6:$U$23,2,FALSE),"") -> Opći prihodi i primici | E3: 3111 | F3: =IFERROR(VLOOKUP(E3,$W$5:$Y$129,2,FALSE),"") -> Plaće za redovan rad | G3: A621002 | H3: =IFERROR(VLOOKUP(G3,$AC$6:$AD$353,2,FALSE),"") -> REDOVNA DJELATNOST SVEUČILIŠTA U RIJECI | I3: =IFERROR(VLOOKUP(G3,$AC$6:$AG$353,3,FALSE),"") -> 0942 | J3: 2,345,490 | K3: 127,853 | L3: =+J3+K3 -> 2,473,343 | N3: =IF(C3="","",'OPĆI DIO'!$C$1) -> 38454 SVEUČILIŠTE U RIJECI - AKADEMIJA PRIMJENJENIH UMJETNOSTI | O3: =LEFT(E3,3) -> 311 | P3: =LEFT(E3,2) -> 31 | Q3: =LEFT(C3,3) -> 11 | R3: =IF(S3="5",0,MID(I3,2,2)) -> 94 | S3: =LEFT(E3,1) -> 3
A4: =IF(E4="","",VLOOKUP('OPĆI DIO'!$C$1,'OPĆI DIO'!$L$4:$U$138,10,FALSE)) -> 08006 | B4: =IF(E4="","",VLOOKUP('OPĆI DIO'!$C$1,'OPĆI DIO'!$L$4:$U$138,9,FALSE)) -> Sveučilišta i veleučilišta u Republici Hrvatskoj | C4: 11 | D4: =IFERROR(VLOOKUP(C4,$T$6:$U$23,2,FALSE),"") -> Opći prihodi i primici | E4: 3132 | F4: Doprinosi za obvezno zdravstveno osiguranje | G4: A621002 | H4: =IFERROR(VLOOKUP(G4,$AC$6:$AD$353,2,FALSE),"") -> REDOVNA DJELATNOST SVEUČILIŠTA U RIJECI | I4: =IFERROR(VLOOKUP(G4,$AC$6:$AG$353,3,FALSE),"") -> 0942 | J4: 382,375 | K4: 25,784 | L4: =+J4+K4 -> 408,159 | N4: =IF(C4="","",'OPĆI DIO'!$C$1) -> 38454 SVEUČILIŠTE U RIJECI - AKADEMIJA PRIMJENJENIH UMJETNOSTI | O4: =LEFT(E4,3) -> 313 | P4: =LEFT(E4,2) -> 31 | Q4: =LEFT(C4,3) -> 11 | R4: =IF(S4="5",0,MID(I4,2,2)) -> 94 | S4: =LEFT(E4,1) -> 3
A5: =IF(E5="","",VLOOKUP('OPĆI DIO'!$C$1,'OPĆI DIO'!$L$4:$U$138,10,FALSE)) -> 08006 | B5: =IF(E5="","",VLOOKUP('OPĆI DIO'!$C$1,'OPĆI DIO'!$L$4:$U$138,9,FALSE)) -> Sveučilišta i veleučilišta u Republici Hrvatskoj | C5: 11 | D5: Opći prihodi i primici | E5: 3121 | F5: Ostali rashodi za zaposlene | G5: A621002 | H5: REDOVNA DJELATNOST SVEUČILIŠTA U RIJECI | I5: 0942 | J5: 60,816 | K5: 4,383 | L5: 65,199 | N5: =IF(C5="","",'OPĆI DIO'!$C$1) -> 38454 SVEUČILIŠTE U RIJECI - AKADEMIJA PRIMJENJENIH UMJETNOSTI | O5: 312 | P5: 31 | Q5: 11 | R5: 94 | S5: 3 | T5: IZVOR | U5: OPIS IZVORA | W5: 3111 | X5: Plaće za redovan rad | Z5: =LEFT(W5,2) -> 31 | AA5: =LEFT(W5,3) -> 311 | AC5: AKTIVNOST | AD5: OPIS AKTIVNOSTI
A6: =IF(E6="","",VLOOKUP('OPĆI DIO'!$C$1,'OPĆI DIO'!$L$4:$U$138,10,FALSE)) -> 08006 | B6: =IF(E6="","",VLOOKUP('OPĆI DIO'!$C$1,'OPĆI DIO'!$L$4:$U$138,9,FALSE)) -> Sveučilišta i veleučilišta u Republici Hrvatskoj | C6: 11 | D6: Opći prihodi i primici | E6: 3212 | F6: Naknade za prijevoz, za rad na terenu i odvojeni život | G6: A621002 | H6: REDOVNA DJELATNOST SVEUČILIŠTA U RIJECI | I6: 0942 | J6: 47,633 | K6: -2,378 | L6: 45,255 | N6: =IF(C6="","",'OPĆI DIO'!$C$1) -> 38454 SVEUČILIŠTE U RIJECI - AKADEMIJA PRIMJENJENIH UMJETNOSTI | O6: 321 | P6: 32 | Q6: 11 | R6: 94 | S6: 3 | T6: 11 | U6: Opći prihodi i primici | W6: 3112 | X6: Plaće u naravi | Z6: =LEFT(W6,2) -> 31 | AA6: =LEFT(W6,3) -> 311 | AC6: NOVA AKT | AD6: NOVA AKT | AE6: NOVA AKT | AF6: NOVA AKT | AG6: NOVA AKT | AH6: NOVA AKT
A7: =IF(E7="","",VLOOKUP('OPĆI DIO'!$C$1,'OPĆI DIO'!$L$4:$U$138,10,FALSE)) -> 08006 | B7: =IF(E7="","",VLOOKUP('OPĆI DIO'!$C$1,'OPĆI DIO'!$L$4:$U$138,9,FALSE)) -> Sveučilišta i veleučilišta u Republici Hrvatskoj | C7: 11 | D7: Opći prihodi i primici | E7: 3236 | F7: Zdravstvene i veterinarske usluge | G7: A621002 | H7: REDOVNA DJELATNOST SVEUČILIŠTA U RIJECI | I7: 0942 | J7: 3,503 | K7: -860 | L7: 2,643 | N7: =IF(C7="","",'OPĆI DIO'!$C$1) -> 38454 SVEUČILIŠTE U RIJECI - AKADEMIJA PRIMJENJENIH UMJETNOSTI | O7: 323 | P7: 32 | Q7: 11 | R7: 94 | S7: 3 | T7: 12 | U7: Sredstva učešća za pomoći | W7: 3113 | X7: Plaće za prekovremeni rad | Z7: =LEFT(W7,2) -> 31 | AA7: =LEFT(W7,3) -> 311 | AC7: A557043 | AD7: NACIONALNO VIJEĆE ZA ODGOJ I OBRAZOVANJE | AE7: 0970 | AF7: Istraživanje i razvoj obrazovanja | AG7: 09 | AH7: 091
A8: =IF(E8="","",VLOOKUP('OPĆI DIO'!$C$1,'OPĆI DIO'!$L$4:$U$138,10,FALSE)) -> 08006 | B8: =IF(E8="","",VLOOKUP('OPĆI DIO'!$C$1,'OPĆI DIO'!$L$4:$U$138,9,FALSE)) -> Sveučilišta i veleučilišta u Republici Hrvatskoj | C8: 11 | D8: Opći prihodi i primici | E8: 3295 | F8: Pristojbe i naknade | G8: A621002 | H8: REDOVNA DJELATNOST SVEUČILIŠTA U RIJECI | I8: 0942 | J8: 3,599 | K8: 968 | L8: 4,567 | N8: =IF(C8="","",'OPĆI DIO'!$C$1) -> 38454 SVEUČILIŠTE U RIJECI - AKADEMIJA PRIMJENJENIH UMJETNOSTI | O8: 329 | P8: 32 | Q8: 11 | R8: 94 | S8: 3 | T8: 31 | U8: Vlastiti prihodi | W8: 3114 | X8: Plaće za posebne uvjete rada | Z8: =LEFT(W8,2) -> 31 | AA8: =LEFT(W8,3) -> 311 | AC8: A558047 | AD8: POLITIKA ZA MLADE | AE8: 1040 | AF8: Obitelj i djeca | AG8: 01 | AH8: 015
A9: =IF(E9="","",VLOOKUP('OPĆI DIO'!$C$1,'OPĆI DIO'!$L$4:$U$138,10,FALSE)) -> 08006 | B9: =IF(E9="","",VLOOKUP('OPĆI DIO'!$C$1,'OPĆI DIO'!$L$4:$U$138,9,FALSE)) -> Sveučilišta i veleučilišta u Republici Hrvatskoj | C9: 11 | D9: Opći prihodi i primici | E9: 3114 | F9: Plaće za posebne uvjete rada | G9: A621002 | H9: REDOVNA DJELATNOST SVEUČILIŠTA U RIJECI | I9: 0942 | J9: 19,898 | K9: -867 | L9: 19,031 | N9: =IF(C9="","",'OPĆI DIO'!$C$1) -> 38454 SVEUČILIŠTE U RIJECI - AKADEMIJA PRIMJENJENIH UMJETNOSTI | O9: 311 | P9: 31 | Q9: 11 | R9: 94 | S9: 3 | T9: 41 | U9: Prihodi od igara na sreću | W9: 3121 | X9: Ostali rashodi za zaposlene | Z9: =LEFT(W9,2) -> 31 | AA9: =LEFT(W9,3) -> 312 | AC9: A558053 | AD9: POTPORA ZA PROGRAME USMJERENE MLADIMA | AE9: 1040 | AF9: Obitelj i djeca | AG9: 09 | AH9: 097
A10: =IF(E10="","",VLOOKUP('OPĆI DIO'!$C$1,'OPĆI DIO'!$L$4:$U$138,10,FALSE)) -> 08006 | B10: =IF(E10="","",VLOOKUP('OPĆI DIO'!$C$1,'OPĆI DIO'!$L$4:$U$138,9,FALSE)) -> Sveučilišta i veleučilišta u Republici Hrvatskoj | C10: 11 | D10: Opći prihodi i primici | E10: 3237 | F10: Intelektualne i osobne usluge | G10: A621038 | H10: PROGRAMI VJEŽBAONICA VISOKIH UČILIŠTA | I10: 0942 | J10: 1,162 | K10: -153 | L10: 1,009 | N10: =IF(C10="","",'OPĆI DIO'!$C$1) -> 38454 SVEUČILIŠTE U RIJECI - AKADEMIJA PRIMJENJENIH UMJETNOSTI | O10: 323 | P10: 32 | Q10: 11 | R10: 94 | S10: 3 | T10: 43 | U10: Ostali prihodi za posebne namjene | W10: 3132 | X10: Doprinosi za obvezno zdravstveno osiguranje | Z10: =LEFT(W10,2) -> 31 | AA10: =LEFT(W10,3) -> 313 | AC10: A577000 | AD10: ADMINISTRACIJA I UPRAVLJANJE | AE10: 0970 | AF10: Istraživanje i razvoj obrazovanja | AG10: 09 | AH10: 097
A11: =IF(E11="","",VLOOKUP('OPĆI DIO'!$C$1,'OPĆI DIO'!$L$4:$U$138,10,FALSE)) -> 08006 | B11: =IF(E11="","",VLOOKUP('OPĆI DIO'!$C$1,'OPĆI DIO'!$L$4:$U$138,9,FALSE)) -> Sveučilišta i veleučilišta u Republici Hrvatskoj | C11: 11 | D11: Opći prihodi i primici | E11: 3211 | F11: Službena putovanja | G11: A622122 | H11: PROGRAMSKO FINANCIRANJE JAVNIH VISOKIH UČILIŠTA | I11: 0942 | J11: 8,000 | K11: -4,000 | L11: 4,000 | N11: =IF(C11="","",'OPĆI DIO'!$C$1) -> 38454 SVEUČILIŠTE U RIJECI - AKADEMIJA PRIMJENJENIH UMJETNOSTI | O11: 321 | P11: 32 | Q11: 11 | R11: 94 | S11: 3 | T11: 51 | U11: Pomoći EU | W11: 3211 | X11: Službena putovanja | Z11: 32 | AA11: 321 | AC11: A577000 | AD11: ADMINISTRACIJA I UPRAVLJANJE | AE11: 0980 | AF11: Usluge obrazovanja koje nisu drugdje svrstane | AG11: 09 | AH11: 098
A12: =IF(E12="","",VLOOKUP('OPĆI DIO'!$C$1,'OPĆI DIO'!$L$4:$U$138,10,FALSE)) -> 08006 | B12: =IF(E12="","",VLOOKUP('OPĆI DIO'!$C$1,'OPĆI DIO'!$L$4:$U$138,9,FALSE)) -> Sveučilišta i veleučilišta u Republici Hrvatskoj | C12: 11 | D12: Opći prihodi i primici | E12: 3213 | F12: Stručno usavršavanje zaposlenika | G12: A622122 | H12: PROGRAMSKO FINANCIRANJE JAVNIH VISOKIH UČILIŠTA | I12: 0942 | J12: 8,000 | K12: -6,000 | L12: 2,000 | N12: =IF(C12="","",'OPĆI DIO'!$C$1) -> 38454 SVEUČILIŠTE U RIJECI - AKADEMIJA PRIMJENJENIH UMJETNOSTI | O12: 321 | P12: 32 | Q12: 11 | R12: 94 | S12: 3 | T12: 52 | U12: Ostale pomoći | W12: 3212 | X12: Naknade za prijevoz, za rad na terenu i odvojeni život | Z12: 32 | AA12: 321 | AC12: A577004 | AD12: PROVEDBA KURIKULARNE REFORME | AE12: 0970 | AF12: Istraživanje i razvoj obrazovanja | AG12: 09 | AH12: 097
A13: =IF(E13="","",VLOOKUP('OPĆI DIO'!$C$1,'OPĆI DIO'!$L$4:$U$138,10,FALSE)) -> 08006 | B13: =IF(E13="","",VLOOKUP('OPĆI DIO'!$C$1,'OPĆI DIO'!$L$4:$U$138,9,FALSE)) -> Sveučilišta i veleučilišta u Republici Hrvatskoj | C13: 11 | D13: Opći prihodi i primici | E13: 3214 | F13: Ostale naknade troškova zaposlenima | G13: A622122 | H13: PROGRAMSKO FINANCIRANJE JAVNIH VISOKIH UČILIŠTA | I13: 0942 | J13: 2,000 | K13: -1,000 | L13: 1,000 | N13: =IF(C13="","",'OPĆI DIO'!$C$1) -> 38454 SVEUČILIŠTE U RIJECI - AKADEMIJA PRIMJENJENIH UMJETNOSTI | O13: 321 | P13: 32 | Q13: 11 | R13: 94 | S13: 3 | T13: 552 | U13: Švicarski instrument | W13: 3213 | X13: Stručno usavršavanje zaposlenika | Z13: 32 | AA13: 321 | AC13: A577012 | AD13: OBRAZOVANJE DJECE HRVATSKIH GRAĐANA U INOZEMSTVU | AE13: 0970 | AF13: Istraživanje i razvoj obrazovanja | AG13: 09 | AH13: 097
A14: =IF(E14="","",VLOOKUP('OPĆI DIO'!$C$1,'OPĆI DIO'!$L$4:$U$138,10,FALSE)) -> 08006 | B14: =IF(E14="","",VLOOKUP('OPĆI DIO'!$C$1,'OPĆI DIO'!$L$4:$U$138,9,FALSE)) -> Sveučilišta i veleučilišta u Republici Hrvatskoj | C14: 11 | D14: Opći prihodi i primici | E14: 3221 | F14: Uredski materijal i ostali materijalni rashodi | G14: A622122 | H14: PROGRAMSKO FINANCIRANJE JAVNIH VISOKIH UČILIŠTA | I14: 0942 | J14: 20,350 | K14: -4,000 | L14: 16,350 | N14: =IF(C14="","",'OPĆI DIO'!$C$1) -> 38454 SVEUČILIŠTE U RIJECI - AKADEMIJA PRIMJENJENIH UMJETNOSTI | O14: 322 | P14: 32 | Q14: 11 | R14: 94 | S14: 3 | T14: 559 | U14: Ostale refundacije iz pomoći EU | W14: 3214 | X14: Ostale naknade troškova zaposlenima | Z14: 32 | AA14: 321 | AC14: A577015 | AD14: DRŽAVNE NAGRADE ZA IZUZETNE REZULTATE U OBRAZOVANJU I TEHNIČKOJ KULTURI | AE14: 0942 | AF14: Drugi stupanj visoke naobrazbe | AG14: 09 | AH14: 094
A15: =IF(E15="","",VLOOKUP('OPĆI DIO'!$C$1,'OPĆI DIO'!$L$4:$U$138,10,FALSE)) -> 08006 | B15: =IF(E15="","",VLOOKUP('OPĆI DIO'!$C$1,'OPĆI DIO'!$L$4:$U$138,9,FALSE)) -> Sveučilišta i veleučilišta u Republici Hrvatskoj | C15: 11 | D15: Opći prihodi i primici | E15: 3222 | F15: Materijal i sirovine | G15: A622122 | H15: PROGRAMSKO FINANCIRANJE JAVNIH VISOKIH UČILIŠTA | I15: 0942 | J15: 2,000 | K15: 0 | L15: 2,000 | N15: =IF(C15="","",'OPĆI DIO'!$C$1) -> 38454 SVEUČILIŠTE U RIJECI - AKADEMIJA PRIMJENJENIH UMJETNOSTI | O15: 322 | P15: 32 | Q15: 11 | R15: 94 | S15: 3 | T15: 561 | U15: Europski socijalni fond (ESF) | W15: 3221 | X15: Uredski materijal i ostali materijalni rashodi | Z15: 32 | AA15: 322 | AC15: A577016 | AD15: PREVENCIJA NASILJA I OVISNOSTI | AE15: 0912 | AF15: Osnovno obrazovanje | AG15: 09 | AH15: 091
A16: =IF(E16="","",VLOOKUP('OPĆI DIO'!$C$1,'OPĆI DIO'!$L$4:$U$138,10,FALSE)) -> 08006 | B16: =IF(E16="","",VLOOKUP('OPĆI DIO'!$C$1,'OPĆI DIO'!$L$4:$U$138,9,FALSE)) -> Sveučilišta i veleučilišta u Republici Hrvatskoj | C16: 11 | D16: Opći prihodi i primici | E16: 3223 | F16: Energija | G16: A622122 | H16: PROGRAMSKO FINANCIRANJE JAVNIH VISOKIH UČILIŠTA | I16: 0942 | J16: 42,000 | K16: 2,000 | L16: 44,000 | N16: =IF(C16="","",'OPĆI DIO'!$C$1) -> 38454 SVEUČILIŠTE U RIJECI - AKADEMIJA PRIMJENJENIH UMJETNOSTI | O16: 322 | P16: 32 | Q16: 11 | R16: 94 | S16: 3 | T16: 563 | U16: Europski fond za regionalni razvoj (ERDF) | W16: 3222 | X16: Materijal i sirovine | Z16: 32 | AA16: 322 | AC16: A577028 | AD16: POTICAJI HRVATSKOJ ZAJEDNICI TEHNIČKE KULTURE | AE16: 0820 | AF16: Službe kulture | AG16: 08 | AH16: 082
A17: =IF(E17="","",VLOOKUP('OPĆI DIO'!$C$1,'OPĆI DIO'!$L$4:$U$138,10,FALSE)) -> 08006 | B17: =IF(E17="","",VLOOKUP('OPĆI DIO'!$C$1,'OPĆI DIO'!$L$4:$U$138,9,FALSE)) -> Sveučilišta i veleučilišta u Republici Hrvatskoj | C17: 11 | D17: Opći prihodi i primici | E17: 3224 | F17: Materijal i dijelovi za tekuće i investicijsko održavanje | G17: A622122 | H17: PROGRAMSKO FINANCIRANJE JAVNIH VISOKIH UČILIŠTA | I17: 0942 | J17: 14,000 | K17: -2,000 | L17: 12,000 | N17: =IF(C17="","",'OPĆI DIO'!$C$1) -> 38454 SVEUČILIŠTE U RIJECI - AKADEMIJA PRIMJENJENIH UMJETNOSTI | O17: 322 | P17: 32 | Q17: 11 | R17: 94 | S17: 3 | T17: 573 | U17: Instrumenti Europskog gospodarskog prostora i ostali instrumenti | W17: 3223 | X17: Energija | Z17: 32 | AA17: 322 | AC17: A577124 | AD17: HRVATSKA NASTAVA U INOZEMSTVU | AE17: 0970 | AF17: Istraživanje i razvoj obrazovanja | AG17: 09 | AH17: 097
A18: =IF(E18="","",VLOOKUP('OPĆI DIO'!$C$1,'OPĆI DIO'!$L$4:$U$138,10,FALSE)) -> 08006 | B18: =IF(E18="","",VLOOKUP('OPĆI DIO'!$C$1,'OPĆI DIO'!$L$4:$U$138,9,FALSE)) -> Sveučilišta i veleučilišta u Republici Hrvatskoj | C18: 11 | D18: Opći prihodi i primici | E18: 3225 | F18: Sitni inventar i autogume | G18: A622122 | H18: PROGRAMSKO FINANCIRANJE JAVNIH VISOKIH UČILIŠTA | I18: 0942 | J18: 5,000 | K18: -4,000 | L18: 1,000 | N18: =IF(C18="","",'OPĆI DIO'!$C$1) -> 38454 SVEUČILIŠTE U RIJECI - AKADEMIJA PRIMJENJENIH UMJETNOSTI | O18: 322 | P18: 32 | Q18: 11 | R18: 94 | S18: 3 | T18: 581 | U18: Mehanizam za oporavak i otpornost | W18: 3224 | X18: Materijal i dijelovi za tekuće i investicijsko održavanje | Z18: 32 | AA18: 322 | AC18: A577130 | AD18: POTICAJI UDRUGAMA ZA IZVANINSTITUCIONALNI ODGOJ I OBRAZOVANJE DJECE I MLADIH | AE18: 0970 | AF18: Istraživanje i razvoj obrazovanja | AG18: 09 | AH18: 097
A19: =IF(E19="","",VLOOKUP('OPĆI DIO'!$C$1,'OPĆI DIO'!$L$4:$U$138,10,FALSE)) -> 08006 | B19: =IF(E19="","",VLOOKUP('OPĆI DIO'!$C$1,'OPĆI DIO'!$L$4:$U$138,9,FALSE)) -> Sveučilišta i veleučilišta u Republici Hrvatskoj | C19: 11 | D19: Opći prihodi i primici | E19: 3231 | F19: Usluge telefona, interneta, pošte i prijevoza | G19: A622122 | H19: PROGRAMSKO FINANCIRANJE JAVNIH VISOKIH UČILIŠTA | I19: 0942 | J19: 7,000 | K19: -1,000 | L19: 6,000 | N19: =IF(C19="","",'OPĆI DIO'!$C$1) -> 38454 SVEUČILIŠTE U RIJECI - AKADEMIJA PRIMJENJENIH UMJETNOSTI | O19: 323 | P19: 32 | Q19: 11 | R19: 94 | S19: 3 | T19: 61 | U19: Donacije | W19: 3225 | X19: Sitni inventar i autogume | Z19: 32 | AA19: 322 | AC19: A577131 | AD19: POTICAJI OBRAZOVANJA NACIONALNIH MANJINA | AE19: 0970 | AF19: Istraživanje i razvoj obrazovanja | AG19: 09 | AH19: 097
A20: =IF(E20="","",VLOOKUP('OPĆI DIO'!$C$1,'OPĆI DIO'!$L$4:$U$138,10,FALSE)) -> 08006 | B20: =IF(E20="","",VLOOKUP('OPĆI DIO'!$C$1,'OPĆI DIO'!$L$4:$U$138,9,FALSE)) -> Sveučilišta i veleučilišta u Republici Hrvatskoj | C20: 11 | D20: Opći prihodi i primici | E20: 3232 | F20: Usluge tekućeg i investicijskog održavanja | G20: A622122 | H20: PROGRAMSKO FINANCIRANJE JAVNIH VISOKIH UČILIŠTA | I20: 0942 | J20: 10,000 | K20: -3,000 | L20: 7,000 | N20: =IF(C20="","",'OPĆI DIO'!$C$1) -> 38454 SVEUČILIŠTE U RIJECI - AKADEMIJA PRIMJENJENIH UMJETNOSTI | O20: 323 | P20: 32 | Q20: 11 | R20: 94 | S20: 3 | T20: 63 | U20: Inozemne donacije | W20: 3226 | X20: Vojna sredstva za jednokratnu upotrebu | Z20: 32 | AA20: 322 | AC20: A577132 | AD20: POTICANJE MEĐUNARODNE OBRAZOVNE SURADNJE ŠKOLA | AE20: 0970 | AF20: Istraživanje i razvoj obrazovanja | AG20: 09 | AH20: 097
A21: =IF(E21="","",VLOOKUP('OPĆI DIO'!$C$1,'OPĆI DIO'!$L$4:$U$138,10,FALSE)) -> 08006 | B21: =IF(E21="","",VLOOKUP('OPĆI DIO'!$C$1,'OPĆI DIO'!$L$4:$U$138,9,FALSE)) -> Sveučilišta i veleučilišta u Republici Hrvatskoj | C21: 11 | D21: Opći prihodi i primici | E21: 3233 | F21: Usluge promidžbe i informiranja | G21: A622122 | H21: PROGRAMSKO FINANCIRANJE JAVNIH VISOKIH UČILIŠTA | I21: 0942 | J21: 2,000 | K21: 0 | L21: 2,000 | N21: =IF(C21="","",'OPĆI DIO'!$C$1) -> 38454 SVEUČILIŠTE U RIJECI - AKADEMIJA PRIMJENJENIH UMJETNOSTI | O21: 323 | P21: 32 | Q21: 11 | R21: 94 | S21: 3 | T21: 71 | U21: Prihodi od nefin. imovine i nadoknade štete s osnova osig. | W21: 3227 | X21: Službena, radna i zaštitna odjeća i obuća | Z21: 32 | AA21: 322 | AC21: A577133 | AD21: POTICANJE PROGRAMA RADA S DAROVITIM UČENICIMA I STUDENTIMA | AE21: 0912 | AF21: Osnovno obrazovanje | AG21: 09 | AH21: 091
A22: =IF(E22="","",VLOOKUP('OPĆI DIO'!$C$1,'OPĆI DIO'!$L$4:$U$138,10,FALSE)) -> 08006 | B22: =IF(E22="","",VLOOKUP('OPĆI DIO'!$C$1,'OPĆI DIO'!$L$4:$U$138,9,FALSE)) -> Sveučilišta i veleučilišta u Republici Hrvatskoj | C22: 11 | D22: Opći prihodi i primici | E22: 3234 | F22: Komunalne usluge | G22: A622122 | H22: PROGRAMSKO FINANCIRANJE JAVNIH VISOKIH UČILIŠTA | I22: 0942 | J22: 26,000 | K22: 5,000 | L22: 31,000 | N22: =IF(C22="","",'OPĆI DIO'!$C$1) -> 38454 SVEUČILIŠTE U RIJECI - AKADEMIJA PRIMJENJENIH UMJETNOSTI | O22: 323 | P22: 32 | Q22: 11 | R22: 94 | S22: 3 | T22: 810 | U22: Namjenski primici -ostali | W22: 3231 | X22: Usluge telefona, interneta, pošte i prijevoza | Z22: 32 | AA22: 323 | AC22: A577137 | AD22: POSEBNI PROGRAMI OBRAZOVANJA ZA PROVOĐENJE PROGRAMA NACIONALNIH MANJINA | AE22: 0970 | AF22: Istraživanje i razvoj obrazovanja | AG22: 09 | AH22: 097
A23: =IF(E23="","",VLOOKUP('OPĆI DIO'!$C$1,'OPĆI DIO'!$L$4:$U$138,10,FALSE)) -> 08006 | B23: =IF(E23="","",VLOOKUP('OPĆI DIO'!$C$1,'OPĆI DIO'!$L$4:$U$138,9,FALSE)) -> Sveučilišta i veleučilišta u Republici Hrvatskoj | C23: 11 | D23: Opći prihodi i primici | E23: 3235 | F23: Zakupnine i najamnine | G23: A622122 | H23: PROGRAMSKO FINANCIRANJE JAVNIH VISOKIH UČILIŠTA | I23: 0942 | J23: 47,000 | K23: 5,000 | L23: 52,000 | N23: =IF(C23="","",'OPĆI DIO'!$C$1) -> 38454 SVEUČILIŠTE U RIJECI - AKADEMIJA PRIMJENJENIH UMJETNOSTI | O23: 323 | P23: 32 | Q23: 11 | R23: 94 | S23: 3 | T23: 815 | U23: Namjenski primitak - NPOO | W23: 3232 | X23: Usluge tekućeg i investicijskog održavanja | Z23: 32 | AA23: 323 | AC23: A578041 | AD23: POMOĆNICI U NASTAVI ZA DJECU S TEŠKOĆAMA U RAZVOJU | AE23: 0970 | AF23: Istraživanje i razvoj obrazovanja | AG23: 09 | AH23: 098
A24: =IF(E24="","",VLOOKUP('OPĆI DIO'!$C$1,'OPĆI DIO'!$L$4:$U$138,10,FALSE)) -> 08006 | B24: =IF(E24="","",VLOOKUP('OPĆI DIO'!$C$1,'OPĆI DIO'!$L$4:$U$138,9,FALSE)) -> Sveučilišta i veleučilišta u Republici Hrvatskoj | C24: 11 | D24: Opći prihodi i primici | E24: 3236 | F24: Zdravstvene i veterinarske usluge | G24: A622122 | H24: PROGRAMSKO FINANCIRANJE JAVNIH VISOKIH UČILIŠTA | I24: 0942 | J24: 1,000 | K24: 0 | L24: 1,000 | N24: =IF(C24="","",'OPĆI DIO'!$C$1) -> 38454 SVEUČILIŠTE U RIJECI - AKADEMIJA PRIMJENJENIH UMJETNOSTI | O24: 323 | P24: 32 | Q24: 11 | R24: 94 | S24: 3 | W24: 3233 | X24: Usluge promidžbe i informiranja | Z24: 32 | AA24: 323 | AC24: A578042 | AD24: OSIGURANJE UČENIKA I STUDENATA NA PRAKTIČNOJ NASTAVI I STRUČNOJ PRAKSI | AE24: 0980 | AF24: Usluge obrazovanja koje nisu drugdje svrstane | AG24: 09 | AH24: 091
A25: =IF(E25="","",VLOOKUP('OPĆI DIO'!$C$1,'OPĆI DIO'!$L$4:$U$138,10,FALSE)) -> 08006 | B25: =IF(E25="","",VLOOKUP('OPĆI DIO'!$C$1,'OPĆI DIO'!$L$4:$U$138,9,FALSE)) -> Sveučilišta i veleučilišta u Republici Hrvatskoj | C25: 11 | D25: Opći prihodi i primici | E25: 3237 | F25: Intelektualne i osobne usluge | G25: A622122 | H25: PROGRAMSKO FINANCIRANJE JAVNIH VISOKIH UČILIŠTA | I25: 0942 | J25: 120,000 | K25: 17,752 | L25: 137,752 | N25: =IF(C25="","",'OPĆI DIO'!$C$1) -> 38454 SVEUČILIŠTE U RIJECI - AKADEMIJA PRIMJENJENIH UMJETNOSTI | O25: 323 | P25: 32 | Q25: 11 | R25: 94 | S25: 3 | W25: 3234 | X25: Komunalne usluge | Z25: 32 | AA25: 323 | AC25: A578045 | AD25: SUFINANCIRANJE NASTAVNIH MATERIJALA I OPREME ZA UČENIKE OSNOVNIH I SREDNJIH ŠKOLA | AE25: 0970 | AF25: Istraživanje i razvoj obrazovanja | AG25: 09 | AH25: 091
A26: =IF(E26="","",VLOOKUP('OPĆI DIO'!$C$1,'OPĆI DIO'!$L$4:$U$138,10,FALSE)) -> 08006 | B26: =IF(E26="","",VLOOKUP('OPĆI DIO'!$C$1,'OPĆI DIO'!$L$4:$U$138,9,FALSE)) -> Sveučilišta i veleučilišta u Republici Hrvatskoj | C26: 11 | D26: Opći prihodi i primici | E26: 3238 | F26: Računalne usluge | G26: A622122 | H26: PROGRAMSKO FINANCIRANJE JAVNIH VISOKIH UČILIŠTA | I26: 0942 | J26: 30,000 | K26: 9,000 | L26: 39,000 | N26: =IF(C26="","",'OPĆI DIO'!$C$1) -> 38454 SVEUČILIŠTE U RIJECI - AKADEMIJA PRIMJENJENIH UMJETNOSTI | O26: 323 | P26: 32 | Q26: 11 | R26: 94 | S26: 3 | W26: 3235 | X26: Zakupnine i najamnine | Z26: 32 | AA26: 323 | AC26: A578059 | AD26: EUROPSKA MREŽA ŠKOLA - EUROPEAN SCHOOLNET | AE26: 0970 | AF26: Istraživanje i razvoj obrazovanja | AG26: 09 | AH26: 091
A27: =IF(E27="","",VLOOKUP('OPĆI DIO'!$C$1,'OPĆI DIO'!$L$4:$U$138,10,FALSE)) -> 08006 | B27: =IF(E27="","",VLOOKUP('OPĆI DIO'!$C$1,'OPĆI DIO'!$L$4:$U$138,9,FALSE)) -> Sveučilišta i veleučilišta u Republici Hrvatskoj | C27: 11 | D27: Opći prihodi i primici | E27: 3239 | F27: Ostale usluge | G27: A622122 | H27: PROGRAMSKO FINANCIRANJE JAVNIH VISOKIH UČILIŠTA | I27: 0942 | J27: 17,500 | K27: 25,000 | L27: 42,500 | N27: =IF(C27="","",'OPĆI DIO'!$C$1) -> 38454 SVEUČILIŠTE U RIJECI - AKADEMIJA PRIMJENJENIH UMJETNOSTI | O27: 323 | P27: 32 | Q27: 11 | R27: 94 | S27: 3 | W27: 3236 | X27: Zdravstvene i veterinarske usluge | Z27: 32 | AA27: 323 | AC27: A578065 | AD27: ERASMUS+ PROJEKT BAQUAL - BOLJE AKADEMSKE KVALIFIKACIJE KROZ OSIGURAVANJE KVALITETE | AE27: 0970 | AF27: Istraživanje i razvoj obrazovanja | AG27: 09 | AH27: 091
A28: =IF(E28="","",VLOOKUP('OPĆI DIO'!$C$1,'OPĆI DIO'!$L$4:$U$138,10,FALSE)) -> 08006 | B28: =IF(E28="","",VLOOKUP('OPĆI DIO'!$C$1,'OPĆI DIO'!$L$4:$U$138,9,FALSE)) -> Sveučilišta i veleučilišta u Republici Hrvatskoj | C28: 11 | D28: Opći prihodi i primici | E28: 3241 | F28: Naknade troškova osobama izvan radnog odnosa | G28: A622122 | H28: PROGRAMSKO FINANCIRANJE JAVNIH VISOKIH UČILIŠTA | I28: 0942 | J28: 5,000 | K28: 3,000 | L28: 8,000 | N28: =IF(C28="","",'OPĆI DIO'!$C$1) -> 38454 SVEUČILIŠTE U RIJECI - AKADEMIJA PRIMJENJENIH UMJETNOSTI | O28: 324 | P28: 32 | Q28: 11 | R28: 94 | S28: 3 | W28: 3237 | X28: Intelektualne i osobne usluge | Z28: 32 | AA28: 323 | AC28: A578066 | AD28: ERASMUS PLUS - PROJEKT PROFFORMANCE - RAZVOJ SUSTAVA OCJENJIVANJA RADA I NAGRAĐIVANJA PROFESORA NA VISOKIM UČILIŠTIMA | AE28: 0970 | AF28: Istraživanje i razvoj obrazovanja | AG28: 09 | AH28: 097
A29: =IF(E29="","",VLOOKUP('OPĆI DIO'!$C$1,'OPĆI DIO'!$L$4:$U$138,10,FALSE)) -> 08006 | B29: =IF(E29="","",VLOOKUP('OPĆI DIO'!$C$1,'OPĆI DIO'!$L$4:$U$138,9,FALSE)) -> Sveučilišta i veleučilišta u Republici Hrvatskoj | C29: 11 | D29: Opći prihodi i primici | E29: 3292 | F29: Premije osiguranja | G29: A622122 | H29: PROGRAMSKO FINANCIRANJE JAVNIH VISOKIH UČILIŠTA | I29: 0942 | J29: 6,000 | K29: 500 | L29: 6,500 | N29: =IF(C29="","",'OPĆI DIO'!$C$1) -> 38454 SVEUČILIŠTE U RIJECI - AKADEMIJA PRIMJENJENIH UMJETNOSTI | O29: 329 | P29: 32 | Q29: 11 | R29: 94 | S29: 3 | W29: 3238 | X29: Računalne usluge | Z29: 32 | AA29: 323 | AC29: A579004 | AD29: POTICANJE IZVANNASTAVNIH AKTIVNOSTI U OŠ | AE29: 0970 | AF29: Istraživanje i razvoj obrazovanja | AG29: 09 | AH29: 098
A30: =IF(E30="","",VLOOKUP('OPĆI DIO'!$C$1,'OPĆI DIO'!$L$4:$U$138,10,FALSE)) -> 08006 | B30: =IF(E30="","",VLOOKUP('OPĆI DIO'!$C$1,'OPĆI DIO'!$L$4:$U$138,9,FALSE)) -> Sveučilišta i veleučilišta u Republici Hrvatskoj | C30: 11 | D30: Opći prihodi i primici | E30: 3293 | F30: Reprezentacija | G30: A622122 | H30: PROGRAMSKO FINANCIRANJE JAVNIH VISOKIH UČILIŠTA | I30: 0942 | J30: 3,000 | K30: 12,000 | L30: 15,000 | N30: =IF(C30="","",'OPĆI DIO'!$C$1) -> 38454 SVEUČILIŠTE U RIJECI - AKADEMIJA PRIMJENJENIH UMJETNOSTI | O30: 329 | P30: 32 | Q30: 11 | R30: 94 | S30: 3 | W30: 3239 | X30: Ostale usluge | Z30: 32 | AA30: 323 | AC30: A579072 | AD30: POTPORA UČENICIMA RASELJENIMA IZ UKRAJINE | AE30: 0970 | AF30: Istraživanje i razvoj obrazovanja | AG30: 09 | AH30: 097
A31: =IF(E31="","",VLOOKUP('OPĆI DIO'!$C$1,'OPĆI DIO'!$L$4:$U$138,10,FALSE)) -> 08006 | B31: =IF(E31="","",VLOOKUP('OPĆI DIO'!$C$1,'OPĆI DIO'!$L$4:$U$138,9,FALSE)) -> Sveučilišta i veleučilišta u Republici Hrvatskoj | C31: 11 | D31: Opći prihodi i primici | E31: 3295 | F31: Pristojbe i naknade | G31: A622122 | H31: PROGRAMSKO FINANCIRANJE JAVNIH VISOKIH UČILIŠTA | I31: 0942 | J31: 1,000 | K31: 2,500 | L31: 3,500 | N31: =IF(C31="","",'OPĆI DIO'!$C$1) -> 38454 SVEUČILIŠTE U RIJECI - AKADEMIJA PRIMJENJENIH UMJETNOSTI | O31: 329 | P31: 32 | Q31: 11 | R31: 94 | S31: 3 | W31: 3241 | X31: Naknade troškova osobama izvan radnog odnosa | Z31: 32 | AA31: 324 | AC31: A580003 | AD31: POTICANJE IZVANNASTAVNIH AKTIVNOSTI U SREDNJIM ŠKOLAMA I VISOKOŠKOLSKOM OBRAZOVANJU | AE31: 0922 | AF31: Više srednjoškolsko obrazovanje | AG31: 01 | AH31: 015
A32: =IF(E32="","",VLOOKUP('OPĆI DIO'!$C$1,'OPĆI DIO'!$L$4:$U$138,10,FALSE)) -> 08006 | B32: =IF(E32="","",VLOOKUP('OPĆI DIO'!$C$1,'OPĆI DIO'!$L$4:$U$138,9,FALSE)) -> Sveučilišta i veleučilišta u Republici Hrvatskoj | C32: 11 | D32: Opći prihodi i primici | E32: 3299 | F32: Ostali nespomenuti rashodi poslovanja | G32: A622122 | H32: PROGRAMSKO FINANCIRANJE JAVNIH VISOKIH UČILIŠTA | I32: 0942 | J32: 3,000 | K32: 2,000 | L32: 5,000 | N32: =IF(C32="","",'OPĆI DIO'!$C$1) -> 38454 SVEUČILIŠTE U RIJECI - AKADEMIJA PRIMJENJENIH UMJETNOSTI | O32: 329 | P32: 32 | Q32: 11 | R32: 94 | S32: 3 | W32: 3291 | X32: Naknade za rad predstavničkih i izvršnih tijela, povjerensta | Z32: 32 | AA32: 329 | AC32: A676065 | AD32: ERASMUS+ PROJEKT BWSE FORWARD - BOLONJA OČIMA ZAINTERESIRANIH DIONIKA ZA SNAŽNIJU BUDUĆNOST BOLONJSKOG PROCESA | AE32: 0970 | AF32: Istraživanje i razvoj obrazovanja | AG32: 01 | AH32: 015
A33: =IF(E33="","",VLOOKUP('OPĆI DIO'!$C$1,'OPĆI DIO'!$L$4:$U$138,10,FALSE)) -> 08006 | B33: =IF(E33="","",VLOOKUP('OPĆI DIO'!$C$1,'OPĆI DIO'!$L$4:$U$138,9,FALSE)) -> Sveučilišta i veleučilišta u Republici Hrvatskoj | C33: 11 | D33: Opći prihodi i primici | E33: 4221 | F33: Uredska oprema i namještaj | G33: A622122 | H33: PROGRAMSKO FINANCIRANJE JAVNIH VISOKIH UČILIŠTA | I33: 0942 | J33: 5,000 | K33: 15,000 | L33: 20,000 | N33: =IF(C33="","",'OPĆI DIO'!$C$1) -> 38454 SVEUČILIŠTE U RIJECI - AKADEMIJA PRIMJENJENIH UMJETNOSTI | O33: 422 | P33: 42 | Q33: 11 | R33: 94 | S33: 4 | W33: 3292 | X33: Premije osiguranja | Z33: 32 | AA33: 329 | AC33: A676070 | AD33: ERASMUS+ EUROPSKO ISTRAŽIVANJE PRAĆENJA OSOBA S DIPLOMOM (GT-HRVATSKA) | AE33: 0970 | AF33: Istraživanje i razvoj obrazovanja | AG33: 09 | AH33: 097
A34: =IF(E34="","",VLOOKUP('OPĆI DIO'!$C$1,'OPĆI DIO'!$L$4:$U$138,10,FALSE)) -> 08006 | B34: =IF(E34="","",VLOOKUP('OPĆI DIO'!$C$1,'OPĆI DIO'!$L$4:$U$138,9,FALSE)) -> Sveučilišta i veleučilišta u Republici Hrvatskoj | C34: 11 | D34: Opći prihodi i primici | E34: 4222 | F34: Komunikacijska oprema | G34: A622122 | H34: PROGRAMSKO FINANCIRANJE JAVNIH VISOKIH UČILIŠTA | I34: 0942 | J34: 3,000 | K34: 10,000 | L34: 13,000 | N34: =IF(C34="","",'OPĆI DIO'!$C$1) -> 38454 SVEUČILIŠTE U RIJECI - AKADEMIJA PRIMJENJENIH UMJETNOSTI | O34: 422 | P34: 42 | Q34: 11 | R34: 94 | S34: 4 | W34: 3293 | X34: Reprezentacija | Z34: 32 | AA34: 329 | AC34: A676072 | AD34: ERASMUS PLUS - PROJEKTI | AE34: 0970 | AF34: Istraživanje i razvoj obrazovanja | AG34: 01 | AH34: 015
A35: =IF(E35="","",VLOOKUP('OPĆI DIO'!$C$1,'OPĆI DIO'!$L$4:$U$138,10,FALSE)) -> 08006 | B35: =IF(E35="","",VLOOKUP('OPĆI DIO'!$C$1,'OPĆI DIO'!$L$4:$U$138,9,FALSE)) -> Sveučilišta i veleučilišta u Republici Hrvatskoj | C35: 11 | D35: Opći prihodi i primici | E35: 4223 | F35: Oprema za održavanje i zaštitu | G35: A622122 | H35: PROGRAMSKO FINANCIRANJE JAVNIH VISOKIH UČILIŠTA | I35: 0942 | J35: 3,000 | K35: 10,000 | L35: 13,000 | N35: =IF(C35="","",'OPĆI DIO'!$C$1) -> 38454 SVEUČILIŠTE U RIJECI - AKADEMIJA PRIMJENJENIH UMJETNOSTI | O35: 422 | P35: 42 | Q35: 11 | R35: 94 | S35: 4 | W35: 3293 | X35: Reprezentacija | Z35: 32 | AA35: 329 | AC35: A679008 | AD35: PROGRAM RAZVOJNE SURADNJE | AE35: 0970 | AF35: Istraživanje i razvoj obrazovanja | AG35: 09 | AH35: 097
A36: =IF(E36="","",VLOOKUP('OPĆI DIO'!$C$1,'OPĆI DIO'!$L$4:$U$138,10,FALSE)) -> 08006 | B36: =IF(E36="","",VLOOKUP('OPĆI DIO'!$C$1,'OPĆI DIO'!$L$4:$U$138,9,FALSE)) -> Sveučilišta i veleučilišta u Republici Hrvatskoj | C36: 11 | D36: Opći prihodi i primici | E36: 4225 | F36: Instrumenti i uređaji | G36: A622122 | H36: PROGRAMSKO FINANCIRANJE JAVNIH VISOKIH UČILIŠTA | I36: 0942 | J36: 1,000 | K36: 15,000 | L36: 16,000 | N36: =IF(C36="","",'OPĆI DIO'!$C$1) -> 38454 SVEUČILIŠTE U RIJECI - AKADEMIJA PRIMJENJENIH UMJETNOSTI | O36: 422 | P36: 42 | Q36: 11 | R36: 94 | S36: 4 | W36: 3294 | X36: Članarine i norme | Z36: 32 | AA36: 329 | AC36: A679009 | AD36: REDOVNA DJELATNOST LEKTORATA | AE36: 0970 | AF36: Istraživanje i razvoj obrazovanja | AG36: 09 | AH36: 097
A37: =IF(E37="","",VLOOKUP('OPĆI DIO'!$C$1,'OPĆI DIO'!$L$4:$U$138,10,FALSE)) -> 08006 | B37: =IF(E37="","",VLOOKUP('OPĆI DIO'!$C$1,'OPĆI DIO'!$L$4:$U$138,9,FALSE)) -> Sveučilišta i veleučilišta u Republici Hrvatskoj | C37: 11 | D37: Opći prihodi i primici | E37: 4227 | F37: Uređaji, strojevi i oprema za ostale namjene | G37: A622122 | H37: PROGRAMSKO FINANCIRANJE JAVNIH VISOKIH UČILIŠTA | I37: 0942 | J37: 3,000 | K37: 15,000 | L37: 18,000 | N37: =IF(C37="","",'OPĆI DIO'!$C$1) -> 38454 SVEUČILIŠTE U RIJECI - AKADEMIJA PRIMJENJENIH UMJETNOSTI | O37: 422 | P37: 42 | Q37: 11 | R37: 94 | S37: 4 | W37: 3295 | X37: Pristojbe i naknade | Z37: 32 | AA37: 329 | AC37: A679047 | AD37: MEĐUNARODNA SURADNJA I EUROPSKI POSLOVI | AE37: 0150 | AF37: Istraživanje i razvoj: Opće javne usluge | AG37: 09 | AH37: 097
A38: =IF(E38="","",VLOOKUP('OPĆI DIO'!$C$1,'OPĆI DIO'!$L$4:$U$138,10,FALSE)) -> 08006 | B38: =IF(E38="","",VLOOKUP('OPĆI DIO'!$C$1,'OPĆI DIO'!$L$4:$U$138,9,FALSE)) -> Sveučilišta i veleučilišta u Republici Hrvatskoj | C38: 11 | D38: Opći prihodi i primici | E38: 4241 | F38: Knjige | G38: A622122 | H38: PROGRAMSKO FINANCIRANJE JAVNIH VISOKIH UČILIŠTA | I38: 0942 | J38: 7,000 | K38: 1,000 | L38: 8,000 | N38: =IF(C38="","",'OPĆI DIO'!$C$1) -> 38454 SVEUČILIŠTE U RIJECI - AKADEMIJA PRIMJENJENIH UMJETNOSTI | O38: 424 | P38: 42 | Q38: 11 | R38: 94 | S38: 4 | W38: 3296 | X38: Troškovi sudskih postupaka | Z38: 32 | AA38: 329 | AC38: A733049 | AD38: EUROPSKA AGENCIJA ZA POSEBNE POTREBE I INKLUZIVNO OBRAZOVANJE | AE38: 0970 | AF38: Istraživanje i razvoj obrazovanja | AG38: 01 | AH38: 018
A39: =IF(E39="","",VLOOKUP('OPĆI DIO'!$C$1,'OPĆI DIO'!$L$4:$U$138,10,FALSE)) -> 08006 | B39: =IF(E39="","",VLOOKUP('OPĆI DIO'!$C$1,'OPĆI DIO'!$L$4:$U$138,9,FALSE)) -> Sveučilišta i veleučilišta u Republici Hrvatskoj | C39: 31 | D39: Vlastiti prihodi | E39: 3111 | F39: Plaće za redovan rad | G39: A679089 | H39: REDOVNA DJELATNOST SVEUČILIŠTA U RIJECI (IZ EVIDENCIJSKIH PRIHODA) | I39: 0942 | J39: 1,000 | K39: 0 | L39: 1,000 | N39: =IF(C39="","",'OPĆI DIO'!$C$1) -> 38454 SVEUČILIŠTE U RIJECI - AKADEMIJA PRIMJENJENIH UMJETNOSTI | O39: 311 | P39: 31 | Q39: 31 | R39: 94 | S39: 3 | W39: 3299 | X39: Ostali nespomenuti rashodi poslovanja | Z39: 32 | AA39: 329 | AC39: A733051 | AD39: PROGRAMI IZRADE UDŽBENIKA ZA SLIJEPE I SLABOVIDNE UČENIKE I STUDENTE | AE39: 0970 | AF39: Istraživanje i razvoj obrazovanja | AG39: 09 | AH39: 091
A40: =IF(E40="","",VLOOKUP('OPĆI DIO'!$C$1,'OPĆI DIO'!$L$4:$U$138,10,FALSE)) -> 08006 | B40: =IF(E40="","",VLOOKUP('OPĆI DIO'!$C$1,'OPĆI DIO'!$L$4:$U$138,9,FALSE)) -> Sveučilišta i veleučilišta u Republici Hrvatskoj | C40: 31 | D40: Vlastiti prihodi | E40: 3121 | F40: Ostali rashodi za zaposlene | G40: A679089 | H40: REDOVNA DJELATNOST SVEUČILIŠTA U RIJECI (IZ EVIDENCIJSKIH PRIHODA) | I40: 0942 | J40: 1,000 | K40: 2,500 | L40: 3,500 | N40: =IF(C40="","",'OPĆI DIO'!$C$1) -> 38454 SVEUČILIŠTE U RIJECI - AKADEMIJA PRIMJENJENIH UMJETNOSTI | O40: 312 | P40: 31 | Q40: 31 | R40: 94 | S40: 3 | W40: 3411 | X40: Kamate za izdane trezorske zapise | Z40: 34 | AA40: 341 | AC40: A733064 | AD40: ERASMUS+ INTERDISCIPLINARNI STEM PRISTUP SVEMU OKO NAS - STE(A)M IT | AE40: 0970 | AF40: Istraživanje i razvoj obrazovanja | AG40: 09 | AH40: 091
A41: =IF(E41="","",VLOOKUP('OPĆI DIO'!$C$1,'OPĆI DIO'!$L$4:$U$138,10,FALSE)) -> 08006 | B41: =IF(E41="","",VLOOKUP('OPĆI DIO'!$C$1,'OPĆI DIO'!$L$4:$U$138,9,FALSE)) -> Sveučilišta i veleučilišta u Republici Hrvatskoj | C41: 31 | D41: Vlastiti prihodi | E41: 3132 | F41: Doprinosi za obvezno zdravstveno osiguranje | G41: A679089 | H41: REDOVNA DJELATNOST SVEUČILIŠTA U RIJECI (IZ EVIDENCIJSKIH PRIHODA) | I41: 0942 | J41: 200 | K41: 0 | L41: 200 | N41: =IF(C41="","",'OPĆI DIO'!$C$1) -> 38454 SVEUČILIŠTE U RIJECI - AKADEMIJA PRIMJENJENIH UMJETNOSTI | O41: 313 | P41: 31 | Q41: 31 | R41: 94 | S41: 3 | W41: 3422 | X41: Kamate za primljene kredite i zajmove od kreditnih i ostalih | Z41: 34 | AA41: 342 | AC41: A733066 | AD41: ERASMUS PLUS - OSNAŽIVANJE NASTAVNIKA DILJEM EUROPE - KA3 - HAND IN HAND | AE41: 0970 | AF41: Istraživanje i razvoj obrazovanja | AG41: 09 | AH41: 097
A42: =IF(E42="","",VLOOKUP('OPĆI DIO'!$C$1,'OPĆI DIO'!$L$4:$U$138,10,FALSE)) -> 08006 | B42: =IF(E42="","",VLOOKUP('OPĆI DIO'!$C$1,'OPĆI DIO'!$L$4:$U$138,9,FALSE)) -> Sveučilišta i veleučilišta u Republici Hrvatskoj | C42: 31 | D42: Vlastiti prihodi | E42: 3211 | F42: Službena putovanja | G42: A679089 | H42: REDOVNA DJELATNOST SVEUČILIŠTA U RIJECI (IZ EVIDENCIJSKIH PRIHODA) | I42: 0942 | J42: 980 | K42: 0 | L42: 980 | N42: =IF(C42="","",'OPĆI DIO'!$C$1) -> 38454 SVEUČILIŠTE U RIJECI - AKADEMIJA PRIMJENJENIH UMJETNOSTI | O42: 321 | P42: 32 | Q42: 31 | R42: 94 | S42: 3 | W42: 3423 | X42: Kamate za primljene kredite i zajmove od kreditnih i ostalih | Z42: =LEFT(W42,2) -> 34 | AA42: =LEFT(W42,3) -> 342 | AC42: A767002 | AD42: IZRADA DEFICITARNIH UDŽBENIKA U ŠKOLSTVU | AE42: 0970 | AF42: Istraživanje i razvoj obrazovanja | AG42: 01 | AH42: 018
A43: =IF(E43="","",VLOOKUP('OPĆI DIO'!$C$1,'OPĆI DIO'!$L$4:$U$138,10,FALSE)) -> 08006 | B43: =IF(E43="","",VLOOKUP('OPĆI DIO'!$C$1,'OPĆI DIO'!$L$4:$U$138,9,FALSE)) -> Sveučilišta i veleučilišta u Republici Hrvatskoj | C43: 31 | D43: Vlastiti prihodi | E43: 3212 | F43: Naknade za prijevoz, za rad na terenu i odvojeni život | G43: A679089 | H43: REDOVNA DJELATNOST SVEUČILIŠTA U RIJECI (IZ EVIDENCIJSKIH PRIHODA) | I43: 0942 | J43: 500 | K43: 0 | L43: 500 | N43: =IF(C43="","",'OPĆI DIO'!$C$1) -> 38454 SVEUČILIŠTE U RIJECI - AKADEMIJA PRIMJENJENIH UMJETNOSTI | O43: 321 | P43: 32 | Q43: 31 | R43: 94 | S43: 3 | W43: 3427 | X43: Kamate za primljene zajmove od trgovačkih društava i obrtnik | Z43: 34 | AA43: 342 | AC43: A767003 | AD43: SREDNJOŠKOLSKE STIPENDIJE ZA UČENIKE ROME | AE43: 0970 | AF43: Istraživanje i razvoj obrazovanja | AG43: 09 | AH43: 091
A44: =IF(E44="","",VLOOKUP('OPĆI DIO'!$C$1,'OPĆI DIO'!$L$4:$U$138,10,FALSE)) -> 08006 | B44: =IF(E44="","",VLOOKUP('OPĆI DIO'!$C$1,'OPĆI DIO'!$L$4:$U$138,9,FALSE)) -> Sveučilišta i veleučilišta u Republici Hrvatskoj | C44: 31 | D44: Vlastiti prihodi | E44: 3213 | F44: Stručno usavršavanje zaposlenika | G44: A679089 | H44: REDOVNA DJELATNOST SVEUČILIŠTA U RIJECI (IZ EVIDENCIJSKIH PRIHODA) | I44: 0942 | J44: 600 | K44: 0 | L44: 600 | N44: =IF(C44="","",'OPĆI DIO'!$C$1) -> 38454 SVEUČILIŠTE U RIJECI - AKADEMIJA PRIMJENJENIH UMJETNOSTI | O44: 321 | P44: 32 | Q44: 31 | R44: 94 | S44: 3 | W44: 3431 | X44: Bankarske usluge i usluge platnog prometa | Z44: 34 | AA44: 343 | AC44: A767004 | AD44: NAOBRAZBA DJECE U ALTERNATIVNIM ŠKOLAMA | AE44: 0970 | AF44: Istraživanje i razvoj obrazovanja | AG44: 09 | AH44: 091
A45: =IF(E45="","",VLOOKUP('OPĆI DIO'!$C$1,'OPĆI DIO'!$L$4:$U$138,10,FALSE)) -> 08006 | B45: =IF(E45="","",VLOOKUP('OPĆI DIO'!$C$1,'OPĆI DIO'!$L$4:$U$138,9,FALSE)) -> Sveučilišta i veleučilišta u Republici Hrvatskoj | C45: 31 | D45: Vlastiti prihodi | E45: 3214 | F45: Ostale naknade troškova zaposlenima | G45: A679089 | H45: REDOVNA DJELATNOST SVEUČILIŠTA U RIJECI (IZ EVIDENCIJSKIH PRIHODA) | I45: 0942 | J45: 300 | K45: 0 | L45: 300 | N45: =IF(C45="","",'OPĆI DIO'!$C$1) -> 38454 SVEUČILIŠTE U RIJECI - AKADEMIJA PRIMJENJENIH UMJETNOSTI | O45: 321 | P45: 32 | Q45: 31 | R45: 94 | S45: 3 | W45: 3432 | X45: Negativne tečajne razlike i razlike zbog primjene valutne kl | Z45: 34 | AA45: 343 | AC45: A767008 | AD45: SUBVENCIONIRANJE KAMATA ZA STANOVE UČITELJA | AE45: 0970 | AF45: Istraživanje i razvoj obrazovanja | AG45: 01 | AH45: 018
A46: =IF(E46="","",VLOOKUP('OPĆI DIO'!$C$1,'OPĆI DIO'!$L$4:$U$138,10,FALSE)) -> 08006 | B46: =IF(E46="","",VLOOKUP('OPĆI DIO'!$C$1,'OPĆI DIO'!$L$4:$U$138,9,FALSE)) -> Sveučilišta i veleučilišta u Republici Hrvatskoj | C46: 31 | D46: Vlastiti prihodi | E46: 3221 | F46: Uredski materijal i ostali materijalni rashodi | G46: A679089 | H46: REDOVNA DJELATNOST SVEUČILIŠTA U RIJECI (IZ EVIDENCIJSKIH PRIHODA) | I46: 0942 | J46: 1,000 | K46: 0 | L46: 1,000 | N46: =IF(C46="","",'OPĆI DIO'!$C$1) -> 38454 SVEUČILIŠTE U RIJECI - AKADEMIJA PRIMJENJENIH UMJETNOSTI | O46: 322 | P46: 32 | Q46: 31 | R46: 94 | S46: 3 | W46: 3433 | X46: Zatezne kamate | Z46: 34 | AA46: 343 | AC46: A767015 | AD46: PROVEDBA PROGRAMA ZA UKLJUČIVANJE ROMA | AE46: 0970 | AF46: Istraživanje i razvoj obrazovanja | AG46: 09 | AH46: 092
A47: =IF(E47="","",VLOOKUP('OPĆI DIO'!$C$1,'OPĆI DIO'!$L$4:$U$138,10,FALSE)) -> 08006 | B47: =IF(E47="","",VLOOKUP('OPĆI DIO'!$C$1,'OPĆI DIO'!$L$4:$U$138,9,FALSE)) -> Sveučilišta i veleučilišta u Republici Hrvatskoj | C47: 31 | D47: Vlastiti prihodi | E47: 3224 | F47: Materijal i dijelovi za tekuće i investicijsko održavanje | G47: A679089 | H47: REDOVNA DJELATNOST SVEUČILIŠTA U RIJECI (IZ EVIDENCIJSKIH PRIHODA) | I47: 0942 | J47: 300 | K47: 0 | L47: 300 | N47: =IF(C47="","",'OPĆI DIO'!$C$1) -> 38454 SVEUČILIŠTE U RIJECI - AKADEMIJA PRIMJENJENIH UMJETNOSTI | O47: 322 | P47: 32 | Q47: 31 | R47: 94 | S47: 3 | W47: 3434 | X47: Ostali nespomenuti financijski rashodi | Z47: 34 | AA47: 343 | AC47: A767042 | AD47: OBRAZOVANJE OSOBA BEZ HRVATSKOG DRŽAVLJANSTVA | AE47: 0970 | AF47: Istraživanje i razvoj obrazovanja | AG47: 09 | AH47: 092
A48: =IF(E48="","",VLOOKUP('OPĆI DIO'!$C$1,'OPĆI DIO'!$L$4:$U$138,10,FALSE)) -> 08006 | B48: =IF(E48="","",VLOOKUP('OPĆI DIO'!$C$1,'OPĆI DIO'!$L$4:$U$138,9,FALSE)) -> Sveučilišta i veleučilišta u Republici Hrvatskoj | C48: 31 | D48: Vlastiti prihodi | E48: 3225 | F48: =IFERROR(VLOOKUP(E48,$W$5:$Y$129,2,FALSE),"") -> Sitni inventar i autogume | G48: A679089 | H48: REDOVNA DJELATNOST SVEUČILIŠTA U RIJECI (IZ EVIDENCIJSKIH PRIHODA) | I48: 0942 | J48: 200 | K48: 0 | L48: 200 | N48: =IF(C48="","",'OPĆI DIO'!$C$1) -> 38454 SVEUČILIŠTE U RIJECI - AKADEMIJA PRIMJENJENIH UMJETNOSTI | O48: =LEFT(E48,3) -> 322 | P48: =LEFT(E48,2) -> 32 | Q48: 31 | R48: 94 | S48: =LEFT(E48,1) -> 3 | W48: 3511 | X48: Subvencije kreditnim i ostalim financijskim institucijama u | Z48: 35 | AA48: 351 | AC48: A768053 | AD48: EUROPSKE ŠKOLE | AE48: 0970 | AF48: Istraživanje i razvoj obrazovanja | AG48: 09 | AH48: 092
A49: =IF(E49="","",VLOOKUP('OPĆI DIO'!$C$1,'OPĆI DIO'!$L$4:$U$138,10,FALSE)) -> 08006 | B49: =IF(E49="","",VLOOKUP('OPĆI DIO'!$C$1,'OPĆI DIO'!$L$4:$U$138,9,FALSE)) -> Sveučilišta i veleučilišta u Republici Hrvatskoj | C49: 31 | D49: Vlastiti prihodi | E49: 3222 | F49: =IFERROR(VLOOKUP(E49,$W$5:$Y$129,2,FALSE),"") -> Materijal i sirovine | G49: A679089 | H49: REDOVNA DJELATNOST SVEUČILIŠTA U RIJECI (IZ EVIDENCIJSKIH PRIHODA) | I49: 0942 | J49: 200 | K49: 2,000 | L49: 2,200 | N49: =IF(C49="","",'OPĆI DIO'!$C$1) -> 38454 SVEUČILIŠTE U RIJECI - AKADEMIJA PRIMJENJENIH UMJETNOSTI | O49: =LEFT(E49,3) -> 322 | P49: =LEFT(E49,2) -> 32 | Q49: 31 | R49: 94 | S49: =LEFT(E49,1) -> 3 | W49: 3512 | X49: Subvencije trgovačkim društvima u javnom sektoru | Z49: 35 | AA49: 351 | AC49: A768054 | AD49: DODATNA SREDSTVA IZRAVNANJA ZA DECENTRALIZIRANE FUNKCIJE | AE49: 0970 | AF49: Istraživanje i razvoj obrazovanja | AG49: 01 | AH49: 018
A50: =IF(E50="","",VLOOKUP('OPĆI DIO'!$C$1,'OPĆI DIO'!$L$4:$U$138,10,FALSE)) -> 08006 | B50: =IF(E50="","",VLOOKUP('OPĆI DIO'!$C$1,'OPĆI DIO'!$L$4:$U$138,9,FALSE)) -> Sveučilišta i veleučilišta u Republici Hrvatskoj | C50: 31 | D50: Vlastiti prihodi | E50: 3231 | F50: Usluge telefona, interneta, pošte i prijevoza | G50: A679089 | H50: REDOVNA DJELATNOST SVEUČILIŠTA U RIJECI (IZ EVIDENCIJSKIH PRIHODA) | I50: 0942 | J50: 191 | K50: 0 | L50: 191 | N50: =IF(C50="","",'OPĆI DIO'!$C$1) -> 38454 SVEUČILIŠTE U RIJECI - AKADEMIJA PRIMJENJENIH UMJETNOSTI | O50: 323 | P50: 32 | Q50: 31 | R50: 94 | S50: 3 | W50: 3522 | X50: Subvencije trgovačkim društvima izvan javnog sektora | Z50: 35 | AA50: 352 | AC50: A768058 | AD50: PREUZETE OBVEZE PO MEĐUNARODNIM UGOVORIMA | AE50: 0970 | AF50: Istraživanje i razvoj obrazovanja | AG50: 09 | AH50: 092
A51: =IF(E51="","",VLOOKUP('OPĆI DIO'!$C$1,'OPĆI DIO'!$L$4:$U$138,10,FALSE)) -> 08006 | B51: =IF(E51="","",VLOOKUP('OPĆI DIO'!$C$1,'OPĆI DIO'!$L$4:$U$138,9,FALSE)) -> Sveučilišta i veleučilišta u Republici Hrvatskoj | C51: 31 | D51: Vlastiti prihodi | E51: 3233 | F51: Usluge promidžbe i informiranja | G51: A679089 | H51: REDOVNA DJELATNOST SVEUČILIŠTA U RIJECI (IZ EVIDENCIJSKIH PRIHODA) | I51: 0942 | J51: 190 | K51: 0 | L51: 190 | N51: =IF(C51="","",'OPĆI DIO'!$C$1) -> 38454 SVEUČILIŠTE U RIJECI - AKADEMIJA PRIMJENJENIH UMJETNOSTI | O51: 323 | P51: 32 | Q51: 31 | R51: 94 | S51: 3 | W51: 3531 | X51: Subvencije trgovačkim društvima, zadrugama, poljoprivrednici | Z51: 35 | AA51: 353 | AC51: A768061 | AD51: ERASMUS+ UČINKOVITO PARTNERSTVO ZA UNAPRIJEĐENO PRIZNAVANJE - EPER | AE51: 0970 | AF51: Istraživanje i razvoj obrazovanja | AG51: 09 | AH51: 092
A52: =IF(E52="","",VLOOKUP('OPĆI DIO'!$C$1,'OPĆI DIO'!$L$4:$U$138,10,FALSE)) -> 08006 | B52: =IF(E52="","",VLOOKUP('OPĆI DIO'!$C$1,'OPĆI DIO'!$L$4:$U$138,9,FALSE)) -> Sveučilišta i veleučilišta u Republici Hrvatskoj | C52: 31 | D52: Vlastiti prihodi | E52: 3235 | F52: Zakupnine i najamnine | G52: A679089 | H52: REDOVNA DJELATNOST SVEUČILIŠTA U RIJECI (IZ EVIDENCIJSKIH PRIHODA) | I52: 0942 | J52: 177 | K52: 0 | L52: 177 | N52: =IF(C52="","",'OPĆI DIO'!$C$1) -> 38454 SVEUČILIŠTE U RIJECI - AKADEMIJA PRIMJENJENIH UMJETNOSTI | O52: 323 | P52: 32 | Q52: 31 | R52: 94 | S52: 3 | W52: 3611 | X52: Tekuće pomoći inozemnim vladama | Z52: 36 | AA52: 361 | AC52: A768064 | AD52: ERASMUS+ PROJEKT TRACER - TRANSPARENTNOST HRVATSKIH KVALIFIKACIJA RADI LAKŠEG PRIZNAVANJA | AE52: 0970 | AF52: Istraživanje i razvoj obrazovanja | AG52: 09 | AH52: 092
A53: =IF(E53="","",VLOOKUP('OPĆI DIO'!$C$1,'OPĆI DIO'!$L$4:$U$138,10,FALSE)) -> 08006 | B53: =IF(E53="","",VLOOKUP('OPĆI DIO'!$C$1,'OPĆI DIO'!$L$4:$U$138,9,FALSE)) -> Sveučilišta i veleučilišta u Republici Hrvatskoj | C53: 31 | D53: Vlastiti prihodi | E53: 3237 | F53: Intelektualne i osobne usluge | G53: A679089 | H53: REDOVNA DJELATNOST SVEUČILIŠTA U RIJECI (IZ EVIDENCIJSKIH PRIHODA) | I53: 0942 | J53: 9,933 | K53: 5,735 | L53: 15,668 | N53: =IF(C53="","",'OPĆI DIO'!$C$1) -> 38454 SVEUČILIŠTE U RIJECI - AKADEMIJA PRIMJENJENIH UMJETNOSTI | O53: 323 | P53: 32 | Q53: 31 | R53: 94 | S53: 3 | W53: 3621 | X53: Tekuće pomoći međunarodnim organizacijama te institucijama i | Z53: 36 | AA53: 362 | AC53: A768065 | AD53: OBZOR 2020 - MENTORSTVO ZA UNAPRJEĐENJE ŠKOLE - MENSI | AE53: 0970 | AF53: Istraživanje i razvoj obrazovanja | AG53: 09 | AH53: 096
A54: =IF(E54="","",VLOOKUP('OPĆI DIO'!$C$1,'OPĆI DIO'!$L$4:$U$138,10,FALSE)) -> 08006 | B54: =IF(E54="","",VLOOKUP('OPĆI DIO'!$C$1,'OPĆI DIO'!$L$4:$U$138,9,FALSE)) -> Sveučilišta i veleučilišta u Republici Hrvatskoj | C54: 31 | D54: Vlastiti prihodi | E54: 3238 | F54: Računalne usluge | G54: A679089 | H54: REDOVNA DJELATNOST SVEUČILIŠTA U RIJECI (IZ EVIDENCIJSKIH PRIHODA) | I54: 0942 | J54: 690 | K54: 0 | L54: 690 | N54: =IF(C54="","",'OPĆI DIO'!$C$1) -> 38454 SVEUČILIŠTE U RIJECI - AKADEMIJA PRIMJENJENIH UMJETNOSTI | O54: 323 | P54: 32 | Q54: 31 | R54: 94 | S54: 3 | W54: 3631 | X54: Tekuće pomoći unutar općeg proračuna | Z54: 36 | AA54: 363 | AC54: A768071 | AD54: ERASMUS PLUS - AKTIVNOSTI SURADNIČKOG UČENJA I RESURSI ZA POTPORU NAČELA I SMJERNICA ZA SOCIJALNU DIMENZIJU - PLAR-U-PAGS | AE54: 0970 | AF54: Istraživanje i razvoj obrazovanja | AG54: 09 | AH54: 096
A55: =IF(E55="","",VLOOKUP('OPĆI DIO'!$C$1,'OPĆI DIO'!$L$4:$U$138,10,FALSE)) -> 08006 | B55: =IF(E55="","",VLOOKUP('OPĆI DIO'!$C$1,'OPĆI DIO'!$L$4:$U$138,9,FALSE)) -> Sveučilišta i veleučilišta u Republici Hrvatskoj | C55: 31 | D55: Vlastiti prihodi | E55: 3239 | F55: Ostale usluge | G55: A679089 | H55: REDOVNA DJELATNOST SVEUČILIŠTA U RIJECI (IZ EVIDENCIJSKIH PRIHODA) | I55: 0942 | J55: 487 | K55: 0 | L55: 487 | N55: =IF(C55="","",'OPĆI DIO'!$C$1) -> 38454 SVEUČILIŠTE U RIJECI - AKADEMIJA PRIMJENJENIH UMJETNOSTI | O55: 323 | P55: 32 | Q55: 31 | R55: 94 | S55: 3 | W55: 3632 | X55: Kapitalne pomoći unutar općeg proračuna | Z55: 36 | AA55: 363 | AC55: A768073 | AD55: PREVENCIJA MENTALNOG ZDRAVLJA | AE55: 0970 | AF55: Istraživanje i razvoj obrazovanja | AG55: 09 | AH55: 096
A56: =IF(E56="","",VLOOKUP('OPĆI DIO'!$C$1,'OPĆI DIO'!$L$4:$U$138,10,FALSE)) -> 08006 | B56: =IF(E56="","",VLOOKUP('OPĆI DIO'!$C$1,'OPĆI DIO'!$L$4:$U$138,9,FALSE)) -> Sveučilišta i veleučilišta u Republici Hrvatskoj | C56: 31 | D56: Vlastiti prihodi | E56: 3241 | F56: Naknade troškova osobama izvan radnog odnosa | G56: A679089 | H56: REDOVNA DJELATNOST SVEUČILIŠTA U RIJECI (IZ EVIDENCIJSKIH PRIHODA) | I56: 0942 | J56: 413 | K56: 0 | L56: 413 | N56: =IF(C56="","",'OPĆI DIO'!$C$1) -> 38454 SVEUČILIŠTE U RIJECI - AKADEMIJA PRIMJENJENIH UMJETNOSTI | O56: 324 | P56: 32 | Q56: 31 | R56: 94 | S56: 3 | W56: 3661 | X56: Tekuće pomoći proračunskim korisnicima drugih proračuna | Z56: 36 | AA56: 366 | AC56: A792009 | AD56: PREVENCIJA NASILJA NAD I MEĐU MLADIMA | AE56: 1040 | AF56: Obitelj i djeca | AG56: 09 | AH56: 096
A57: =IF(E57="","",VLOOKUP('OPĆI DIO'!$C$1,'OPĆI DIO'!$L$4:$U$138,10,FALSE)) -> 08006 | B57: =IF(E57="","",VLOOKUP('OPĆI DIO'!$C$1,'OPĆI DIO'!$L$4:$U$138,9,FALSE)) -> Sveučilišta i veleučilišta u Republici Hrvatskoj | C57: 31 | D57: Vlastiti prihodi | E57: 3293 | F57: Reprezentacija | G57: A679089 | H57: REDOVNA DJELATNOST SVEUČILIŠTA U RIJECI (IZ EVIDENCIJSKIH PRIHODA) | I57: 0942 | J57: 429 | K57: 0 | L57: 429 | N57: =IF(C57="","",'OPĆI DIO'!$C$1) -> 38454 SVEUČILIŠTE U RIJECI - AKADEMIJA PRIMJENJENIH UMJETNOSTI | O57: 329 | P57: 32 | Q57: 31 | R57: 94 | S57: 3 | W57: 3662 | X57: Kapitalne pomoći proračunskim korisnicima drugih proračuna | Z57: 36 | AA57: 366 | AC57: A792019 | AD57: PRAVOMOĆNE SUDSKE PRESUDE | AE57: 0970 | AF57: Istraživanje i razvoj obrazovanja | AG57: 09 | AH57: 096
A58: =IF(E58="","",VLOOKUP('OPĆI DIO'!$C$1,'OPĆI DIO'!$L$4:$U$138,10,FALSE)) -> 08006 | B58: =IF(E58="","",VLOOKUP('OPĆI DIO'!$C$1,'OPĆI DIO'!$L$4:$U$138,9,FALSE)) -> Sveučilišta i veleučilišta u Republici Hrvatskoj | C58: 31 | D58: Vlastiti prihodi | E58: 3296 | F58: Troškovi sudskih postupaka | G58: A679089 | H58: REDOVNA DJELATNOST SVEUČILIŠTA U RIJECI (IZ EVIDENCIJSKIH PRIHODA) | I58: 0942 | J58: 500 | K58: 0 | L58: 500 | N58: =IF(C58="","",'OPĆI DIO'!$C$1) -> 38454 SVEUČILIŠTE U RIJECI - AKADEMIJA PRIMJENJENIH UMJETNOSTI | O58: 329 | P58: 32 | Q58: 31 | R58: 94 | S58: 3 | W58: 3681 | X58: Tekuće pomoći temeljem prijenosa EU sredstava | Z58: 36 | AA58: 368 | AC58: A818021 | AD58: PRIMJENA UDŽBENIČKOG STANDARDA | AE58: 0912 | AF58: Osnovno obrazovanje | AG58: 09 | AH58: 096
A59: =IF(E59="","",VLOOKUP('OPĆI DIO'!$C$1,'OPĆI DIO'!$L$4:$U$138,10,FALSE)) -> 08006 | B59: =IF(E59="","",VLOOKUP('OPĆI DIO'!$C$1,'OPĆI DIO'!$L$4:$U$138,9,FALSE)) -> Sveučilišta i veleučilišta u Republici Hrvatskoj | C59: 31 | D59: Vlastiti prihodi | E59: 3299 | F59: Ostali nespomenuti rashodi poslovanja | G59: A679089 | H59: REDOVNA DJELATNOST SVEUČILIŠTA U RIJECI (IZ EVIDENCIJSKIH PRIHODA) | I59: 0942 | J59: 500 | K59: -78 | L59: 422 | N59: =IF(C59="","",'OPĆI DIO'!$C$1) -> 38454 SVEUČILIŠTE U RIJECI - AKADEMIJA PRIMJENJENIH UMJETNOSTI | O59: 329 | P59: 32 | Q59: 31 | R59: 94 | S59: 3 | W59: 3682 | X59: Kapitalne pomoći temeljem prijenosa EU sredstava | Z59: 36 | AA59: 368 | AC59: A818034 | AD59: PROJEKT POVEZIVANJA S EUROPSKIM KVALIFIKACIJSKIM OKVIROM - EQF NCP GRANT | AE59: 0970 | AF59: Istraživanje i razvoj obrazovanja | AG59: 09 | AH59: 096
A60: =IF(E60="","",VLOOKUP('OPĆI DIO'!$C$1,'OPĆI DIO'!$L$4:$U$138,10,FALSE)) -> 08006 | B60: =IF(E60="","",VLOOKUP('OPĆI DIO'!$C$1,'OPĆI DIO'!$L$4:$U$138,9,FALSE)) -> Sveučilišta i veleučilišta u Republici Hrvatskoj | C60: 31 | D60: Vlastiti prihodi | E60: 3691 | F60: Tekući prijenosi između proračunskih korisnika istog proraču | G60: A679089 | H60: REDOVNA DJELATNOST SVEUČILIŠTA U RIJECI (IZ EVIDENCIJSKIH PRIHODA) | I60: 0942 | J60: 720 | K60: 280 | L60: 1,000 | M60: 2444 SVEUČILIŠTE U RIJECI | N60: =IF(C60="","",'OPĆI DIO'!$C$1) -> 38454 SVEUČILIŠTE U RIJECI - AKADEMIJA PRIMJENJENIH UMJETNOSTI | O60: 369 | P60: 36 | Q60: 31 | R60: 94 | S60: 3 | W60: 3691 | X60: Tekući prijenosi između proračunskih korisnika istog proraču | Z60: 36 | AA60: 369 | AC60: A818035 | AD60: MENTORI I STRUČNI ISPITI U OSNOVNIM I SREDNJIM ŠKOLAMA | AE60: 0970 | AF60: Istraživanje i razvoj obrazovanja | AG60: 09 | AH60: 096
A61: =IF(E61="","",VLOOKUP('OPĆI DIO'!$C$1,'OPĆI DIO'!$L$4:$U$138,10,FALSE)) -> 08006 | B61: =IF(E61="","",VLOOKUP('OPĆI DIO'!$C$1,'OPĆI DIO'!$L$4:$U$138,9,FALSE)) -> Sveučilišta i veleučilišta u Republici Hrvatskoj | C61: 31 | D61: Vlastiti prihodi | E61: 4221 | F61: Uredska oprema i namještaj | G61: A679089 | H61: REDOVNA DJELATNOST SVEUČILIŠTA U RIJECI (IZ EVIDENCIJSKIH PRIHODA) | I61: 0942 | J61: 500 | K61: 0 | L61: 500 | N61: =IF(C61="","",'OPĆI DIO'!$C$1) -> 38454 SVEUČILIŠTE U RIJECI - AKADEMIJA PRIMJENJENIH UMJETNOSTI | O61: 422 | P61: 42 | Q61: 31 | R61: 94 | S61: 4 | W61: 3692 | X61: Kapitalni prijenosi između proračunskih korisnika istog pror | Z61: 36 | AA61: 369 | AC61: K578063 | AD61: PROJEKT "HRVATSKA: USUSRET ODRŽIVOM, PRAVEDNOM I UČINKOVITOM OBRAZOVANJU" | AE61: 0970 | AF61: Istraživanje i razvoj obrazovanja | AG61: 09 | AH61: 096
A62: =IF(E62="","",VLOOKUP('OPĆI DIO'!$C$1,'OPĆI DIO'!$L$4:$U$138,10,FALSE)) -> 08006 | B62: =IF(E62="","",VLOOKUP('OPĆI DIO'!$C$1,'OPĆI DIO'!$L$4:$U$138,9,FALSE)) -> Sveučilišta i veleučilišta u Republici Hrvatskoj | C62: 31 | D62: Vlastiti prihodi | E62: 4225 | F62: Instrumenti i uređaji | G62: A679089 | H62: REDOVNA DJELATNOST SVEUČILIŠTA U RIJECI (IZ EVIDENCIJSKIH PRIHODA) | I62: 0942 | J62: 500 | K62: 601 | L62: 1,101 | N62: =IF(C62="","",'OPĆI DIO'!$C$1) -> 38454 SVEUČILIŠTE U RIJECI - AKADEMIJA PRIMJENJENIH UMJETNOSTI | O62: 422 | P62: 42 | Q62: 31 | R62: 94 | S62: 4 | W62: 3693 | X62: Tekući prijenosi između proračunskih korisnika istog proraču | Z62: 36 | AA62: 369 | AC62: K579064 | AD62: KAPITALNE INVESTICIJE U OSNOVNOM I SREDNJEM ŠKOLSTVU | AE62: 0970 | AF62: Istraživanje i razvoj obrazovanja | AG62: 09 | AH62: 094
A63: =IF(E63="","",VLOOKUP('OPĆI DIO'!$C$1,'OPĆI DIO'!$L$4:$U$138,10,FALSE)) -> 08006 | B63: =IF(E63="","",VLOOKUP('OPĆI DIO'!$C$1,'OPĆI DIO'!$L$4:$U$138,9,FALSE)) -> Sveučilišta i veleučilišta u Republici Hrvatskoj | C63: 31 | D63: Vlastiti prihodi | E63: 4227 | F63: Uređaji, strojevi i oprema za ostale namjene | G63: A679089 | H63: REDOVNA DJELATNOST SVEUČILIŠTA U RIJECI (IZ EVIDENCIJSKIH PRIHODA) | I63: 0942 | J63: 500 | K63: 3,500 | L63: 4,000 | N63: =IF(C63="","",'OPĆI DIO'!$C$1) -> 38454 SVEUČILIŠTE U RIJECI - AKADEMIJA PRIMJENJENIH UMJETNOSTI | O63: 422 | P63: 42 | Q63: 31 | R63: 94 | S63: 4 | W63: 3694 | X63: Kapitalni prijenosi između proračunskih korisnika istog pror | Z63: 36 | AA63: 369 | AC63: K580073 | AD63: IZGRADNJA ŠKOLSKE SPORTSKE DVORANE SREDNJE ŠKOLE ZABOK | AE63: 0922 | AF63: Više srednjoškolsko obrazovanje | AG63: 09 | AH63: 094
A64: =IF(E64="","",VLOOKUP('OPĆI DIO'!$C$1,'OPĆI DIO'!$L$4:$U$138,10,FALSE)) -> 08006 | B64: =IF(E64="","",VLOOKUP('OPĆI DIO'!$C$1,'OPĆI DIO'!$L$4:$U$138,9,FALSE)) -> Sveučilišta i veleučilišta u Republici Hrvatskoj | C64: 43 | D64: Ostali prihodi za posebne namjene | E64: 3111 | F64: Plaće za redovan rad | G64: A679089 | H64: REDOVNA DJELATNOST SVEUČILIŠTA U RIJECI (IZ EVIDENCIJSKIH PRIHODA) | I64: 0942 | J64: 17,222 | K64: 2,967 | L64: 20,189 | N64: =IF(C64="","",'OPĆI DIO'!$C$1) -> 38454 SVEUČILIŠTE U RIJECI - AKADEMIJA PRIMJENJENIH UMJETNOSTI | O64: 311 | P64: 31 | Q64: 43 | R64: 94 | S64: 3 | W64: 3711 | X64: Naknade građ. i kuć. u novcu-neposr. ili putem ust.izvan js | Z64: 37 | AA64: 371 | AC64: K621173 | AD64: INFORMACIJSKA INFRASTRUKTURA SUSTAVA VISOKOG OBRAZOVANJA | AE64: 0942 | AF64: Drugi stupanj visoke naobrazbe | AG64: 09 | AH64: 094
A65: =IF(E65="","",VLOOKUP('OPĆI DIO'!$C$1,'OPĆI DIO'!$L$4:$U$138,10,FALSE)) -> 08006 | B65: =IF(E65="","",VLOOKUP('OPĆI DIO'!$C$1,'OPĆI DIO'!$L$4:$U$138,9,FALSE)) -> Sveučilišta i veleučilišta u Republici Hrvatskoj | C65: 43 | D65: Ostali prihodi za posebne namjene | E65: 3121 | F65: Ostali rashodi za zaposlene | G65: A679089 | H65: REDOVNA DJELATNOST SVEUČILIŠTA U RIJECI (IZ EVIDENCIJSKIH PRIHODA) | I65: 0942 | J65: 3,268 | K65: 9,000 | L65: 12,268 | N65: =IF(C65="","",'OPĆI DIO'!$C$1) -> 38454 SVEUČILIŠTE U RIJECI - AKADEMIJA PRIMJENJENIH UMJETNOSTI | O65: 312 | P65: 31 | Q65: 43 | R65: 94 | S65: 3 | W65: 3712 | X65: Naknade građ. i kuć. u naravi-neposr. ili putem ust.izvan js | Z65: 37 | AA65: 371 | AC65: K676066 | AD65: OBNOVA ZGRADA OŠTEĆENIH U POTRESU S ENERGETSKOM OBNOVOM - NPOO (C6.1.R1-I2) | AE65: 0150 | AF65: Istraživanje i razvoj: Opće javne usluge | AG65: 09 | AH65: 096
A66: =IF(E66="","",VLOOKUP('OPĆI DIO'!$C$1,'OPĆI DIO'!$L$4:$U$138,10,FALSE)) -> 08006 | B66: =IF(E66="","",VLOOKUP('OPĆI DIO'!$C$1,'OPĆI DIO'!$L$4:$U$138,9,FALSE)) -> Sveučilišta i veleučilišta u Republici Hrvatskoj | C66: 43 | D66: Ostali prihodi za posebne namjene | E66: 3132 | F66: Doprinosi za obvezno zdravstveno osiguranje | G66: A679089 | H66: REDOVNA DJELATNOST SVEUČILIŠTA U RIJECI (IZ EVIDENCIJSKIH PRIHODA) | I66: 0942 | J66: 2,841 | K66: 1,289 | L66: 4,130 | N66: =IF(C66="","",'OPĆI DIO'!$C$1) -> 38454 SVEUČILIŠTE U RIJECI - AKADEMIJA PRIMJENJENIH UMJETNOSTI | O66: 313 | P66: 31 | Q66: 43 | R66: 94 | S66: 3 | W66: 3713 | X66: Naknade građanima i kućanstvima u novcu - putem ustanova u j | Z66: 37 | AA66: 371 | AC66: K676066 | AD66: OBNOVA ZGRADA OŠTEĆENIH U POTRESU S ENERGETSKOM OBNOVOM - NPOO (C6.1.R1-I2) | AE66: 0970 | AF66: Istraživanje i razvoj obrazovanja | AG66: 09 | AH66: 094
A67: =IF(E67="","",VLOOKUP('OPĆI DIO'!$C$1,'OPĆI DIO'!$L$4:$U$138,10,FALSE)) -> 08006 | B67: =IF(E67="","",VLOOKUP('OPĆI DIO'!$C$1,'OPĆI DIO'!$L$4:$U$138,9,FALSE)) -> Sveučilišta i veleučilišta u Republici Hrvatskoj | C67: 43 | D67: Ostali prihodi za posebne namjene | E67: 3211 | F67: =IFERROR(VLOOKUP(E67,$W$5:$Y$129,2,FALSE),"") -> Službena putovanja | G67: A679089 | H67: REDOVNA DJELATNOST SVEUČILIŠTA U RIJECI (IZ EVIDENCIJSKIH PRIHODA) | I67: 0942 | J67: 2,071 | K67: 4,000 | L67: 6,071 | N67: =IF(C67="","",'OPĆI DIO'!$C$1) -> 38454 SVEUČILIŠTE U RIJECI - AKADEMIJA PRIMJENJENIH UMJETNOSTI | O67: 321 | P67: 32 | Q67: 43 | R67: 94 | S67: 3 | W67: 3714 | X67: Naknade građanima i kućanstvima u naravi - putem ustanova u | Z67: 37 | AA67: 371 | AC67: K733067 | AD67: PROGRAM UČINKOVITI LJUDSKI POTENCIJALI 2021.-2027., PRIORITET 2 | AE67: 0950 | AF67: Obrazovanje koje se ne može definirati po stupnju | AG67: 01 | AH67: 015
A68: =IF(E68="","",VLOOKUP('OPĆI DIO'!$C$1,'OPĆI DIO'!$L$4:$U$138,10,FALSE)) -> 08006 | B68: =IF(E68="","",VLOOKUP('OPĆI DIO'!$C$1,'OPĆI DIO'!$L$4:$U$138,9,FALSE)) -> Sveučilišta i veleučilišta u Republici Hrvatskoj | C68: 43 | D68: =IFERROR(VLOOKUP(C68,$T$6:$U$23,2,FALSE),"") -> Ostali prihodi za posebne namjene | E68: 3212 | F68: Naknade za prijevoz, za rad na terenu i odvojeni život | G68: A679089 | H68: =IFERROR(VLOOKUP(G68,$AC$6:$AD$353,2,FALSE),"") -> REDOVNA DJELATNOST SVEUČILIŠTA U RIJECI (IZ EVIDENCIJSKIH PRIHODA) | I68: =IFERROR(VLOOKUP(G68,$AC$6:$AG$353,3,FALSE),"") -> 0942 | J68: 1,000 | K68: 0 | L68: =+J68+K68 -> 1,000 | N68: =IF(C68="","",'OPĆI DIO'!$C$1) -> 38454 SVEUČILIŠTE U RIJECI - AKADEMIJA PRIMJENJENIH UMJETNOSTI | O68: =LEFT(E68,3) -> 321 | P68: =LEFT(E68,2) -> 32 | Q68: =LEFT(C68,3) -> 43 | R68: =IF(S68="5",0,MID(I68,2,2)) -> 94 | S68: =LEFT(E68,1) -> 3 | W68: 3715 | X68: Naknade građanima i kućanstvima na temelju osiguranja iz EU | Z68: 37 | AA68: 371 | AC68: K768066 | AD68: OBNOVA INFRASTRUKTURE I OPREME U PODRUČJU OBRAZOVANJA OŠTEĆENE POTRESOM | AE68: 0970 | AF68: Istraživanje i razvoj obrazovanja | AG68: 01 | AH68: 015
A69: =IF(E69="","",VLOOKUP('OPĆI DIO'!$C$1,'OPĆI DIO'!$L$4:$U$138,10,FALSE)) -> 08006 | B69: =IF(E69="","",VLOOKUP('OPĆI DIO'!$C$1,'OPĆI DIO'!$L$4:$U$138,9,FALSE)) -> Sveučilišta i veleučilišta u Republici Hrvatskoj | C69: 43 | D69: Ostali prihodi za posebne namjene | E69: 3213 | F69: Stručno usavršavanje zaposlenika | G69: A679089 | H69: REDOVNA DJELATNOST SVEUČILIŠTA U RIJECI (IZ EVIDENCIJSKIH PRIHODA) | I69: 0942 | J69: 731 | K69: -731 | L69: 0 | N69: =IF(C69="","",'OPĆI DIO'!$C$1) -> 38454 SVEUČILIŠTE U RIJECI - AKADEMIJA PRIMJENJENIH UMJETNOSTI | O69: 321 | P69: 32 | Q69: 43 | R69: 94 | S69: 3 | W69: 3721 | X69: Naknade građanima i kućanstvima u novcu | Z69: 37 | AA69: 372 | AC69: K768070 | AD69: OBNOVA INFRASTRUKTURE U PODRUČJU OBRAZOVANJA OŠTEĆENE POTRESOM FSEU.2022.MZO | AE69: 0970 | AF69: Istraživanje i razvoj obrazovanja | AG69: 01 | AH69: 015
A70: =IF(E70="","",VLOOKUP('OPĆI DIO'!$C$1,'OPĆI DIO'!$L$4:$U$138,10,FALSE)) -> 08006 | B70: =IF(E70="","",VLOOKUP('OPĆI DIO'!$C$1,'OPĆI DIO'!$L$4:$U$138,9,FALSE)) -> Sveučilišta i veleučilišta u Republici Hrvatskoj | C70: 43 | D70: Ostali prihodi za posebne namjene | E70: 3214 | F70: Ostale naknade troškova zaposlenima | G70: A679089 | H70: REDOVNA DJELATNOST SVEUČILIŠTA U RIJECI (IZ EVIDENCIJSKIH PRIHODA) | I70: 0942 | K70: 0 | L70: 0 | N70: =IF(C70="","",'OPĆI DIO'!$C$1) -> 38454 SVEUČILIŠTE U RIJECI - AKADEMIJA PRIMJENJENIH UMJETNOSTI | O70: 321 | P70: 32 | Q70: 43 | R70: 94 | S70: 3 | W70: 3722 | X70: Naknade građanima i kućanstvima u naravi | Z70: 37 | AA70: 372 | AC70: K768074 | AD70: UČENIČKI DOM U KOPRIVNICI | AE70: 0970 | AF70: Istraživanje i razvoj obrazovanja | AG70: 01 | AH70: 015
A71: =IF(E71="","",VLOOKUP('OPĆI DIO'!$C$1,'OPĆI DIO'!$L$4:$U$138,10,FALSE)) -> 08006 | B71: =IF(E71="","",VLOOKUP('OPĆI DIO'!$C$1,'OPĆI DIO'!$L$4:$U$138,9,FALSE)) -> Sveučilišta i veleučilišta u Republici Hrvatskoj | C71: 43 | D71: Ostali prihodi za posebne namjene | E71: 3221 | F71: Uredski materijal i ostali materijalni rashodi | G71: A679089 | H71: REDOVNA DJELATNOST SVEUČILIŠTA U RIJECI (IZ EVIDENCIJSKIH PRIHODA) | I71: 0942 | J71: 447 | K71: -440 | L71: 7 | N71: =IF(C71="","",'OPĆI DIO'!$C$1) -> 38454 SVEUČILIŠTE U RIJECI - AKADEMIJA PRIMJENJENIH UMJETNOSTI | O71: 322 | P71: 32 | Q71: 43 | R71: 94 | S71: 3 | W71: 3723 | X71: Naknade građanima i kućanstvima iz EU sredstava | Z71: 37 | AA71: 372 | AC71: K818050 | AD71: OP UČINKOVITI LJUDSKI POTENCIJALI 2014.-2020., PRIORITET 3 i 4 | AE71: 0950 | AF71: Obrazovanje koje se ne može definirati po stupnju | AG71: 01 | AH71: 015
A72: =IF(E72="","",VLOOKUP('OPĆI DIO'!$C$1,'OPĆI DIO'!$L$4:$U$138,10,FALSE)) -> 08006 | B72: =IF(E72="","",VLOOKUP('OPĆI DIO'!$C$1,'OPĆI DIO'!$L$4:$U$138,9,FALSE)) -> Sveučilišta i veleučilišta u Republici Hrvatskoj | C72: 43 | D72: Ostali prihodi za posebne namjene | E72: 3222 | F72: Materijal i sirovine | G72: A679089 | H72: REDOVNA DJELATNOST SVEUČILIŠTA U RIJECI (IZ EVIDENCIJSKIH PRIHODA) | I72: 0942 | J72: 15,000 | K72: -6,500 | L72: 8,500 | N72: =IF(C72="","",'OPĆI DIO'!$C$1) -> 38454 SVEUČILIŠTE U RIJECI - AKADEMIJA PRIMJENJENIH UMJETNOSTI | O72: 322 | P72: 32 | Q72: 43 | R72: 94 | S72: 3 | W72: 3811 | X72: Tekuće donacije u novcu | Z72: 38 | AA72: 381 | AC72: T580070 | AD72: SANACIJA POSLJEDICA POTRESA | AE72: 0970 | AF72: Istraživanje i razvoj obrazovanja | AG72: 01 | AH72: 015
A73: =IF(E73="","",VLOOKUP('OPĆI DIO'!$C$1,'OPĆI DIO'!$L$4:$U$138,10,FALSE)) -> 08006 | B73: =IF(E73="","",VLOOKUP('OPĆI DIO'!$C$1,'OPĆI DIO'!$L$4:$U$138,9,FALSE)) -> Sveučilišta i veleučilišta u Republici Hrvatskoj | C73: 43 | D73: Ostali prihodi za posebne namjene | E73: 3224 | F73: Materijal i dijelovi za tekuće i investicijsko održavanje | G73: A679089 | H73: REDOVNA DJELATNOST SVEUČILIŠTA U RIJECI (IZ EVIDENCIJSKIH PRIHODA) | I73: 0942 | J73: 500 | K73: -400 | L73: 100 | N73: =IF(C73="","",'OPĆI DIO'!$C$1) -> 38454 SVEUČILIŠTE U RIJECI - AKADEMIJA PRIMJENJENIH UMJETNOSTI | O73: 322 | P73: 32 | Q73: 43 | R73: 94 | S73: 3 | W73: 3812 | X73: Tekuće donacije u naravi | Z73: 38 | AA73: 381 | AC73: A578003 | AD73: ODGOJ I NAOBRAZBA DJECE PRIPADNIKA NACIONALNIH MANJINA | AE73: 0911 | AF73: Predškolsko obrazovanje | AG73: 01 | AH73: 015
A74: =IF(E74="","",VLOOKUP('OPĆI DIO'!$C$1,'OPĆI DIO'!$L$4:$U$138,10,FALSE)) -> 08006 | B74: =IF(E74="","",VLOOKUP('OPĆI DIO'!$C$1,'OPĆI DIO'!$L$4:$U$138,9,FALSE)) -> Sveučilišta i veleučilišta u Republici Hrvatskoj | C74: 43 | D74: Ostali prihodi za posebne namjene | E74: 3225 | F74: Sitni inventar i autogume | G74: A679089 | H74: REDOVNA DJELATNOST SVEUČILIŠTA U RIJECI (IZ EVIDENCIJSKIH PRIHODA) | I74: 0942 | J74: 500 | K74: -300 | L74: 200 | N74: =IF(C74="","",'OPĆI DIO'!$C$1) -> 38454 SVEUČILIŠTE U RIJECI - AKADEMIJA PRIMJENJENIH UMJETNOSTI | O74: 322 | P74: 32 | Q74: 43 | R74: 94 | S74: 3 | W74: 3813 | X74: Tekuće donacije iz EU sredstava | Z74: =LEFT(W74,2) -> 38 | AA74: =LEFT(W74,3) -> 381 | AC74: A578004 | AD74: PREDŠKOLSKI ODGOJ I OBRAZOVANJE DJECE S TEŠKOĆAMA U RAZVOJU (SUFINANCIRANJE) | AE74: 0911 | AF74: Predškolsko obrazovanje | AG74: 09 | AH74: 097
A75: =IF(E75="","",VLOOKUP('OPĆI DIO'!$C$1,'OPĆI DIO'!$L$4:$U$138,10,FALSE)) -> 08006 | B75: =IF(E75="","",VLOOKUP('OPĆI DIO'!$C$1,'OPĆI DIO'!$L$4:$U$138,9,FALSE)) -> Sveučilišta i veleučilišta u Republici Hrvatskoj | C75: 43 | D75: Ostali prihodi za posebne namjene | E75: 3227 | F75: Službena, radna i zaštitna odjeća i obuća | G75: A679089 | H75: REDOVNA DJELATNOST SVEUČILIŠTA U RIJECI (IZ EVIDENCIJSKIH PRIHODA) | I75: 0942 | J75: 500 | K75: -500 | L75: 0 | N75: =IF(C75="","",'OPĆI DIO'!$C$1) -> 38454 SVEUČILIŠTE U RIJECI - AKADEMIJA PRIMJENJENIH UMJETNOSTI | O75: 322 | P75: 32 | Q75: 43 | R75: 94 | S75: 3 | W75: 3821 | X75: Kapitalne donacije neprofitnim organizacijama | Z75: 38 | AA75: 382 | AC75: A578008 | AD75: ODGOJ I NAOBRAZBA DJECE U PROGRAMIMA PREDŠKOLE | AE75: 0911 | AF75: Predškolsko obrazovanje | AG75: 09 | AH75: 097
A76: =IF(E76="","",VLOOKUP('OPĆI DIO'!$C$1,'OPĆI DIO'!$L$4:$U$138,10,FALSE)) -> 08006 | B76: =IF(E76="","",VLOOKUP('OPĆI DIO'!$C$1,'OPĆI DIO'!$L$4:$U$138,9,FALSE)) -> Sveučilišta i veleučilišta u Republici Hrvatskoj | C76: 43 | D76: Ostali prihodi za posebne namjene | E76: 3231 | F76: Usluge telefona, interneta, pošte i prijevoza | G76: A679089 | H76: REDOVNA DJELATNOST SVEUČILIŠTA U RIJECI (IZ EVIDENCIJSKIH PRIHODA) | I76: 0942 | J76: 200 | K76: -200 | L76: 0 | N76: =IF(C76="","",'OPĆI DIO'!$C$1) -> 38454 SVEUČILIŠTE U RIJECI - AKADEMIJA PRIMJENJENIH UMJETNOSTI | O76: 323 | P76: 32 | Q76: 43 | R76: 94 | S76: 3 | W76: 3831 | X76: Naknade šteta pravnim i fizičkim osobama | Z76: 38 | AA76: 383 | AC76: A578009 | AD76: ODGOJ I OBRAZOVANJE DAROVITE DJECE PREDŠKOLSKE DOBI U DJEČJIM VRTIĆIMA | AE76: 0911 | AF76: Predškolsko obrazovanje | AG76: 01 | AH76: 015
A77: =IF(E77="","",VLOOKUP('OPĆI DIO'!$C$1,'OPĆI DIO'!$L$4:$U$138,10,FALSE)) -> 08006 | B77: =IF(E77="","",VLOOKUP('OPĆI DIO'!$C$1,'OPĆI DIO'!$L$4:$U$138,9,FALSE)) -> Sveučilišta i veleučilišta u Republici Hrvatskoj | C77: 43 | D77: Ostali prihodi za posebne namjene | E77: 3232 | F77: Usluge tekućeg i investicijskog održavanja | G77: A679089 | H77: REDOVNA DJELATNOST SVEUČILIŠTA U RIJECI (IZ EVIDENCIJSKIH PRIHODA) | I77: 0942 | J77: 500 | K77: 1,000 | L77: 1,500 | N77: =IF(C77="","",'OPĆI DIO'!$C$1) -> 38454 SVEUČILIŠTE U RIJECI - AKADEMIJA PRIMJENJENIH UMJETNOSTI | O77: 323 | P77: 32 | Q77: 43 | R77: 94 | S77: 3 | W77: 3832 | X77: Penali, ležarine i drugo | Z77: 38 | AA77: 383 | AC77: K580071 | AD77: KAPITALNE DONACIJE DJEČJIM VRTIĆIMA | AE77: 0911 | AF77: Predškolsko obrazovanje | AG77: 09 | AH77: 097
A78: =IF(E78="","",VLOOKUP('OPĆI DIO'!$C$1,'OPĆI DIO'!$L$4:$U$138,10,FALSE)) -> 08006 | B78: =IF(E78="","",VLOOKUP('OPĆI DIO'!$C$1,'OPĆI DIO'!$L$4:$U$138,9,FALSE)) -> Sveučilišta i veleučilišta u Republici Hrvatskoj | C78: 43 | D78: Ostali prihodi za posebne namjene | E78: 3233 | F78: Usluge promidžbe i informiranja | G78: A679089 | H78: REDOVNA DJELATNOST SVEUČILIŠTA U RIJECI (IZ EVIDENCIJSKIH PRIHODA) | I78: 0942 | J78: 855 | K78: 0 | L78: 855 | N78: =IF(C78="","",'OPĆI DIO'!$C$1) -> 38454 SVEUČILIŠTE U RIJECI - AKADEMIJA PRIMJENJENIH UMJETNOSTI | O78: 323 | P78: 32 | Q78: 43 | R78: 94 | S78: 3 | W78: 3833 | X78: Naknade šteta zaposlenicima | Z78: 38 | AA78: 383 | AC78: K676067 | AD78: IZGRADNJA, DOGRADNJA, REKONSTRUKCIJA I OPREMANJE PREDŠKOLSKIH USTANOVA - NPOO (C3.1.R1-I1) | AE78: 0911 | AF78: Predškolsko obrazovanje | AG78: 09 | AH78: 097
A79: =IF(E79="","",VLOOKUP('OPĆI DIO'!$C$1,'OPĆI DIO'!$L$4:$U$138,10,FALSE)) -> 08006 | B79: =IF(E79="","",VLOOKUP('OPĆI DIO'!$C$1,'OPĆI DIO'!$L$4:$U$138,9,FALSE)) -> Sveučilišta i veleučilišta u Republici Hrvatskoj | C79: 43 | D79: Ostali prihodi za posebne namjene | E79: 3235 | F79: Zakupnine i najamnine | G79: A679089 | H79: REDOVNA DJELATNOST SVEUČILIŠTA U RIJECI (IZ EVIDENCIJSKIH PRIHODA) | I79: 0942 | J79: 1,000 | K79: -500 | L79: 500 | N79: =IF(C79="","",'OPĆI DIO'!$C$1) -> 38454 SVEUČILIŠTE U RIJECI - AKADEMIJA PRIMJENJENIH UMJETNOSTI | O79: 323 | P79: 32 | Q79: 43 | R79: 94 | S79: 3 | W79: 3834 | X79: Ugovorene kazne i ostale naknade šteta | Z79: 38 | AA79: 383 | AC79: K676071 | AD79: FISKALNA ODRŽIVOST DJEČJIH VRTIĆA | AE79: 0911 | AF79: Predškolsko obrazovanje | AG79: 01 | AH79: 015
A80: =IF(E80="","",VLOOKUP('OPĆI DIO'!$C$1,'OPĆI DIO'!$L$4:$U$138,10,FALSE)) -> 08006 | B80: =IF(E80="","",VLOOKUP('OPĆI DIO'!$C$1,'OPĆI DIO'!$L$4:$U$138,9,FALSE)) -> Sveučilišta i veleučilišta u Republici Hrvatskoj | C80: 43 | D80: Ostali prihodi za posebne namjene | E80: 3237 | F80: Intelektualne i osobne usluge | G80: A679089 | H80: REDOVNA DJELATNOST SVEUČILIŠTA U RIJECI (IZ EVIDENCIJSKIH PRIHODA) | I80: 0942 | J80: 14,200 | K80: 3,000 | L80: 17,200 | N80: =IF(C80="","",'OPĆI DIO'!$C$1) -> 38454 SVEUČILIŠTE U RIJECI - AKADEMIJA PRIMJENJENIH UMJETNOSTI | O80: 323 | P80: 32 | Q80: 43 | R80: 94 | S80: 3 | W80: 3835 | X80: Ostale kazne | Z80: 38 | AA80: 383 | AC80: A557041 | AD80: PREUZIMANJE OBVEZA ZA PROJEKTE JAVNO PRIVATNOG PARTNERSTVA U VARAŽDINSKOJ I KOPRIVNIČKO-KRIŽEVAČKOJ ŽUPANIJI | AE80: 0912 | AF80: Osnovno obrazovanje | AG80: 09 | AH80: 097
A81: =IF(E81="","",VLOOKUP('OPĆI DIO'!$C$1,'OPĆI DIO'!$L$4:$U$138,10,FALSE)) -> 08006 | B81: =IF(E81="","",VLOOKUP('OPĆI DIO'!$C$1,'OPĆI DIO'!$L$4:$U$138,9,FALSE)) -> Sveučilišta i veleučilišta u Republici Hrvatskoj | C81: 43 | D81: Ostali prihodi za posebne namjene | E81: 3238 | F81: Računalne usluge | G81: A679089 | H81: REDOVNA DJELATNOST SVEUČILIŠTA U RIJECI (IZ EVIDENCIJSKIH PRIHODA) | I81: 0942 | J81: 500 | K81: -500 | L81: 0 | N81: =IF(C81="","",'OPĆI DIO'!$C$1) -> 38454 SVEUČILIŠTE U RIJECI - AKADEMIJA PRIMJENJENIH UMJETNOSTI | O81: 323 | P81: 32 | Q81: 43 | R81: 94 | S81: 3 | W81: 3861 | X81: Kapitalne pomoći kreditnim i ostalim financijskim institucijama te trgovačkim društvima u javnom sektoru | Z81: =LEFT(W81,2) -> 38 | AA81: =LEFT(W81,3) -> 386 | AC81: A579000 | AD81: OSNOVNOŠKOLSKO OBRAZOVANJE | AE81: 0180 | AF81: Prijenosi općeg karaktera između različitih državnih razina | AG81: 09 | AH81: 094
A82: =IF(E82="","",VLOOKUP('OPĆI DIO'!$C$1,'OPĆI DIO'!$L$4:$U$138,10,FALSE)) -> 08006 | B82: =IF(E82="","",VLOOKUP('OPĆI DIO'!$C$1,'OPĆI DIO'!$L$4:$U$138,9,FALSE)) -> Sveučilišta i veleučilišta u Republici Hrvatskoj | C82: 43 | D82: Ostali prihodi za posebne namjene | E82: 3239 | F82: Ostale usluge | G82: A679089 | H82: REDOVNA DJELATNOST SVEUČILIŠTA U RIJECI (IZ EVIDENCIJSKIH PRIHODA) | I82: 0942 | J82: 467 | K82: -431 | L82: 36 | N82: =IF(C82="","",'OPĆI DIO'!$C$1) -> 38454 SVEUČILIŠTE U RIJECI - AKADEMIJA PRIMJENJENIH UMJETNOSTI | O82: 323 | P82: 32 | Q82: 43 | R82: 94 | S82: 3 | W82: 3862 | X82: Kapitalne pomoći kreditnim i ostalim financijskim institucijama te trgovačkim društvima i zadrugama izvan javnog sektora | Z82: =LEFT(W82,2) -> 38 | AA82: =LEFT(W82,3) -> 386 | AC82: A579003 | AD82: ODGOJ I NAOBRAZBA UČENIKA S TEŠKOĆAMA U RAZVOJU U OSNOVNIM ŠKOLAMA | AE82: 0912 | AF82: Osnovno obrazovanje | AG82: 09 | AH82: 094
A83: =IF(E83="","",VLOOKUP('OPĆI DIO'!$C$1,'OPĆI DIO'!$L$4:$U$138,10,FALSE)) -> 08006 | B83: =IF(E83="","",VLOOKUP('OPĆI DIO'!$C$1,'OPĆI DIO'!$L$4:$U$138,9,FALSE)) -> Sveučilišta i veleučilišta u Republici Hrvatskoj | C83: 43 | D83: Ostali prihodi za posebne namjene | E83: 3241 | F83: Naknade troškova osobama izvan radnog odnosa | G83: A679089 | H83: REDOVNA DJELATNOST SVEUČILIŠTA U RIJECI (IZ EVIDENCIJSKIH PRIHODA) | I83: 0942 | J83: 342 | K83: -142 | L83: 200 | N83: =IF(C83="","",'OPĆI DIO'!$C$1) -> 38454 SVEUČILIŠTE U RIJECI - AKADEMIJA PRIMJENJENIH UMJETNOSTI | O83: 324 | P83: 32 | Q83: 43 | R83: 94 | S83: 3 | W83: 3863 | X83: Kapitalne pomoći poljoprivrednicima i obrtnicima | Z83: =LEFT(W83,2) -> 38 | AA83: =LEFT(W83,3) -> 386 | AC83: A579007 | AD83: PRAVOMOĆNE SUDSKE PRESUDE | AE83: 0180 | AF83: Prijenosi općeg karaktera između različitih državnih razina | AG83: 09 | AH83: 094
A84: =IF(E84="","",VLOOKUP('OPĆI DIO'!$C$1,'OPĆI DIO'!$L$4:$U$138,10,FALSE)) -> 08006 | B84: =IF(E84="","",VLOOKUP('OPĆI DIO'!$C$1,'OPĆI DIO'!$L$4:$U$138,9,FALSE)) -> Sveučilišta i veleučilišta u Republici Hrvatskoj | C84: 43 | D84: Ostali prihodi za posebne namjene | E84: 3292 | F84: Premije osiguranja | G84: A679089 | H84: REDOVNA DJELATNOST SVEUČILIŠTA U RIJECI (IZ EVIDENCIJSKIH PRIHODA) | I84: 0942 | J84: 500 | K84: -500 | L84: 0 | N84: =IF(C84="","",'OPĆI DIO'!$C$1) -> 38454 SVEUČILIŠTE U RIJECI - AKADEMIJA PRIMJENJENIH UMJETNOSTI | O84: 329 | P84: 32 | Q84: 43 | R84: 94 | S84: 3 | W84: 3865 | X84: Kapitalne pomoći trgovačkim društvima i obrtnicima po protestiranim jamstvima u tuzemstvu i inozemstvu | Z84: =LEFT(W84,2) -> 38 | AA84: =LEFT(W84,3) -> 386 | AC84: A579069 | AD84: RAZVOJ PREDŠKOLSKOG I OSNOVNOŠKOLSKOG SUSTAVA ODGOJA I OBRAZOVANJA | AE84: 0912 | AF84: Osnovno obrazovanje | AG84: 09 | AH84: 094
A85: =IF(E85="","",VLOOKUP('OPĆI DIO'!$C$1,'OPĆI DIO'!$L$4:$U$138,10,FALSE)) -> 08006 | B85: =IF(E85="","",VLOOKUP('OPĆI DIO'!$C$1,'OPĆI DIO'!$L$4:$U$138,9,FALSE)) -> Sveučilišta i veleučilišta u Republici Hrvatskoj | C85: 43 | D85: Ostali prihodi za posebne namjene | E85: 3293 | F85: Reprezentacija | G85: A679089 | H85: REDOVNA DJELATNOST SVEUČILIŠTA U RIJECI (IZ EVIDENCIJSKIH PRIHODA) | I85: 0942 | J85: 431 | K85: -231 | L85: 200 | N85: =IF(C85="","",'OPĆI DIO'!$C$1) -> 38454 SVEUČILIŠTE U RIJECI - AKADEMIJA PRIMJENJENIH UMJETNOSTI | O85: 329 | P85: 32 | Q85: 43 | R85: 94 | S85: 3 | W85: 4111 | X85: Zemljište | Z85: =LEFT(W85,2) -> 41 | AA85: =LEFT(W85,3) -> 411 | AC85: A768072 | AD85: PREHRANA ZA UČENIKE U OSNOVNIM ŠKOLAMA | AE85: 0912 | AF85: Osnovno obrazovanje | AG85: 09 | AH85: 094
A86: =IF(E86="","",VLOOKUP('OPĆI DIO'!$C$1,'OPĆI DIO'!$L$4:$U$138,10,FALSE)) -> 08006 | B86: =IF(E86="","",VLOOKUP('OPĆI DIO'!$C$1,'OPĆI DIO'!$L$4:$U$138,9,FALSE)) -> Sveučilišta i veleučilišta u Republici Hrvatskoj | C86: 43 | D86: Ostali prihodi za posebne namjene | E86: 3294 | F86: Članarine i norme | G86: A679089 | H86: REDOVNA DJELATNOST SVEUČILIŠTA U RIJECI (IZ EVIDENCIJSKIH PRIHODA) | I86: 0942 | J86: 1,000 | K86: -200 | L86: 800 | N86: =IF(C86="","",'OPĆI DIO'!$C$1) -> 38454 SVEUČILIŠTE U RIJECI - AKADEMIJA PRIMJENJENIH UMJETNOSTI | O86: 329 | P86: 32 | Q86: 43 | R86: 94 | S86: 3 | W86: 4113 | X86: Ostala prirodna materijalna imovina | Z86: 41 | AA86: 411 | AC86: K110283 | AD86: OPREMANJE OSNOVNOŠKOLSKIH KNJIŽNICA OBVEZNOM LEKTIROM I STRUČNOM LITERATUROM | AE86: 0912 | AF86: Osnovno obrazovanje | AG86: 09 | AH86: 097
A87: =IF(E87="","",VLOOKUP('OPĆI DIO'!$C$1,'OPĆI DIO'!$L$4:$U$138,10,FALSE)) -> 08006 | B87: =IF(E87="","",VLOOKUP('OPĆI DIO'!$C$1,'OPĆI DIO'!$L$4:$U$138,9,FALSE)) -> Sveučilišta i veleučilišta u Republici Hrvatskoj | C87: 43 | D87: Ostali prihodi za posebne namjene | E87: 3299 | F87: Ostali nespomenuti rashodi poslovanja | G87: A679089 | H87: REDOVNA DJELATNOST SVEUČILIŠTA U RIJECI (IZ EVIDENCIJSKIH PRIHODA) | I87: 0942 | J87: 181 | K87: -181 | L87: 0 | N87: =IF(C87="","",'OPĆI DIO'!$C$1) -> 38454 SVEUČILIŠTE U RIJECI - AKADEMIJA PRIMJENJENIH UMJETNOSTI | O87: 329 | P87: 32 | Q87: 43 | R87: 94 | S87: 3 | W87: 4122 | X87: Koncesije | Z87: 41 | AA87: 412 | AC87: K578064 | AD87: CENTAR ZA ODGOJ I OBRAZOVANJE ČAKOVEC | AE87: 0912 | AF87: Osnovno obrazovanje | AG87: 01 | AH87: 015
A88: =IF(E88="","",VLOOKUP('OPĆI DIO'!$C$1,'OPĆI DIO'!$L$4:$U$138,10,FALSE)) -> 08006 | B88: =IF(E88="","",VLOOKUP('OPĆI DIO'!$C$1,'OPĆI DIO'!$L$4:$U$138,9,FALSE)) -> Sveučilišta i veleučilišta u Republici Hrvatskoj | C88: 43 | D88: Ostali prihodi za posebne namjene | E88: 3431 | F88: Bankarske usluge i usluge platnog prometa | G88: A679089 | H88: REDOVNA DJELATNOST SVEUČILIŠTA U RIJECI (IZ EVIDENCIJSKIH PRIHODA) | I88: 0942 | J88: 2,000 | K88: 0 | L88: 2,000 | N88: =IF(C88="","",'OPĆI DIO'!$C$1) -> 38454 SVEUČILIŠTE U RIJECI - AKADEMIJA PRIMJENJENIH UMJETNOSTI | O88: 343 | P88: 34 | Q88: 43 | R88: 94 | S88: 3 | W88: 4123 | X88: Licence | Z88: 41 | AA88: 412 | AC88: K733061 | AD88: OSNOVNA ŠKOLA MILAN AMRUŠ SLAVONSKI BROD | AE88: 0912 | AF88: Osnovno obrazovanje | AG88: 09 | AH88: 097
A89: =IF(E89="","",VLOOKUP('OPĆI DIO'!$C$1,'OPĆI DIO'!$L$4:$U$138,10,FALSE)) -> 08006 | B89: =IF(E89="","",VLOOKUP('OPĆI DIO'!$C$1,'OPĆI DIO'!$L$4:$U$138,9,FALSE)) -> Sveučilišta i veleučilišta u Republici Hrvatskoj | C89: 43 | D89: Ostali prihodi za posebne namjene | E89: 3691 | F89: Tekući prijenosi između proračunskih korisnika istog proraču | G89: A679089 | H89: REDOVNA DJELATNOST SVEUČILIŠTA U RIJECI (IZ EVIDENCIJSKIH PRIHODA) | I89: 0942 | J89: 1,440 | K89: -440 | L89: 1,000 | M89: 2444 SVEUČILIŠTE U RIJECI | N89: =IF(C89="","",'OPĆI DIO'!$C$1) -> 38454 SVEUČILIŠTE U RIJECI - AKADEMIJA PRIMJENJENIH UMJETNOSTI | O89: 369 | P89: 36 | Q89: 43 | R89: 94 | S89: 3 | W89: 4124 | X89: Ostala prava | Z89: 41 | AA89: 412 | AC89: K767031 | AD89: OŠ MIJATA STOJANOVIĆA U BABINOJ GREDI | AE89: 0912 | AF89: Osnovno obrazovanje | AG89: 09 | AH89: 097
A90: =IF(E90="","",VLOOKUP('OPĆI DIO'!$C$1,'OPĆI DIO'!$L$4:$U$138,10,FALSE)) -> 08006 | B90: =IF(E90="","",VLOOKUP('OPĆI DIO'!$C$1,'OPĆI DIO'!$L$4:$U$138,9,FALSE)) -> Sveučilišta i veleučilišta u Republici Hrvatskoj | C90: 43 | D90: Ostali prihodi za posebne namjene | E90: 4221 | F90: Uredska oprema i namještaj | G90: A679089 | H90: REDOVNA DJELATNOST SVEUČILIŠTA U RIJECI (IZ EVIDENCIJSKIH PRIHODA) | I90: 0942 | J90: 1,918 | K90: -1,418 | L90: 500 | N90: =IF(C90="","",'OPĆI DIO'!$C$1) -> 38454 SVEUČILIŠTE U RIJECI - AKADEMIJA PRIMJENJENIH UMJETNOSTI | O90: 422 | P90: 42 | Q90: 43 | R90: 94 | S90: 4 | W90: 4126 | X90: Ostala nematerijalna imovina | Z90: 41 | AA90: 412 | AC90: K768067 | AD90: IZGRADNJA, DOGRADNJA, REKONSTRUKCIJA I OPREMANJE OSNOVNIH ŠKOLA ZA POTREBE JEDNOSMJENSKOG RADA I CJELODNEVNE NASTAVE - NPOO (C3.1.R1-I2) | AE90: 0912 | AF90: Osnovno obrazovanje | AG90: 09 | AH90: 097
A91: =IF(E91="","",VLOOKUP('OPĆI DIO'!$C$1,'OPĆI DIO'!$L$4:$U$138,10,FALSE)) -> 08006 | B91: =IF(E91="","",VLOOKUP('OPĆI DIO'!$C$1,'OPĆI DIO'!$L$4:$U$138,9,FALSE)) -> Sveučilišta i veleučilišta u Republici Hrvatskoj | C91: 43 | D91: Ostali prihodi za posebne namjene | E91: 4222 | F91: Komunikacijska oprema | G91: A679089 | H91: REDOVNA DJELATNOST SVEUČILIŠTA U RIJECI (IZ EVIDENCIJSKIH PRIHODA) | I91: 0942 | J91: 881 | K91: -381 | L91: 500 | N91: =IF(C91="","",'OPĆI DIO'!$C$1) -> 38454 SVEUČILIŠTE U RIJECI - AKADEMIJA PRIMJENJENIH UMJETNOSTI | O91: 422 | P91: 42 | Q91: 43 | R91: 94 | S91: 4 | W91: 4211 | X91: Stambeni objekti | Z91: 42 | AA91: 421 | AC91: A580000 | AD91: SREDNJOŠKOLSKO OBRAZOVANJE | AE91: 0180 | AF91: Prijenosi općeg karaktera između različitih državnih razina | AG91: 01 | AH91: 015
A92: =IF(E92="","",VLOOKUP('OPĆI DIO'!$C$1,'OPĆI DIO'!$L$4:$U$138,10,FALSE)) -> 08006 | B92: =IF(E92="","",VLOOKUP('OPĆI DIO'!$C$1,'OPĆI DIO'!$L$4:$U$138,9,FALSE)) -> Sveučilišta i veleučilišta u Republici Hrvatskoj | C92: 43 | D92: Ostali prihodi za posebne namjene | E92: 4225 | F92: Instrumenti i uređaji | G92: A679089 | H92: REDOVNA DJELATNOST SVEUČILIŠTA U RIJECI (IZ EVIDENCIJSKIH PRIHODA) | I92: 0942 | J92: 1,000 | K92: -500 | L92: 500 | N92: =IF(C92="","",'OPĆI DIO'!$C$1) -> 38454 SVEUČILIŠTE U RIJECI - AKADEMIJA PRIMJENJENIH UMJETNOSTI | O92: 422 | P92: 42 | Q92: 43 | R92: 94 | S92: 4 | W92: 4212 | X92: Poslovni objekti | Z92: 42 | AA92: 421 | AC92: A580004 | AD92: STANDARD UČENIKA S POSEBNIM POTREBAMA | AE92: 0922 | AF92: Više srednjoškolsko obrazovanje | AG92: 01 | AH92: 015
A93: =IF(E93="","",VLOOKUP('OPĆI DIO'!$C$1,'OPĆI DIO'!$L$4:$U$138,10,FALSE)) -> 08006 | B93: =IF(E93="","",VLOOKUP('OPĆI DIO'!$C$1,'OPĆI DIO'!$L$4:$U$138,9,FALSE)) -> Sveučilišta i veleučilišta u Republici Hrvatskoj | C93: 43 | D93: Ostali prihodi za posebne namjene | E93: 4227 | F93: Uređaji, strojevi i oprema za ostale namjene | G93: A679089 | H93: REDOVNA DJELATNOST SVEUČILIŠTA U RIJECI (IZ EVIDENCIJSKIH PRIHODA) | I93: 0942 | J93: 2,000 | K93: -1,500 | L93: 500 | N93: =IF(C93="","",'OPĆI DIO'!$C$1) -> 38454 SVEUČILIŠTE U RIJECI - AKADEMIJA PRIMJENJENIH UMJETNOSTI | O93: 422 | P93: 42 | Q93: 43 | R93: 94 | S93: 4 | W93: 4213 | X93: Ceste, željeznice i ostali prometni objekti | Z93: 42 | AA93: 421 | AC93: A580007 | AD93: PRAVOMOĆNE SUDSKE PRESUDE | AE93: 0180 | AF93: Prijenosi općeg karaktera između različitih državnih razina | AG93: 01 | AH93: 015
A94: =IF(E94="","",VLOOKUP('OPĆI DIO'!$C$1,'OPĆI DIO'!$L$4:$U$138,10,FALSE)) -> 08006 | B94: =IF(E94="","",VLOOKUP('OPĆI DIO'!$C$1,'OPĆI DIO'!$L$4:$U$138,9,FALSE)) -> Sveučilišta i veleučilišta u Republici Hrvatskoj | C94: 52 | D94: Ostale pomoći | E94: 3211 | F94: Službena putovanja | G94: A679089 | H94: REDOVNA DJELATNOST SVEUČILIŠTA U RIJECI (IZ EVIDENCIJSKIH PRIHODA) | I94: 0942 | J94: 1,925 | K94: 0 | L94: 1,925 | N94: =IF(C94="","",'OPĆI DIO'!$C$1) -> 38454 SVEUČILIŠTE U RIJECI - AKADEMIJA PRIMJENJENIH UMJETNOSTI | O94: 321 | P94: 32 | Q94: 52 | R94: 94 | S94: 3 | W94: 4214 | X94: Ostali građevinski objekti | Z94: 42 | AA94: 421 | AC94: A580014 | AD94: RAZVOJ SUSTAVA OBRAZOVANJA ODRASLIH | AE94: 0922 | AF94: Više srednjoškolsko obrazovanje | AG94: 09 | AH94: 097
A95: =IF(E95="","",VLOOKUP('OPĆI DIO'!$C$1,'OPĆI DIO'!$L$4:$U$138,10,FALSE)) -> 08006 | B95: =IF(E95="","",VLOOKUP('OPĆI DIO'!$C$1,'OPĆI DIO'!$L$4:$U$138,9,FALSE)) -> Sveučilišta i veleučilišta u Republici Hrvatskoj | C95: 52 | D95: Ostale pomoći | E95: 3237 | F95: Intelektualne i osobne usluge | G95: A679089 | H95: REDOVNA DJELATNOST SVEUČILIŠTA U RIJECI (IZ EVIDENCIJSKIH PRIHODA) | I95: 0942 | J95: 4,853 | K95: 15,000 | L95: 19,853 | N95: =IF(C95="","",'OPĆI DIO'!$C$1) -> 38454 SVEUČILIŠTE U RIJECI - AKADEMIJA PRIMJENJENIH UMJETNOSTI | O95: 323 | P95: 32 | Q95: 52 | R95: 94 | S95: 3 | W95: 4221 | X95: Uredska oprema i namještaj | Z95: 42 | AA95: 422 | AC95: A580037 | AD95: JAVNI MEĐUMJESNI PRIJEVOZ ZA UČENIKE | AE95: 0922 | AF95: Više srednjoškolsko obrazovanje | AG95: 09 | AH95: 097
A96: =IF(E96="","",VLOOKUP('OPĆI DIO'!$C$1,'OPĆI DIO'!$L$4:$U$138,10,FALSE)) -> 08006 | B96: =IF(E96="","",VLOOKUP('OPĆI DIO'!$C$1,'OPĆI DIO'!$L$4:$U$138,9,FALSE)) -> Sveučilišta i veleučilišta u Republici Hrvatskoj | C96: 52 | D96: Ostale pomoći | E96: 3293 | F96: Reprezentacija | G96: A679089 | H96: REDOVNA DJELATNOST SVEUČILIŠTA U RIJECI (IZ EVIDENCIJSKIH PRIHODA) | I96: 0942 | J96: 100 | K96: 0 | L96: 100 | N96: =IF(C96="","",'OPĆI DIO'!$C$1) -> 38454 SVEUČILIŠTE U RIJECI - AKADEMIJA PRIMJENJENIH UMJETNOSTI | O96: 329 | P96: 32 | Q96: 52 | R96: 94 | S96: 3 | W96: 4222 | X96: Komunikacijska oprema | Z96: 42 | AA96: 422 | AC96: A580044 | AD96: RAZVOJ SUSTAVA SREDNJOŠKOLSKOG ODGOJA I OBRAZOVANJA | AE96: 0922 | AF96: Više srednjoškolsko obrazovanje | AG96: 09 | AH96: 097
A97: =IF(E97="","",VLOOKUP('OPĆI DIO'!$C$1,'OPĆI DIO'!$L$4:$U$138,10,FALSE)) -> 08006 | B97: =IF(E97="","",VLOOKUP('OPĆI DIO'!$C$1,'OPĆI DIO'!$L$4:$U$138,9,FALSE)) -> Sveučilišta i veleučilišta u Republici Hrvatskoj | C97: 52 | D97: Ostale pomoći | E97: 3241 | F97: Naknade troškova osobama izvan radnog odnosa | G97: A679089 | H97: REDOVNA DJELATNOST SVEUČILIŠTA U RIJECI (IZ EVIDENCIJSKIH PRIHODA) | I97: 0942 | J97: 100 | K97: 1,000 | L97: 1,100 | N97: =IF(C97="","",'OPĆI DIO'!$C$1) -> 38454 SVEUČILIŠTE U RIJECI - AKADEMIJA PRIMJENJENIH UMJETNOSTI | O97: 324 | P97: 32 | Q97: 52 | R97: 94 | S97: 3 | W97: 4223 | X97: Oprema za održavanje i zaštitu | Z97: 42 | AA97: 422 | AC97: A767013 | AD97: RAZVOJ SUSTAVA OSIGURANJA KVALITETE | AE97: 0922 | AF97: Više srednjoškolsko obrazovanje | AG97: 09 | AH97: 097
A98: =IF(E98="","",VLOOKUP('OPĆI DIO'!$C$1,'OPĆI DIO'!$L$4:$U$138,10,FALSE)) -> 08006 | B98: =IF(E98="","",VLOOKUP('OPĆI DIO'!$C$1,'OPĆI DIO'!$L$4:$U$138,9,FALSE)) -> Sveučilišta i veleučilišta u Republici Hrvatskoj | C98: 52 | D98: Ostale pomoći | E98: 3221 | F98: Uredski materijal i ostali materijalni rashodi | G98: A679089 | H98: REDOVNA DJELATNOST SVEUČILIŠTA U RIJECI (IZ EVIDENCIJSKIH PRIHODA) | I98: 0942 | J98: 500 | K98: 0 | L98: 500 | N98: =IF(C98="","",'OPĆI DIO'!$C$1) -> 38454 SVEUČILIŠTE U RIJECI - AKADEMIJA PRIMJENJENIH UMJETNOSTI | O98: 322 | P98: 32 | Q98: 52 | R98: 94 | S98: 3 | W98: 4224 | X98: Medicinska i laboratorijska oprema | Z98: 42 | AA98: 422 | AC98: K110291 | AD98: OPREMANJE SREDNJOŠKOLSKIH KNJIŽNICA LEKTIROM I STRUČNOM LITERATUROM | AE98: 0922 | AF98: Više srednjoškolsko obrazovanje | AG98: 09 | AH98: 097
A99: =IF(E99="","",VLOOKUP('OPĆI DIO'!$C$1,'OPĆI DIO'!$L$4:$U$138,10,FALSE)) -> 08006 | B99: =IF(E99="","",VLOOKUP('OPĆI DIO'!$C$1,'OPĆI DIO'!$L$4:$U$138,9,FALSE)) -> Sveučilišta i veleučilišta u Republici Hrvatskoj | C99: 52 | D99: Ostale pomoći | E99: 3222 | F99: Materijal i sirovine | G99: A679089 | H99: REDOVNA DJELATNOST SVEUČILIŠTA U RIJECI (IZ EVIDENCIJSKIH PRIHODA) | I99: 0942 | J99: 5,000 | K99: 0 | L99: 5,000 | N99: =IF(C99="","",'OPĆI DIO'!$C$1) -> 38454 SVEUČILIŠTE U RIJECI - AKADEMIJA PRIMJENJENIH UMJETNOSTI | O99: 322 | P99: 32 | Q99: 52 | R99: 94 | S99: 3 | W99: 4225 | X99: Instrumenti i uređaji | Z99: 42 | AA99: 422 | AC99: K578068 | AD99: IZGRADNJA, DOGRADNJA, REKONSTRUKCIJA I OPREMANJE SREDNJIH ŠKOLA - NPOO (C3.1.R1-I3) | AE99: 0922 | AF99: Više srednjoškolsko obrazovanje | AG99: 09 | AH99: 097
A100: =IF(E100="","",VLOOKUP('OPĆI DIO'!$C$1,'OPĆI DIO'!$L$4:$U$138,10,FALSE)) -> 08006 | B100: =IF(E100="","",VLOOKUP('OPĆI DIO'!$C$1,'OPĆI DIO'!$L$4:$U$138,9,FALSE)) -> Sveučilišta i veleučilišta u Republici Hrvatskoj | C100: 52 | D100: Ostale pomoći | E100: 3225 | F100: Sitni inventar i autogume | G100: A679089 | H100: REDOVNA DJELATNOST SVEUČILIŠTA U RIJECI (IZ EVIDENCIJSKIH PRIHODA) | I100: 0942 | J100: 1,000 | K100: 0 | L100: 1,000 | N100: =IF(C100="","",'OPĆI DIO'!$C$1) -> 38454 SVEUČILIŠTE U RIJECI - AKADEMIJA PRIMJENJENIH UMJETNOSTI | O100: 322 | P100: 32 | Q100: 52 | R100: 94 | S100: 3 | W100: 4226 | X100: Sportska i glazbena oprema | Z100: 42 | AA100: 422 | AC100: K676058 | AD100: PROSVJETNO-KULTURNI CENTAR MAĐARA - IZGRADNJA UČENIČKOG DOMA | AE100: 0922 | AF100: Više srednjoškolsko obrazovanje | AG100: 09 | AH100: 097
A101: =IF(E101="","",VLOOKUP('OPĆI DIO'!$C$1,'OPĆI DIO'!$L$4:$U$138,10,FALSE)) -> 08006 | B101: =IF(E101="","",VLOOKUP('OPĆI DIO'!$C$1,'OPĆI DIO'!$L$4:$U$138,9,FALSE)) -> Sveučilišta i veleučilišta u Republici Hrvatskoj | C101: 52 | D101: Ostale pomoći | E101: 3231 | F101: Usluge telefona, interneta, pošte i prijevoza | G101: A679089 | H101: REDOVNA DJELATNOST SVEUČILIŠTA U RIJECI (IZ EVIDENCIJSKIH PRIHODA) | I101: 0942 | J101: 200 | K101: 0 | L101: 200 | N101: =IF(C101="","",'OPĆI DIO'!$C$1) -> 38454 SVEUČILIŠTE U RIJECI - AKADEMIJA PRIMJENJENIH UMJETNOSTI | O101: 323 | P101: 32 | Q101: 52 | R101: 94 | S101: 3 | W101: 4227 | X101: Uređaji, strojevi i oprema za ostale namjene | Z101: 42 | AA101: 422 | AC101: K676064 | AD101: TALIJANSKA SŠ LEONARDO DA VINCI BUJE-REKONSTRUKCIJA I DOGRADNJA | AE101: 0922 | AF101: Više srednjoškolsko obrazovanje | AG101: 09 | AH101: 097
A102: =IF(E102="","",VLOOKUP('OPĆI DIO'!$C$1,'OPĆI DIO'!$L$4:$U$138,10,FALSE)) -> 08006 | B102: =IF(E102="","",VLOOKUP('OPĆI DIO'!$C$1,'OPĆI DIO'!$L$4:$U$138,9,FALSE)) -> Sveučilišta i veleučilišta u Republici Hrvatskoj | C102: 52 | D102: Ostale pomoći | E102: 3233 | F102: Usluge promidžbe i informiranja | G102: A679089 | H102: REDOVNA DJELATNOST SVEUČILIŠTA U RIJECI (IZ EVIDENCIJSKIH PRIHODA) | I102: 0942 | K102: 1,000 | L102: 1,000 | N102: =IF(C102="","",'OPĆI DIO'!$C$1) -> 38454 SVEUČILIŠTE U RIJECI - AKADEMIJA PRIMJENJENIH UMJETNOSTI | O102: 323 | P102: 32 | Q102: 52 | R102: 94 | S102: 3 | W102: 4231 | X102: Prijevozna sredstva u cestovnom prometu | Z102: 42 | AA102: 423 | AC102: K676064 | AD102: TALIJANSKA SŠ LEONARDO DA VINCI BUJE-REKONSTRUKCIJA I DOGRADNJA | AE102: 0970 | AF102: Istraživanje i razvoj obrazovanja | AG102: 01 | AH102: 015
A103: =IF(E103="","",VLOOKUP('OPĆI DIO'!$C$1,'OPĆI DIO'!$L$4:$U$138,10,FALSE)) -> 08006 | B103: =IF(E103="","",VLOOKUP('OPĆI DIO'!$C$1,'OPĆI DIO'!$L$4:$U$138,9,FALSE)) -> Sveučilišta i veleučilišta u Republici Hrvatskoj | C103: 52 | D103: Ostale pomoći | E103: 3239 | F103: Ostale usluge | G103: A679089 | H103: REDOVNA DJELATNOST SVEUČILIŠTA U RIJECI (IZ EVIDENCIJSKIH PRIHODA) | I103: 0942 | J103: 2,500 | K103: 0 | L103: 2,500 | N103: =IF(C103="","",'OPĆI DIO'!$C$1) -> 38454 SVEUČILIŠTE U RIJECI - AKADEMIJA PRIMJENJENIH UMJETNOSTI | O103: 323 | P103: 32 | Q103: 52 | R103: 94 | S103: 3 | W103: 4233 | X103: Prijevozna sredstva u pomorskom i riječnom prometu | Z103: =LEFT(W103,2) -> 42 | AA103: 423 | AC103: K676074 | AD103: IZGRADNJA UČENIČKOG DOMA U DARUVARU | AE103: 0922 | AF103: Više srednjoškolsko obrazovanje | AG103: 09 | AH103: 092
A104: =IF(E104="","",VLOOKUP('OPĆI DIO'!$C$1,'OPĆI DIO'!$L$4:$U$138,10,FALSE)) -> 08006 | B104: =IF(E104="","",VLOOKUP('OPĆI DIO'!$C$1,'OPĆI DIO'!$L$4:$U$138,9,FALSE)) -> Sveučilišta i veleučilišta u Republici Hrvatskoj | C104: 52 | D104: Ostale pomoći | E104: 3691 | F104: Tekući prijenosi između proračunskih korisnika istog proraču | G104: A679089 | H104: REDOVNA DJELATNOST SVEUČILIŠTA U RIJECI (IZ EVIDENCIJSKIH PRIHODA) | I104: 0942 | K104: 4,000 | L104: 4,000 | M104: 2493 SVEUČILIŠTE U RIJECI - SVEUČILIŠNA KNJIŽNICA | N104: =IF(C104="","",'OPĆI DIO'!$C$1) -> 38454 SVEUČILIŠTE U RIJECI - AKADEMIJA PRIMJENJENIH UMJETNOSTI | O104: 369 | P104: 36 | Q104: 52 | R104: 94 | S104: 3 | W104: 4241 | X104: Knjige | Z104: 42 | AA104: 424 | AC104: A621021 | AD104: SMJEŠTAJ I PREHRANA STUDENATA STUDENTSKOG CENTRA ZAGREB - SUFINANCIRANJE | AE104: 0960 | AF104: Dodatne usluge u obrazovanju | AG104: 09 | AH104: 097
A105: =IF(E105="","",VLOOKUP('OPĆI DIO'!$C$1,'OPĆI DIO'!$L$4:$U$138,10,FALSE)) -> 08006 | B105: =IF(E105="","",VLOOKUP('OPĆI DIO'!$C$1,'OPĆI DIO'!$L$4:$U$138,9,FALSE)) -> Sveučilišta i veleučilišta u Republici Hrvatskoj | C105: 52 | D105: Ostale pomoći | E105: 4221 | F105: Uredska oprema i namještaj | G105: A679089 | H105: REDOVNA DJELATNOST SVEUČILIŠTA U RIJECI (IZ EVIDENCIJSKIH PRIHODA) | I105: 0942 | J105: 3,000 | K105: 0 | L105: 3,000 | N105: =IF(C105="","",'OPĆI DIO'!$C$1) -> 38454 SVEUČILIŠTE U RIJECI - AKADEMIJA PRIMJENJENIH UMJETNOSTI | O105: 422 | P105: 42 | Q105: 52 | R105: 94 | S105: 4 | W105: 4242 | X105: Umjetnička djela (izložena u galerijama, muzejima i slično) | Z105: 42 | AA105: 424 | AC105: A621022 | AD105: SMJEŠTAJ I PREHRANA STUDENATA STUDENTSKOG CENTRA OSIJEK - SUFINANCIRANJE | AE105: 0960 | AF105: Dodatne usluge u obrazovanju | AG105: 01 | AH105: 015
A106: =IF(E106="","",VLOOKUP('OPĆI DIO'!$C$1,'OPĆI DIO'!$L$4:$U$138,10,FALSE)) -> 08006 | B106: =IF(E106="","",VLOOKUP('OPĆI DIO'!$C$1,'OPĆI DIO'!$L$4:$U$138,9,FALSE)) -> Sveučilišta i veleučilišta u Republici Hrvatskoj | C106: 52 | D106: Ostale pomoći | E106: 4227 | F106: Uređaji, strojevi i oprema za ostale namjene | G106: A679089 | H106: REDOVNA DJELATNOST SVEUČILIŠTA U RIJECI (IZ EVIDENCIJSKIH PRIHODA) | I106: 0942 | J106: 1,000 | K106: 0 | L106: 1,000 | N106: =IF(C106="","",'OPĆI DIO'!$C$1) -> 38454 SVEUČILIŠTE U RIJECI - AKADEMIJA PRIMJENJENIH UMJETNOSTI | O106: 422 | P106: 42 | Q106: 52 | R106: 94 | S106: 4 | W106: 4244 | X106: Ostale nespomenute izložbene vrijednosti | Z106: 42 | AA106: 424 | AC106: A621023 | AD106: SMJEŠTAJ I PREHRANA STUDENATA STUDENTSKOG CENTRA RIJEKA - SUFINANCIRANJE | AE106: 0960 | AF106: Dodatne usluge u obrazovanju | AG106: 01 | AH106: 015
A107: =IF(E107="","",VLOOKUP('OPĆI DIO'!$C$1,'OPĆI DIO'!$L$4:$U$138,10,FALSE)) -> 08006 | B107: =IF(E107="","",VLOOKUP('OPĆI DIO'!$C$1,'OPĆI DIO'!$L$4:$U$138,9,FALSE)) -> Sveučilišta i veleučilišta u Republici Hrvatskoj | C107: 581 | D107: Mehanizam za oporavak i otpornost | E107: 3211 | F107: Službena putovanja | G107: A622122 | H107: PROGRAMSKO FINANCIRANJE JAVNIH VISOKIH UČILIŠTA | I107: 0942 | K107: 770 | L107: 770 | N107: =IF(C107="","",'OPĆI DIO'!$C$1) -> 38454 SVEUČILIŠTE U RIJECI - AKADEMIJA PRIMJENJENIH UMJETNOSTI | O107: 321 | P107: 32 | Q107: 581 | R107: 94 | S107: 3 | W107: 4251 | X107: Višegodišnji nasadi | Z107: 42 | AA107: 425 | AC107: A621024 | AD107: SMJEŠTAJ I PREHRANA STUDENATA STUDENTSKOG CENTRA SPLIT - SUFINANCIRANJE | AE107: 0960 | AF107: Dodatne usluge u obrazovanju | AG107: 09 | AH107: 097
A108: =IF(E108="","",VLOOKUP('OPĆI DIO'!$C$1,'OPĆI DIO'!$L$4:$U$138,10,FALSE)) -> 08006 | B108: =IF(E108="","",VLOOKUP('OPĆI DIO'!$C$1,'OPĆI DIO'!$L$4:$U$138,9,FALSE)) -> Sveučilišta i veleučilišta u Republici Hrvatskoj | C108: 581 | D108: Mehanizam za oporavak i otpornost | E108: 3237 | F108: Intelektualne i osobne usluge | G108: A622122 | H108: PROGRAMSKO FINANCIRANJE JAVNIH VISOKIH UČILIŠTA | I108: 0942 | K108: 569 | L108: 569 | N108: =IF(C108="","",'OPĆI DIO'!$C$1) -> 38454 SVEUČILIŠTE U RIJECI - AKADEMIJA PRIMJENJENIH UMJETNOSTI | O108: 323 | P108: 32 | Q108: 581 | R108: 94 | S108: 3 | W108: 4252 | X108: Osnovno stado | Z108: 42 | AA108: 425 | AC108: A621026 | AD108: SMJEŠTAJ I PREHRANA STUDENATA STUDENTSKOG CENTRA ŠIBENIK - SUFINANCIRANJE | AE108: 0960 | AF108: Dodatne usluge u obrazovanju | AG108: 09 | AH108: 094
A109: =IF(E109="","",VLOOKUP('OPĆI DIO'!$C$1,'OPĆI DIO'!$L$4:$U$138,10,FALSE)) -> 08006 | B109: =IF(E109="","",VLOOKUP('OPĆI DIO'!$C$1,'OPĆI DIO'!$L$4:$U$138,9,FALSE)) -> Sveučilišta i veleučilišta u Republici Hrvatskoj | C109: 581 | D109: Mehanizam za oporavak i otpornost | E109: 3241 | F109: Naknade troškova osobama izvan radnog odnosa | G109: A622122 | H109: PROGRAMSKO FINANCIRANJE JAVNIH VISOKIH UČILIŠTA | I109: 0942 | K109: 260 | L109: 260 | N109: =IF(C109="","",'OPĆI DIO'!$C$1) -> 38454 SVEUČILIŠTE U RIJECI - AKADEMIJA PRIMJENJENIH UMJETNOSTI | O109: 324 | P109: 32 | Q109: 581 | R109: 94 | S109: 3 | W109: 4262 | X109: Ulaganja u računalne programe | Z109: 42 | AA109: 426 | AC109: A621028 | AD109: SMJEŠTAJ I PREHRANA STUDENATA STUDENTSKOG CENTRA VARAŽDIN - SUFINANCIRANJE | AE109: 0960 | AF109: Dodatne usluge u obrazovanju | AG109: 01 | AH109: 015
A110: =IF(E110="","",VLOOKUP('OPĆI DIO'!$C$1,'OPĆI DIO'!$L$4:$U$138,10,FALSE)) -> 08006 | B110: =IF(E110="","",VLOOKUP('OPĆI DIO'!$C$1,'OPĆI DIO'!$L$4:$U$138,9,FALSE)) -> Sveučilišta i veleučilišta u Republici Hrvatskoj | C110: 581 | D110: Mehanizam za oporavak i otpornost | E110: 4225 | F110: Instrumenti i uređaji | G110: A622122 | H110: PROGRAMSKO FINANCIRANJE JAVNIH VISOKIH UČILIŠTA | I110: 0942 | K110: 2,931 | L110: 2,931 | N110: =IF(C110="","",'OPĆI DIO'!$C$1) -> 38454 SVEUČILIŠTE U RIJECI - AKADEMIJA PRIMJENJENIH UMJETNOSTI | O110: 422 | P110: 42 | Q110: 581 | R110: 94 | S110: 4 | W110: 4263 | X110: Umjetnička, literarna i znanstvena djela | Z110: 42 | AA110: 426 | AC110: A621029 | AD110: SMJEŠTAJ I PREHRANA STUDENATA STUDENTSKOG CENTRA SLAVONSKI BROD - SUFINANCIRANJE | AE110: 0960 | AF110: Dodatne usluge u obrazovanju | AG110: 09 | AH110: 097
A111: =IF(E111="","",VLOOKUP('OPĆI DIO'!$C$1,'OPĆI DIO'!$L$4:$U$138,10,FALSE)) -> 08006 | B111: =IF(E111="","",VLOOKUP('OPĆI DIO'!$C$1,'OPĆI DIO'!$L$4:$U$138,9,FALSE)) -> Sveučilišta i veleučilišta u Republici Hrvatskoj | C111: 11 | D111: Opći prihodi i primici | E111: 3211 | F111: Službena putovanja | G111: A679110 | H111: POTPORA UMJETNIČKIM STUDIJIMA | I111: 0942 | K111: 5,000 | L111: 5,000 | N111: =IF(C111="","",'OPĆI DIO'!$C$1) -> 38454 SVEUČILIŠTE U RIJECI - AKADEMIJA PRIMJENJENIH UMJETNOSTI | O111: 321 | P111: 32 | Q111: 11 | R111: 94 | S111: 3 | W111: 4264 | X111: Ostala nematerijalna proizvedena imovina | Z111: 42 | AA111: 426 | AC111: A621030 | AD111: SMJEŠTAJ I PREHRANA STUDENATA STUDENTSKOG CENTRA POŽEGA - SUFINANCIRANJE | AE111: 0960 | AF111: Dodatne usluge u obrazovanju | AG111: 09 | AH111: 097
A112: =IF(E112="","",VLOOKUP('OPĆI DIO'!$C$1,'OPĆI DIO'!$L$4:$U$138,10,FALSE)) -> 08006 | B112: =IF(E112="","",VLOOKUP('OPĆI DIO'!$C$1,'OPĆI DIO'!$L$4:$U$138,9,FALSE)) -> Sveučilišta i veleučilišta u Republici Hrvatskoj | C112: 11 | D112: Opći prihodi i primici | E112: 3213 | F112: Stručno usavršavanje zaposlenika | G112: A679110 | H112: POTPORA UMJETNIČKIM STUDIJIMA | I112: 0942 | K112: 500 | L112: 500 | N112: =IF(C112="","",'OPĆI DIO'!$C$1) -> 38454 SVEUČILIŠTE U RIJECI - AKADEMIJA PRIMJENJENIH UMJETNOSTI | O112: 321 | P112: 32 | Q112: 11 | R112: 94 | S112: 3 | W112: 4312 | X112: Pohranjene knjige, umjetnička djela i slične vrijednosti | Z112: 43 | AA112: 431 | AC112: A621031 | AD112: SMJEŠTAJ I PREHRANA STUDENATA STUDENTSKOG CENTRA KARLOVAC - SUFINANCIRANJE | AE112: 0960 | AF112: Dodatne usluge u obrazovanju | AG112: 09 | AH112: 097
A113: =IF(E113="","",VLOOKUP('OPĆI DIO'!$C$1,'OPĆI DIO'!$L$4:$U$138,10,FALSE)) -> 08006 | B113: =IF(E113="","",VLOOKUP('OPĆI DIO'!$C$1,'OPĆI DIO'!$L$4:$U$138,9,FALSE)) -> Sveučilišta i veleučilišta u Republici Hrvatskoj | C113: 11 | D113: Opći prihodi i primici | E113: 3221 | F113: Uredski materijal i ostali materijalni rashodi | G113: A679110 | H113: POTPORA UMJETNIČKIM STUDIJIMA | I113: 0942 | K113: 2,000 | L113: 2,000 | N113: =IF(C113="","",'OPĆI DIO'!$C$1) -> 38454 SVEUČILIŠTE U RIJECI - AKADEMIJA PRIMJENJENIH UMJETNOSTI | O113: 322 | P113: 32 | Q113: 11 | R113: 94 | S113: 3 | W113: 4411 | X113: Strateške zalihe | Z113: 44 | AA113: 441 | AC113: A621049 | AD113: KAMATE ZA STANOVE ZNANSTVENIH NOVAKA I ASISTENATA | AE113: 0942 | AF113: Drugi stupanj visoke naobrazbe | AG113: 09 | AH113: 097
A114: =IF(E114="","",VLOOKUP('OPĆI DIO'!$C$1,'OPĆI DIO'!$L$4:$U$138,10,FALSE)) -> 08006 | B114: =IF(E114="","",VLOOKUP('OPĆI DIO'!$C$1,'OPĆI DIO'!$L$4:$U$138,9,FALSE)) -> Sveučilišta i veleučilišta u Republici Hrvatskoj | C114: 11 | D114: Opći prihodi i primici | E114: 3222 | F114: Materijal i sirovine | G114: A679110 | H114: POTPORA UMJETNIČKIM STUDIJIMA | I114: 0942 | K114: 9,000 | L114: 9,000 | N114: =IF(C114="","",'OPĆI DIO'!$C$1) -> 38454 SVEUČILIŠTE U RIJECI - AKADEMIJA PRIMJENJENIH UMJETNOSTI | O114: 322 | P114: 32 | Q114: 11 | R114: 94 | S114: 3 | W114: 4511 | X114: Dodatna ulaganja na građevinskim objektima | Z114: 45 | AA114: 451 | AC114: A621058 | AD114: PROGRAMI POBOLJŠANJA STUDENTSKOG STANDARDA | AE114: 0960 | AF114: Dodatne usluge u obrazovanju | AG114: 09 | AH114: 097
A115: =IF(E115="","",VLOOKUP('OPĆI DIO'!$C$1,'OPĆI DIO'!$L$4:$U$138,10,FALSE)) -> 08006 | B115: =IF(E115="","",VLOOKUP('OPĆI DIO'!$C$1,'OPĆI DIO'!$L$4:$U$138,9,FALSE)) -> Sveučilišta i veleučilišta u Republici Hrvatskoj | C115: 11 | D115: Opći prihodi i primici | E115: 3225 | F115: Sitni inventar i autogume | G115: A679110 | H115: POTPORA UMJETNIČKIM STUDIJIMA | I115: 0942 | K115: 1,500 | L115: 1,500 | N115: =IF(C115="","",'OPĆI DIO'!$C$1) -> 38454 SVEUČILIŠTE U RIJECI - AKADEMIJA PRIMJENJENIH UMJETNOSTI | O115: 322 | P115: 32 | Q115: 11 | R115: 94 | S115: 3 | W115: 4521 | X115: Dodatna ulaganja na postrojenjima i opremi | Z115: 45 | AA115: 452 | AC115: A621185 | AD115: POTPORA HRVATSKOM KATOLIČKOM SVEUČILIŠTU U ZAGREBU | AE115: 0942 | AF115: Drugi stupanj visoke naobrazbe | AG115: 09 | AH115: 097
A116: =IF(E116="","",VLOOKUP('OPĆI DIO'!$C$1,'OPĆI DIO'!$L$4:$U$138,10,FALSE)) -> 08006 | B116: =IF(E116="","",VLOOKUP('OPĆI DIO'!$C$1,'OPĆI DIO'!$L$4:$U$138,9,FALSE)) -> Sveučilišta i veleučilišta u Republici Hrvatskoj | C116: 11 | D116: Opći prihodi i primici | E116: 3231 | F116: Usluge telefona, interneta, pošte i prijevoza | G116: A679110 | H116: POTPORA UMJETNIČKIM STUDIJIMA | I116: 0942 | K116: 2,600 | L116: 2,600 | N116: =IF(C116="","",'OPĆI DIO'!$C$1) -> 38454 SVEUČILIŠTE U RIJECI - AKADEMIJA PRIMJENJENIH UMJETNOSTI | O116: 323 | P116: 32 | Q116: 11 | R116: 94 | S116: 3 | W116: 4531 | X116: Dodatna ulaganja na prijevoznim sredstvima | Z116: 45 | AA116: 453 | AC116: A679049 | AD116: POMOĆI BIH U SUSTAVU ZNANOSTI I OBRAZOVANJA | AE116: 0970 | AF116: Istraživanje i razvoj obrazovanja | AG116: 01 | AH116: 015
A117: =IF(E117="","",VLOOKUP('OPĆI DIO'!$C$1,'OPĆI DIO'!$L$4:$U$138,10,FALSE)) -> 08006 | B117: =IF(E117="","",VLOOKUP('OPĆI DIO'!$C$1,'OPĆI DIO'!$L$4:$U$138,9,FALSE)) -> Sveučilišta i veleučilišta u Republici Hrvatskoj | C117: 11 | D117: Opći prihodi i primici | E117: 3233 | F117: Usluge promidžbe i informiranja | G117: A679110 | H117: POTPORA UMJETNIČKIM STUDIJIMA | I117: 0942 | K117: 13,000 | L117: 13,000 | N117: =IF(C117="","",'OPĆI DIO'!$C$1) -> 38454 SVEUČILIŠTE U RIJECI - AKADEMIJA PRIMJENJENIH UMJETNOSTI | O117: 323 | P117: 32 | Q117: 11 | R117: 94 | S117: 3 | W117: 4541 | X117: Dodatna ulaganja za ostalu nefinancijsku imovinu | Z117: 45 | AA117: 454 | AC117: A679064 | AD117: ZNANSTVENO-UČILIŠNI KAMPUS BORONGAJ | AE117: 0942 | AF117: Drugi stupanj visoke naobrazbe | AG117: 09 | AH117: 091
A118: =IF(E118="","",VLOOKUP('OPĆI DIO'!$C$1,'OPĆI DIO'!$L$4:$U$138,10,FALSE)) -> 08006 | B118: =IF(E118="","",VLOOKUP('OPĆI DIO'!$C$1,'OPĆI DIO'!$L$4:$U$138,9,FALSE)) -> Sveučilišta i veleučilišta u Republici Hrvatskoj | C118: 11 | D118: Opći prihodi i primici | E118: 3235 | F118: Zakupnine i najamnine | G118: A679110 | H118: POTPORA UMJETNIČKIM STUDIJIMA | I118: 0942 | K118: 40,000 | L118: 40,000 | N118: =IF(C118="","",'OPĆI DIO'!$C$1) -> 38454 SVEUČILIŠTE U RIJECI - AKADEMIJA PRIMJENJENIH UMJETNOSTI | O118: 323 | P118: 32 | Q118: 11 | R118: 94 | S118: 3 | W118: 5121 | X118: Dani zajmovi neprofitnim organizacijama, građanima i kućanst | Z118: 51 | AA118: 512 | AC118: A679065 | AD118: SMJEŠTAJ I PREHRANA STUDENATA STUDENTSKOG CENTRA PULA - SUFINANCIRANJE | AE118: 0942 | AF118: Drugi stupanj visoke naobrazbe | AG118: 09 | AH118: 097
A119: =IF(E119="","",VLOOKUP('OPĆI DIO'!$C$1,'OPĆI DIO'!$L$4:$U$138,10,FALSE)) -> 08006 | B119: =IF(E119="","",VLOOKUP('OPĆI DIO'!$C$1,'OPĆI DIO'!$L$4:$U$138,9,FALSE)) -> Sveučilišta i veleučilišta u Republici Hrvatskoj | C119: 11 | D119: Opći prihodi i primici | E119: 3237 | F119: Intelektualne i osobne usluge | G119: A679110 | H119: POTPORA UMJETNIČKIM STUDIJIMA | I119: 0942 | K119: 109,293 | L119: 109,293 | N119: =IF(C119="","",'OPĆI DIO'!$C$1) -> 38454 SVEUČILIŠTE U RIJECI - AKADEMIJA PRIMJENJENIH UMJETNOSTI | O119: 323 | P119: 32 | Q119: 11 | R119: 94 | S119: 3 | W119: 5443 | X119: Otplata glavnice primljenih kredita od tuzemnih kreditnih in | Z119: 54 | AA119: 544 | AC119: A679066 | AD119: POTPORE ROMSKIM STUDIJIMA I STUDENTIMA ROMIMA | AE119: 0942 | AF119: Drugi stupanj visoke naobrazbe | AG119: 09 | AH119: 097
A120: =IF(E120="","",VLOOKUP('OPĆI DIO'!$C$1,'OPĆI DIO'!$L$4:$U$138,10,FALSE)) -> 08006 | B120: =IF(E120="","",VLOOKUP('OPĆI DIO'!$C$1,'OPĆI DIO'!$L$4:$U$138,9,FALSE)) -> Sveučilišta i veleučilišta u Republici Hrvatskoj | C120: 11 | D120: Opći prihodi i primici | E120: 3238 | F120: Računalne usluge | G120: A679110 | H120: POTPORA UMJETNIČKIM STUDIJIMA | I120: 0942 | K120: 9,000 | L120: 9,000 | N120: =IF(C120="","",'OPĆI DIO'!$C$1) -> 38454 SVEUČILIŠTE U RIJECI - AKADEMIJA PRIMJENJENIH UMJETNOSTI | O120: 323 | P120: 32 | Q120: 11 | R120: 94 | S120: 3 | W120: 5121 | X120: Dani zajmovi neprofitnim organizacijama, građanima i kućanstvima u tuzemstvu | Z120: 51 | AA120: =LEFT(W120,3) -> 512 | AC120: A679067 | AD120: DRŽAVNE STIPENDIJE ZA STUDENTE | AE120: 0942 | AF120: Drugi stupanj visoke naobrazbe | AG120: 01 | AH120: 015
A121: =IF(E121="","",VLOOKUP('OPĆI DIO'!$C$1,'OPĆI DIO'!$L$4:$U$138,10,FALSE)) -> 08006 | B121: =IF(E121="","",VLOOKUP('OPĆI DIO'!$C$1,'OPĆI DIO'!$L$4:$U$138,9,FALSE)) -> Sveučilišta i veleučilišta u Republici Hrvatskoj | C121: 11 | D121: Opći prihodi i primici | E121: 3239 | F121: Ostale usluge | G121: A679110 | H121: POTPORA UMJETNIČKIM STUDIJIMA | I121: 0942 | K121: 1,600 | L121: 1,600 | N121: =IF(C121="","",'OPĆI DIO'!$C$1) -> 38454 SVEUČILIŠTE U RIJECI - AKADEMIJA PRIMJENJENIH UMJETNOSTI | O121: 323 | P121: 32 | Q121: 11 | R121: 94 | S121: 3 | W121: 5122 | X121: Dani zajmovi neprofitnim organizacijama, građanima i kućanstvima u inozemstvu | Z121: 51 | AA121: 512 | AC121: A679069 | AD121: SMJEŠTAJ I PREHRANA STUDENATA STUDENTSKOG CENTRA SISAK - SUFINANCIRANJE | AE121: 0942 | AF121: Drugi stupanj visoke naobrazbe | AG121: 09 | AH121: 091
A122: =IF(E122="","",VLOOKUP('OPĆI DIO'!$C$1,'OPĆI DIO'!$L$4:$U$138,10,FALSE)) -> 08006 | B122: =IF(E122="","",VLOOKUP('OPĆI DIO'!$C$1,'OPĆI DIO'!$L$4:$U$138,9,FALSE)) -> Sveučilišta i veleučilišta u Republici Hrvatskoj | C122: 11 | D122: Opći prihodi i primici | E122: 3241 | F122: Naknade troškova osobama izvan radnog odnosa | G122: A679110 | H122: POTPORA UMJETNIČKIM STUDIJIMA | I122: 0942 | K122: 5,000 | L122: 5,000 | N122: =IF(C122="","",'OPĆI DIO'!$C$1) -> 38454 SVEUČILIŠTE U RIJECI - AKADEMIJA PRIMJENJENIH UMJETNOSTI | O122: 324 | P122: 32 | Q122: 11 | R122: 94 | S122: 3 | W122: 5141 | X122: Dani zajmovi trgovačkim društvima u javnom sektoru | Z122: 51 | AA122: 514 | AC122: A767043 | AD122: RAZVOJ VISOKOG OBRAZOVANJA | AE122: 0942 | AF122: Drugi stupanj visoke naobrazbe | AG122: 09 | AH122: 092
A123: =IF(E123="","",VLOOKUP('OPĆI DIO'!$C$1,'OPĆI DIO'!$L$4:$U$138,10,FALSE)) -> 08006 | B123: =IF(E123="","",VLOOKUP('OPĆI DIO'!$C$1,'OPĆI DIO'!$L$4:$U$138,9,FALSE)) -> Sveučilišta i veleučilišta u Republici Hrvatskoj | C123: 11 | D123: Opći prihodi i primici | E123: 3293 | F123: Reprezentacija | G123: A679110 | H123: POTPORA UMJETNIČKIM STUDIJIMA | I123: 0942 | K123: 6,000 | L123: 6,000 | N123: =IF(C123="","",'OPĆI DIO'!$C$1) -> 38454 SVEUČILIŠTE U RIJECI - AKADEMIJA PRIMJENJENIH UMJETNOSTI | O123: 329 | P123: 32 | Q123: 11 | R123: 94 | S123: 3 | W123: 5183 | X123: Izdaci za jamčevne pologe | Z123: 51 | AA123: 518 | AC123: K733074 | AD123: IZGRADNJA STUDENTSKOG DOMA U KOPRIVNICI | AE123: 0942 | AF123: Drugi stupanj visoke naobrazbe | AG123: 09 | AH123: 098
A124: =IF(E124="","",VLOOKUP('OPĆI DIO'!$C$1,'OPĆI DIO'!$L$4:$U$138,10,FALSE)) -> 08006 | B124: =IF(E124="","",VLOOKUP('OPĆI DIO'!$C$1,'OPĆI DIO'!$L$4:$U$138,9,FALSE)) -> Sveučilišta i veleučilišta u Republici Hrvatskoj | C124: 11 | D124: Opći prihodi i primici | E124: 4221 | F124: Uredska oprema i namještaj | G124: A679110 | H124: POTPORA UMJETNIČKIM STUDIJIMA | I124: 0942 | K124: 5,300 | L124: 5,300 | N124: =IF(C124="","",'OPĆI DIO'!$C$1) -> 38454 SVEUČILIŠTE U RIJECI - AKADEMIJA PRIMJENJENIH UMJETNOSTI | O124: 422 | P124: 42 | Q124: 11 | R124: 94 | S124: 4 | W124: 5422 | X124: Otplata glavnice primljenih kredita od kreditnih institucija u javnom sektoru | Z124: 54 | AA124: 542 | AC124: A578050 | AD124: POTPORA INOVACIJSKIM PROCESIMA | AE124: 0150 | AF124: Istraživanje i razvoj: Opće javne usluge | AG124: 09 | AH124: 091
A125: =IF(E125="","",VLOOKUP('OPĆI DIO'!$C$1,'OPĆI DIO'!$L$4:$U$138,10,FALSE)) -> 08006 | B125: =IF(E125="","",VLOOKUP('OPĆI DIO'!$C$1,'OPĆI DIO'!$L$4:$U$138,9,FALSE)) -> Sveučilišta i veleučilišta u Republici Hrvatskoj | C125: 11 | D125: Opći prihodi i primici | E125: 4227 | F125: Uređaji, strojevi i oprema za ostale namjene | G125: A679110 | H125: POTPORA UMJETNIČKIM STUDIJIMA | I125: 0942 | K125: 3,500 | L125: 3,500 | N125: =IF(C125="","",'OPĆI DIO'!$C$1) -> 38454 SVEUČILIŠTE U RIJECI - AKADEMIJA PRIMJENJENIH UMJETNOSTI | O125: 422 | P125: 42 | Q125: 11 | R125: 94 | S125: 4 | W125: 5431 | X125: Otplata glavnice primljenih zajmova od trgovačkih društava u javnom sektoru | Z125: 54 | AA125: 543 | AC125: A578061 | AD125: OBZOR 2020. - PROGRAM POTICANJA ISTRAŽIVANJA I RAZVOJA U PERSONALIZIRANOJ MEDICINI – ERA PERMED | AE125: 0150 | AF125: Istraživanje i razvoj: Opće javne usluge | AG125: 01 | AH125: 015
A126: =IF(E126="","",VLOOKUP('OPĆI DIO'!$C$1,'OPĆI DIO'!$L$4:$U$138,10,FALSE)) -> 08006 | B126: =IF(E126="","",VLOOKUP('OPĆI DIO'!$C$1,'OPĆI DIO'!$L$4:$U$138,9,FALSE)) -> Sveučilišta i veleučilišta u Republici Hrvatskoj | C126: 11 | D126: Opći prihodi i primici | E126: 4241 | F126: Knjige | G126: A679110 | H126: POTPORA UMJETNIČKIM STUDIJIMA | I126: 0942 | K126: 50 | L126: 50 | N126: =IF(C126="","",'OPĆI DIO'!$C$1) -> 38454 SVEUČILIŠTE U RIJECI - AKADEMIJA PRIMJENJENIH UMJETNOSTI | O126: 424 | P126: 42 | Q126: 11 | R126: 94 | S126: 4 | W126: 5443 | X126: Otplata glavnice primljenih kredita od tuzemnih kreditnih institucija izvan javnog sektora | Z126: 54 | AA126: 544 | AC126: A621047 | AD126: DRŽAVNE, AKADEMSKE NAGRADE I POTPORE U ZNANOSTI I VISOKOM ŠKOLSTVU | AE126: 0942 | AF126: Drugi stupanj visoke naobrazbe | AG126: 09 | AH126: 097
A127: =IF(E127="","",VLOOKUP('OPĆI DIO'!$C$1,'OPĆI DIO'!$L$4:$U$138,10,FALSE)) ->  | B127: =IF(E127="","",VLOOKUP('OPĆI DIO'!$C$1,'OPĆI DIO'!$L$4:$U$138,9,FALSE)) ->  | K127: 0 | L127: 0 | N127: =IF(C127="","",'OPĆI DIO'!$C$1) ->  | W127: 5445 | X127: Otplata glavnice primljenih zajmova od ostalih tuzemnih financijskih institucija izvan javnog sektora | Z127: 54 | AA127: 544 | AC127: A621179 | AD127: TROŠKOVI NACIONALNOG VIJEĆA ZA VISOKO OBRAZOVANJE, ZNANOST I TEHNOLOŠKI RAZVOJ | AE127: 0150 | AF127: Istraživanje i razvoj: Opće javne usluge | AG127: 09 | AH127: 091
A128: =IF(E128="","",VLOOKUP('OPĆI DIO'!$C$1,'OPĆI DIO'!$L$4:$U$138,10,FALSE)) ->  | B128: =IF(E128="","",VLOOKUP('OPĆI DIO'!$C$1,'OPĆI DIO'!$L$4:$U$138,9,FALSE)) ->  | K128: 0 | L128: 0 | N128: =IF(C128="","",'OPĆI DIO'!$C$1) ->  | W128: 5453 | X128: Otplata glavnice primljenih zajmova od tuzemnih trgovačkih društava izvan javnog sektora | Z128: 54 | AA128: 545 | AC128: A622003 | AD128: UGOVORNO FINANCIRANJE ZNANSTVENE DJELATNOSTI | AE128: 0150 | AF128: Istraživanje i razvoj: Opće javne usluge | AG128: 09 | AH128: 092
A129: =IF(E129="","",VLOOKUP('OPĆI DIO'!$C$1,'OPĆI DIO'!$L$4:$U$138,10,FALSE)) ->  | B129: =IF(E129="","",VLOOKUP('OPĆI DIO'!$C$1,'OPĆI DIO'!$L$4:$U$138,9,FALSE)) ->  | K129: 0 | L129: 0 | N129: =IF(C129="","",'OPĆI DIO'!$C$1) ->  | W129: 5472 | X129: Otplata glavnice primljenih zajmova od županijskih proračuna | Z129: 54 | AA129: 547 | AC129: A622004 | AD129: IZDAVANJE DOMAĆIH ZNANSTVENIH ČASOPISA | AE129: 0150 | AF129: Istraživanje i razvoj: Opće javne usluge | AG129: 01 | AH129: 015
A130: =IF(E130="","",VLOOKUP('OPĆI DIO'!$C$1,'OPĆI DIO'!$L$4:$U$138,10,FALSE)) ->  | B130: =IF(E130="","",VLOOKUP('OPĆI DIO'!$C$1,'OPĆI DIO'!$L$4:$U$138,9,FALSE)) ->  | K130: 0 | L130: 0 | N130: =IF(C130="","",'OPĆI DIO'!$C$1) ->  | AC130: A622005 | AD130: ORGANIZIRANJE I ODRŽAVANJE ZNANSTVENIH SKUPOVA | AE130: 0150 | AF130: Istraživanje i razvoj: Opće javne usluge | AG130: 09 | AH130: 097
A131: =IF(E131="","",VLOOKUP('OPĆI DIO'!$C$1,'OPĆI DIO'!$L$4:$U$138,10,FALSE)) ->  | B131: =IF(E131="","",VLOOKUP('OPĆI DIO'!$C$1,'OPĆI DIO'!$L$4:$U$138,9,FALSE)) ->  | F131: =IFERROR(VLOOKUP(E131,$W$5:$Y$129,2,FALSE),"") ->  | K131: 0 | L131: 0 | N131: =IF(C131="","",'OPĆI DIO'!$C$1) ->  | AC131: A622006 | AD131: IZDAVANJE ZNANSTVENIH KNJIGA I UDŽBENIKA | AE131: 0150 | AF131: Istraživanje i razvoj: Opće javne usluge | AG131: 09 | AH131: 094
A132: =IF(E132="","",VLOOKUP('OPĆI DIO'!$C$1,'OPĆI DIO'!$L$4:$U$138,10,FALSE)) ->  | B132: =IF(E132="","",VLOOKUP('OPĆI DIO'!$C$1,'OPĆI DIO'!$L$4:$U$138,9,FALSE)) ->  | D132: =IFERROR(VLOOKUP(C132,$T$6:$U$23,2,FALSE),"") ->  | H132: =IFERROR(VLOOKUP(G132,$AC$6:$AD$353,2,FALSE),"") ->  | I132: =IFERROR(VLOOKUP(G132,$AC$6:$AG$353,3,FALSE),"") ->  | K132: 0 | L132: =+J132+K132 -> 0 | N132: =IF(C132="","",'OPĆI DIO'!$C$1) ->  | O132: =LEFT(E132,3) ->  | P132: =LEFT(E132,2) ->  | Q132: =LEFT(C132,3) ->  | R132: =IF(S132="5",0,MID(I132,2,2)) ->  | S132: =LEFT(E132,1) ->  | AC132: A622007 | AD132: FINANCIJSKA POTPORA ZNANSTVENIM UDRUGAMA | AE132: 0150 | AF132: Istraživanje i razvoj: Opće javne usluge | AG132: 01 | AH132: 015
A133: =IF(E133="","",VLOOKUP('OPĆI DIO'!$C$1,'OPĆI DIO'!$L$4:$U$138,10,FALSE)) ->  | B133: =IF(E133="","",VLOOKUP('OPĆI DIO'!$C$1,'OPĆI DIO'!$L$4:$U$138,9,FALSE)) ->  | K133: 0 | L133: 0 | N133: =IF(C133="","",'OPĆI DIO'!$C$1) ->  | AC133: A679005 | AD133: ČLANSTVO U MEĐUNARODNIM UDRUGAMA | AE133: 0150 | AF133: Istraživanje i razvoj: Opće javne usluge | AG133: 09 | AH133: 092
A134: =IF(E134="","",VLOOKUP('OPĆI DIO'!$C$1,'OPĆI DIO'!$L$4:$U$138,10,FALSE)) ->  | B134: =IF(E134="","",VLOOKUP('OPĆI DIO'!$C$1,'OPĆI DIO'!$L$4:$U$138,9,FALSE)) ->  | K134: 0 | L134: 0 | N134: =IF(C134="","",'OPĆI DIO'!$C$1) ->  | AC134: A733050 | AD134: PRAĆENJE I IMPLEMENTACIJA POLITIKA EUROPSKOG ISTRAŽIVAČKOG PROSTORA (ERA) | AE134: 0150 | AF134: Istraživanje i razvoj: Opće javne usluge | AG134: 09 | AH134: 092
A135: =IF(E135="","",VLOOKUP('OPĆI DIO'!$C$1,'OPĆI DIO'!$L$4:$U$138,10,FALSE)) ->  | B135: =IF(E135="","",VLOOKUP('OPĆI DIO'!$C$1,'OPĆI DIO'!$L$4:$U$138,9,FALSE)) ->  | K135: 0 | L135: 0 | N135: =IF(C135="","",'OPĆI DIO'!$C$1) ->  | AC135: A733056 | AD135: EUROPSKI ZNANSTVENI PROJEKTI | AE135: 0150 | AF135: Istraživanje i razvoj: Opće javne usluge | AG135: 09 | AH135: 097
A136: =IF(E136="","",VLOOKUP('OPĆI DIO'!$C$1,'OPĆI DIO'!$L$4:$U$138,10,FALSE)) ->  | B136: =IF(E136="","",VLOOKUP('OPĆI DIO'!$C$1,'OPĆI DIO'!$L$4:$U$138,9,FALSE)) ->  | K136: 0 | L136: 0 | N136: =IF(C136="","",'OPĆI DIO'!$C$1) ->  | AC136: A767009 | AD136: ZNANSTVENI CENTRI IZVRSNOSTI - DRUŠTVENO HUMANISTIČKO PODRUČJE | AE136: 0150 | AF136: Istraživanje i razvoj: Opće javne usluge | AG136: 09 | AH136: 097
A137: =IF(E137="","",VLOOKUP('OPĆI DIO'!$C$1,'OPĆI DIO'!$L$4:$U$138,10,FALSE)) ->  | B137: =IF(E137="","",VLOOKUP('OPĆI DIO'!$C$1,'OPĆI DIO'!$L$4:$U$138,9,FALSE)) ->  | K137: 0 | L137: 0 | N137: =IF(C137="","",'OPĆI DIO'!$C$1) ->  | AC137: A767035 | AD137: MEĐUNARODNA SURADNJA | AE137: 0150 | AF137: Istraživanje i razvoj: Opće javne usluge | AG137: 09 | AH137: 091
A138: =IF(E138="","",VLOOKUP('OPĆI DIO'!$C$1,'OPĆI DIO'!$L$4:$U$138,10,FALSE)) ->  | B138: =IF(E138="","",VLOOKUP('OPĆI DIO'!$C$1,'OPĆI DIO'!$L$4:$U$138,9,FALSE)) ->  | K138: 0 | L138: 0 | N138: =IF(C138="","",'OPĆI DIO'!$C$1) ->  | AC138: A767038 | AD138: OBZOR 2020. - PROGRAM MEĐUNARODNE MOBILNOSTI ZA ISTRAŽIVAČE - NEWFELPRO | AE138: 0150 | AF138: Istraživanje i razvoj: Opće javne usluge | AG138: 01 | AH138: 015
A139: =IF(E139="","",VLOOKUP('OPĆI DIO'!$C$1,'OPĆI DIO'!$L$4:$U$138,10,FALSE)) ->  | B139: =IF(E139="","",VLOOKUP('OPĆI DIO'!$C$1,'OPĆI DIO'!$L$4:$U$138,9,FALSE)) ->  | K139: 0 | L139: 0 | N139: =IF(C139="","",'OPĆI DIO'!$C$1) ->  | AC139: A767056 | AD139: OBZOR 2020. - PARTNERSTVO ZA ISTRAŽIVANJA I INOVACIJE NA MEDITERANSKOM PODRUČJU - PRIMA | AE139: 0150 | AF139: Istraživanje i razvoj: Opće javne usluge | AG139: 09 | AH139: 091
A140: =IF(E140="","",VLOOKUP('OPĆI DIO'!$C$1,'OPĆI DIO'!$L$4:$U$138,10,FALSE)) ->  | B140: =IF(E140="","",VLOOKUP('OPĆI DIO'!$C$1,'OPĆI DIO'!$L$4:$U$138,9,FALSE)) ->  | K140: 0 | L140: 0 | N140: =IF(C140="","",'OPĆI DIO'!$C$1) ->  | AC140: A768068 | AD140: OTKUP ZNANSTVENIH KNJIGA I VISOKOŠKOLSKIH UDŽBENIKA | AE140: 0150 | AF140: Istraživanje i razvoj: Opće javne usluge | AG140: 09 | AH140: 095
A141: =IF(E141="","",VLOOKUP('OPĆI DIO'!$C$1,'OPĆI DIO'!$L$4:$U$138,10,FALSE)) ->  | B141: =IF(E141="","",VLOOKUP('OPĆI DIO'!$C$1,'OPĆI DIO'!$L$4:$U$138,9,FALSE)) ->  | K141: 0 | L141: 0 | N141: =IF(C141="","",'OPĆI DIO'!$C$1) ->  | AC141: K578051 | AD141: OP KONKURENTNOST I KOHEZIJA 2014.-2020., PRIORITET 1, 9 i 10 | AE141: 0150 | AF141: Istraživanje i razvoj: Opće javne usluge | AG141: 09 | AH141: 091
A142: =IF(E142="","",VLOOKUP('OPĆI DIO'!$C$1,'OPĆI DIO'!$L$4:$U$138,10,FALSE)) ->  | B142: =IF(E142="","",VLOOKUP('OPĆI DIO'!$C$1,'OPĆI DIO'!$L$4:$U$138,9,FALSE)) ->  | K142: 0 | L142: 0 | N142: =IF(C142="","",'OPĆI DIO'!$C$1) ->  | AC142: K578070 | AD142: POBOLJŠANJE UČINKOVITOSTI JAVNIH ULAGANJA NA PODRUČJU ISTRAŽIVANJA, RAZVOJA I INOVACIJA - NPOO (C3.2.R3) | AE142: 0150 | AF142: Istraživanje i razvoj: Opće javne usluge | AG142: 09 | AH142: 092
A143: =IF(E143="","",VLOOKUP('OPĆI DIO'!$C$1,'OPĆI DIO'!$L$4:$U$138,10,FALSE)) ->  | B143: =IF(E143="","",VLOOKUP('OPĆI DIO'!$C$1,'OPĆI DIO'!$L$4:$U$138,9,FALSE)) ->  | K143: 0 | L143: 0 | N143: =IF(C143="","",'OPĆI DIO'!$C$1) ->  | AC143: K580074 | AD143: POTPORA PROVOĐENJU PROGRAMA I PROJEKATA EU | AE143: 0150 | AF143: Istraživanje i razvoj: Opće javne usluge | AG143: 09 | AH143: 097
A144: =IF(E144="","",VLOOKUP('OPĆI DIO'!$C$1,'OPĆI DIO'!$L$4:$U$138,10,FALSE)) ->  | B144: =IF(E144="","",VLOOKUP('OPĆI DIO'!$C$1,'OPĆI DIO'!$L$4:$U$138,9,FALSE)) ->  | K144: 0 | L144: 0 | N144: =IF(C144="","",'OPĆI DIO'!$C$1) ->  | AC144: K622113 | AD144: ULAGANJE U ODRŽAVANJE ZNANSTVENOISTRAŽIVAČKE OPREME I INFRASTRUKTURE | AE144: 0150 | AF144: Istraživanje i razvoj: Opće javne usluge | AG144: 09 | AH144: 091
A145: =IF(E145="","",VLOOKUP('OPĆI DIO'!$C$1,'OPĆI DIO'!$L$4:$U$138,10,FALSE)) ->  | B145: =IF(E145="","",VLOOKUP('OPĆI DIO'!$C$1,'OPĆI DIO'!$L$4:$U$138,9,FALSE)) ->  | K145: 0 | L145: 0 | N145: =IF(C145="","",'OPĆI DIO'!$C$1) ->  | AC145: K676068 | AD145: PROGRAM KONKURENTNOST I KOHEZIJA 2021.-2027., PRIORITET 1 | AE145: 0150 | AF145: Istraživanje i razvoj: Opće javne usluge | AG145: 01 | AH145: 015
A146: =IF(E146="","",VLOOKUP('OPĆI DIO'!$C$1,'OPĆI DIO'!$L$4:$U$138,10,FALSE)) ->  | B146: =IF(E146="","",VLOOKUP('OPĆI DIO'!$C$1,'OPĆI DIO'!$L$4:$U$138,9,FALSE)) ->  | K146: 0 | L146: 0 | N146: =IF(C146="","",'OPĆI DIO'!$C$1) ->  | AC146: K676069 | AD146: STVARANJE OKVIRA ZA PRIVLAČENJE STUDENATA I ISTRAŽIVAČA U STEM I ICT PODRUČJIMA - NPOO (C3.2.R2) | AE146: 0150 | AF146: Istraživanje i razvoj: Opće javne usluge | AG146: 09 | AH146: 097
A147: =IF(E147="","",VLOOKUP('OPĆI DIO'!$C$1,'OPĆI DIO'!$L$4:$U$138,10,FALSE)) ->  | B147: =IF(E147="","",VLOOKUP('OPĆI DIO'!$C$1,'OPĆI DIO'!$L$4:$U$138,9,FALSE)) ->  | K147: 0 | L147: 0 | N147: =IF(C147="","",'OPĆI DIO'!$C$1) ->  | AC147: K676073 | AD147: PROJEKT DIGITALNE, INOVATIVNE I ZELENE TEHNOLOGIJE - DIGIT | AE147: 0150 | AF147: Istraživanje i razvoj: Opće javne usluge | AG147: 09 | AH147: 095
A148: =IF(E148="","",VLOOKUP('OPĆI DIO'!$C$1,'OPĆI DIO'!$L$4:$U$138,10,FALSE)) ->  | B148: =IF(E148="","",VLOOKUP('OPĆI DIO'!$C$1,'OPĆI DIO'!$L$4:$U$138,9,FALSE)) ->  | K148: 0 | L148: 0 | N148: =IF(C148="","",'OPĆI DIO'!$C$1) ->  | AC148: K768069 | AD148: REFORMA I JAČANJE KAPACITETA JAVNOG ZNANSTVENO-ISTRAIŽIVAČKOG SEKTORA ZA ISTRAŽIVANJE I RAZVOJ - NPOO (C3.2.R1) | AE148: 0150 | AF148: Istraživanje i razvoj: Opće javne usluge | AG148: 09 | AH148: 097
A149: =IF(E149="","",VLOOKUP('OPĆI DIO'!$C$1,'OPĆI DIO'!$L$4:$U$138,10,FALSE)) ->  | B149: =IF(E149="","",VLOOKUP('OPĆI DIO'!$C$1,'OPĆI DIO'!$L$4:$U$138,9,FALSE)) ->  | K149: 0 | L149: 0 | N149: =IF(C149="","",'OPĆI DIO'!$C$1) ->  | AC149: A577143 | AD149: RAZVOJ I ODRŽAVANJE INFORMACIJSKE INFRASTRUKTURE MINISTARSTVA | AE149: 0980 | AF149: Usluge obrazovanja koje nisu drugdje svrstane | AG149: 09 | AH149: 094
A150: =IF(E150="","",VLOOKUP('OPĆI DIO'!$C$1,'OPĆI DIO'!$L$4:$U$138,10,FALSE)) ->  | B150: =IF(E150="","",VLOOKUP('OPĆI DIO'!$C$1,'OPĆI DIO'!$L$4:$U$138,9,FALSE)) ->  | K150: 0 | L150: 0 | N150: =IF(C150="","",'OPĆI DIO'!$C$1) ->  | AC150: A628003 | AD150: PROJEKTI PRIMJENE INFORMACIJSKE TEHNOLOGIJE | AE150: 0150 | AF150: Istraživanje i razvoj: Opće javne usluge | AG150: 09 | AH150: 094
A151: =IF(E151="","",VLOOKUP('OPĆI DIO'!$C$1,'OPĆI DIO'!$L$4:$U$138,10,FALSE)) ->  | B151: =IF(E151="","",VLOOKUP('OPĆI DIO'!$C$1,'OPĆI DIO'!$L$4:$U$138,9,FALSE)) ->  | K151: 0 | L151: 0 | N151: =IF(C151="","",'OPĆI DIO'!$C$1) ->  | AC151: K252755 | AD151: RAČUNALNO KOMUNIKACIJSKA INFRASTRUKTURA U OSNOVNIM I SREDNJIM ŠKOLAMA | AE151: 0980 | AF151: Usluge obrazovanja koje nisu drugdje svrstane | AG151: 09 | AH151: 094
A152: =IF(E152="","",VLOOKUP('OPĆI DIO'!$C$1,'OPĆI DIO'!$L$4:$U$138,10,FALSE)) ->  | B152: =IF(E152="","",VLOOKUP('OPĆI DIO'!$C$1,'OPĆI DIO'!$L$4:$U$138,9,FALSE)) ->  | K152: 0 | L152: 0 | N152: =IF(C152="","",'OPĆI DIO'!$C$1) ->  | AC152: A621001 | AD152: REDOVNA DJELATNOST SVEUČILIŠTA U ZAGREBU | AE152: 0942 | AF152: Drugi stupanj visoke naobrazbe | AG152: 09 | AH152: 094
A153: =IF(E153="","",VLOOKUP('OPĆI DIO'!$C$1,'OPĆI DIO'!$L$4:$U$138,10,FALSE)) ->  | B153: =IF(E153="","",VLOOKUP('OPĆI DIO'!$C$1,'OPĆI DIO'!$L$4:$U$138,9,FALSE)) ->  | K153: 0 | L153: 0 | N153: =IF(C153="","",'OPĆI DIO'!$C$1) ->  | AC153: A621002 | AD153: REDOVNA DJELATNOST SVEUČILIŠTA U RIJECI | AE153: 0942 | AF153: Drugi stupanj visoke naobrazbe | AG153: 09 | AH153: 094
A154: =IF(E154="","",VLOOKUP('OPĆI DIO'!$C$1,'OPĆI DIO'!$L$4:$U$138,10,FALSE)) ->  | B154: =IF(E154="","",VLOOKUP('OPĆI DIO'!$C$1,'OPĆI DIO'!$L$4:$U$138,9,FALSE)) ->  | K154: 0 | L154: 0 | N154: =IF(C154="","",'OPĆI DIO'!$C$1) ->  | AC154: A621003 | AD154: REDOVNA DJELATNOST SVEUČILIŠTA U OSIJEKU | AE154: 0942 | AF154: Drugi stupanj visoke naobrazbe | AG154: 09 | AH154: 094
A155: =IF(E155="","",VLOOKUP('OPĆI DIO'!$C$1,'OPĆI DIO'!$L$4:$U$138,10,FALSE)) ->  | B155: =IF(E155="","",VLOOKUP('OPĆI DIO'!$C$1,'OPĆI DIO'!$L$4:$U$138,9,FALSE)) ->  | K155: 0 | L155: 0 | N155: =IF(C155="","",'OPĆI DIO'!$C$1) ->  | AC155: A621004 | AD155: REDOVNA DJELATNOST SVEUČILIŠTA U SPLITU | AE155: 0942 | AF155: Drugi stupanj visoke naobrazbe | AG155: 09 | AH155: 094
A156: =IF(E156="","",VLOOKUP('OPĆI DIO'!$C$1,'OPĆI DIO'!$L$4:$U$138,10,FALSE)) ->  | B156: =IF(E156="","",VLOOKUP('OPĆI DIO'!$C$1,'OPĆI DIO'!$L$4:$U$138,9,FALSE)) ->  | K156: 0 | L156: 0 | N156: =IF(C156="","",'OPĆI DIO'!$C$1) ->  | AC156: A621038 | AD156: PROGRAMI VJEŽBAONICA VISOKIH UČILIŠTA | AE156: 0942 | AF156: Drugi stupanj visoke naobrazbe | AG156: 09 | AH156: 094
A157: =IF(E157="","",VLOOKUP('OPĆI DIO'!$C$1,'OPĆI DIO'!$L$4:$U$138,10,FALSE)) ->  | B157: =IF(E157="","",VLOOKUP('OPĆI DIO'!$C$1,'OPĆI DIO'!$L$4:$U$138,9,FALSE)) ->  | K157: 0 | L157: 0 | N157: =IF(C157="","",'OPĆI DIO'!$C$1) ->  | AC157: A621074 | AD157: REDOVNA DJELATNOST SVEUČILIŠTA U ZADRU | AE157: 0942 | AF157: Drugi stupanj visoke naobrazbe | AG157: 09 | AH157: 094
A158: =IF(E158="","",VLOOKUP('OPĆI DIO'!$C$1,'OPĆI DIO'!$L$4:$U$138,10,FALSE)) ->  | B158: =IF(E158="","",VLOOKUP('OPĆI DIO'!$C$1,'OPĆI DIO'!$L$4:$U$138,9,FALSE)) ->  | K158: 0 | L158: 0 | N158: =IF(C158="","",'OPĆI DIO'!$C$1) ->  | AC158: A621138 | AD158: REDOVNA DJELATNOST SVEUČILIŠTA U DUBROVNIKU | AE158: 0942 | AF158: Drugi stupanj visoke naobrazbe | AG158: 09 | AH158: 094
A159: =IF(E159="","",VLOOKUP('OPĆI DIO'!$C$1,'OPĆI DIO'!$L$4:$U$138,10,FALSE)) ->  | B159: =IF(E159="","",VLOOKUP('OPĆI DIO'!$C$1,'OPĆI DIO'!$L$4:$U$138,9,FALSE)) ->  | K159: 0 | L159: 0 | N159: =IF(C159="","",'OPĆI DIO'!$C$1) ->  | AC159: A621148 | AD159: REDOVNA DJELATNOST VELEUČILIŠTA I VISOKIH ŠKOLA | AE159: 0942 | AF159: Drugi stupanj visoke naobrazbe | AG159: 09 | AH159: 094
A160: =IF(E160="","",VLOOKUP('OPĆI DIO'!$C$1,'OPĆI DIO'!$L$4:$U$138,10,FALSE)) ->  | B160: =IF(E160="","",VLOOKUP('OPĆI DIO'!$C$1,'OPĆI DIO'!$L$4:$U$138,9,FALSE)) ->  | K160: 0 | L160: 0 | N160: =IF(C160="","",'OPĆI DIO'!$C$1) ->  | AC160: A621168 | AD160: REDOVNA DJELATNOST SVEUČILIŠTA U PULI | AE160: 0942 | AF160: Drugi stupanj visoke naobrazbe | AG160: 09 | AH160: 094
A161: =IF(E161="","",VLOOKUP('OPĆI DIO'!$C$1,'OPĆI DIO'!$L$4:$U$138,10,FALSE)) ->  | B161: =IF(E161="","",VLOOKUP('OPĆI DIO'!$C$1,'OPĆI DIO'!$L$4:$U$138,9,FALSE)) ->  | K161: 0 | L161: 0 | N161: =IF(C161="","",'OPĆI DIO'!$C$1) ->  | AC161: A621180 | AD161: REKTORSKI ZBOR | AE161: 0942 | AF161: Drugi stupanj visoke naobrazbe | AG161: 09 | AH161: 094
A162: =IF(E162="","",VLOOKUP('OPĆI DIO'!$C$1,'OPĆI DIO'!$L$4:$U$138,10,FALSE)) ->  | B162: =IF(E162="","",VLOOKUP('OPĆI DIO'!$C$1,'OPĆI DIO'!$L$4:$U$138,9,FALSE)) ->  | K162: 0 | L162: 0 | N162: =IF(C162="","",'OPĆI DIO'!$C$1) ->  | AC162: A621181 | AD162: PRAVOMOĆNE SUDSKE PRESUDE | AE162: 0942 | AF162: Drugi stupanj visoke naobrazbe | AG162: 09 | AH162: 094
A163: =IF(E163="","",VLOOKUP('OPĆI DIO'!$C$1,'OPĆI DIO'!$L$4:$U$138,10,FALSE)) ->  | B163: =IF(E163="","",VLOOKUP('OPĆI DIO'!$C$1,'OPĆI DIO'!$L$4:$U$138,9,FALSE)) ->  | K163: 0 | L163: 0 | N163: =IF(C163="","",'OPĆI DIO'!$C$1) ->  | AC163: A621183 | AD163: STIPENDIJE I ŠKOLARINE ZA DOKTORSKI STUDIJ | AE163: 0942 | AF163: Drugi stupanj visoke naobrazbe | AG163: 09 | AH163: 094
A164: =IF(E164="","",VLOOKUP('OPĆI DIO'!$C$1,'OPĆI DIO'!$L$4:$U$138,10,FALSE)) ->  | B164: =IF(E164="","",VLOOKUP('OPĆI DIO'!$C$1,'OPĆI DIO'!$L$4:$U$138,9,FALSE)) ->  | K164: 0 | L164: 0 | N164: =IF(C164="","",'OPĆI DIO'!$C$1) ->  | AC164: A622122 | AD164: PROGRAMSKO FINANCIRANJE JAVNIH VISOKIH UČILIŠTA | AE164: 0942 | AF164: Drugi stupanj visoke naobrazbe | AG164: 09 | AH164: 094
A165: =IF(E165="","",VLOOKUP('OPĆI DIO'!$C$1,'OPĆI DIO'!$L$4:$U$138,10,FALSE)) ->  | B165: =IF(E165="","",VLOOKUP('OPĆI DIO'!$C$1,'OPĆI DIO'!$L$4:$U$138,9,FALSE)) ->  | K165: 0 | L165: 0 | N165: =IF(C165="","",'OPĆI DIO'!$C$1) ->  | AC165: A679071 | AD165: EU PROJEKTI SVEUČILIŠTA U OSIJEKU (IZ EVIDENCIJSKIH PRIHODA) | AE165: 0942 | AF165: Drugi stupanj visoke naobrazbe | AG165: 09 | AH165: 094
A166: =IF(E166="","",VLOOKUP('OPĆI DIO'!$C$1,'OPĆI DIO'!$L$4:$U$138,10,FALSE)) ->  | B166: =IF(E166="","",VLOOKUP('OPĆI DIO'!$C$1,'OPĆI DIO'!$L$4:$U$138,9,FALSE)) ->  | K166: 0 | L166: 0 | N166: =IF(C166="","",'OPĆI DIO'!$C$1) ->  | AC166: A679072 | AD166: EU PROJEKTI SVEUČILIŠTA U RIJECI (IZ EVIDENCIJSKIH PRIHODA) | AE166: 0942 | AF166: Drugi stupanj visoke naobrazbe | AG166: 09 | AH166: 094
A167: =IF(E167="","",VLOOKUP('OPĆI DIO'!$C$1,'OPĆI DIO'!$L$4:$U$138,10,FALSE)) ->  | B167: =IF(E167="","",VLOOKUP('OPĆI DIO'!$C$1,'OPĆI DIO'!$L$4:$U$138,9,FALSE)) ->  | K167: 0 | L167: 0 | N167: =IF(C167="","",'OPĆI DIO'!$C$1) ->  | AC167: A679073 | AD167: EU PROJEKTI SVEUČILIŠTA U DUBROVNIKU (IZ EVIDENCIJSKIH PRIHODA) | AE167: 0942 | AF167: Drugi stupanj visoke naobrazbe | AG167: 09 | AH167: 094
A168: =IF(E168="","",VLOOKUP('OPĆI DIO'!$C$1,'OPĆI DIO'!$L$4:$U$138,10,FALSE)) ->  | B168: =IF(E168="","",VLOOKUP('OPĆI DIO'!$C$1,'OPĆI DIO'!$L$4:$U$138,9,FALSE)) ->  | K168: 0 | L168: 0 | N168: =IF(C168="","",'OPĆI DIO'!$C$1) ->  | AC168: A679074 | AD168: EU PROJEKTI SVEUČILIŠTA U ZADRU (IZ EVIDENCIJSKIH PRIHODA) | AE168: 0942 | AF168: Drugi stupanj visoke naobrazbe | AG168: 09 | AH168: 094
A169: =IF(E169="","",VLOOKUP('OPĆI DIO'!$C$1,'OPĆI DIO'!$L$4:$U$138,10,FALSE)) ->  | B169: =IF(E169="","",VLOOKUP('OPĆI DIO'!$C$1,'OPĆI DIO'!$L$4:$U$138,9,FALSE)) ->  | K169: 0 | L169: 0 | N169: =IF(C169="","",'OPĆI DIO'!$C$1) ->  | AC169: A679075 | AD169: EU PROJEKTI SVEUČILIŠTA U PULI (IZ EVIDENCIJSKIH PRIHODA) | AE169: 0942 | AF169: Drugi stupanj visoke naobrazbe | AG169: 09 | AH169: 094
A170: =IF(E170="","",VLOOKUP('OPĆI DIO'!$C$1,'OPĆI DIO'!$L$4:$U$138,10,FALSE)) ->  | B170: =IF(E170="","",VLOOKUP('OPĆI DIO'!$C$1,'OPĆI DIO'!$L$4:$U$138,9,FALSE)) ->  | K170: 0 | L170: 0 | N170: =IF(C170="","",'OPĆI DIO'!$C$1) ->  | AC170: A679076 | AD170: EU PROJEKTI VELEUČILIŠTA I VISOKIH ŠKOLA (IZ EVIDENCIJSKIH PRIHODA) | AE170: 0942 | AF170: Drugi stupanj visoke naobrazbe | AG170: 09 | AH170: 094
A171: =IF(E171="","",VLOOKUP('OPĆI DIO'!$C$1,'OPĆI DIO'!$L$4:$U$138,10,FALSE)) ->  | B171: =IF(E171="","",VLOOKUP('OPĆI DIO'!$C$1,'OPĆI DIO'!$L$4:$U$138,9,FALSE)) ->  | K171: 0 | L171: 0 | N171: =IF(C171="","",'OPĆI DIO'!$C$1) ->  | AC171: A679077 | AD171: EU PROJEKTI SVEUČILIŠTA U SPLITU (IZ EVIDENCIJSKIH PRIHODA) | AE171: 0942 | AF171: Drugi stupanj visoke naobrazbe | AG171: 09 | AH171: 094
A172: =IF(E172="","",VLOOKUP('OPĆI DIO'!$C$1,'OPĆI DIO'!$L$4:$U$138,10,FALSE)) ->  | B172: =IF(E172="","",VLOOKUP('OPĆI DIO'!$C$1,'OPĆI DIO'!$L$4:$U$138,9,FALSE)) ->  | K172: 0 | L172: 0 | N172: =IF(C172="","",'OPĆI DIO'!$C$1) ->  | AC172: A679078 | AD172: EU PROJEKTI SVEUČILIŠTA U ZAGREBU (IZ EVIDENCIJSKIH PRIHODA) | AE172: 0942 | AF172: Drugi stupanj visoke naobrazbe | AG172: 09 | AH172: 094
A173: =IF(E173="","",VLOOKUP('OPĆI DIO'!$C$1,'OPĆI DIO'!$L$4:$U$138,10,FALSE)) ->  | B173: =IF(E173="","",VLOOKUP('OPĆI DIO'!$C$1,'OPĆI DIO'!$L$4:$U$138,9,FALSE)) ->  | K173: 0 | L173: 0 | N173: =IF(C173="","",'OPĆI DIO'!$C$1) ->  | AC173: A679080 | AD173: REDOVNA DJELATNOST SVEUČILIŠTA SJEVER | AE173: 0942 | AF173: Drugi stupanj visoke naobrazbe | AG173: 09 | AH173: 096
A174: =IF(E174="","",VLOOKUP('OPĆI DIO'!$C$1,'OPĆI DIO'!$L$4:$U$138,10,FALSE)) ->  | B174: =IF(E174="","",VLOOKUP('OPĆI DIO'!$C$1,'OPĆI DIO'!$L$4:$U$138,9,FALSE)) ->  | K174: 0 | L174: 0 | N174: =IF(C174="","",'OPĆI DIO'!$C$1) ->  | AC174: A679080 | AD174: REDOVNA DJELATNOST SVEUČILIŠTA SJEVER | AE174: 0960 | AF174: Dodatne usluge u obrazovanju | AG174: 09 | AH174: 094
A175: =IF(E175="","",VLOOKUP('OPĆI DIO'!$C$1,'OPĆI DIO'!$L$4:$U$138,10,FALSE)) ->  | B175: =IF(E175="","",VLOOKUP('OPĆI DIO'!$C$1,'OPĆI DIO'!$L$4:$U$138,9,FALSE)) ->  | K175: 0 | L175: 0 | N175: =IF(C175="","",'OPĆI DIO'!$C$1) ->  | AC175: A679081 | AD175: EU PROJEKTI SVEUČILIŠTA SJEVER (IZ EVIDENCIJSKIH PRIHODA) | AE175: 0942 | AF175: Drugi stupanj visoke naobrazbe | AG175: 09 | AH175: 094
A176: =IF(E176="","",VLOOKUP('OPĆI DIO'!$C$1,'OPĆI DIO'!$L$4:$U$138,10,FALSE)) ->  | B176: =IF(E176="","",VLOOKUP('OPĆI DIO'!$C$1,'OPĆI DIO'!$L$4:$U$138,9,FALSE)) ->  | K176: 0 | L176: 0 | N176: =IF(C176="","",'OPĆI DIO'!$C$1) ->  | AC176: A679088 | AD176: REDOVNA DJELATNOST SVEUČILIŠTA U ZAGREBU (IZ EVIDENCIJSKIH PRIHODA) | AE176: 0942 | AF176: Drugi stupanj visoke naobrazbe | AG176: 09 | AH176: 094
A177: =IF(E177="","",VLOOKUP('OPĆI DIO'!$C$1,'OPĆI DIO'!$L$4:$U$138,10,FALSE)) ->  | B177: =IF(E177="","",VLOOKUP('OPĆI DIO'!$C$1,'OPĆI DIO'!$L$4:$U$138,9,FALSE)) ->  | K177: 0 | L177: 0 | N177: =IF(C177="","",'OPĆI DIO'!$C$1) ->  | AC177: A679089 | AD177: REDOVNA DJELATNOST SVEUČILIŠTA U RIJECI (IZ EVIDENCIJSKIH PRIHODA) | AE177: 0942 | AF177: Drugi stupanj visoke naobrazbe | AG177: 09 | AH177: 094
A178: =IF(E178="","",VLOOKUP('OPĆI DIO'!$C$1,'OPĆI DIO'!$L$4:$U$138,10,FALSE)) ->  | B178: =IF(E178="","",VLOOKUP('OPĆI DIO'!$C$1,'OPĆI DIO'!$L$4:$U$138,9,FALSE)) ->  | K178: 0 | L178: 0 | N178: =IF(C178="","",'OPĆI DIO'!$C$1) ->  | AC178: A679090 | AD178: REDOVNA DJELATNOST SVEUČILIŠTA U OSIJEKU (IZ EVIDENCIJSKIH PRIHODA) | AE178: 0942 | AF178: Drugi stupanj visoke naobrazbe | AG178: 09 | AH178: 094
A179: =IF(E179="","",VLOOKUP('OPĆI DIO'!$C$1,'OPĆI DIO'!$L$4:$U$138,10,FALSE)) ->  | B179: =IF(E179="","",VLOOKUP('OPĆI DIO'!$C$1,'OPĆI DIO'!$L$4:$U$138,9,FALSE)) ->  | K179: 0 | L179: 0 | N179: =IF(C179="","",'OPĆI DIO'!$C$1) ->  | AC179: A679091 | AD179: REDOVNA DJELATNOST SVEUČILIŠTA U SPLITU (IZ EVIDENCIJSKIH PRIHODA) | AE179: 0942 | AF179: Drugi stupanj visoke naobrazbe | AG179: 09 | AH179: 094
A180: =IF(E180="","",VLOOKUP('OPĆI DIO'!$C$1,'OPĆI DIO'!$L$4:$U$138,10,FALSE)) ->  | B180: =IF(E180="","",VLOOKUP('OPĆI DIO'!$C$1,'OPĆI DIO'!$L$4:$U$138,9,FALSE)) ->  | K180: 0 | L180: 0 | N180: =IF(C180="","",'OPĆI DIO'!$C$1) ->  | AC180: A679092 | AD180: REDOVNA DJELATNOST SVEUČILIŠTA U ZADRU (IZ EVIDENCIJSKIH PRIHODA) | AE180: 0942 | AF180: Drugi stupanj visoke naobrazbe | AG180: 09 | AH180: 094
A181: =IF(E181="","",VLOOKUP('OPĆI DIO'!$C$1,'OPĆI DIO'!$L$4:$U$138,10,FALSE)) ->  | B181: =IF(E181="","",VLOOKUP('OPĆI DIO'!$C$1,'OPĆI DIO'!$L$4:$U$138,9,FALSE)) ->  | K181: 0 | L181: 0 | N181: =IF(C181="","",'OPĆI DIO'!$C$1) ->  | AC181: A679093 | AD181: REDOVNA DJELATNOST SVEUČILIŠTA U DUBROVNIKU (IZ EVIDENCIJSKIH PRIHODA) | AE181: 0942 | AF181: Drugi stupanj visoke naobrazbe | AG181: 09 | AH181: 094
A182: =IF(E182="","",VLOOKUP('OPĆI DIO'!$C$1,'OPĆI DIO'!$L$4:$U$138,10,FALSE)) ->  | B182: =IF(E182="","",VLOOKUP('OPĆI DIO'!$C$1,'OPĆI DIO'!$L$4:$U$138,9,FALSE)) ->  | K182: 0 | L182: 0 | N182: =IF(C182="","",'OPĆI DIO'!$C$1) ->  | AC182: A679094 | AD182: REDOVNA DJELATNOST VELEUČILIŠTA I VISOKIH ŠKOLA (IZ EVIDENCIJSKIH PRIHODA) | AE182: 0942 | AF182: Drugi stupanj visoke naobrazbe | AG182: 09 | AH182: 094
A183: =IF(E183="","",VLOOKUP('OPĆI DIO'!$C$1,'OPĆI DIO'!$L$4:$U$138,10,FALSE)) ->  | B183: =IF(E183="","",VLOOKUP('OPĆI DIO'!$C$1,'OPĆI DIO'!$L$4:$U$138,9,FALSE)) ->  | K183: 0 | L183: 0 | N183: =IF(C183="","",'OPĆI DIO'!$C$1) ->  | AC183: A679095 | AD183: REDOVNA DJELATNOST SVEUČILIŠTA U PULI (IZ EVIDENCIJSKIH PRIHODA) | AE183: 0942 | AF183: Drugi stupanj visoke naobrazbe | AG183: 09 | AH183: 094
A184: =IF(E184="","",VLOOKUP('OPĆI DIO'!$C$1,'OPĆI DIO'!$L$4:$U$138,10,FALSE)) ->  | B184: =IF(E184="","",VLOOKUP('OPĆI DIO'!$C$1,'OPĆI DIO'!$L$4:$U$138,9,FALSE)) ->  | K184: 0 | L184: 0 | N184: =IF(C184="","",'OPĆI DIO'!$C$1) ->  | AC184: A679096 | AD184: REDOVNA DJELATNOST SVEUČILIŠTA SJEVER (IZ EVIDENCIJSKIH PRIHODA) | AE184: 0942 | AF184: Drugi stupanj visoke naobrazbe | AG184: 09 | AH184: 094
A185: =IF(E185="","",VLOOKUP('OPĆI DIO'!$C$1,'OPĆI DIO'!$L$4:$U$138,10,FALSE)) ->  | B185: =IF(E185="","",VLOOKUP('OPĆI DIO'!$C$1,'OPĆI DIO'!$L$4:$U$138,9,FALSE)) ->  | K185: 0 | L185: 0 | N185: =IF(C185="","",'OPĆI DIO'!$C$1) ->  | AC185: A679110 | AD185: POTPORA UMJETNIČKIM STUDIJIMA | AE185: 0942 | AF185: Drugi stupanj visoke naobrazbe | AG185: 09 | AH185: 094
A186: =IF(E186="","",VLOOKUP('OPĆI DIO'!$C$1,'OPĆI DIO'!$L$4:$U$138,10,FALSE)) ->  | B186: =IF(E186="","",VLOOKUP('OPĆI DIO'!$C$1,'OPĆI DIO'!$L$4:$U$138,9,FALSE)) ->  | K186: 0 | L186: 0 | N186: =IF(C186="","",'OPĆI DIO'!$C$1) ->  | AC186: A679112 | AD186: REDOVNA DJELATNOST SVEUČILIŠTA U SLAVONSKOM BRODU | AE186: 0942 | AF186: Drugi stupanj visoke naobrazbe | AG186: 09 | AH186: 094
A187: =IF(E187="","",VLOOKUP('OPĆI DIO'!$C$1,'OPĆI DIO'!$L$4:$U$138,10,FALSE)) ->  | B187: =IF(E187="","",VLOOKUP('OPĆI DIO'!$C$1,'OPĆI DIO'!$L$4:$U$138,9,FALSE)) ->  | K187: 0 | L187: 0 | N187: =IF(C187="","",'OPĆI DIO'!$C$1) ->  | AC187: A679114 | AD187: REDOVNA DJELATNOST SVEUČILIŠTA U SLAVONSKOM BRODU (IZ EVIDENCIJSKIH PRIHODA) | AE187: 0942 | AF187: Drugi stupanj visoke naobrazbe | AG187: 09 | AH187: 094
A188: =IF(E188="","",VLOOKUP('OPĆI DIO'!$C$1,'OPĆI DIO'!$L$4:$U$138,10,FALSE)) ->  | B188: =IF(E188="","",VLOOKUP('OPĆI DIO'!$C$1,'OPĆI DIO'!$L$4:$U$138,9,FALSE)) ->  | K188: 0 | L188: 0 | N188: =IF(C188="","",'OPĆI DIO'!$C$1) ->  | AC188: A679115 | AD188: EU PROJEKTI SVEUČILIŠTA U SLAVONSKOM BRODU (IZ EVIDENCIJSKIH PRIHODA) | AE188: 0942 | AF188: Drugi stupanj visoke naobrazbe | AG188: 09 | AH188: 094
A189: =IF(E189="","",VLOOKUP('OPĆI DIO'!$C$1,'OPĆI DIO'!$L$4:$U$138,10,FALSE)) ->  | B189: =IF(E189="","",VLOOKUP('OPĆI DIO'!$C$1,'OPĆI DIO'!$L$4:$U$138,9,FALSE)) ->  | K189: 0 | L189: 0 | N189: =IF(C189="","",'OPĆI DIO'!$C$1) ->  | AC189: A679117 | AD189: HPC - PROJEKT ISTRAŽIVANJA NA PODRUČJU POTRESNOG INŽENJERSTVA | AE189: 0942 | AF189: Drugi stupanj visoke naobrazbe | AG189: 09 | AH189: 094
A190: =IF(E190="","",VLOOKUP('OPĆI DIO'!$C$1,'OPĆI DIO'!$L$4:$U$138,10,FALSE)) ->  | B190: =IF(E190="","",VLOOKUP('OPĆI DIO'!$C$1,'OPĆI DIO'!$L$4:$U$138,9,FALSE)) ->  | K190: 0 | L190: 0 | N190: =IF(C190="","",'OPĆI DIO'!$C$1) ->  | AC190: A679118 | AD190: PROJEKT PRAĆENJA GEOLOŠKIH HAZARDA I RIZIKA NAKON POTRESA U PETRINJI | AE190: 0942 | AF190: Drugi stupanj visoke naobrazbe | AG190: 09 | AH190: 094
A191: =IF(E191="","",VLOOKUP('OPĆI DIO'!$C$1,'OPĆI DIO'!$L$4:$U$138,10,FALSE)) ->  | B191: =IF(E191="","",VLOOKUP('OPĆI DIO'!$C$1,'OPĆI DIO'!$L$4:$U$138,9,FALSE)) ->  | K191: 0 | L191: 0 | N191: =IF(C191="","",'OPĆI DIO'!$C$1) ->  | AC191: K621061 | AD191: ODRŽAVANJE OBJEKATA VISOKOOBRAZOVNIH USTANOVA | AE191: 0942 | AF191: Drugi stupanj visoke naobrazbe | AG191: 09 | AH191: 094
A192: =IF(E192="","",VLOOKUP('OPĆI DIO'!$C$1,'OPĆI DIO'!$L$4:$U$138,10,FALSE)) ->  | B192: =IF(E192="","",VLOOKUP('OPĆI DIO'!$C$1,'OPĆI DIO'!$L$4:$U$138,9,FALSE)) ->  | K192: 0 | L192: 0 | N192: =IF(C192="","",'OPĆI DIO'!$C$1) ->  | AC192: K679084 | AD192: OP KONKURENTNOST I KOHEZIJA 2014.-2020., PRIORITET 1, 9 i 10 | AE192: 0942 | AF192: Drugi stupanj visoke naobrazbe | AG192: 09 | AH192: 094
A193: =IF(E193="","",VLOOKUP('OPĆI DIO'!$C$1,'OPĆI DIO'!$L$4:$U$138,10,FALSE)) ->  | B193: =IF(E193="","",VLOOKUP('OPĆI DIO'!$C$1,'OPĆI DIO'!$L$4:$U$138,9,FALSE)) ->  | K193: 0 | L193: 0 | N193: =IF(C193="","",'OPĆI DIO'!$C$1) ->  | AC193: K679106 | AD193: OP UČINKOVITI LJUDSKI POTENCIJALI 2014.-2020., PRIORITET 3 | AE193: 0942 | AF193: Drugi stupanj visoke naobrazbe | AG193: 09 | AH193: 094
A194: =IF(E194="","",VLOOKUP('OPĆI DIO'!$C$1,'OPĆI DIO'!$L$4:$U$138,10,FALSE)) ->  | B194: =IF(E194="","",VLOOKUP('OPĆI DIO'!$C$1,'OPĆI DIO'!$L$4:$U$138,9,FALSE)) ->  | K194: 0 | L194: 0 | N194: =IF(C194="","",'OPĆI DIO'!$C$1) ->  | AC194: K679116 | AD194: OBNOVA INFRASTRUKTURE I OPREME U PODRUČJU OBRAZOVANJA OŠTEĆENE POTRESOM | AE194: 0942 | AF194: Drugi stupanj visoke naobrazbe | AG194: 09 | AH194: 094
A195: =IF(E195="","",VLOOKUP('OPĆI DIO'!$C$1,'OPĆI DIO'!$L$4:$U$138,10,FALSE)) ->  | B195: =IF(E195="","",VLOOKUP('OPĆI DIO'!$C$1,'OPĆI DIO'!$L$4:$U$138,9,FALSE)) ->  | F195: =IFERROR(VLOOKUP(E195,$W$5:$Y$129,2,FALSE),"") ->  | K195: 0 | L195: 0 | N195: =IF(C195="","",'OPĆI DIO'!$C$1) ->  | AC195: K679119 | AD195: OBNOVA ZGRADA OŠTEĆENIH U POTRESU S ENERGETSKOM OBNOVOM - NPOO (C6.1.R1-I2) | AE195: 0942 | AF195: Drugi stupanj visoke naobrazbe | AG195: 09 | AH195: 094
A196: =IF(E196="","",VLOOKUP('OPĆI DIO'!$C$1,'OPĆI DIO'!$L$4:$U$138,10,FALSE)) ->  | B196: =IF(E196="","",VLOOKUP('OPĆI DIO'!$C$1,'OPĆI DIO'!$L$4:$U$138,9,FALSE)) ->  | D196: =IFERROR(VLOOKUP(C196,$T$6:$U$23,2,FALSE),"") ->  | H196: =IFERROR(VLOOKUP(G196,$AC$6:$AD$353,2,FALSE),"") ->  | I196: =IFERROR(VLOOKUP(G196,$AC$6:$AG$353,3,FALSE),"") ->  | K196: 0 | L196: =+J196+K196 -> 0 | N196: =IF(C196="","",'OPĆI DIO'!$C$1) ->  | O196: =LEFT(E196,3) ->  | P196: =LEFT(E196,2) ->  | Q196: =LEFT(C196,3) ->  | R196: =IF(S196="5",0,MID(I196,2,2)) ->  | S196: =LEFT(E196,1) ->  | AC196: K679122 | AD196: RAZVOJ MREŽE SEIZMOLOŠKIH PODATAKA - NPOO (C6.1.R4-I1) | AE196: 0942 | AF196: Drugi stupanj visoke naobrazbe | AG196: 09 | AH196: 094
A197: =IF(E197="","",VLOOKUP('OPĆI DIO'!$C$1,'OPĆI DIO'!$L$4:$U$138,10,FALSE)) ->  | B197: =IF(E197="","",VLOOKUP('OPĆI DIO'!$C$1,'OPĆI DIO'!$L$4:$U$138,9,FALSE)) ->  | K197: 0 | L197: 0 | N197: =IF(C197="","",'OPĆI DIO'!$C$1) ->  | AC197: K679124 | AD197: PROGRAM UČINKOVITI LJUDSKI POTENCIJALI 2021.-2027., PRIORITET 2 | AE197: 0942 | AF197: Drugi stupanj visoke naobrazbe | AG197: 01 | AH197: 015
A198: =IF(E198="","",VLOOKUP('OPĆI DIO'!$C$1,'OPĆI DIO'!$L$4:$U$138,10,FALSE)) ->  | B198: =IF(E198="","",VLOOKUP('OPĆI DIO'!$C$1,'OPĆI DIO'!$L$4:$U$138,9,FALSE)) ->  | K198: 0 | L198: 0 | N198: =IF(C198="","",'OPĆI DIO'!$C$1) ->  | AC198: K679125 | AD198: OBNOVA INFRASTRUKTURE U PODRUČJU OBRAZOVANJA OŠTEĆENE POTRESOM FSEU.2022.MZO | AE198: 0942 | AF198: Drugi stupanj visoke naobrazbe | AG198: 01 | AH198: 015
A199: =IF(E199="","",VLOOKUP('OPĆI DIO'!$C$1,'OPĆI DIO'!$L$4:$U$138,10,FALSE)) ->  | B199: =IF(E199="","",VLOOKUP('OPĆI DIO'!$C$1,'OPĆI DIO'!$L$4:$U$138,9,FALSE)) ->  | K199: 0 | L199: 0 | N199: =IF(C199="","",'OPĆI DIO'!$C$1) ->  | AC199: K679126 | AD199: PROGRAM KONKURENTNOST I KOHEZIJA 2021.-2027., PRIORITET 1 | AE199: 0942 | AF199: Drugi stupanj visoke naobrazbe | AG199: 01 | AH199: 015
A200: =IF(E200="","",VLOOKUP('OPĆI DIO'!$C$1,'OPĆI DIO'!$L$4:$U$138,10,FALSE)) ->  | B200: =IF(E200="","",VLOOKUP('OPĆI DIO'!$C$1,'OPĆI DIO'!$L$4:$U$138,9,FALSE)) ->  | K200: 0 | L200: 0 | N200: =IF(C200="","",'OPĆI DIO'!$C$1) ->  | AC200: K679128 | AD200: POBOLJŠANJE UČINKOVITOSTI JAVNIH ULAGANJA NA PODRUČJU ISTRAŽIVANJA, RAZVOJA I INOVACIJA - NPOO (C3.2.R3) | AE200: 0942 | AF200: Drugi stupanj visoke naobrazbe | AG200: 01 | AH200: 015
... 301 more rows

Sheet Unos rashoda P4
A1: EU PODPROJEKTI - rashodi | C1: =IF(OR('OPĆI DIO'!C1="odaberite -",'OPĆI DIO'!C1=""),"Molimo odaberite proračunskog korisnika na radnom listu Opći podaci!","") ->  | J1: u EUR
A2: IZVOR (odaberite) | B2: OPIS IZVORA | C2: Stavka (odaberite) | D2: OPIS STAVKE | E2: AKTIVNOST/PODPROJEKT (odaberite) | F2: OPIS AKTIVNOSTI | G2: FP | H2: PLAN 2025. | I2: Povećanje iznos u plusu / smanjenje iznos u minusu | J2: NOVI PLAN 2025. | K2: NAZIV NOVOG PODPROJEKTA | L2: Vrijedi od: | M2: Vrijedi do: | N2: TKO JE UPLATITELJ SREDSTAVA ZA EU PROJEKT | O2: OPIS PODPROJEKTA | P2: Primatelj prijenosa | Q2: Ustanova | R2: left3 | S2: left2 | T2: mid | U2: left1
A3: 51 | B3: =IFERROR(VLOOKUP(A3,$V$6:$W$23,2,FALSE),"") -> Pomoći EU | C3: 3211 | D3: =IFERROR(VLOOKUP(C3,$Y$5:$AA$129,2,FALSE),"") -> Službena putovanja | E3: A679072.218 | F3: =IFERROR(VLOOKUP(E3,$AE$6:$AF$1763,2,FALSE),"") -> FASIH -Future Art and Science Industrial Heritage | G3: =IFERROR(VLOOKUP(E3,$AE$6:$AH$1763,4,FALSE),"") -> 0942 | H3: 2,000 | I3: -2,000 | J3: =+H3+I3 -> 0 | Q3: =IF(C3="","",'OPĆI DIO'!$C$1) -> 38454 SVEUČILIŠTE U RIJECI - AKADEMIJA PRIMJENJENIH UMJETNOSTI | R3: =LEFT(C3,3) -> 321 | S3: =LEFT(C3,2) -> 32 | T3: =IF(U3="5",0,MID(G3,2,2)) -> 94 | U3: =LEFT(C3,1) -> 3
A4: 51 | B4: =IFERROR(VLOOKUP(A4,$V$6:$W$23,2,FALSE),"") -> Pomoći EU | C4: 3222 | D4: =IFERROR(VLOOKUP(C4,$Y$5:$AA$129,2,FALSE),"") -> Materijal i sirovine | E4: A679072.218 | F4: =IFERROR(VLOOKUP(E4,$AE$6:$AF$1763,2,FALSE),"") -> FASIH -Future Art and Science Industrial Heritage | G4: =IFERROR(VLOOKUP(E4,$AE$6:$AH$1763,4,FALSE),"") -> 0942 | H4: 1,000 | I4: -942 | J4: =+H4+I4 -> 58 | Q4: =IF(C4="","",'OPĆI DIO'!$C$1) -> 38454 SVEUČILIŠTE U RIJECI - AKADEMIJA PRIMJENJENIH UMJETNOSTI | R4: =LEFT(C4,3) -> 322 | S4: =LEFT(C4,2) -> 32 | T4: =IF(U4="5",0,MID(G4,2,2)) -> 94 | U4: =LEFT(C4,1) -> 3
A5: 51 | B5: Pomoći EU | C5: 3235 | D5: Zakupnine i najamnine | E5: A679072.218 | F5: FASIH -Future Art and Science Industrial Heritage | G5: 0942 | H5: 500 | I5: 2,313 | J5: 2,813 | Q5: =IF(C5="","",'OPĆI DIO'!$C$1) -> 38454 SVEUČILIŠTE U RIJECI - AKADEMIJA PRIMJENJENIH UMJETNOSTI | R5: 323 | S5: 32 | T5: 94 | U5: 3 | V5: IZVOR | W5: OPIS IZVORA | Y5: 3111 | Z5: Plaće za redovan rad | AB5: =LEFT(Y5,2) -> 31 | AC5: =LEFT(Y5,3) -> 311 | AE5: AKTIVNOST | AF5: OPIS AKTIVNOSTI
A6: 51 | B6: Pomoći EU | C6: 3237 | D6: Intelektualne i osobne usluge | E6: A679072.218 | F6: FASIH -Future Art and Science Industrial Heritage | G6: 0942 | H6: 3,000 | I6: 1,637 | J6: 4,637 | Q6: =IF(C6="","",'OPĆI DIO'!$C$1) -> 38454 SVEUČILIŠTE U RIJECI - AKADEMIJA PRIMJENJENIH UMJETNOSTI | R6: 323 | S6: 32 | T6: 94 | U6: 3 | V6: 11 | W6: Opći prihodi i primici | Y6: 3112 | Z6: Plaće u naravi | AB6: 31 | AC6: =LEFT(Y6,3) -> 311 | AE6: NOVI PODPROJEKT | AF6: NOVI PODPROJEKT | AG6: NOVI PODPROJEKT | AH6: =IFERROR(VLOOKUP(AG6,AKT!$E$4:$G$351,3,FALSE),"") -> 0942
A7: 51 | B7: Pomoći EU | C7: 3241 | D7: Naknade troškova osobama izvan radnog odnosa | E7: A679072.218 | F7: FASIH -Future Art and Science Industrial Heritage | G7: 0942 | H7: 1,500 | I7: -1,500 | J7: 0 | Q7: =IF(C7="","",'OPĆI DIO'!$C$1) -> 38454 SVEUČILIŠTE U RIJECI - AKADEMIJA PRIMJENJENIH UMJETNOSTI | R7: 324 | S7: 32 | T7: 94 | U7: 3 | V7: 12 | W7: Sredstva učešća za pomoći | Y7: 3113 | Z7: Plaće za prekovremeni rad | AB7: 31 | AC7: 311
A8: 51 | B8: Pomoći EU | C8: 3293 | D8: Reprezentacija | E8: A679072.218 | F8: FASIH -Future Art and Science Industrial Heritage | G8: 0942 | H8: 1,000 | I8: -120 | J8: 880 | Q8: =IF(C8="","",'OPĆI DIO'!$C$1) -> 38454 SVEUČILIŠTE U RIJECI - AKADEMIJA PRIMJENJENIH UMJETNOSTI | R8: 329 | S8: 32 | T8: 94 | U8: 3 | V8: 31 | W8: Vlastiti prihodi | Y8: 3114 | Z8: Plaće za posebne uvjete rada | AB8: 31 | AC8: 311 | AE8: A676072.001 | AF8: ERASMUS PLUS-PROFFORMANCE-RAZVOJ SUSTAVA OCJENJIVANJA RADA I NAGRAĐIVANJA PROFESORA NA VISOKIM UČILIŠTIMA | AG8: =LEFT(AE8,7) -> A676072 | AH8: =IFERROR(VLOOKUP(AG8,AKT!$E$4:$G$351,3,FALSE),"") -> 0970
A9: 51 | B9: Pomoći EU | C9: 3111 | D9: Plaće za redovan rad | E9: A679072.218 | F9: FASIH -Future Art and Science Industrial Heritage | G9: 0942 | I9: 1,923 | J9: 1,923 | Q9: =IF(C9="","",'OPĆI DIO'!$C$1) -> 38454 SVEUČILIŠTE U RIJECI - AKADEMIJA PRIMJENJENIH UMJETNOSTI | R9: 311 | S9: 31 | T9: 94 | U9: 3 | V9: 41 | W9: Prihodi od igara na sreću | Y9: 3121 | Z9: Ostali rashodi za zaposlene | AB9: 31 | AC9: 312 | AE9: A676072.002 | AF9: ERASMUS PLUS-AKTIVNOSTI SURADNIČKOG UČENJA I RESURSI ZA POTPORU NAČELA I SMJERNICA ZA SOCIJALNU DIMENZIJU | AG9: =LEFT(AE9,7) -> A676072 | AH9: =IFERROR(VLOOKUP(AG9,AKT!$E$4:$G$351,3,FALSE),"") -> 0970
A10: 51 | B10: Pomoći EU | C10: 3132 | D10: Doprinosi za obvezno zdravstveno osiguranje | E10: A679072.218 | F10: FASIH -Future Art and Science Industrial Heritage | G10: 0942 | I10: 317 | J10: 317 | Q10: =IF(C10="","",'OPĆI DIO'!$C$1) -> 38454 SVEUČILIŠTE U RIJECI - AKADEMIJA PRIMJENJENIH UMJETNOSTI | R10: 313 | S10: 31 | T10: 94 | U10: 3 | V10: 43 | W10: Ostali prihodi za posebne namjene | Y10: 3132 | Z10: Doprinosi za obvezno zdravstveno osiguranje | AB10: 31 | AC10: 313 | AE10: A676072.003 | AF10: ERASMUS PLUS-EUROPSKO ISTRAŽIVANJE PRAĆENJA OSOBA S DIPLOMOM (GT-HRVATSKA) | AG10: A676072 | AH10: =IFERROR(VLOOKUP(AG10,AKT!$E$4:$G$351,3,FALSE),"") -> 0970
A11: 51 | B11: Pomoći EU | C11: 3212 | D11: Naknade za prijevoz, za rad na terenu i odvojeni život | E11: A679072.218 | F11: FASIH -Future Art and Science Industrial Heritage | G11: 0942 | I11: 260 | J11: 260 | Q11: =IF(C11="","",'OPĆI DIO'!$C$1) -> 38454 SVEUČILIŠTE U RIJECI - AKADEMIJA PRIMJENJENIH UMJETNOSTI | R11: 321 | S11: 32 | T11: 94 | U11: 3 | V11: 51 | W11: Pomoći EU | Y11: 3211 | Z11: Službena putovanja | AB11: 32 | AC11: 321 | AE11: A676072.004 | AF11: ERASMUS PLUS-HAND IN HAND-OSNAŽIVANJE NASTAVNIKA DILJEM EUROPE | AG11: A676072 | AH11: =IFERROR(VLOOKUP(AG11,AKT!$E$4:$G$351,3,FALSE),"") -> 0970
A12: 51 | B12: Pomoći EU | C12: 3225 | D12: Sitni inventar i auto gume | E12: A679072.218 | F12: FASIH -Future Art and Science Industrial Heritage | G12: 0942 | I12: 226 | J12: 226 | Q12: =IF(C12="","",'OPĆI DIO'!$C$1) -> 38454 SVEUČILIŠTE U RIJECI - AKADEMIJA PRIMJENJENIH UMJETNOSTI | R12: 322 | S12: 32 | T12: 94 | U12: 3 | V12: 52 | W12: Ostale pomoći | Y12: 3212 | Z12: Naknade za prijevoz, za rad na terenu i odvojeni život | AB12: 32 | AC12: 321 | AE12: A676072.005 | AF12: ERASMUS PLUS-BAQUAL-BOLJE AKADEMSKE KVALIFIKACIJE KROZ OSIGURAVANJE KVALITETE | AG12: A676072 | AH12: =IFERROR(VLOOKUP(AG12,AKT!$E$4:$G$351,3,FALSE),"") -> 0970
A13: 51 | B13: Pomoći EU | C13: 3233 | D13: Usluge promidžbe i informiranja | E13: A679072.218 | F13: FASIH -Future Art and Science Industrial Heritage | G13: 0942 | I13: 2,495 | J13: 2,495 | Q13: =IF(C13="","",'OPĆI DIO'!$C$1) -> 38454 SVEUČILIŠTE U RIJECI - AKADEMIJA PRIMJENJENIH UMJETNOSTI | R13: 323 | S13: 32 | T13: 94 | U13: 3 | V13: 552 | W13: Švicarski instrument | Y13: 3213 | Z13: Stručno usavršavanje zaposlenika | AB13: 32 | AC13: 321 | AE13: K578051.001 | AF13: Znanstveno i tehnologijsko predviđanje | AG13: K578051 | AH13: =IFERROR(VLOOKUP(AG13,AKT!$E$4:$G$351,3,FALSE),"") -> 0150
A14: 51 | B14: Pomoći EU | C14: 3239 | D14: Ostale usluge | E14: A679072.218 | F14: FASIH -Future Art and Science Industrial Heritage | G14: 0942 | I14: 4,350 | J14: 4,350 | Q14: =IF(C14="","",'OPĆI DIO'!$C$1) -> 38454 SVEUČILIŠTE U RIJECI - AKADEMIJA PRIMJENJENIH UMJETNOSTI | R14: 323 | S14: 32 | T14: 94 | U14: 3 | V14: 559 | W14: Ostale refundacije iz pomoći EU | Y14: 3214 | Z14: Ostale naknade troškova zaposlenima | AB14: 32 | AC14: 321 | AE14: K578051.002 | AF14: Ulaganje u znanost i inovacije (SIIF) | AG14: K578051 | AH14: =IFERROR(VLOOKUP(AG14,AKT!$E$4:$G$351,3,FALSE),"") -> 0150
A15: 51 | B15: Pomoći EU | C15: 4222 | D15: Komunikacijska oprema | E15: A679072.218 | F15: FASIH -Future Art and Science Industrial Heritage | G15: 0942 | I15: 292 | J15: 292 | Q15: =IF(C15="","",'OPĆI DIO'!$C$1) -> 38454 SVEUČILIŠTE U RIJECI - AKADEMIJA PRIMJENJENIH UMJETNOSTI | R15: 422 | S15: 42 | T15: 94 | U15: 4 | V15: 561 | W15: Europski socijalni fond (ESF) | Y15: 3221 | Z15: Uredski materijal i ostali materijalni rashodi | AB15: 32 | AC15: 322 | AE15: K578051.003 | AF15: Jačanje kapaciteta za istraživanje, razvoj i inovacije (STRIP) | AG15: K578051 | AH15: =IFERROR(VLOOKUP(AG15,AKT!$E$4:$G$351,3,FALSE),"") -> 0150
A16: 51 | B16: Pomoći EU | C16: 4227 | D16: Uređaji, strojevi i oprema za ostale namjene | E16: A679072.218 | F16: FASIH -Future Art and Science Industrial Heritage | G16: 0942 | I16: 258 | J16: 258 | Q16: =IF(C16="","",'OPĆI DIO'!$C$1) -> 38454 SVEUČILIŠTE U RIJECI - AKADEMIJA PRIMJENJENIH UMJETNOSTI | R16: 422 | S16: 42 | T16: 94 | U16: 4 | V16: 563 | W16: Europski fond za regionalni razvoj (ERDF) | Y16: 3222 | Z16: Materijal i sirovine | AB16: 32 | AC16: 322 | AE16: K578051.004 | AF16: Ulaganje u organizacijsku reformu i infrastrukturu sektora istraživanja, razvoja i inovacija | AG16: K578051 | AH16: =IFERROR(VLOOKUP(AG16,AKT!$E$4:$G$351,3,FALSE),"") -> 0150
I17: 0 | J17: 0 | Q17: =IF(C17="","",'OPĆI DIO'!$C$1) ->  | V17: 573 | W17: Instrumenti Europskog gospodarskog prostora i ostali instrumenti | Y17: 3223 | Z17: Energija | AB17: 32 | AC17: 322 | AE17: K578051.005 | AF17: Veliki projekt: ˝Dječji centar za translacijsku medicinu˝ Dječje bolnice Srebrnjak | AG17: K578051 | AH17: =IFERROR(VLOOKUP(AG17,AKT!$E$4:$G$351,3,FALSE),"") -> 0150
I18: 0 | J18: 0 | Q18: =IF(C18="","",'OPĆI DIO'!$C$1) ->  | V18: 581 | W18: Mehanizam za oporavak i otpornost | Y18: 3224 | Z18: Materijal i dijelovi za tekuće i investicijsko održavanje | AB18: 32 | AC18: 322 | AE18: K578051.008 | AF18: Poziv Centri kompetencija | AG18: K578051 | AH18: =IFERROR(VLOOKUP(AG18,AKT!$E$4:$G$351,3,FALSE),"") -> 0150
F19: =IFERROR(VLOOKUP(E19,$AE$6:$AF$1763,2,FALSE),"") ->  | G19: =IFERROR(VLOOKUP(E19,$AE$6:$AH$1763,4,FALSE),"") ->  | I19: 0 | J19: 0 | Q19: =IF(C19="","",'OPĆI DIO'!$C$1) ->  | T19: =IF(U19="5",0,MID(G19,2,2)) ->  | V19: 61 | W19: Donacije | Y19: 3225 | Z19: Sitni inventar i auto gume | AB19: 32 | AC19: 322 | AE19: K578051.009 | AF19: Tehnička pomoć za MZO | AG19: K578051 | AH19: =IFERROR(VLOOKUP(AG19,AKT!$E$4:$G$351,3,FALSE),"") -> 0150
I20: 0 | J20: 0 | Q20: =IF(C20="","",'OPĆI DIO'!$C$1) ->  | V20: 63 | W20: Inozemne donacije | Y20: 3226 | Z20: Vojna sredstva za jednokratnu upotrebu | AB20: 32 | AC20: 322 | AE20: K676068.001 | AF20: MZO-Vrhunska istraživanja Znanstvenih centara izvrsnosti | AG20: K676068 | AH20: =IFERROR(VLOOKUP(AG20,AKT!$E$4:$G$351,3,FALSE),"") -> 0150
I21: 0 | J21: 0 | Q21: =IF(C21="","",'OPĆI DIO'!$C$1) ->  | V21: 71 | W21: Prihodi od nefin. imovine i nadoknade štete s osnova osig. | Y21: 3227 | Z21: Službena, radna i zaštitna odjeća i obuća | AB21: 32 | AC21: 322 | AE21: K676068.002 | AF21: MZO-HORIZON EUROPE | AG21: K676068 | AH21: =IFERROR(VLOOKUP(AG21,AKT!$E$4:$G$351,3,FALSE),"") -> 0150
I22: 0 | J22: 0 | Q22: =IF(C22="","",'OPĆI DIO'!$C$1) ->  | V22: 810 | W22: Namjenski primici -ostali | Y22: 3231 | Z22: Usluge telefona, pošte i prijevoza | AB22: 32 | AC22: 323 | AE22: K676068.004 | AF22: MZO-Tehnička pomoć OP ULJP 2021.-2027. | AG22: K676068 | AH22: =IFERROR(VLOOKUP(AG22,AKT!$E$4:$G$351,3,FALSE),"") -> 0150
I23: 0 | J23: 0 | Q23: =IF(C23="","",'OPĆI DIO'!$C$1) ->  | V23: 815 | W23: Namjenski primitak - NPOO | Y23: 3232 | Z23: Usluge tekućeg i investicijskog održavanja | AB23: 32 | AC23: 323 | AE23: K733067.016 | AF23: Dodjela stipendija studentima u socio-ekonomski nepovoljnom položaju | AG23: K733067 | AH23: =IFERROR(VLOOKUP(AG23,AKT!$E$4:$G$351,3,FALSE),"") -> 0950
I24: 0 | J24: 0 | Q24: =IF(C24="","",'OPĆI DIO'!$C$1) ->  | V24: 83 | W24: Namjenski primici od inozemnog zaduživanja | Y24: 3233 | Z24: Usluge promidžbe i informiranja | AB24: 32 | AC24: 323 | AE24: K733067.017 | AF24: Daljnja provedba CKR - izrada predmetnih kurikuluma posebnih programa za učenike s teškoćama u razvoju i studijskih programa iz sektora odgoja i obrazovanja | AG24: K733067 | AH24: =IFERROR(VLOOKUP(AG24,AKT!$E$4:$G$351,3,FALSE),"") -> 0950
I25: 0 | J25: 0 | Q25: =IF(C25="","",'OPĆI DIO'!$C$1) ->  | Y25: 3234 | Z25: Komunalne usluge | AB25: 32 | AC25: 323 | AE25: K733067.019 | AF25: Potpora tijelima za unaprjeđenje HKO-a i promicanje jednakog pristupa kvalitetnom i uključivom obrazovanju i osposobljavanju | AG25: K733067 | AH25: =IFERROR(VLOOKUP(AG25,AKT!$E$4:$G$351,3,FALSE),"") -> 0950
I26: 0 | J26: 0 | Q26: =IF(C26="","",'OPĆI DIO'!$C$1) ->  | Y26: 3235 | Z26: Zakupnine i najamnine | AB26: 32 | AC26: 323 | AE26: K733067.021 | AF26: Osiguravanje pomoćnika u nastavi i stručnih komunikacijskih posrednika učenicima s teškoćama u razvoju u osnovnoškolskim i srednjoškolskim odgojno-obrazovnim ustanovama | AG26: K733067 | AH26: =IFERROR(VLOOKUP(AG26,AKT!$E$4:$G$351,3,FALSE),"") -> 0950
I27: 0 | J27: 0 | Q27: =IF(C27="","",'OPĆI DIO'!$C$1) ->  | Y27: 3236 | Z27: Zdravstvene i veterinarske usluge | AB27: 32 | AC27: 323 | AE27: K818050.008 | AF27: Razvoj, unapređenje i provedba stručne prakse u visokom obrazovanju | AG27: K818050 | AH27: =IFERROR(VLOOKUP(AG27,AKT!$E$4:$G$351,3,FALSE),"") -> 0950
I28: 0 | J28: 0 | Q28: =IF(C28="","",'OPĆI DIO'!$C$1) ->  | Y28: 3237 | Z28: Intelektualne i osobne usluge | AB28: 32 | AC28: 323 | AE28: K818050.009 | AF28: Sufinanciranje troškova uključivanja djece u socio-ekonomski nepovoljnoj situaciji u predškolske ustanove | AG28: K818050 | AH28: =IFERROR(VLOOKUP(AG28,AKT!$E$4:$G$351,3,FALSE),"") -> 0950
I29: 0 | J29: 0 | Q29: =IF(C29="","",'OPĆI DIO'!$C$1) ->  | Y29: 3238 | Z29: Računalne usluge | AB29: 32 | AC29: 323 | AE29: K818050.011 | AF29: Uspostava regionalnih centara kompetencija u strukovnom obrazovanju u odabranim sektorima | AG29: K818050 | AH29: =IFERROR(VLOOKUP(AG29,AKT!$E$4:$G$351,3,FALSE),"") -> 0950
I30: 0 | J30: 0 | Q30: =IF(C30="","",'OPĆI DIO'!$C$1) ->  | Y30: 3239 | Z30: Ostale usluge | AB30: 32 | AC30: 323 | AE30: K818050.023 | AF30: MZO Tehnička pomoć OP ULJP faza I | AG30: K818050 | AH30: =IFERROR(VLOOKUP(AG30,AKT!$E$4:$G$351,3,FALSE),"") -> 0950
I31: 0 | J31: 0 | Q31: =IF(C31="","",'OPĆI DIO'!$C$1) ->  | Y31: 3241 | Z31: Naknade troškova osobama izvan radnog odnosa | AB31: 32 | AC31: 324 | AE31: K818050.024 | AF31: Informatizacija procesa i uspostava cjelovite elektroničke usluge upisa u odgojne i obrazovne ustanove | AG31: K818050 | AH31: =IFERROR(VLOOKUP(AG31,AKT!$E$4:$G$351,3,FALSE),"") -> 0950
I32: 0 | J32: 0 | Q32: =IF(C32="","",'OPĆI DIO'!$C$1) ->  | Y32: 3291 | Z32: Naknade za rad predstavničkih i izvršnih tijela, povjerensta | AB32: 32 | AC32: 329 | AE32: K818050.026 | AF32: Osiguravanje pomoćnika u nastavi i stručnih komunikacijskih posrednika učenicima s teškoćama u razvoju u osnovnoškolskim i srednjoškolskim odgojno-obrazovnim ustanovama - faza IV | AG32: K818050 | AH32: =IFERROR(VLOOKUP(AG32,AKT!$E$4:$G$351,3,FALSE),"") -> 0950
I33: 0 | J33: 0 | Q33: =IF(C33="","",'OPĆI DIO'!$C$1) ->  | Y33: 3292 | Z33: Premije osiguranja | AB33: 32 | AC33: 329 | AE33: A679071.001 | AF33: ERASMUS+ projekt razvijanja i certificiranja nastavnog plana obrazovnog modula logistike na diplomskim studijima Sveučilišta u Osijeku | AG33: A679071 | AH33: =IFERROR(VLOOKUP(AG33,AKT!$E$4:$G$351,3,FALSE),"") -> 0942
I34: 0 | J34: 0 | Q34: =IF(C34="","",'OPĆI DIO'!$C$1) ->  | Y34: 3293 | Z34: Reprezentacija | AB34: 32 | AC34: 329 | AE34: A679071.002 | AF34: ERASMUS+ projekt uvođenja novog kolegija u nastavni plan i program Ekonomskog fakulteta u Osijeku | AG34: A679071 | AH34: =IFERROR(VLOOKUP(AG34,AKT!$E$4:$G$351,3,FALSE),"") -> 0942
I35: 0 | J35: 0 | Q35: =IF(C35="","",'OPĆI DIO'!$C$1) ->  | Y35: 3293 | Z35: Reprezentacija | AB35: 32 | AC35: 329 | AE35: A679071.003 | AF35: ERASMUS+ projekt unaprjeđenja i promicanja telekomunikacijskog inženjeringa | AG35: A679071 | AH35: =IFERROR(VLOOKUP(AG35,AKT!$E$4:$G$351,3,FALSE),"") -> 0942
I36: 0 | J36: 0 | Q36: =IF(C36="","",'OPĆI DIO'!$C$1) ->  | Y36: 3294 | Z36: Članarine i norme | AB36: 32 | AC36: 329 | AE36: A679071.004 | AF36: ERASMUS + Ključna mjera 2: suradnja za inovacije i razmjena dobre prakse - e-ProfEng | AG36: A679071 | AH36: =IFERROR(VLOOKUP(AG36,AKT!$E$4:$G$351,3,FALSE),"") -> 0942
I37: 0 | J37: 0 | Q37: =IF(C37="","",'OPĆI DIO'!$C$1) ->  | Y37: 3295 | Z37: Pristojbe i naknade | AB37: 32 | AC37: 329 | AE37: A679071.005 | AF37: ERASMUS+ projekt individualne mobilnosti nastavnog i nenastavnog osoblja kroz boravak na inozemnim ustanovama | AG37: A679071 | AH37: =IFERROR(VLOOKUP(AG37,AKT!$E$4:$G$351,3,FALSE),"") -> 0942
I38: 0 | J38: 0 | Q38: =IF(C38="","",'OPĆI DIO'!$C$1) ->  | Y38: 3296 | Z38: Troškovi sudskih postupaka | AB38: 32 | AC38: 329 | AE38: A679071.006 | AF38: ERASMUS+ projekt međukulturalne razmjene stručnih znanja u građevinarstvu | AG38: A679071 | AH38: =IFERROR(VLOOKUP(AG38,AKT!$E$4:$G$351,3,FALSE),"") -> 0942
I39: 0 | J39: 0 | Q39: =IF(C39="","",'OPĆI DIO'!$C$1) ->  | Y39: 3299 | Z39: Ostali nespomenuti rashodi poslovanja | AB39: 32 | AC39: 329 | AE39: A679071.007 | AF39: ERASMUS+ projekt razvijanja pedagoških vještina kroz boravak na inozemnim ustanovama | AG39: A679071 | AH39: =IFERROR(VLOOKUP(AG39,AKT!$E$4:$G$351,3,FALSE),"") -> 0942
I40: 0 | J40: 0 | Q40: =IF(C40="","",'OPĆI DIO'!$C$1) ->  | Y40: 3411 | Z40: Kamate za izdane trezorske zapise | AB40: 34 | AC40: 341 | AE40: A679071.008 | AF40: Projekt energetske obnove zgrade - Strojarski fakultet Slavonski Brod | AG40: A679071 | AH40: =IFERROR(VLOOKUP(AG40,AKT!$E$4:$G$351,3,FALSE),"") -> 0942
I41: 0 | J41: 0 | Q41: =IF(C41="","",'OPĆI DIO'!$C$1) ->  | Y41: 3422 | Z41: Kamate za primljene kredite i zajmove od kreditnih i ostalih | AB41: 34 | AC41: 342 | AE41: A679071.009 | AF41: IPA AGRICULTURAL WASTE projekt poboljšanja konkurentnosti regionalnih ekonomskih subjekata u prekograničnom području | AG41: A679071 | AH41: =IFERROR(VLOOKUP(AG41,AKT!$E$4:$G$351,3,FALSE),"") -> 0942
I42: 0 | J42: 0 | Q42: =IF(C42="","",'OPĆI DIO'!$C$1) ->  | Y42: 3423 | Z42: Kamate za primljene kredite i zajmove od kreditnih i ostalih | AB42: 34 | AC42: 342 | AE42: A679071.010 | AF42: INTERREG IPA Ozelenjivanje gradova | AG42: A679071 | AH42: =IFERROR(VLOOKUP(AG42,AKT!$E$4:$G$351,3,FALSE),"") -> 0942
I43: 0 | J43: 0 | Q43: =IF(C43="","",'OPĆI DIO'!$C$1) ->  | Y43: 3427 | Z43: Kamate za primljene zajmove od trgovačkih društava i obrtnik | AB43: 34 | AC43: 342 | AE43: A679071.011 | AF43: ARDENT-Unapređenje ruralnog razvoja kroz poduzetničko obrazovanje za odrasle | AG43: A679071 | AH43: =IFERROR(VLOOKUP(AG43,AKT!$E$4:$G$351,3,FALSE),"") -> 0942
I44: 0 | J44: 0 | Q44: =IF(C44="","",'OPĆI DIO'!$C$1) ->  | Y44: 3431 | Z44: Bankarske usluge i usluge platnog prometa | AB44: 34 | AC44: 343 | AE44: A679071.012 | AF44: EUFams II - Olakšavanje prekograničnog obiteljskog života | AG44: A679071 | AH44: =IFERROR(VLOOKUP(AG44,AKT!$E$4:$G$351,3,FALSE),"") -> 0942
I45: 0 | J45: 0 | Q45: =IF(C45="","",'OPĆI DIO'!$C$1) ->  | Y45: 3432 | Z45: Negativne tečajne razlike i razlike zbog primjene valutne kl | AB45: 34 | AC45: 343 | AE45: A679071.013 | AF45: Zaštita otmičnih majki u postupku za povratak: Raskrižje između nasilja u obitelji i roditeljskog otmica djeteta | AG45: A679071 | AH45: =IFERROR(VLOOKUP(AG45,AKT!$E$4:$G$351,3,FALSE),"") -> 0942
I46: 0 | J46: 0 | Q46: =IF(C46="","",'OPĆI DIO'!$C$1) ->  | Y46: 3433 | Z46: Zatezne kamate | AB46: 34 | AC46: 343 | AE46: A679071.014 | AF46: INTERREG IPA CBC Hrvatska - Srbija | AG46: A679071 | AH46: =IFERROR(VLOOKUP(AG46,AKT!$E$4:$G$351,3,FALSE),"") -> 0942
I47: 0 | J47: 0 | Q47: =IF(C47="","",'OPĆI DIO'!$C$1) ->  | Y47: 3434 | Z47: Ostali nespomenuti financijski rashodi | AB47: 34 | AC47: 343 | AE47: A679071.015 | AF47: HKO-ELE- Primjena Hrvatskog kvalifikacijskog okvira za sveučilišne studijske programe u području elektrotehnike | AG47: A679071 | AH47: =IFERROR(VLOOKUP(AG47,AKT!$E$4:$G$351,3,FALSE),"") -> 0942
I48: 0 | J48: 0 | Q48: =IF(C48="","",'OPĆI DIO'!$C$1) ->  | Y48: 3511 | Z48: Subvencije kreditnim i ostalim financijskim institucijama u | AB48: 35 | AC48: 351 | AE48: A679071.016 | AF48: INTERREG SeNs Wetlands | AG48: A679071 | AH48: =IFERROR(VLOOKUP(AG48,AKT!$E$4:$G$351,3,FALSE),"") -> 0942
I49: 0 | J49: 0 | Q49: =IF(C49="","",'OPĆI DIO'!$C$1) ->  | Y49: 3512 | Z49: Subvencije trgovačkim društvima u javnom sektoru | AB49: 35 | AC49: 351 | AE49: A679071.017 | AF49: INTERREG Rescue | AG49: A679071 | AH49: =IFERROR(VLOOKUP(AG49,AKT!$E$4:$G$351,3,FALSE),"") -> 0942
I50: 0 | J50: 0 | Q50: =IF(C50="","",'OPĆI DIO'!$C$1) ->  | Y50: 3522 | Z50: Subvencije trgovačkim društvima izvan javnog sektora | AB50: 35 | AC50: 352 | AE50: A679071.018 | AF50: ERAMCA-Procjena ekološkog rizika i ublažavanje imovine kulturne baštine u Srednjoj Aziji | AG50: A679071 | AH50: =IFERROR(VLOOKUP(AG50,AKT!$E$4:$G$351,3,FALSE),"") -> 0942
I51: 0 | J51: 0 | Q51: =IF(C51="","",'OPĆI DIO'!$C$1) ->  | Y51: 3531 | Z51: Subvencije trgovačkim društvima, zadrugama, poljoprivrednici | AB51: 35 | AC51: 353 | AE51: A679071.019 | AF51: Znanstveni centar izvrsnosti personalizirana briga o zdravlju | AG51: A679071 | AH51: =IFERROR(VLOOKUP(AG51,AKT!$E$4:$G$351,3,FALSE),"") -> 0942
I52: 0 | J52: 0 | Q52: =IF(C52="","",'OPĆI DIO'!$C$1) ->  | Y52: 3611 | Z52: Tekuće pomoći inozemnim vladama | AB52: 36 | AC52: 361 | AE52: A679071.020 | AF52: IPA INTERREG CBC | AG52: A679071 | AH52: =IFERROR(VLOOKUP(AG52,AKT!$E$4:$G$351,3,FALSE),"") -> 0942
I53: 0 | J53: 0 | Q53: =IF(C53="","",'OPĆI DIO'!$C$1) ->  | Y53: 3621 | Z53: Tekuće pomoći međunarodnim organizacijama te institucijama i | AB53: 36 | AC53: 362 | AE53: A679071.021 | AF53: Potpora za očuvanje, održivo korištenje i razvoj genetskih izvora u poljoprivredi | AG53: A679071 | AH53: =IFERROR(VLOOKUP(AG53,AKT!$E$4:$G$351,3,FALSE),"") -> 0942
I54: 0 | J54: 0 | Q54: =IF(C54="","",'OPĆI DIO'!$C$1) ->  | Y54: 3631 | Z54: Tekuće pomoći unutar općeg proračuna | AB54: 36 | AC54: 363 | AE54: A679071.022 | AF54: Izvrsnost i učinkovitost u visokom obrazovanju u polju ekonomije (E4) | AG54: A679071 | AH54: =IFERROR(VLOOKUP(AG54,AKT!$E$4:$G$351,3,FALSE),"") -> 0942
I55: 0 | J55: 0 | Q55: =IF(C55="","",'OPĆI DIO'!$C$1) ->  | Y55: 3632 | Z55: Kapitalne pomoći unutar općeg proračuna | AB55: 36 | AC55: 363 | AE55: A679071.023 | AF55: Unaprjeđenje kvalitete studiranja na pravnim fakultetima u Hrvatskoj | AG55: A679071 | AH55: =IFERROR(VLOOKUP(AG55,AKT!$E$4:$G$351,3,FALSE),"") -> 0942
I56: 0 | J56: 0 | Q56: =IF(C56="","",'OPĆI DIO'!$C$1) ->  | Y56: 3661 | Z56: Tekuće pomoći proračunskim korisnicima drugih proračuna | AB56: 36 | AC56: 366 | AE56: A679071.024 | AF56: Projekt razvoja karijere mladih istraživača - izobrazba novih doktora znanosti | AG56: A679071 | AH56: =IFERROR(VLOOKUP(AG56,AKT!$E$4:$G$351,3,FALSE),"") -> 0942
I57: 0 | J57: 0 | Q57: =IF(C57="","",'OPĆI DIO'!$C$1) ->  | Y57: 3662 | Z57: Kapitalne pomoći proračunskim korisnicima drugih proračuna | AB57: 36 | AC57: 366 | AE57: A679071.025 | AF57: IRI PROJEKT - AGROSIMPA | AG57: A679071 | AH57: =IFERROR(VLOOKUP(AG57,AKT!$E$4:$G$351,3,FALSE),"") -> 0942
I58: 0 | J58: 0 | Q58: =IF(C58="","",'OPĆI DIO'!$C$1) ->  | Y58: 3681 | Z58: Tekuće pomoći temeljem prijenosa EU sredstava | AB58: 36 | AC58: 368 | AE58: A679071.026 | AF58: IPA INTERREG CBC ESTABLISHING DEVELOPMENT OF SUSTAINABLE CROSS BORDER CLUSTERS | AG58: A679071 | AH58: =IFERROR(VLOOKUP(AG58,AKT!$E$4:$G$351,3,FALSE),"") -> 0942
I59: 0 | J59: 0 | Q59: =IF(C59="","",'OPĆI DIO'!$C$1) ->  | Y59: 3682 | Z59: Kapitalne pomoći temeljem prijenosa EU sredstava | AB59: 36 | AC59: 368 | AE59: A679071.027 | AF59: APPLERESIST | AG59: A679071 | AH59: =IFERROR(VLOOKUP(AG59,AKT!$E$4:$G$351,3,FALSE),"") -> 0942
I60: 0 | J60: 0 | Q60: =IF(C60="","",'OPĆI DIO'!$C$1) ->  | Y60: 3691 | Z60: Tekući prijenosi između proračunskih korisnika istog proraču | AB60: 36 | AC60: 369 | AE60: A679071.028 | AF60: BIO4FEED PARTNER | AG60: A679071 | AH60: =IFERROR(VLOOKUP(AG60,AKT!$E$4:$G$351,3,FALSE),"") -> 0942
I61: 0 | J61: 0 | Q61: =IF(C61="","",'OPĆI DIO'!$C$1) ->  | Y61: 3692 | Z61: Kapitalni prijenosi između proračunskih korisnika istog pror | AB61: 36 | AC61: 369 | AE61: A679071.029 | AF61: AGROEKOTEH HAPIH | AG61: A679071 | AH61: =IFERROR(VLOOKUP(AG61,AKT!$E$4:$G$351,3,FALSE),"") -> 0942
I62: 0 | J62: 0 | Q62: =IF(C62="","",'OPĆI DIO'!$C$1) ->  | Y62: 3693 | Z62: Tekući prijenosi između proračunskih korisnika istog proraču | AB62: 36 | AC62: 369 | AE62: A679071.030 | AF62: ERASMUS K2 - FAKULTET AGROBIOTEHNIČKIH ZNANOSTI OSIJEK | AG62: A679071 | AH62: =IFERROR(VLOOKUP(AG62,AKT!$E$4:$G$351,3,FALSE),"") -> 0942
I63: 0 | J63: 0 | Q63: =IF(C63="","",'OPĆI DIO'!$C$1) ->  | Y63: 3694 | Z63: Kapitalni prijenosi između proračunskih korisnika istog pror | AB63: 36 | AC63: 369 | AE63: A679071.031 | AF63: TRAIN -CE-FOOD | AG63: A679071 | AH63: =IFERROR(VLOOKUP(AG63,AKT!$E$4:$G$351,3,FALSE),"") -> 0942
I64: 0 | J64: 0 | Q64: =IF(C64="","",'OPĆI DIO'!$C$1) ->  | Y64: 3711 | Z64: Naknade građ. i kuć. u novcu-neposr. ili putem ust.izvan js | AB64: 37 | AC64: 371 | AE64: A679071.032 | AF64: HARISA | AG64: A679071 | AH64: =IFERROR(VLOOKUP(AG64,AKT!$E$4:$G$351,3,FALSE),"") -> 0942
I65: 0 | J65: 0 | Q65: =IF(C65="","",'OPĆI DIO'!$C$1) ->  | Y65: 3712 | Z65: Naknade građ. i kuć. u naravi-neposr. ili putem ust.izvan js | AB65: 37 | AC65: 371 | AE65: A679071.033 | AF65: HKO na razini visokog obrazovanja | AG65: A679071 | AH65: =IFERROR(VLOOKUP(AG65,AKT!$E$4:$G$351,3,FALSE),"") -> 0942
I66: 0 | J66: 0 | Q66: =IF(C66="","",'OPĆI DIO'!$C$1) ->  | Y66: 3713 | Z66: Naknade građanima i kućanstvima u novcu - putem ustanova u j | AB66: 37 | AC66: 371 | AE66: A679071.034 | AF66: Jean Monnet Module Language and EU Law Excellence | AG66: A679071 | AH66: =IFERROR(VLOOKUP(AG66,AKT!$E$4:$G$351,3,FALSE),"") -> 0942
I67: 0 | J67: 0 | Q67: =IF(C67="","",'OPĆI DIO'!$C$1) ->  | Y67: 3714 | Z67: Naknade građanima i kućanstvima u naravi - putem ustanova u | AB67: 37 | AC67: 371 | AE67: A679071.035 | AF67: ICT u poljoprivrednim znanostima | AG67: A679071 | AH67: =IFERROR(VLOOKUP(AG67,AKT!$E$4:$G$351,3,FALSE),"") -> 0942
B68: =IFERROR(VLOOKUP(A68,$V$6:$W$23,2,FALSE),"") ->  | D68: =IFERROR(VLOOKUP(C68,$Y$5:$AA$129,2,FALSE),"") ->  | F68: =IFERROR(VLOOKUP(E68,$AE$6:$AF$1763,2,FALSE),"") ->  | G68: =IFERROR(VLOOKUP(E68,$AE$6:$AH$1763,4,FALSE),"") ->  | I68: 0 | J68: =+H68+I68 -> 0 | Q68: =IF(C68="","",'OPĆI DIO'!$C$1) ->  | R68: =LEFT(C68,3) ->  | S68: =LEFT(C68,2) ->  | T68: =IF(U68="5",0,MID(G68,2,2)) ->  | U68: =LEFT(C68,1) ->  | Y68: 3715 | Z68: Naknade građanima i kućanstvima na temelju osiguranja iz EU | AB68: 37 | AC68: 371 | AE68: A679071.036 | AF68: ERASMUS+GAMe based learning in MAthematics | AG68: A679071 | AH68: =IFERROR(VLOOKUP(AG68,AKT!$E$4:$G$351,3,FALSE),"") -> 0942
I69: 0 | J69: 0 | Q69: =IF(C69="","",'OPĆI DIO'!$C$1) ->  | Y69: 3721 | Z69: Naknade građanima i kućanstvima u novcu | AB69: =LEFT(Y69,2) -> 37 | AC69: 372 | AE69: A679071.037 | AF69: EU Contemporary Puppetry Critical Platform | AG69: A679071 | AH69: =IFERROR(VLOOKUP(AG69,AKT!$E$4:$G$351,3,FALSE),"") -> 0942
I70: 0 | J70: 0 | Q70: =IF(C70="","",'OPĆI DIO'!$C$1) ->  | Y70: 3722 | Z70: Naknade građanima i kućanstvima u naravi | AB70: 37 | AC70: =LEFT(Y70,3) -> 372 | AE70: A679071.038 | AF70: Istraživanje i razvoj inovativne funkcionalne hrane za pčele radi povećanja efikasnosti globalne pčelarske proizvodnje. | AG70: A679071 | AH70: =IFERROR(VLOOKUP(AG70,AKT!$E$4:$G$351,3,FALSE),"") -> 0942
I71: 0 | J71: 0 | Q71: =IF(C71="","",'OPĆI DIO'!$C$1) ->  | Y71: 3723 | Z71: Naknade građanima i kućanstvima iz EU sredstava | AB71: 37 | AC71: 372 | AE71: A679071.039 | AF71: Bioproscpecting Jadranskog mora | AG71: A679071 | AH71: =IFERROR(VLOOKUP(AG71,AKT!$E$4:$G$351,3,FALSE),"") -> 0942
I72: 0 | J72: 0 | Q72: =IF(C72="","",'OPĆI DIO'!$C$1) ->  | Y72: 3811 | Z72: Tekuće donacije u novcu | AB72: 38 | AC72: 381 | AE72: A679071.040 | AF72: Internacionalizacija visokog obrazovanja - razvoj studijskih programa na stranim jezicima u prioritetnim područjima i združenih studija | AG72: A679071 | AH72: =IFERROR(VLOOKUP(AG72,AKT!$E$4:$G$351,3,FALSE),"") -> 0942
I73: 0 | J73: 0 | Q73: =IF(C73="","",'OPĆI DIO'!$C$1) ->  | Y73: 3812 | Z73: Tekuće donacije u naravi | AB73: 38 | AC73: 381 | AE73: A679071.041 | AF73: Generation Peace: Children, Conflict and Competing Identities in Europe | AG73: =LEFT(AE73,7) -> A679071 | AH73: =IFERROR(VLOOKUP(AG73,AKT!$E$4:$G$351,3,FALSE),"") -> 0942
I74: 0 | J74: 0 | Q74: =IF(C74="","",'OPĆI DIO'!$C$1) ->  | Y74: 3813 | Z74: Tekuće donacije iz EU sredstava | AB74: 38 | AC74: 381 | AE74: A679071.042 | AF74: Interpreting Child-Centredness to support Quality and Diversity in Early Childhood Education and Care | AG74: A679071 | AH74: =IFERROR(VLOOKUP(AG74,AKT!$E$4:$G$351,3,FALSE),"") -> 0942
I75: 0 | J75: 0 | Q75: =IF(C75="","",'OPĆI DIO'!$C$1) ->  | Y75: 3821 | Z75: Kapitalne donacije neprofitnim organizacijama | AB75: 38 | AC75: 382 | AE75: A679071.043 | AF75: Helping Kids! Promoting Positive Intergroup Relations and Peacebuilding in Divided Societies | AG75: A679071 | AH75: =IFERROR(VLOOKUP(AG75,AKT!$E$4:$G$351,3,FALSE),"") -> 0942
I76: 0 | J76: 0 | Q76: =IF(C76="","",'OPĆI DIO'!$C$1) ->  | Y76: 3831 | Z76: Naknade šteta pravnim i fizičkim osobama | AB76: 38 | AC76: 383 | AE76: A679071.044 | AF76: Mobility and Inclusion in Multilingual Europe | AG76: A679071 | AH76: =IFERROR(VLOOKUP(AG76,AKT!$E$4:$G$351,3,FALSE),"") -> 0942
I77: 0 | J77: 0 | Q77: =IF(C77="","",'OPĆI DIO'!$C$1) ->  | Y77: 3832 | Z77: Penali, ležarine i drugo | AB77: 38 | AC77: 383 | AE77: A679071.045 | AF77: Kompetencijski standardi nastavnika, pedagoga i mentora | AG77: A679071 | AH77: =IFERROR(VLOOKUP(AG77,AKT!$E$4:$G$351,3,FALSE),"") -> 0942
I78: 0 | J78: 0 | Q78: =IF(C78="","",'OPĆI DIO'!$C$1) ->  | Y78: 3833 | Z78: Naknade šteta zaposlenicima | AB78: 38 | AC78: 383 | AE78: A679071.046 | AF78: Kompetencijski standardi nastavnika, pedagoga i mentora | AG78: A679071 | AH78: =IFERROR(VLOOKUP(AG78,AKT!$E$4:$G$351,3,FALSE),"") -> 0942
I79: 0 | J79: 0 | Q79: =IF(C79="","",'OPĆI DIO'!$C$1) ->  | Y79: 3834 | Z79: Ugovorene kazne i ostale naknade šteta | AB79: 38 | AC79: 383 | AE79: A679071.047 | AF79: ERASMUS+ STRATEŠKO PARTNERSTVO INSPIRED - Innovative Solutions for Practicallity and Impact in Refugee and Migration Oriented Education (agreement no. 2017-1-HR01-KA203-035359) | AG79: A679071 | AH79: =IFERROR(VLOOKUP(AG79,AKT!$E$4:$G$351,3,FALSE),"") -> 0942
I80: 0 | J80: 0 | Q80: =IF(C80="","",'OPĆI DIO'!$C$1) ->  | Y80: 3835 | Z80: Ostale kazne | AB80: 38 | AC80: 383 | AE80: A679071.048 | AF80: Treasure- OBZOR 2020 (Obzor 2020- horizon projket TreasureDiversity of local pig breeds and production systems for high quality traditional products and sustainable pork chains"Ugovaratelj Kmetijski institut Slovenije) | AG80: A679071 | AH80: =IFERROR(VLOOKUP(AG80,AKT!$E$4:$G$351,3,FALSE),"") -> 0942
I81: 0 | J81: 0 | Q81: =IF(C81="","",'OPĆI DIO'!$C$1) ->  | Y81: 3861 | Z81: Kapitalne pomoći kreditnim i ostalim financijskim institucijama te trgovačkim društvima u javnom sektoru | AB81: 38 | AC81: 386 | AE81: A679071.049 | AF81: Digital Education for Crisis Situations: Times when there is no alternative (DECriS) | AG81: A679071 | AH81: =IFERROR(VLOOKUP(AG81,AKT!$E$4:$G$351,3,FALSE),"") -> 0942
I82: 0 | J82: 0 | Q82: =IF(C82="","",'OPĆI DIO'!$C$1) ->  | Y82: 3862 | Z82: Kapitalne pomoći kreditnim i ostalim financijskim institucijama te trgovačkim društvima i zadrugama izvan javnog sektora | AB82: 38 | AC82: 386 | AE82: A679071.050 | AF82: HRZZ Vlakna i proteini kao osnova za razvoj novih bioaktivnih dodataka hrani (ESF) | AG82: A679071 | AH82: =IFERROR(VLOOKUP(AG82,AKT!$E$4:$G$351,3,FALSE),"") -> 0942
I83: 0 | J83: 0 | Q83: =IF(C83="","",'OPĆI DIO'!$C$1) ->  | Y83: 3863 | Z83: Kapitalne pomoći poljoprivrednicima i obrtnicima | AB83: 38 | AC83: 386 | AE83: A679071.051 | AF83: CUVid – Curriculum Video Erasmus + | AG83: A679071 | AH83: =IFERROR(VLOOKUP(AG83,AKT!$E$4:$G$351,3,FALSE),"") -> 0942
I84: 0 | J84: 0 | Q84: =IF(C84="","",'OPĆI DIO'!$C$1) ->  | Y84: 4111 | Z84: Zemljište | AB84: 41 | AC84: 411 | AE84: A679071.052 | AF84: Modern logistics learning: Certified module on master study level | AG84: A679071 | AH84: =IFERROR(VLOOKUP(AG84,AKT!$E$4:$G$351,3,FALSE),"") -> 0942
I85: 0 | J85: 0 | Q85: =IF(C85="","",'OPĆI DIO'!$C$1) ->  | Y85: 4113 | Z85: Ostala prirodna materijalna imovina | AB85: 41 | AC85: 411 | AE85: A679071.053 | AF85: VIRTUALS - VIRTUAL VISITING PROFESSORS ERASMUS + | AG85: A679071 | AH85: =IFERROR(VLOOKUP(AG85,AKT!$E$4:$G$351,3,FALSE),"") -> 0942
I86: 0 | J86: 0 | Q86: =IF(C86="","",'OPĆI DIO'!$C$1) ->  | Y86: 4122 | Z86: Koncesije | AB86: 41 | AC86: 412 | AE86: A679071.054 | AF86: CroViZone - Prilagodba vinogradarskih zona RH klimatskim promjenama Operativni program Konkurentnost i kohezija | AG86: A679071 | AH86: =IFERROR(VLOOKUP(AG86,AKT!$E$4:$G$351,3,FALSE),"") -> 0942
I87: 0 | J87: 0 | Q87: =IF(C87="","",'OPĆI DIO'!$C$1) ->  | Y87: 4123 | Z87: Licence | AB87: 41 | AC87: 412 | AE87: A679071.055 | AF87: Istraživanje i razvoj samoizbijajućeg betona za 3D printer s dodatkom pepela | AG87: A679071 | AH87: =IFERROR(VLOOKUP(AG87,AKT!$E$4:$G$351,3,FALSE),"") -> 0942
I88: 0 | J88: 0 | Q88: =IF(C88="","",'OPĆI DIO'!$C$1) ->  | Y88: 4124 | Z88: Ostala prava | AB88: 41 | AC88: 412 | AE88: A679071.056 | AF88: Erasmus + 'Time to Become Digital in Law - DIGinLAW | AG88: A679071 | AH88: =IFERROR(VLOOKUP(AG88,AKT!$E$4:$G$351,3,FALSE),"") -> 0942
I89: 0 | J89: 0 | Q89: =IF(C89="","",'OPĆI DIO'!$C$1) ->  | Y89: 4126 | Z89: Ostala nematerijalna imovina | AB89: 41 | AC89: 412 | AE89: A679071.057 | AF89: EU PLATFORMA SUVREMENOG LUTKARSTVA | AG89: A679071 | AH89: =IFERROR(VLOOKUP(AG89,AKT!$E$4:$G$351,3,FALSE),"") -> 0942
I90: 0 | J90: 0 | Q90: =IF(C90="","",'OPĆI DIO'!$C$1) ->  | Y90: 4211 | Z90: Stambeni objekti | AB90: 42 | AC90: 421 | AE90: A679071.058 | AF90: CSI: CustomDigiTeach-društveni utjecaj prilagođenim formatima poučavanja | AG90: A679071 | AH90: =IFERROR(VLOOKUP(AG90,AKT!$E$4:$G$351,3,FALSE),"") -> 0942
I91: 0 | J91: 0 | Q91: =IF(C91="","",'OPĆI DIO'!$C$1) ->  | Y91: 4212 | Z91: Poslovni objekti | AB91: 42 | AC91: 421 | AE91: A679071.059 | AF91: VirtuOS-uspostava regionalnog centra kompetentnosti u sektoru turizma i ugostiteljstva | AG91: A679071 | AH91: =IFERROR(VLOOKUP(AG91,AKT!$E$4:$G$351,3,FALSE),"") -> 0942
I92: 0 | J92: 0 | Q92: =IF(C92="","",'OPĆI DIO'!$C$1) ->  | Y92: 4213 | Z92: Ceste, željeznice i ostali prometni objekti | AB92: 42 | AC92: 421 | AE92: A679071.060 | AF92: HRZZ PROJEKT -DOKTORANDI BIOTEHNIČKIH ZNANOSTI | AG92: A679071 | AH92: =IFERROR(VLOOKUP(AG92,AKT!$E$4:$G$351,3,FALSE),"") -> 0942
I93: 0 | J93: 0 | Q93: =IF(C93="","",'OPĆI DIO'!$C$1) ->  | Y93: 4214 | Z93: Ostali građevinski objekti | AB93: 42 | AC93: 421 | AE93: A679071.061 | AF93: DATACROSS–Napredne metode i tehnologije u znanosti o podacima i kooperativnim sustavima | AG93: A679071 | AH93: =IFERROR(VLOOKUP(AG93,AKT!$E$4:$G$351,3,FALSE),"") -> 0942
I94: 0 | J94: 0 | Q94: =IF(C94="","",'OPĆI DIO'!$C$1) ->  | Y94: 4221 | Z94: Uredska oprema i namještaj | AB94: 42 | AC94: 422 | AE94: A679071.062 | AF94: EUROCC - konzorcijski sporazum o suradnji (EuroHPC) na projektu stvaranja nacionalnih centara kompetencije | AG94: A679071 | AH94: =IFERROR(VLOOKUP(AG94,AKT!$E$4:$G$351,3,FALSE),"") -> 0942
I95: 0 | J95: 0 | Q95: =IF(C95="","",'OPĆI DIO'!$C$1) ->  | Y95: 4222 | Z95: Komunikacijska oprema | AB95: 42 | AC95: 422 | AE95: A679071.063 | AF95: Erasmus+DECriS European Summer School on Information Science 2021 | AG95: A679071 | AH95: =IFERROR(VLOOKUP(AG95,AKT!$E$4:$G$351,3,FALSE),"") -> 0942
I96: 0 | J96: 0 | Q96: =IF(C96="","",'OPĆI DIO'!$C$1) ->  | Y96: 4223 | Z96: Oprema za održavanje i zaštitu | AB96: 42 | AC96: 422 | AE96: A679071.064 | AF96: RCK VirtuOS-regionalni centri kompetentnosti (RCK) u sektoru turizma i ugostiteljstva | AG96: A679071 | AH96: =IFERROR(VLOOKUP(AG96,AKT!$E$4:$G$351,3,FALSE),"") -> 0942
I97: 0 | J97: 0 | Q97: =IF(C97="","",'OPĆI DIO'!$C$1) ->  | Y97: 4224 | Z97: Medicinska i laboratorijska oprema | AB97: 42 | AC97: 422 | AE97: A679071.065 | AF97: Prilagodba mjera kontrole populacije komaraca zbog klimatskih promjena u RH | AG97: A679071 | AH97: =IFERROR(VLOOKUP(AG97,AKT!$E$4:$G$351,3,FALSE),"") -> 0942
I98: 0 | J98: 0 | Q98: =IF(C98="","",'OPĆI DIO'!$C$1) ->  | Y98: 4225 | Z98: Instrumenti, uređaji i strojevi | AB98: 42 | AC98: 422 | AE98: A679071.066 | AF98: Ulaganje u znanost i inovacije (SIIF) | AG98: A679071 | AH98: =IFERROR(VLOOKUP(AG98,AKT!$E$4:$G$351,3,FALSE),"") -> 0942
I99: 0 | J99: 0 | Q99: =IF(C99="","",'OPĆI DIO'!$C$1) ->  | Y99: 4226 | Z99: Sportska i glazbena oprema | AB99: 42 | AC99: 422 | AE99: A679071.067 | AF99: APPLERESIST-Genetska otpornost jabuke | AG99: A679071 | AH99: =IFERROR(VLOOKUP(AG99,AKT!$E$4:$G$351,3,FALSE),"") -> 0942
I100: 0 | J100: 0 | Q100: =IF(C100="","",'OPĆI DIO'!$C$1) ->  | Y100: 4227 | Z100: Uređaji, strojevi i oprema za ostale namjene | AB100: 42 | AC100: 422 | AE100: A679071.068 | AF100: TANDEM+ EIT HEI | AG100: A679071 | AH100: =IFERROR(VLOOKUP(AG100,AKT!$E$4:$G$351,3,FALSE),"") -> 0942
I101: 0 | J101: 0 | Q101: =IF(C101="","",'OPĆI DIO'!$C$1) ->  | Y101: 4231 | Z101: Prijevozna sredstva u cestovnom prometu | AB101: 42 | AC101: 423 | AE101: A679071.069 | AF101: EUFORIA-EIT Urban Mobility BP2021 | AG101: A679071 | AH101: =IFERROR(VLOOKUP(AG101,AKT!$E$4:$G$351,3,FALSE),"") -> 0942
I102: 0 | J102: 0 | Q102: =IF(C102="","",'OPĆI DIO'!$C$1) ->  | Y102: 4233 | Z102: Prijevozna sredstva u pomorskom i riječnom prometu | AB102: 42 | AC102: 423 | AE102: A679071.070 | AF102: ERASMUS K2 | AG102: A679071 | AH102: =IFERROR(VLOOKUP(AG102,AKT!$E$4:$G$351,3,FALSE),"") -> 0942
I103: 0 | J103: 0 | Q103: =IF(C103="","",'OPĆI DIO'!$C$1) ->  | Y103: 4241 | Z103: Knjige | AB103: 42 | AC103: 424 | AE103: A679071.071 | AF103: Istraživanje i razvoj inovativnih drvnih zidnih obloga, pregradnih i nosivih zidova za održivu gradnju u poduzeću Spačva d.d. KK.01.2.1.0244 | AG103: A679071 | AH103: =IFERROR(VLOOKUP(AG103,AKT!$E$4:$G$351,3,FALSE),"") -> 0942
I104: 0 | J104: 0 | Q104: =IF(C104="","",'OPĆI DIO'!$C$1) ->  | Y104: 4242 | Z104: Umjetnička djela (izložena u galerijama, muzejima i slično) | AB104: 42 | AC104: 424 | AE104: A679071.072 | AF104: Istraživanje i razvoj samozbijajućeg betona i betona za 3D printer sa dodatkom biopepela, šifra KK.01.2.1.02.0055. | AG104: A679071 | AH104: =IFERROR(VLOOKUP(AG104,AKT!$E$4:$G$351,3,FALSE),"") -> 0942
I105: 0 | J105: 0 | Q105: =IF(C105="","",'OPĆI DIO'!$C$1) ->  | Y105: 4244 | Z105: Ostale nespomenute izložbene vrijednosti | AB105: 42 | AC105: 424 | AE105: A679071.073 | AF105: Partnership for Virtual Laboratories in Civil Engineering - PARFORCE (pr. broj: 2020-1-DE01-KA226-HE-005783) | AG105: A679071 | AH105: =IFERROR(VLOOKUP(AG105,AKT!$E$4:$G$351,3,FALSE),"") -> 0942
I106: 0 | J106: 0 | Q106: =IF(C106="","",'OPĆI DIO'!$C$1) ->  | Y106: 4251 | Z106: Višegodišnji nasadi | AB106: 42 | AC106: 425 | AE106: A679071.074 | AF106: IRI PROJEKT - AGROSIMPA | AG106: A679071 | AH106: =IFERROR(VLOOKUP(AG106,AKT!$E$4:$G$351,3,FALSE),"") -> 0942
I107: 0 | J107: 0 | Q107: =IF(C107="","",'OPĆI DIO'!$C$1) ->  | Y107: 4252 | Z107: Osnovno stado | AB107: 42 | AC107: 425 | AE107: A679071.075 | AF107: Znanstveni centar izvrsnosti personalizirana briga o zdravlju | AG107: A679071 | AH107: =IFERROR(VLOOKUP(AG107,AKT!$E$4:$G$351,3,FALSE),"") -> 0942
I108: 0 | J108: 0 | Q108: =IF(C108="","",'OPĆI DIO'!$C$1) ->  | Y108: 4262 | Z108: Ulaganja u računalne programe | AB108: 42 | AC108: 426 | AE108: A679071.076 | AF108: HEAL-IN-ONE | AG108: A679071 | AH108: =IFERROR(VLOOKUP(AG108,AKT!$E$4:$G$351,3,FALSE),"") -> 0942
I109: 0 | J109: 0 | Q109: =IF(C109="","",'OPĆI DIO'!$C$1) ->  | Y109: 4263 | Z109: Umjetnička, literarna i znanstvena djela | AB109: 42 | AC109: 426 | AE109: A679071.077 | AF109: TANDEM+ (Transformation, Acceleration, Networking, Development, Entrepreneurial education and Mentoring+) | AG109: A679071 | AH109: =IFERROR(VLOOKUP(AG109,AKT!$E$4:$G$351,3,FALSE),"") -> 0942
I110: 0 | J110: 0 | Q110: =IF(C110="","",'OPĆI DIO'!$C$1) ->  | Y110: 4264 | Z110: Ostala nematerijalna proizvedena imovina | AB110: 42 | AC110: 426 | AE110: A679071.078 | AF110: EUFORIA - Education Framework for Urban Resilience Innovation Activities | AG110: A679071 | AH110: =IFERROR(VLOOKUP(AG110,AKT!$E$4:$G$351,3,FALSE),"") -> 0942
I111: 0 | J111: 0 | Q111: =IF(C111="","",'OPĆI DIO'!$C$1) ->  | Y111: 4312 | Z111: Pohranjene knjige, umjetnička djela i slične vrijednosti | AB111: 43 | AC111: 431 | AE111: A679071.079 | AF111: South and East European Competition Law Center of Excellence - Jean Monnet Competition Law COE - prof. Akšamović | AG111: A679071 | AH111: =IFERROR(VLOOKUP(AG111,AKT!$E$4:$G$351,3,FALSE),"") -> 0942
I112: 0 | J112: 0 | Q112: =IF(C112="","",'OPĆI DIO'!$C$1) ->  | Y112: 4411 | Z112: Strateške zalihe | AB112: 44 | AC112: 441 | AE112: A679071.080 | AF112: Umrežani stacionarni baterijski spremnici energija USBSE | AG112: A679071 | AH112: =IFERROR(VLOOKUP(AG112,AKT!$E$4:$G$351,3,FALSE),"") -> 0942
I113: 0 | J113: 0 | Q113: =IF(C113="","",'OPĆI DIO'!$C$1) ->  | Y113: 4511 | Z113: Dodatna ulaganja na građevinskim objektima | AB113: 45 | AC113: 451 | AE113: A679071.081 | AF113: „ REsearch-based teaching for life-long LEARNing“ (RELEARN) | AG113: A679071 | AH113: =IFERROR(VLOOKUP(AG113,AKT!$E$4:$G$351,3,FALSE),"") -> 0942
I114: 0 | J114: 0 | Q114: =IF(C114="","",'OPĆI DIO'!$C$1) ->  | Y114: 4521 | Z114: Dodatna ulaganja na postrojenjima i opremi | AB114: 45 | AC114: 452 | AE114: A679071.082 | AF114: DATACROSS – Napredne metode i tehnologije u znanosti o podacima i kooperativnim sustavima | AG114: A679071 | AH114: =IFERROR(VLOOKUP(AG114,AKT!$E$4:$G$351,3,FALSE),"") -> 0942
I115: 0 | J115: 0 | Q115: =IF(C115="","",'OPĆI DIO'!$C$1) ->  | Y115: 4531 | Z115: Dodatna ulaganja na prijevoznim sredstvima | AB115: 45 | AC115: 453 | AE115: A679071.083 | AF115: Istraživanje utjecaja metalnih promotora rijetkih zemalja i stupnja uređenja na redoks svojstva sustava CeO2-ZrO2 | AG115: A679071 | AH115: =IFERROR(VLOOKUP(AG115,AKT!$E$4:$G$351,3,FALSE),"") -> 0942
I116: 0 | J116: 0 | Q116: =IF(C116="","",'OPĆI DIO'!$C$1) ->  | Y116: 4541 | Z116: Dodatna ulaganja za ostalu nefinancijsku imovinu | AB116: 45 | AC116: 454 | AE116: A679071.084 | AF116: Umrežani stacionarni baterijski spremnici energija USBSE | AG116: A679071 | AH116: =IFERROR(VLOOKUP(AG116,AKT!$E$4:$G$351,3,FALSE),"") -> 0942
I117: 0 | J117: 0 | Q117: =IF(C117="","",'OPĆI DIO'!$C$1) ->  | Y117: 5121 | Z117: Dani zajmovi neprofitnim organizacijama, građanima i kućanst | AB117: 51 | AC117: 512 | AE117: A679071.085 | AF117: EYES HEARTS HANDS Urban Revolution | AG117: A679071 | AH117: =IFERROR(VLOOKUP(AG117,AKT!$E$4:$G$351,3,FALSE),"") -> 0942
I118: 0 | J118: 0 | Q118: =IF(C118="","",'OPĆI DIO'!$C$1) ->  | Y118: 5443 | Z118: Otplata glavnice primljenih kredita od tuzemnih kreditnih in | AB118: 54 | AC118: 544 | AE118: A679071.086 | AF118: Documenting chardak house for preserving endangered wooden structure along Drava and Danube rivers in Croatia EWAP2010LG | AG118: A679071 | AH118: =IFERROR(VLOOKUP(AG118,AKT!$E$4:$G$351,3,FALSE),"") -> 0942
F119: =IFERROR(VLOOKUP(E119,$AE$6:$AF$1763,2,FALSE),"") ->  | G119: =IFERROR(VLOOKUP(E119,$AE$6:$AH$1763,4,FALSE),"") ->  | I119: 0 | J119: 0 | Q119: =IF(C119="","",'OPĆI DIO'!$C$1) ->  | Y119: 5121 | Z119: Dani zajmovi neprofitnim organizacijama, građanima i kućanstvima u tuzemstvu | AB119: 51 | AC119: 512 | AE119: A679071.087 | AF119: Intelligent Methods for Structures, Elements and Materials | AG119: A679071 | AH119: =IFERROR(VLOOKUP(AG119,AKT!$E$4:$G$351,3,FALSE),"") -> 0942
F120: =IFERROR(VLOOKUP(E120,$AE$6:$AF$1763,2,FALSE),"") ->  | G120: =IFERROR(VLOOKUP(E120,$AE$6:$AH$1763,4,FALSE),"") ->  | I120: 0 | J120: 0 | Q120: =IF(C120="","",'OPĆI DIO'!$C$1) ->  | Y120: 5122 | Z120: Dani zajmovi neprofitnim organizacijama, građanima i kućanstvima u inozemstvu | AB120: 51 | AC120: 512 | AE120: A679071.088 | AF120: ERASMUS + 2022-1-RO01-KA220-HED-000088958 | AG120: A679071 | AH120: =IFERROR(VLOOKUP(AG120,AKT!$E$4:$G$351,3,FALSE),"") -> 0942
I121: 0 | J121: 0 | Q121: =IF(C121="","",'OPĆI DIO'!$C$1) ->  | Y121: 5141 | Z121: Dani zajmovi trgovačkim društvima u javnom sektoru | AB121: 51 | AC121: 514 | AE121: A679071.089 | AF121: ERASMUS + KA220-HED 000089900 | AG121: A679071 | AH121: =IFERROR(VLOOKUP(AG121,AKT!$E$4:$G$351,3,FALSE),"") -> 0942
I122: 0 | J122: 0 | Q122: =IF(C122="","",'OPĆI DIO'!$C$1) ->  | Y122: 5181 | Z122: Izdaci za depozite u kreditnim i ostalim financijskim institucijama - tuzemni | AB122: 51 | AC122: 518 | AE122: A679071.090 | AF122: Erasmus + 2021-1- RS01-KA220-HED 000032054 HEAL-IN-ONE | AG122: A679071 | AH122: =IFERROR(VLOOKUP(AG122,AKT!$E$4:$G$351,3,FALSE),"") -> 0942
I123: 0 | J123: 0 | Q123: =IF(C123="","",'OPĆI DIO'!$C$1) ->  | Y123: 5183 | Z123: Izdaci za jamčevne pologe | AB123: 51 | AC123: 518 | AE123: A679071.091 | AF123: ERAMUS EDU-2022-CBHE 101082564 | AG123: A679071 | AH123: =IFERROR(VLOOKUP(AG123,AKT!$E$4:$G$351,3,FALSE),"") -> 0942
I124: 0 | J124: 0 | Q124: =IF(C124="","",'OPĆI DIO'!$C$1) ->  | Y124: 5422 | Z124: Otplata glavnice primljenih kredita od kreditnih institucija u javnom sektoru | AB124: 54 | AC124: 542 | AE124: A679071.092 | AF124: BeeGuards HORIZON -CL6-2022- BIODIV-02 | AG124: A679071 | AH124: =IFERROR(VLOOKUP(AG124,AKT!$E$4:$G$351,3,FALSE),"") -> 0942
I125: 0 | J125: 0 | Q125: =IF(C125="","",'OPĆI DIO'!$C$1) ->  | Y125: 5431 | Z125: Otplata glavnice primljenih zajmova od trgovačkih društava u javnom sektoru | AB125: 54 | AC125: 543 | AE125: A679071.093 | AF125: PARTNERSTVO NA PRIMA PROJEKTU SAFEGUARDING AGROECOSYSTEM RESILIENCE UNDER CLIMATE CHANGE THROUGH EFFICIENT POLLINATION AND SUSTAINABLE BEEKEEPING SAFE AGROBEE | AG125: A679071 | AH125: =IFERROR(VLOOKUP(AG125,AKT!$E$4:$G$351,3,FALSE),"") -> 0942
I126: 0 | J126: 0 | Q126: =IF(C126="","",'OPĆI DIO'!$C$1) ->  | Y126: 5443 | Z126: Otplata glavnice primljenih kredita od tuzemnih kreditnih institucija izvan javnog sektora | AB126: 54 | AC126: 544 | AE126: A679071.094 | AF126: BILATERALA HRVATSKA -NORVEŠKA | AG126: A679071 | AH126: =IFERROR(VLOOKUP(AG126,AKT!$E$4:$G$351,3,FALSE),"") -> 0942
I127: 0 | J127: 0 | Q127: =IF(C127="","",'OPĆI DIO'!$C$1) ->  | Y127: 5445 | Z127: Otplata glavnice primljenih zajmova od ostalih tuzemnih financijskih institucija izvan javnog sektora | AB127: 54 | AC127: 544 | AE127: A679071.095 | AF127: Life projekt (MURA-DRAVA-DUNAV) | AG127: A679071 | AH127: =IFERROR(VLOOKUP(AG127,AKT!$E$4:$G$351,3,FALSE),"") -> 0942
I128: 0 | J128: 0 | Q128: =IF(C128="","",'OPĆI DIO'!$C$1) ->  | Y128: 5453 | Z128: Otplata glavnice primljenih zajmova od tuzemnih trgovačkih društava izvan javnog sektora | AB128: 54 | AC128: 545 | AE128: A679071.096 | AF128: European Climate Initiative EUKI | AG128: A679071 | AH128: =IFERROR(VLOOKUP(AG128,AKT!$E$4:$G$351,3,FALSE),"") -> 0942
I129: 0 | J129: 0 | Q129: =IF(C129="","",'OPĆI DIO'!$C$1) ->  | Y129: 5472 | Z129: Otplata glavnice primljenih zajmova od županijskih proračuna | AB129: 54 | AC129: 547 | AE129: A679071.097 | AF129: BAS4SC - Business Analytics Skills for the Future-proof Supply Chains | AG129: A679071 | AH129: =IFERROR(VLOOKUP(AG129,AKT!$E$4:$G$351,3,FALSE),"") -> 0942
I130: 0 | J130: 0 | Q130: =IF(C130="","",'OPĆI DIO'!$C$1) ->  | AE130: A679071.098 | AF130: European support for children at risk of poverty (EU-SHINE) | AG130: A679071 | AH130: =IFERROR(VLOOKUP(AG130,AKT!$E$4:$G$351,3,FALSE),"") -> 0942
I131: 0 | J131: 0 | Q131: =IF(C131="","",'OPĆI DIO'!$C$1) ->  | AE131: A679071.099 | AF131: European Union and Gender Equality (EUGEquality) | AG131: A679071 | AH131: =IFERROR(VLOOKUP(AG131,AKT!$E$4:$G$351,3,FALSE),"") -> 0942
B132: =IFERROR(VLOOKUP(A132,$V$6:$W$23,2,FALSE),"") ->  | D132: =IFERROR(VLOOKUP(C132,$Y$5:$AA$129,2,FALSE),"") ->  | F132: =IFERROR(VLOOKUP(E132,$AE$6:$AF$1763,2,FALSE),"") ->  | G132: =IFERROR(VLOOKUP(E132,$AE$6:$AH$1763,4,FALSE),"") ->  | I132: 0 | J132: =+H132+I132 -> 0 | Q132: =IF(C132="","",'OPĆI DIO'!$C$1) ->  | R132: =LEFT(C132,3) ->  | S132: =LEFT(C132,2) ->  | T132: =IF(U132="5",0,MID(G132,2,2)) ->  | U132: =LEFT(C132,1) ->  | AE132: A679071.100 | AF132: REGIONALNI ZNANSTVENI CENTAR PANONSKE HRVATSKE 04-UBS-Š-0619/22-14 | AG132: A679071 | AH132: =IFERROR(VLOOKUP(AG132,AKT!$E$4:$G$351,3,FALSE),"") -> 0942
I133: 0 | J133: 0 | Q133: =IF(C133="","",'OPĆI DIO'!$C$1) ->  | AE133: A679071.101 | AF133: HORIZON-MISS-2022-OCEAN-01-101112736 Restore4Life | AG133: A679071 | AH133: =IFERROR(VLOOKUP(AG133,AKT!$E$4:$G$351,3,FALSE),"") -> 0942
I134: 0 | J134: 0 | Q134: =IF(C134="","",'OPĆI DIO'!$C$1) ->  | AE134: A679071.102 | AF134: NEWAVES | AG134: A679071 | AH134: =IFERROR(VLOOKUP(AG134,AKT!$E$4:$G$351,3,FALSE),"") -> 0942
I135: 0 | J135: 0 | Q135: =IF(C135="","",'OPĆI DIO'!$C$1) ->  | AE135: A679072.001 | AF135: ERASMUS+ projekt razvoja prometnih modaliteta kod trajekata i putničkih brodova | AG135: A679072 | AH135: =IFERROR(VLOOKUP(AG135,AKT!$E$4:$G$351,3,FALSE),"") -> 0942
I136: 0 | J136: 0 | Q136: =IF(C136="","",'OPĆI DIO'!$C$1) ->  | AE136: A679072.002 | AF136: INTERREG DIGILOGOS projekt digitalizacije logistike multimodalnog teretnog i putničkog transporta Italije i Hrvatske | AG136: A679072 | AH136: =IFERROR(VLOOKUP(AG136,AKT!$E$4:$G$351,3,FALSE),"") -> 0942
I137: 0 | J137: 0 | Q137: =IF(C137="","",'OPĆI DIO'!$C$1) ->  | AE137: A679072.003 | AF137: ERASMUS+ projekt ujednačavanja standarda kvalifikacija za zvanja u unutarnjoj plovidbi na razini EU | AG137: =LEFT(AE137,7) -> A679072 | AH137: =IFERROR(VLOOKUP(AG137,AKT!$E$4:$G$351,3,FALSE),"") -> 0942
I138: 0 | J138: 0 | Q138: =IF(C138="","",'OPĆI DIO'!$C$1) ->  | AE138: A679072.004 | AF138: INTERREG ECOSUSTAIN projekt unaprjeđenja upravljanja zaštićenim područjima uvođenjem novih ICT tehnologija | AG138: A679072 | AH138: =IFERROR(VLOOKUP(AG138,AKT!$E$4:$G$351,3,FALSE),"") -> 0942
I139: 0 | J139: 0 | Q139: =IF(C139="","",'OPĆI DIO'!$C$1) ->  | AE139: A679072.005 | AF139: ERASMUS+ACTS+ on line projekt izrade platforme za učenje COLREGS-a u pomorstvu | AG139: A679072 | AH139: =IFERROR(VLOOKUP(AG139,AKT!$E$4:$G$351,3,FALSE),"") -> 0942
I140: 0 | J140: 0 | Q140: =IF(C140="","",'OPĆI DIO'!$C$1) ->  | AE140: A679072.006 | AF140: ERASMUS+ SKILLS ON BORD projekt edukacije voditelja brodica i zapovjednika jahti | AG140: A679072 | AH140: =IFERROR(VLOOKUP(AG140,AKT!$E$4:$G$351,3,FALSE),"") -> 0942
I141: 0 | J141: 0 | Q141: =IF(C141="","",'OPĆI DIO'!$C$1) ->  | AE141: A679072.007 | AF141: ERASMUS+ SKILLS projekt definiranja modula zanimanja na tržištu rada na kopnu po završetku karijere na brodovima | AG141: A679072 | AH141: =IFERROR(VLOOKUP(AG141,AKT!$E$4:$G$351,3,FALSE),"") -> 0942
I142: 0 | J142: 0 | Q142: =IF(C142="","",'OPĆI DIO'!$C$1) ->  | AE142: A679072.008 | AF142: INTERREG DEEPSEA projekt razvoja sustava upravljanja i inovativnih usluga za nautičare u lukama temeljenih na obnovljivim izvorima energije | AG142: A679072 | AH142: =IFERROR(VLOOKUP(AG142,AKT!$E$4:$G$351,3,FALSE),"") -> 0942
I143: 0 | J143: 0 | Q143: =IF(C143="","",'OPĆI DIO'!$C$1) ->  | AE143: A679072.009 | AF143: INTERREG E-CHAIN projekt izrade modularnog softvera za poboljšanje povezanosti i uskladu podataka Jadranske Intermodalne Mreže | AG143: A679072 | AH143: =IFERROR(VLOOKUP(AG143,AKT!$E$4:$G$351,3,FALSE),"") -> 0942
I144: 0 | J144: 0 | Q144: =IF(C144="","",'OPĆI DIO'!$C$1) ->  | AE144: A679072.010 | AF144: INTERREG PROMARES projekt unaprjeđenja suradnje u logistici pomorskog i multimodalnog teretnog prometa za sve luke | AG144: A679072 | AH144: =IFERROR(VLOOKUP(AG144,AKT!$E$4:$G$351,3,FALSE),"") -> 0942
I145: 0 | J145: 0 | Q145: =IF(C145="","",'OPĆI DIO'!$C$1) ->  | AE145: A679072.011 | AF145: ERASMUS+ LOGIN projekt pripreme stvaranja sustava kvalifikacija i programa za izobrazbu kadrova u logistici | AG145: A679072 | AH145: =IFERROR(VLOOKUP(AG145,AKT!$E$4:$G$351,3,FALSE),"") -> 0942
I146: 0 | J146: 0 | Q146: =IF(C146="","",'OPĆI DIO'!$C$1) ->  | AE146: A679072.012 | AF146: H2020 GLYCOVAX projekt obrazovanja i interakcije s industrijom mladih znanstvenika u racionalnom dizajnu cjepiva protiv glikokonjugata | AG146: A679072 | AH146: =IFERROR(VLOOKUP(AG146,AKT!$E$4:$G$351,3,FALSE),"") -> 0942
I147: 0 | J147: 0 | Q147: =IF(C147="","",'OPĆI DIO'!$C$1) ->  | AE147: A679072.013 | AF147: Post-traumatic Integration projekt razvijanja svijesti i edukacija stručnjaka za rad s izbjeglicama | AG147: A679072 | AH147: =IFERROR(VLOOKUP(AG147,AKT!$E$4:$G$351,3,FALSE),"") -> 0942
I148: 0 | J148: 0 | Q148: =IF(C148="","",'OPĆI DIO'!$C$1) ->  | AE148: A679072.014 | AF148: Projekt Europskog društva za izučavanje traumatskog stresa | AG148: A679072 | AH148: =IFERROR(VLOOKUP(AG148,AKT!$E$4:$G$351,3,FALSE),"") -> 0942
I149: 0 | J149: 0 | Q149: =IF(C149="","",'OPĆI DIO'!$C$1) ->  | AE149: A679072.015 | AF149: ERASMUS+ projekt jačanja kapaciteta za izučavanje medicine boli u zemljama zapadnog Balkana | AG149: A679072 | AH149: =IFERROR(VLOOKUP(AG149,AKT!$E$4:$G$351,3,FALSE),"") -> 0942
